Workbook

Sheet TRM Spreadsheet
A1: Evergy MEEIA 3 Technical Resource Manual - 2020-04-01 Update
A2: Measures updated with final PY3 EM&V results | AO2: Link to CDD | AP2: Link to HDD
A4: Measure Description | H4: Gross Measure Values | AA4: Efficiency Values | AI4: Algorithms | AM4: Start/End Dates | AO4: Quantities
A5: Program | B5: Measure Name | C5: Primary Key | D5: Segment | E5: End Use | F5: Notes | G5: Unit Definition | H5: Incremental Measure Cost ($/Unit) | I5: Incremental Measure Cost Source | J5: Incremental Measure Cost Source Page Number | K5: Electric Energy Savings (Annual kWh/unit) | L5: Electric Energy Savings (Annual kWh/unit) Source | M5: Electric Energy Savings (Annual kWh/unit) Source Page Number | N5: Nameplate Demand Savings (kW/unit) | O5: Peak Coincidence Factor | P5: Peak Coincident Factor Source | Q5: Peak Coincident Factor Source Page Number | R5: Coincident Peak Demand Savings (kW/unit) | S5: Coincident Peak Demand Savings (kW/unit) Source | T5: Coincident Peak Demand Savings (kW/unit) Source Page Number | U5: Annual Operating Hours | V5: Annual Operating Hours Source | W5: Annual Operating Hours Source Page Number | X5: Measure Life (Years) | Y5: Measure Life (Years) Source | Z5: Measure Life (Years) Source Page Number | AA5: Measure Definition | AB5: Measure Efficiency Value | AC5: Measure Efficiency Value Source | AD5: Measure Efficiency Value Source Page Number | AE5: Baseline Definition | AF5: Baseline Efficiency Value | AG5: Baseline Efficiency Value Source | AH5: Baseline Efficiency Value Source Page Number | AI5: Electric Energy Savings Algorithm | AJ5: Electric Demand Savings Algorithm | AK5: Savings Algorithms Source | AL5: Savings Algorithms Source Page Number | AM5: Effective Start Date | AN5: Effective End Date | AO5: Cooling Degree Days (CDD) | AP5: Heating Degree Days (HDD) | AQ5: Degree Days Source | AR5: Degree Days Source Page Number | AS5: Quantity 1 | AT5: Quantity 1 Description | AU5: Quantity 1 Source | AV5: Quantity 1 Source Page Number | AW5: Quantity 2 | AX5: Quantity 2 Description | AY5: Quantity 2 Source | AZ5: Quantity 2 Source Page Number | BA5: Quantity 3 | BB5: Quantity 3 Description | BC5: Quantity 3 Source | BD5: Quantity 3 Source Page Number | BE5: Quantity 4 | BF5: Quantity 4 Description | BG5: Quantity 4 Source | BH5: Quantity 4 Source Page Number | BI5: Quantity 5 | BJ5: Quantity 5 Description | BK5: Quantity 5 Source | BL5: Quantity 5 Source Page Number | BM5: Quantity 6 | BN5: Quantity 6 Description | BO5: Quantity 6 Source | BP5: Quantity 6 Source Page Number | BQ5: Quantity 7 | BR5: Quantity 7 Description | BS5: Quantity 7 Source | BT5: Quantity 7 Source Page Number | BU5: Quantity 8 | BV5: Quantity 8 Description | BW5: Quantity 8 Source | BX5: Quantity 8 Source Page Number | BY5: Quantity 9 | BZ5: Quantity 9 Description | CA5: Quantity 9 Source | CB5: Quantity 9 Source Page Number | CC5: Quantity 10 | CD5: Quantity 10 Description | CE5: Quantity 10 Source | CF5: Quantity 10 Source Page Number | CG5: Quantity 11 | CH5: Quantity 11 Description | CI5: Quantity 11 Source | CJ5: Quantity 11 Source Page Number | CK5: Quantity 12 | CL5: Quantity 12 Description | CM5: Quantity 12 Source | CN5: Quantity 12 Source Page Number | CO5: Quantity 13 | CP5: Quantity 13 Description | CQ5: Quantity 13 Source | CR5: Quantity 13 Source Page Number | CS5: Quantity 14 | CT5: Quantity 14 Description | CU5: Quantity 14 Source | CV5: Quantity 14 Source Page Number | CW5: Quantity 15 | CX5: Quantity 15 Description | CY5: Quantity 15 Source | CZ5: Quantity 15 Source Page Number | DA5: Quantity 16 | DB5: Quantity 16 Description | DC5: Quantity 16 Source | DD5: Quantity 16 Source Page Number | DE5: Quantity 17 | DF5: Quantity 17 Description | DG5: Quantity 17 Source | DH5: Quantity 17 Source Page Number | DI5: Quantity 18 | DJ5: Quantity 18 Description | DK5: Quantity 18 Source | DL5: Quantity 18 Source Page Number | DM5: Quantity 19 | DN5: Quantity 19 Description | DO5: Quantity 19 Source | DP5: Quantity 19 Source Page Number
A6: Energy Saving Products | B6: Screw In - LEDs | C6: 2.2 | D6: All | E6: Lighting | G6: per lamp | H6: 3.93 | I6: Program Tracking Data | K6: =ROUND(($AF6-$AB6)/1000*$U6*$AS6*$BA6,4) -> 39.0136 | L6: Calculated Value | N6: =K6/U6 -> 0.03366143227 | O6: 0.135 | P6: IL TRM v7 vol3 - blended interior/exterior value | Q6: 274 | R6: =ROUND(($AF6-$AB6)/1000*O6*$AW6*$BA6,4) -> 0.0047 | S6: Calculated Value | U6: 1159 | V6: IL TRM v7 vol3 - blended interior/exterior value | W6: 271 | X6: 10 | Y6: IL TRM v7 vol3 | Z6: 268 | AA6: Screw In - LEDs | AB6: 9 | AC6: Program Tracking Data | AE6: 43 watts based on halogen equivalent to average of bulbs sold in program | AF6: 43 | AG6: Program Tracking Database | AI6: =cellformula(K6) -> =ROUND(($AF6-$AB6)/1000*$U6*$AS6*$BA6,4) | AJ6: =cellformula(R6) -> =ROUND(($AF6-$AB6)/1000*O6*$AW6*$BA6,4) | AK6: IL TRM v7 vol3 | AL6: 269, 273 | AM6: 2020-01-01 | AN6: 2020-03-31 | AS6: 1.051 | AT6: Waste Heat Factor, Energy | AU6: IL TRM v7 vol3 - blended interior/exterior value | AV6: 279 | AW6: 1.093 | AX6: Waste Heat Factor, Demand | AY6: IL TRM v7 vol3 - blended interior/exterior value | AZ6: 271 | BA6: 0.942 | BB6: ISR | BC6: Navigant MEEIA Cycle 1 Research
A7: Energy Saving Products | B7: Screw In - LEDs | C7: 2.3 | D7: All | E7: Lighting | G7: per lamp | H7: 1.45 | I7: IL TRM v7 vol3 | J7: 269 | K7: =ROUND(($AF7-$AB7)/1000*$U7*$AS7*$BA7,4) -> 36.1182 | L7: Calculated Value | N7: =K7/U7 -> 0.03316639118 | O7: 0.128 | P7: IL TRM v7 vol3 | Q7: 274 | R7: =ROUND(($AF7-$AB7)/1000*O7*$AW7*$BA7,4) -> 0.0044 | S7: Calculated Value | U7: 1089 | V7: IL TRM v7 vol3 - Assumes interior installation for all standard bulbs. | W7: 271 | X7: 10 | Y7: IL TRM v7 vol3 | Z7: 268 | AA7: Screw In - LEDs | AB7: 9.5 | AC7: Program Tracking Data | AE7: 43 watts based on halogen equivalent to average of bulbs sold in program | AF7: 43 | AG7: Program Tracking Database | AI7: =cellformula(K7) -> =ROUND(($AF7-$AB7)/1000*$U7*$AS7*$BA7,4) | AJ7: =cellformula(R7) -> =ROUND(($AF7-$AB7)/1000*O7*$AW7*$BA7,4) | AK7: IL TRM v7 vol3 | AL7: 269, 273 | AM7: 2020-04-01 | AS7: 1.051 | AT7: Waste Heat Factor, Energy | AU7: IL TRM v7 vol3 - blended interior/exterior value | AV7: 271 | AW7: 1.093 | AX7: Waste Heat Factor, Demand | AY7: IL TRM v7 vol3 - blended interior/exterior value | AZ7: 274 | BA7: 0.942 | BB7: ISR | BC7: Navigant MEEIA Cycle 2 Research
A8: Energy Saving Products | B8: Screw In - Specialty LEDs | C8: 244.2 | D8: All | E8: Lighting | G8: per lamp | H8: 7.39 | I8: IL TRM v5 vol3 | J8: 265 | K8: =ROUND((AF8-AB8)/1000*U8*AS8*BA8,4) -> 34.075 | L8: Calculated Value | N8: =K8/U8 -> 0.03455882353 | O8: 0.08 | P8: IL TRM v5 vol3 | Q8: 258 | R8: =ROUND(($AF8-$AB8)/1000*$O8*$AW8*$BA8,4) -> 0.0029 | S8: Calculated Value | U8: 986 | V8: IL TRM v5 vol3 | W8: 208 | X8: 10 | Y8: IL TRM v5 vol3 | Z8: 205 | AA8: Screw In - Specialty LEDs | AB8: 8.39 | AC8: Program Tracking Data | AE8: 43 watts based on halogen equivalent to average of bulbs sold in program | AF8: 43 | AG8: IL TRM v5 vol3 | AH8: 265 | AI8: =ROUND((AF8-AB8)/1000*U8*AS8*BA8,4) | AJ8: =ROUND(($AF8-$AB8)/1000*$O8*$AW8*$BA8,4) | AK8: IL TRM v7 vol3 | AL8: 250, 259 | AM8: 2020-01-01 | AN8: 2020-03-31 | AS8: 1.06 | AT8: Waste Heat Factor, Energy | AU8: IL TRM v5 vol3 | AV8: 249 | AW8: 1.11 | AX8: Waste Heat Factor, Demand | AY8: IL TRM v5 vol3 | AZ8: 251 | BA8: 0.942 | BB8: ISR | BC8: Navigant MEEIA Cycle 1 Research
A9: Energy Saving Products | B9: Screw In - Specialty LEDs | C9: 244.3 | D9: All | E9: Lighting | G9: per lamp | H9: 1.66 | I9: IL TRM v7 vol3 | J9: 251 | K9: =ROUND((AF9-AB9)/1000*U9*AS9*BA9,4) -> 44.701 | L9: Calculated Value | N9: =K9/U9 -> 0.04589425051 | O9: 0.128 | P9: IL TRM v7 vol3 - Weighted to program sales by bulb shape, and assumes exterior installation of all reflector bulbs over 900 lumens | Q9: 274 | R9: =ROUND(($AF9-$AB9)/1000*$O9*$AW9*$BA9,4) -> 0.0062 | S9: Calculated Value | U9: 974 | V9: IL TRM v7 vol3 - Weighted to program sales by bulb shape, and assumes exterior installation of all reflector bulbs over 900 lumens | X9: 10 | Y9: IL TRM v7 vol3 | Z9: 205 | AA9: Screw In - Specialty LEDs | AB9: 7.6 | AC9: Program Tracking Data | AE9: 54 watts weighted to program sales by bulb shape and lumens. | AF9: 54 | AG9: Program Tracking Data | AI9: =ROUND((AF9-AB9)/1000*U9*AS9*BA9,4) | AJ9: =ROUND(($AF9-$AB9)/1000*$O9*$AW9*$BA9,4) | AK9: IL TRM v7 vol3 | AL9: 250, 259 | AM9: 2020-04-01 | AS9: 1.05 | AT9: Waste Heat Factor, Energy | AU9: Program Tracking Data | AW9: 1.1 | AX9: Waste Heat Factor, Demand | AY9: Program Tracking Data | BA9: 0.942 | BB9: ISR | BC9: Navigant MEEIA Cycle 2 Research
A10: Energy Saving Products | B10: Dehumidifiers | C10: 270 | D10: All | E10: Misc | G10: per unit | H10: 60 | I10: IL TRM v6 vol3 | J10: 14 | K10: =ROUND(140,4) -> 140 | L10: Calculated Value | O10: 0.37 | P10: IL TRM v6 vol3 | Q10: 16 | R10: =ROUND(0.032,4) -> 0.032 | S10: Calculated Value | U10: 1632 | V10: IL TRM v6 vol3 | W10: 16 | X10: 12 | Y10: IL TRM v6 vol2 | Z10: 14 | AA10: Dehumidifier that meets ENERGY STAR criteria | AE10: Non-ENERGY STAR dehumidifier | AI10: =ROUND(140,4) | AJ10: =ROUND(0.032,4) | AK10: IL TRM v6 vol3 | AL10: 15,16 | AM10: 2020-01-01
A11: Energy Saving Products | B11: Room AC Units | C11: 271 | D11: All | E11: HVAC | G11: per unit | H11: 40 | I11: IL TRM v6 vol3 | J11: 34 | K11: =ROUND((AS11*AW11*((1/BA11)-(1/BE11)))/1000,4) -> 14.6387 | L11: Calculated Value | N11: =K11/U11 -> 0.03420257009 | O11: 0.3 | P11: IL TRM v6 vol3 | Q11: 34 | R11: =ROUND(AW11*(((1/(BA11*1.01))-(1/(BE11*1.01))))/1000*O11,4) -> 0.0102 | S11: Calculated Value | U11: 428 | V11: IL TRM v6 vol3 | W11: 35 | X11: 12 | Y11: IL TRM v6 vol3 | Z11: 34 | AA11: Room AC unit that meets ENERGY STAR criteria | AC11: IL TRM v6 vol3 | AD11: 33 | AE11: Non-ENERGY STAR room AC | AG11: IL TRM v6 vol3 | AH11: 34 | AI11: =ROUND((AS11*AW11*((1/BA11)-(1/BE11)))/1000,4) | AJ11: =ROUND(AW11*(((1/(BA11*1.01))-(1/(BE11*1.01))))/1000*O11,4) | AK11: IL TRM v6 vol3 | AL11: 34 | AM11: 2020-01-01 | AS11: 428 | AT11: FLH_RoomAC | AU11: IL TRM v6 vol3 | AV11: 35 | AW11: 8500 | AX11: Btu/H | AY11: IL TRM v6 vol3 | AZ11: 35 | BA11: 10.9 | BB11: CEERbase | BC11: IL TRM v6 vol3 | BD11: 33 | BE11: 11.4 | BF11: CEERee | BG11: IL TRM v6 vol3 | BH11: 33
A12: Energy Saving Products | B12: Room Air Purifiers - CADR 51-100 | C12: 272 | D12: All | E12: Misc | G12: per unit | H12: 70 | I12: IL TRM v6 vol3 | J12: 5 | K12: =ROUND(AS12-AW12,4) -> 293 | L12: Calculated Value | N12: 0.05013689254 | O12: 0.667 | P12: IL TRM v6 vol3 | Q12: 6 | R12: =ROUND(K12/U12*O12,4) -> 0.0334 | S12: Calculated Value | U12: 5844 | V12: IL TRM v6 vol3 | W12: 6 | X12: 9 | Y12: IL TRM v6 vol3 | Z12: 5 | AA12: Air purifier that meets ENERGY STAR criteria | AE12: Non-ENERGY STAR air purifier | AI12: =ROUND(AS12-AW12,4) | AJ12: =ROUND(K12/U12*O12,4) | AK12: IL TRM v6 vol3 | AL12: 6 | AM12: 2020-01-01 | AS12: 441 | AT12: Baseline Unit Energy Consumption | AU12: IL TRM v6 vol3 | AV12: 6 | AW12: 148 | AX12: Energy Star Unit Energy Consumption | AY12: IL TRM v6 vol3 | AZ12: 6
A13: Energy Saving Products | B13: Room Air Purifiers - CADR 101-150 | C13: 412 | D13: All | E13: Misc | G13: per unit | H13: 70 | I13: IL TRM v6 vol3 | J13: 5 | K13: 488 | L13: Calculated Value | N13: 0.08350444901 | O13: 0.667 | P13: IL TRM v6 vol3 | Q13: 6 | R13: 0.0557 | S13: Calculated Value | U13: 5844 | V13: IL TRM v6 vol3 | W13: 6 | X13: 9 | Y13: IL TRM v6 vol3 | Z13: 5 | AA13: Air purifier that meets ENERGY STAR criteria | AE13: Non-ENERGY STAR air purifier | AI13: =ROUND(AS13-AW13,4) | AJ13: =ROUND(K13/U13*O13,4) | AK13: IL TRM v6 vol3 | AL13: 6 | AM13: 2020-01-01 | AS13: 733 | AT13: Baseline Unit Energy Consumption | AU13: IL TRM v6 vol3 | AV13: 6 | AW13: 245 | AX13: Energy Star Unit Energy Consumption | AY13: IL TRM v6 vol3 | AZ13: 6
A14: Energy Saving Products | B14: Room Air Purifiers - CADR 151-200 | C14: 413 | D14: All | E14: Misc | G14: per unit | H14: 70 | I14: IL TRM v6 vol3 | J14: 5 | K14: 683 | L14: Calculated Value | N14: 0.1168720055 | O14: 0.667 | P14: IL TRM v6 vol3 | Q14: 6 | R14: 0.078 | S14: Calculated Value | U14: 5844 | V14: IL TRM v6 vol3 | W14: 6 | X14: 9 | Y14: IL TRM v6 vol3 | Z14: 5 | AA14: Air purifier that meets ENERGY STAR criteria | AE14: Non-ENERGY STAR air purifier | AI14: =ROUND(AS14-AW14,4) | AJ14: =ROUND(K14/U14*O14,4) | AK14: IL TRM v6 vol3 | AL14: 6 | AM14: 2020-01-01 | AS14: 1025 | AT14: Baseline Unit Energy Consumption | AU14: IL TRM v6 vol3 | AV14: 6 | AW14: 342 | AX14: Energy Star Unit Energy Consumption | AY14: IL TRM v6 vol3 | AZ14: 6
A15: Energy Saving Products | B15: Room Air Purifiers - CADR 201-250 | C15: 414 | D15: All | E15: Misc | G15: per unit | H15: 70 | I15: IL TRM v6 vol3 | J15: 5 | K15: 877 | L15: Calculated Value | N15: 0.1500684463 | O15: 0.667 | P15: IL TRM v6 vol3 | Q15: 6 | R15: 0.1001 | S15: Calculated Value | U15: 5844 | V15: IL TRM v6 vol3 | W15: 6 | X15: 9 | Y15: IL TRM v6 vol3 | Z15: 5 | AA15: Air purifier that meets ENERGY STAR criteria | AE15: Non-ENERGY STAR air purifier | AI15: =ROUND(AS15-AW15,4) | AJ15: =ROUND(K15/U15*O15,4) | AK15: IL TRM v6 vol3 | AL15: 6 | AM15: 2020-01-01 | AS15: 1317 | AT15: Baseline Unit Energy Consumption | AU15: IL TRM v6 vol3 | AV15: 6 | AW15: 440 | AX15: Energy Star Unit Energy Consumption | AY15: IL TRM v6 vol3 | AZ15: 6
A16: Energy Saving Products | B16: Room Air Purifiers - CADR Over 250 | C16: 415 | D16: All | E16: Misc | G16: per unit | H16: 70 | I16: IL TRM v6 vol3 | J16: 5 | K16: 1169 | L16: Calculated Value | N16: 0.2000342231 | O16: 0.667 | P16: IL TRM v6 vol3 | Q16: 6 | R16: 0.1334 | S16: Calculated Value | U16: 5844 | V16: IL TRM v6 vol3 | W16: 6 | X16: 9 | Y16: IL TRM v6 vol3 | Z16: 5 | AA16: Air purifier that meets ENERGY STAR criteria | AE16: Non-ENERGY STAR air purifier | AI16: =ROUND(AS16-AW16,4) | AJ16: =ROUND(K16/U16*O16,4) | AK16: IL TRM v6 vol3 | AL16: 6 | AM16: 2020-01-01 | AS16: 1755 | AT16: Baseline Unit Energy Consumption | AU16: IL TRM v6 vol3 | AV16: 6 | AW16: 586 | AX16: Energy Star Unit Energy Consumption | AY16: IL TRM v6 vol3 | AZ16: 6
A17: Energy Saving Products | B17: Smart Thermostat - ASHP heating / cooling SF | C17: 273 | D17: Single Family | E17: HVAC | G17: per unit | H17: 175 | I17: IL TRM v6 vol3 | J17: 160 | K17: =ROUND((AS17*AW17*BA17*BE17*BI17)+(BM17*((BQ17*BU17*(1/BY17))/1000)*CC17*BI17),4) -> 862.7238 | L17: Calculated Value | O17: 0.34 | P17: Calculated Value | R17: =ROUND(BM17*(CC17*BU17*(1/CG17))/1000*BI17*O17,4) -> 0.093 | S17: Calculated Value | X17: 10 | Y17: IL TRM v6 vol3 | Z17: 160 | AA17: Smart thermostat | AC17: IL TRM v6 vol3 | AD17: 160 | AE17: Actual thermostat replaced by smart thermostat, or 44% programmable and 56% manual thermostats may be assumed | AG17: IL TRM v6 vol3 | AH17: 160 | AI17: =ROUND((AS17*AW17*BA17*BE17*BI17)+(BM17*((BQ17*BU17*(1/BY17))/1000)*CC17*BI17),4) | AJ17: =ROUND(BM17*(CC17*BU17*(1/CG17))/1000*BI17*O17,4) | AK17: IL TRM v6 vol3 | AL17: 161, 164 | AM17: 2020-01-01 | AS17: 1 | AT17: %ElectricHeat | AU17: IL TRM v6 vol3 | AV17: 161 | AW17: 8072 | AX17: Elec_Heating_Consumption | AY17: IL TRM v6 vol3 | AZ17: 161 | BA17: 0.074 | BB17: Heating_Reduction | BC17: IL TRM v6 vol3 | BD17: 162 | BE17: 1 | BF17: HF | BG17: IL TRM v6 vol3 | BH17: 162 | BI17: 1 | BJ17: Eff_ISR | BK17: IL TRM v6 vol3 | BL17: 162 | BM17: 0.87 | BN17: %AC | BO17: IL TRM v6 vol3 | BP17: 163 | BQ17: 1035 | BR17: FLH | BS17: IL TRM v6 vol3 | BT17: 163 | BU17: 33600 | BV17: BTU/hr | BW17: IL TRM v6 vol3 | BX17: 163 | BY17: 9.12 | BZ17: SEER | CA17: IL TRM v6 vol3 | CB17: 163 | CC17: 0.08 | CD17: Cooling_Reduction | CE17: IL TRM v6 vol3 | CF17: 163 | CG17: 8.55 | CH17: EER | CI17: IL TRM v6 vol3 | CJ17: 164
A18: Energy Saving Products | B18: Smart Thermostat - ASHP heating / cooling MF | C18: 416 | D18: Multi-Family | E18: HVAC | G18: per unit | H18: 175 | I18: IL TRM v6 vol3 | J18: 160 | K18: 515.7074 | L18: Calculated Value | O18: 0.34 | P18: IL TRM v6 vol3 | Q18: 164 | R18: 0.0492 | S18: Calculated Value | X18: 10 | Y18: IL TRM v6 vol3 | Z18: 160 | AA18: Smart thermostat | AC18: IL TRM v6 vol3 | AD18: 160 | AE18: Actual thermostat replaced by smart thermostat, or 44% programmable and 56% manual thermostats may be assumed | AG18: IL TRM v6 vol3 | AH18: 160 | AI18: =ROUND((AS18*AW18*BA18*BE18*BI18)+(BM18*((BQ18*BU18*(1/BY18))/1000)*CC18*BI18),4) | AJ18: =ROUND(BM18*(CC18*BU18*(1/CG18))/1000*BI18*O18,4) | AK18: IL TRM v6 vol3 | AL18: 161, 164 | AM18: 2020-01-01 | AS18: 1 | AT18: %ElectricHeat | AU18: IL TRM v6 vol3 | AV18: 161 | AW18: 8072 | AX18: Elec_Heating_Consumption | AY18: IL TRM v6 vol3 | AZ18: 161 | BA18: 0.074 | BB18: Heating_Reduction | BC18: IL TRM v6 vol3 | BD18: 162 | BE18: 0.65 | BF18: HF | BG18: IL TRM v6 vol3 | BH18: 162 | BI18: 1 | BJ18: Eff_ISR | BK18: IL TRM v6 vol3 | BL18: 162 | BM18: 0.46 | BN18: %AC | BO18: IL TRM v6 vol3 | BP18: 163 | BQ18: 940 | BR18: FLH | BS18: IL TRM v6 vol3 | BT18: 163 | BU18: 33600 | BV18: BTU/hr | BW18: IL TRM v6 vol3 | BX18: 163 | BY18: 9.12 | BZ18: SEER | CA18: IL TRM v6 vol3 | CB18: 163 | CC18: 0.08 | CD18: Cooling_Reduction | CE18: IL TRM v6 vol3 | CF18: 163 | CG18: 8.55 | CH18: EER | CI18: IL TRM v6 vol3 | CJ18: 164
A19: Energy Saving Products | B19: Smart Thermostat - electric furnace heating / CAC SF | C19: 417 | D19: Single Family | E19: HVAC | G19: per unit | H19: 175 | I19: IL TRM v6 vol3 | J19: 160 | K19: 1296.871 | L19: Calculated Value | O19: 0.34 | P19: IL TRM v6 vol3 | Q19: 164 | R19: 0.0976 | S19: Calculated Value | X19: 10 | Y19: IL TRM v6 vol3 | Z19: 160 | AA19: Smart thermostat | AC19: IL TRM v6 vol3 | AD19: 160 | AE19: Actual thermostat replaced by smart thermostat, or 44% programmable and 56% manual thermostats may be assumed | AG19: IL TRM v6 vol3 | AH19: 160 | AI19: =ROUND((AS19*AW19*BA19*BE19*BI19)+(BM19*((BQ19*BU19*(1/BY19))/1000)*CC19*BI19),4) | AJ19: =ROUND(BM19*(CC19*BU19*(1/CG19))/1000*BI19*O19,4) | AK19: IL TRM v6 vol3 | AL19: 161, 164 | AM19: 2020-01-01 | AS19: 1 | AT19: %ElectricHeat | AU19: IL TRM v6 vol3 | AV19: 161 | AW19: 13722 | AX19: Elec_Heating_Consumption | AY19: IL TRM v6 vol3 | AZ19: 161 | BA19: 0.074 | BB19: Heating_Reduction | BC19: IL TRM v6 vol3 | BD19: 162 | BE19: 1 | BF19: HF | BG19: IL TRM v6 vol3 | BH19: 162 | BI19: 1 | BJ19: Eff_ISR | BK19: IL TRM v6 vol3 | BL19: 162 | BM19: 0.87 | BN19: %AC | BO19: IL TRM v6 vol3 | BP19: 163 | BQ19: 1035 | BR19: FLH | BS19: IL TRM v6 vol3 | BT19: 163 | BU19: 33600 | BV19: BTU/hr | BW19: IL TRM v6 vol3 | BX19: 163 | BY19: 8.6 | BZ19: SEER | CA19: IL TRM v6 vol3 | CB19: 163 | CC19: 0.08 | CD19: Cooling_Reduction | CE19: IL TRM v6 vol3 | CF19: 163 | CG19: 8.15 | CH19: EER | CI19: IL TRM v6 vol3 | CJ19: 164
A20: Energy Saving Products | B20: Smart Thermostat - electric furnace heating / CAC MF | C20: 418 | D20: Multi-Family | E20: HVAC | G20: per unit | H20: 175 | I20: IL TRM v6 vol3 | J20: 160 | K20: 795.1783 | L20: Calculated Value | O20: 0.34 | P20: IL TRM v6 vol3 | Q20: 164 | R20: 0.0516 | S20: Calculated Value | X20: 10 | Y20: IL TRM v6 vol3 | Z20: 160 | AA20: Smart thermostat | AC20: IL TRM v6 vol3 | AD20: 160 | AE20: Actual thermostat replaced by smart thermostat, or 44% programmable and 56% manual thermostats may be assumed | AG20: IL TRM v6 vol3 | AH20: 160 | AI20: =ROUND((AS20*AW20*BA20*BE20*BI20)+(BM20*((BQ20*BU20*(1/BY20))/1000)*CC20*BI20),4) | AJ20: =ROUND(BM20*(CC20*BU20*(1/CG20))/1000*BI20*O20,4) | AK20: IL TRM v6 vol3 | AL20: 161, 164 | AM20: 2020-01-01 | AS20: 1 | AT20: %ElectricHeat | AU20: IL TRM v6 vol3 | AV20: 161 | AW20: 13722 | AX20: Elec_Heating_Consumption | AY20: IL TRM v6 vol3 | AZ20: 161 | BA20: 0.074 | BB20: Heating_Reduction | BC20: IL TRM v6 vol3 | BD20: 162 | BE20: 0.65 | BF20: HF | BG20: IL TRM v6 vol3 | BH20: 162 | BI20: 1 | BJ20: Eff_ISR | BK20: IL TRM v6 vol3 | BL20: 162 | BM20: 0.46 | BN20: %AC | BO20: IL TRM v6 vol3 | BP20: 163 | BQ20: 940 | BR20: FLH | BS20: IL TRM v6 vol3 | BT20: 163 | BU20: 33600 | BV20: BTU/hr | BW20: IL TRM v6 vol3 | BX20: 163 | BY20: 8.6 | BZ20: SEER | CA20: IL TRM v6 vol3 | CB20: 163 | CC20: 0.08 | CD20: Cooling_Reduction | CE20: IL TRM v6 vol3 | CF20: 163 | CG20: 8.15 | CH20: EER | CI20: IL TRM v6 vol3 | CJ20: 164
A21: Energy Saving Products | B21: Smart Thermostat - Gas Heated / CAC SF | C21: 419 | D21: Single Family | E21: HVAC | G21: per unit | H21: 175 | I21: IL TRM v6 vol3 | J21: 160 | K21: =ROUND((AS21*AW21*BA21*BE21*BI21)+(CO21*CK21*29.3)+(BM21*((BQ21*BU21*(1/BY21))/1000)*CC21*BI21),4) -> 326.6491 | L21: Calculated Value | O21: 0.34 | P21: Calculated Value | R21: 0.0976 | S21: Calculated Value | X21: 10 | Y21: IL TRM v6 vol3 | Z21: 160 | AA21: Smart thermostat | AC21: IL TRM v6 vol3 | AD21: 160 | AE21: Actual thermostat replaced by smart thermostat, or 44% programmable and 56% manual thermostats may be assumed | AG21: IL TRM v6 vol3 | AH21: 160 | AI21: =ROUND((AS21*AW21*BA21*BE21*BI21)+(CO21*CK21*29.3)+(BM21*((BQ21*BU21*(1/BY21))/1000)*CC21*BI21),4) | AJ21: =ROUND(BM21*(CC21*BU21*(1/CG21))/1000*BI21*O21,4) | AK21: IL TRM v6 vol3 | AL21: 161, 164 | AM21: 2020-01-01 | AS21: 0 | AT21: %ElectricHeat | AU21: IL TRM v6 vol3 | AV21: 161 | BA21: 0.074 | BB21: Heating_Reduction | BC21: IL TRM v6 vol3 | BD21: 162 | BE21: 1 | BF21: HF | BG21: IL TRM v6 vol3 | BH21: 162 | BI21: 1 | BJ21: Eff_ISR | BK21: IL TRM v6 vol3 | BL21: 162 | BM21: 0.87 | BN21: %AC | BO21: IL TRM v6 vol3 | BP21: 163 | BQ21: 1035 | BR21: FLH | BS21: IL TRM v6 vol3 | BT21: 163 | BU21: 33600 | BV21: BTU/hr | BW21: IL TRM v6 vol3 | BX21: 163 | BY21: 8.6 | BZ21: SEER | CA21: IL TRM v6 vol3 | CB21: 163 | CC21: 0.08 | CD21: Cooling_Reduction | CE21: IL TRM v6 vol3 | CF21: 163 | CG21: 8.15 | CH21: EER | CI21: IL TRM v6 vol3 | CJ21: 164 | CK21: 0.0314 | CL21: Fe | CM21: IL TRM v6 vol3 | CN21: 162 | CO21: =CS21*CW21*BA21*BE21*BI21 -> 49.136 | CP21: Therms difference | CQ21: IL TRM v6 vol3 | CR21: Calculated | CS21: 1 | CT21: %FossilHeat | CU21: IL TRM v6 vol3 | CV21: 165 | CW21: 664 | CX21: Gas Heating Consumption | CY21: IL TRM v6 vol3 | CZ21: 165
A22: Energy Saving Products | B22: Smart Thermostat - Gas Heated / CAC MF | C22: 420 | D22: Multi-Family | E22: HVAC | G22: per unit | H22: 175 | I22: IL TRM v6 vol3 | J22: 160 | K22: =ROUND((AS22*AW22*BA22*BE22*BI22)+(CO22*CK22*29.3)+(BM22*((BQ22*BU22*(1/BY22))/1000)*CC22*BI22),4) -> 164.5341 | L22: Calculated Value | O22: 0.34 | P22: Calculated Value | R22: 0.0516 | S22: Calculated Value | X22: 10 | Y22: IL TRM v6 vol3 | Z22: 160 | AA22: Smart thermostat | AC22: IL TRM v6 vol3 | AD22: 160 | AE22: Actual thermostat replaced by smart thermostat, or 44% programmable and 56% manual thermostats may be assumed | AG22: IL TRM v6 vol3 | AH22: 160 | AI22: =ROUND((AS22*AW22*BA22*BE22*BI22)+(CO22*CK22*29.3)+(BM22*((BQ22*BU22*(1/BY22))/1000)*CC22*BI22),4) | AJ22: =ROUND(BM22*(CC22*BU22*(1/CG22))/1000*BI22*O22,4) | AK22: IL TRM v6 vol3 | AL22: 161, 164 | AM22: 2020-01-01 | AS22: 0 | AT22: %ElectricHeat | AU22: IL TRM v6 vol3 | AV22: 161 | BA22: 0.074 | BB22: Heating_Reduction | BC22: IL TRM v6 vol3 | BD22: 162 | BE22: 0.65 | BF22: HF | BG22: IL TRM v6 vol3 | BH22: 162 | BI22: 1 | BJ22: Eff_ISR | BK22: IL TRM v6 vol3 | BL22: 162 | BM22: 0.46 | BN22: %AC | BO22: IL TRM v6 vol3 | BP22: 163 | BQ22: 940 | BR22: FLH | BS22: IL TRM v6 vol3 | BT22: 163 | BU22: 33600 | BV22: BTU/hr | BW22: IL TRM v6 vol3 | BX22: 163 | BY22: 8.6 | BZ22: SEER | CA22: IL TRM v6 vol3 | CB22: 163 | CC22: 0.08 | CD22: Cooling_Reduction | CE22: IL TRM v6 vol3 | CF22: 163 | CG22: 8.15 | CH22: EER | CI22: IL TRM v6 vol3 | CJ22: 164 | CK22: 0.0314 | CL22: Fe | CM22: IL TRM v6 vol3 | CN22: 162 | CO22: =CS22*CW22*BA22*BE22*BI22 -> 31.9384 | CP22: Therms difference | CQ22: IL TRM v6 vol3 | CR22: Calculated | CS22: 1 | CT22: %FossilHeat | CU22: IL TRM v6 vol3 | CV22: 165 | CW22: 664 | CX22: Gas Heating Consumption | CY22: IL TRM v6 vol3 | CZ22: 165
A23: Energy Saving Products | B23: Smart Power Strip - Wh7-Plug | C23: 312 | D23: All | E23: Electronics | G23: per unit | H23: 26 | I23: IL TRM v5 vol3 | J23: 52 | K23: =ROUND(103,4) -> 103 | L23: IL TRM v5 vol3 | M23: 53 | N23: =ROUND(K23/U23,4) -> 0.0144 | O23: 0.8 | P23: IL TRM v5 vol3 | Q23: 55 | R23: =ROUND(0.0115,4) -> 0.0115 | S23: IL TRM v5 vol3 | T23: 53 | U23: 7129 | V23: IL TRM v5 vol3 | W23: 53 | X23: 4 | Y23: IL TRM v5 vol3 | Z23: 52 | AA23: Smart strip | AC23: IL TRM v5 vol3 | AD23: 52 | AE23: Standard outlet strip | AG23: IL TRM v5 vol3 | AH23: 52 | AI23: =ROUND(103,4) | AJ23: =ROUND(0.0115,4) | AK23: IL TRM v5 vol3 | AL23: 53 | AM23: 2020-01-01
A24: Energy Saving Products | B24: ENERGY STAR Refrigerators | C24: 399 | D24: All | E24: Appliances | G24: per unit | H24: 40 | I24: IL TRM v6 vol3 | J24: 28 | K24: =ROUND(AS24-AW24,4) -> 43.14 | L24: Calculated Value | R24: =ROUND(K24/U24*BE24*BI24,4) -> 0.0065 | S24: Calculated Value | U24: 8766 | V24: IL TRM v6 vol3 | W24: 30 | X24: 12 | Y24: IL TRM v6 vol3 | Z24: 28 | AA24: A refrigerator meeting the efficiency specifications of Energy Star | AC24: IL TRM v6 vol3 | AD24: 27 | AE24: A refrigerator meeting the minimum federal efficiency standard for refrigerator efficiency | AG24: IL TRM v6 vol3 | AH24: 27 | AI24: =ROUND(AS24-AW24,4) | AJ24: =ROUND(K24/U24*BE24*BI24,4) | AK24: IL TRM v6 vol3 | AL24: 28, 30 | AM24: 2020-01-01 | AS24: =7.99*BA24+225 -> 431.142 | AT24: Federal Baseline Maximum Energy Usage in kWh/year | AU24: IL TRM v6 vol3 | AV24: 26 | AW24: =7.19*BA24+202.5 -> 388.002 | AX24: Federal Energy Star Maximum Energy Usage in kWh/YEAR | AY24: IL TRM v6 vol3 | AZ24: 26 | BA24: 25.8 | BB24: Adjusted volume | BC24: Program Tracking Data | BE24: 1.25 | BF24: Temperature Adjustment Factor | BG24: IL TRM v6 vol3 | BH24: 31 | BI24: 1.057 | BJ24: Load Shape Adjustment Factor | BK24: IL TRM v6 vol3 | BL24: 31
A25: Energy Saving Products | B25: ENERGY STAR Freezers | C25: 400 | D25: All | E25: Appliances | G25: per unit | H25: 35 | I25: IL TRM v6 vol3 | J25: 23 | K25: =ROUND(AS25-AW25,4) -> 34.3305 | L25: Calculated Value | O25: 0.95 | P25: IL TRM v6 vol3 | Q25: 23 | R25: =ROUND(K25/U25*O25,4) -> 0.0055 | S25: Calculated Value | U25: 5890 | V25: IL TRM v6 vol3 | W25: 24 | X25: 11 | Y25: IL TRM v6 vol3 | Z25: 23 | AA25: A freezer meeting the efficiency specifications of Energy Star | AC25: IL TRM v6 vol3 | AD25: 22 | AE25: A freezer meeting the federal minimum standard efficiency | AG25: IL TRM v6 vol3 | AH25: 23 | AI25: =ROUND(AS25-AW25,4) | AJ25: =ROUND(K25/U25*O25,4) | AK25: IL TRM v6 vol3 | AL25: 23, 24 | AM25: 2020-01-01 | AS25: =8.62*BA25+228.3 -> 343.87265 | AT25: Federal Baseline Maximum Energy Usage in kWh/year | AU25: IL TRM v6 vol3 | AV25: 22 | AW25: =7.76*BA25+205.5 -> 309.5422 | AX25: Federal Energy Star Maximum Energy Usage in kWh/YEAR | AY25: IL TRM v6 vol3 | AZ25: 22 | BA25: =1.73*7.75 -> 13.4075 | BB25: Adjusted volume | BC25: Program Tracking Data
A26: Energy Saving Products | B26: LED String Lights | C26: 401 | D26: All | E26: Lighting | G26: per unit | H26: 10 | I26: MN TRM v2.2 | J26: 324 | K26: =ROUND((AF26-AB26)/1000*AS26*AW26*U26,4) -> 29.7518 | L26: Calculated Value | O26: 0 | P26: MN TRM v2.2 | Q26: 324 | R26: =ROUND(0,4) -> 0 | S26: Calculated Value | U26: 150 | V26: MN TRM v2.2 | W26: 324 | X26: 8 | Y26: MN TRM v2.2 | Z26: 324 | AA26: LED string lights | AB26: =50%*0.043+25%*2+25%*0.48 -> 0.6415 | AC26: MN TRM v2.2 | AD26: 324 | AE26: Incandescent holiday light strings | AF26: =50%*0.45+25%*7+25%*6 -> 3.475 | AG26: MN TRM v2.2 | AH26: 324 | AI26: =ROUND((AF26-AB26)/1000*AS26*AW26*U26,4) | AJ26: =ROUND(0,4) | AK26: MN TRM v2.2 | AL26: 324 | AM26: 2020-01-01 | AS26: 1 | AT26: Number of light strings | AU26: MN TRM v2.2 | AV26: 324 | AW26: 70 | AX26: Number of lights in string | AY26: MN TRM v2.2 | AZ26: 324
A27: Energy Saving Products | B27: SMART Home Products (Alexa, Google Home, etc.) | C27: 402 | D27: Single Family | E27: Misc | G27: per unit | H27: 440.9629286 | I27: Navigant energy model analysis | K27: =ROUND(1305.85412860453,4) -> 1305.8541 | L27: Navigant energy model analysis | R27: =ROUND(0,4) -> 0 | S27: Navigant energy model analysis | X27: 8 | Y27: Navigant energy model analysis | AA27: Smart Home Products | AE27: No Smart Home Products | AI27: =ROUND(1305.85412860453,4) | AJ27: =ROUND(0,4) | AK27: Navigant energy model analysis | AM27: 2020-01-01
A28: Energy Saving Products | B28: ENERGY STAR Pool Pump and motor w/ auto controls - multi speed | C28: 403 | D28: All | E28: Misc | G28: per unit | H28: 235 | I28: IL TRM v6 vol3 | J28: 296 | K28: =ROUND(((AS28*AW28*60)/BA28-((BE28*BI28*60)/BM28+(BQ28*BU28*60)/BY28))/1000*CC28,4) -> 1596.0278 | L28: Calculated Value | N28: =ROUND(CG28/AS28-CK28/CO28,4) -> 1.3765 | O28: 0.831 | P28: Calculated Value | R28: =ROUND((CG28/AS28-CK28/CO28)*O28,4) -> 1.1439 | S28: Calculated Value | X28: 10 | Y28: IL TRM v6 vol3 | Z28: 296 | AA28: Two speed pool pump | AE28: Single speed residential pool pump | AI28: =ROUND(((AS28*AW28*60)/BA28-((BE28*BI28*60)/BM28+(BQ28*BU28*60)/BY28))/1000*CC28,4) | AJ28: =ROUND((CG28/AS28-CK28/CO28)*O28,4) | AK28: IL TRM v6 vol3 | AL28: 297, 298 | AM28: 2020-01-01 | AS28: 11.4 | AT28: Hours/Daybase | AU28: IL TRM v6 vol3 | AV28: 297 | AW28: 64.4 | AX28: GPMbase | AY28: IL TRM v6 vol3 | AZ28: 297 | BA28: 2.1 | BB28: EFbase | BC28: IL TRM v6 vol3 | BD28: 297 | BE28: 2 | BF28: Hours/Day2spH | BG28: IL TRM v6 vol3 | BH28: 297 | BI28: 56 | BJ28: GPM2spH | BK28: IL TRM v6 vol3 | BL28: 297 | BM28: 2.4 | BN28: EF2spH | BO28: IL TRM v6 vol3 | BP28: 297 | BQ28: 15.7 | BR28: Hours/Day2spL | BS28: IL TRM v6 vol3 | BT28: 297 | BU28: 31 | BV28: GPM2spL | BW28: IL TRM v6 vol3 | BX28: 297 | BY28: 5.4 | BZ28: EF2spL | CA28: IL TRM v6 vol3 | CB28: 297 | CC28: 125 | CD28: Days | CE28: IL TRM v6 vol3 | CF28: 297 | CG28: 20.98 | CH28: kWh/daybase | CI28: IL TRM v6 vol3 | CJ28: 298 | CK28: 8.21 | CL28: kWh/day2sp | CM28: IL TRM v6 vol3 | CN28: 298 | CO28: 17.7 | CP28: Hours/day2sp | CQ28: IL TRM v6 vol3 | CR28: 298
A29: Energy Saving Products | B29: ENERGY STAR VFDs on Residential Swimming Pool Pumps | C29: 404 | D29: All | E29: Misc | G29: per unit | H29: 549 | I29: IL TRM v6 vol3 | J29: 296 | K29: =ROUND(((AS29*AW29*60)/BA29-((BE29*BI29*60)/BM29+(BQ29*BU29*60)/BY29))/1000*CC29,4) -> 1921.6179 | L29: Calculated Value | N29: =ROUND((CG29/AS29)-(CK29/CO29),4) -> 1.5292 | O29: 0.831 | P29: Calculated Value | R29: =ROUND(((CG29/AS29)-(CK29/CO29))*O29,4) -> 1.2708 | S29: Calculated Value | X29: 10 | Y29: IL TRM v6 vol3 | Z29: 296 | AA29: Variable speed pool pump | AE29: Single speed residential pool pump | AI29: =ROUND(((AS29*AW29*60)/BA29-((BE29*BI29*60)/BM29+(BQ29*BU29*60)/BY29))/1000*CC29,4) | AJ29: =ROUND(((CG29/AS29)-(CK29/CO29))*O29,4) | AK29: IL TRM v6 vol3 | AL29: 297, 298 | AM29: 2020-01-01 | AS29: 11.4 | AT29: Hours/Daybase | AU29: IL TRM v6 vol3 | AV29: 297 | AW29: 64.4 | AX29: GPMbase | AY29: IL TRM v6 vol3 | AZ29: 297 | BA29: 2.1 | BB29: EFbase | BC29: IL TRM v6 vol3 | BD29: 297 | BE29: 2 | BF29: Hours/DayvsH | BG29: IL TRM v6 vol3 | BH29: 297 | BI29: 50 | BJ29: GPMvsH | BK29: IL TRM v6 vol3 | BL29: 297 | BM29: 3.8 | BN29: EFvsH | BO29: IL TRM v6 vol3 | BP29: 298 | BQ29: 16 | BR29: Hours/DayvsL | BS29: IL TRM v6 vol3 | BT29: 298 | BU29: 30.6 | BV29: GPMvsL | BW29: IL TRM v6 vol3 | BX29: 298 | BY29: 7.3 | BZ29: EFvsL | CA29: IL TRM v6 vol3 | CB29: 298 | CC29: 125 | CD29: Days | CE29: IL TRM v6 vol3 | CF29: 298 | CG29: 20.98 | CH29: kWh/daybase | CI29: IL TRM v6 vol3 | CJ29: 298 | CK29: 5.6 | CL29: kWh/dayvar | CM29: IL TRM v6 vol3 | CN29: 298 | CO29: 18 | CP29: Hours/dayvar | CQ29: IL TRM v6 vol3 | CR29: 298
A30: Heating, Cooling & Home Comfort | B30: Screw In - LEDs | C30: 8.4 | D30: Single Family | E30: Lighting | F30: Kits | G30: per lamp | H30: 3.93 | I30: Program Tracking Data | K30: =ROUND(($AF30-$AB30)/1000*$U30*$AS30*$BA30,4) -> 39.0136 | L30: Calculated Value | N30: =K30/U30 -> 0.03366143227 | O30: 0.128 | P30: IL TRM v7 vol3 | Q30: 274 | R30: =ROUND(($AF30-$AB30)/1000*O30*$AW30*$BA30,4) -> 0.0045 | S30: Calculated Value | U30: 1159 | V30: IL TRM v7 vol3 - blended interior/exterior value | W30: 271 | X30: 10 | Y30: IL TRM v7 vol3 | Z30: 268 | AA30: Screw In - LEDs | AB30: 9 | AC30: Program Tracking Data | AE30: 43 watts based on halogen equivalent to average of bulbs sold in program | AF30: 43 | AG30: Program Tracking Database | AI30: =ROUND(($AF30-$AB30)/1000*$U30*$AS30*$BA30,4) | AJ30: =ROUND(($AF30-$AB30)/1000*O30*$AW30*$BA30,4) | AK30: IL TRM v7 vol3 | AL30: 269, 273 | AM30: 2020-01-01 | AN30: 2020-03-31 | AS30: 1.051 | AT30: Waste Heat Factor, Energy | AU30: IL TRM v7 vol3 - blended interior/exterior value | AV30: 271 | AW30: 1.093 | AX30: Waste Heat Factor, Demand | AY30: IL TRM v7 vol3 - blended interior/exterior value | AZ30: 271 | BA30: 0.942 | BB30: ISR | BC30: Navigant MEEIA Cycle 1 Research
A31: Heating, Cooling & Home Comfort | B31: Screw In - LEDs | C31: 8.5 | D31: Single Family | E31: Lighting | F31: Kits | G31: per lamp | H31: 1.45 | I31: Program Tracking Data | K31: =ROUND(($AF31-$AB31)/1000*$U31*$AS31*$BA31,4) -> 36.1182 | L31: Calculated Value | N31: =K31/U31 -> 0.03316639118 | O31: 0.128 | P31: IL TRM v7 vol3 | Q31: 274 | R31: =ROUND(($AF31-$AB31)/1000*O31*$AW31*$BA31,4) -> 0.0044 | S31: Calculated Value | U31: 1089 | V31: IL TRM v7 vol3 - Assumes interior installation for all standard bulbs. | W31: 271 | X31: 10 | Y31: IL TRM v7 vol3 | Z31: 268 | AA31: Screw In - LEDs | AB31: 9.5 | AC31: Program Tracking Data | AE31: 43 watts based on halogen equivalent to average of bulbs sold in program | AF31: 43 | AG31: Program Tracking Database | AI31: =ROUND(($AF31-$AB31)/1000*$U31*$AS31*$BA31,4) | AJ31: =ROUND(($AF31-$AB31)/1000*O31*$AW31*$BA31,4) | AK31: IL TRM v7 vol3 | AL31: 269, 273 | AM31: 2020-04-01 | AS31: 1.051 | AT31: Waste Heat Factor, Energy | AU31: IL TRM v7 vol3 - blended interior/exterior value | AV31: 271 | AW31: 1.093 | AX31: Waste Heat Factor, Demand | AY31: IL TRM v7 vol3 - blended interior/exterior value | AZ31: 273, 274 | BA31: 0.942 | BB31: ISR | BC31: Navigant MEEIA Cycle 1 Research
A32: Heating, Cooling & Home Comfort | B32: Low Flow Faucet Aerator-Bathroom | C32: 245.2 | D32: Single Family | E32: Hot Water | F32: Kits | G32: per unit | H32: 8 | I32: IL TRM v5 vol3 | J32: 174 | K32: =ROUND(((AF32-AB32)*AW32*BA32*365.25)*AS32*BE32,4) -> 43.1199 | L32: Calculated Value | N32: =K32/U32 -> 3.079992857 | O32: 0.022 | P32: IL TRM v5 vol3 | Q32: 179 | R32: =ROUND((((AF32-AB32)*AW32*BA32*365.25)*AS32*BE32)/U32*O32,4) -> 0.0678 | S32: Calculated Value | U32: 14 | V32: IL TRM v5 vol3 | W32: 179 | X32: 9 | Y32: IL TRM v5 vol3 | Z32: 174 | AA32: Low Flow (GPM) | AB32: 1 | AC32: Program Tracking Data | AE32: Standard (GPM) | AF32: 2.2 | AG32: Federal Baseline | AI32: =ROUND(((AF32-AB32)*AW32*BA32*365.25)*AS32*BE32,4) | AJ32: =ROUND((((AF32-AB32)*AW32*BA32*365.25)*AS32*BE32)/U32*O32,4) | AK32: IL TRM v5 vol3 | AL32: 175, 179 | AM32: 2020-01-01 | AS32: 0.0795 | AT32: kWh per gallon hot water, bathroom | AU32: IL TRM v5 vol3 | AV32: 177 | AW32: 0.5088339223 | AX32: Faucet Coefficient, Bathroom: Minutes/day * Drain Factor / Faucets per Household | AY32: IL TRM v5 vol3 | AZ32: 176177 | BA32: 2.56 | BB32: Persons per household | BC32: IL TRM v5 vol3 | BD32: 176 | BE32: 0.95 | BF32: Installation Rate | BG32: IL TRM v5 vol3 | BH32: 178
A33: Heating, Cooling & Home Comfort | B33: Low Flow Faucet Aerator-Kitchen | C33: 246.1 | D33: Single Family | E33: Hot Water | F33: Kits | G33: per unit | H33: 8 | I33: IL TRM v5 vol3 | J33: 174 | K33: =ROUND(((AF33-AB33)*AW33*BA33*365.25)*AS33*BE33,4) -> 203.3524 | L33: Calculated Value | N33: =K33/U33 -> 2.163323404 | O33: 0.022 | P33: IL TRM v5 vol3 | Q33: 179 | R33: =ROUND((((AF33-AB33)*AW33*BA33*365.25)*AS33*BE33)/U33*O33,4) -> 0.0476 | S33: Calculated Value | U33: 94 | V33: IL TRM v5 vol3 | W33: 179 | X33: 9 | Y33: IL TRM v5 vol3 | Z33: 174 | AA33: Low Flow (GPM) | AB33: 1.5 | AC33: Program Tracking Data | AE33: Standard (GPM) | AF33: 2.2 | AG33: Federal Baseline | AI33: =ROUND(((AF33-AB33)*AW33*BA33*365.25)*AS33*BE33,4) | AJ33: =ROUND((((AF33-AB33)*AW33*BA33*365.25)*AS33*BE33)/U33*O33,4) | AK33: IL TRM v5 vol3 | AL33: 175, 179 | AM33: 2020-01-01 | AS33: 0.0969 | AT33: kWh per gallon hot water, kitchen | AU33: IL TRM v5 vol3 | AV33: 177 | AW33: 3.375 | AX33: Faucet Coefficient, Kitchen | AY33: IL TRM v5 vol3 | AZ33: 176177 | BA33: 2.56 | BB33: Persons per household | BC33: IL TRM v5 vol3 | BD33: 176 | BE33: 0.95 | BF33: Installation Rate | BG33: IL TRM v5 vol3 | BH33: 178
A34: Heating, Cooling & Home Comfort | B34: Pipe Insulated | C34: 10.2 | D34: Single Family | E34: Hot Water | F34: Kits | G34: per unit | H34: 18 | I34: IL TRM v5 vol3 | J34: 160 | K34: =ROUND(((((AS34*PI()*BA34)/AF34) - ((AW34*PI()*BA34)/AB34))*BE34)/BI34/3412,4) -> 72.065 | L34: Calculated Value | N34: =K34/8766 -> 0.008220967374 | O34: 1 | P34: Calculated Value | R34: =ROUND(K34/8766,4) -> 0.0082 | S34: Calculated Value | U34: 8766 | V34: IL TRM v5 vol3 | W34: 161 | X34: 15 | Y34: IL TRM v5 vol3 | Z34: 160 | AA34: Efficient R-Value due to added insulation | AB34: =1+5 -> 6 | AC34: Program Tracking Data | AE34: R-Value of bare pipe | AF34: 1 | AG34: IL TRM v5 vol3 | AH34: 161 | AI34: =ROUND(((((AS34*PI()*BA34)/AF34) - ((AW34*PI()*BA34)/AB34))*BE34)/BI34/3412,4) | AJ34: =ROUND(K34/8766,4) | AK34: IL TRM v5 vol3 | AL34: 161162 | AM34: 2020-01-01 | AS34: =0.75/12 -> 0.0625 | AT34: Dbase = Pipe Diameter (ft) | AU34: IL TRM v5 vol3 | AV34: 161 | AW34: =(0.75+1*2)/12 -> 0.2291666667 | AX34: Dee = Updated Pipe Diameter, due to added insulation (ft) | AY34: IL TRM v5 vol3 | AZ34: 161 | BA34: 6 | BB34: Length of added pipe insulation | BC34: Program Tracking Data | BE34: =60*8766 -> 525960 | BF34: Pipe Insulated Coefficient 1 = ∆T * Hours = 60 * 8766 | BG34: IL TRM v5 vol3 | BH34: 161 | BI34: 0.98 | BJ34: Recovery efficiency of electric water heater | BK34: IL TRM v5 vol3 | BL34: 161
A35: Heating, Cooling & Home Comfort | B35: Low Flow Showerhead | C35: 11.2 | D35: Single Family | E35: Hot Water | F35: Kits | G35: per unit | H35: 12 | I35: IL TRM v5 vol3 | J35: 183 | K35: =ROUND(((AF35-AB35)*AW35*BA35*365.25)*AS35*BE35,4) -> 327.9599 | L35: Calculated Value | N35: =K35/U35 -> 1.085959934 | O35: 0.0278 | P35: IL TRM v5 vol3 | Q35: 183 | R35: =ROUND((((AF35-AB35)*AW35*BA35*365.25)*AS35*BE35)/U35*O35,4) -> 0.0302 | S35: Calculated Value | U35: 302 | V35: IL TRM v5 vol3 | W35: 187 | X35: 10 | Y35: IL TRM v5 vol3 | Z35: 183 | AA35: Low Flow (GPM) | AB35: 1.5 | AC35: Program Tracking Data | AE35: Standard (GPM) | AF35: 2.67 | AG35: IL TRM v5 vol3 | AH35: 184 | AI35: =ROUND(((AF35-AB35)*AW35*BA35*365.25)*AS35*BE35,4) | AJ35: =ROUND((((AF35-AB35)*AW35*BA35*365.25)*AS35*BE35)/U35*O35,4) | AK35: IL TRM v5 vol3 | AL35: 184186 | AM35: 2020-01-01 | AS35: 0.117 | AT35: kWh per gallon hot water | AU35: IL TRM v5 vol3 | AV35: 185 | AW35: 2.61452514 | AX35: Showerhead Coefficient: Minutes per day * Showers per day / Showers per household | AY35: IL TRM v5 vol3 | AZ35: 185 | BA35: 2.56 | BB35: Persons per household | BC35: IL TRM v5 vol3 | BD35: 185 | BE35: 0.98 | BF35: Installation Rate | BG35: IL TRM v5 vol3 | BH35: 186
A36: Heating, Cooling & Home Comfort | B36: Water Heater Tank Wrap | C36: 12.1 | D36: Single Family | E36: Hot Water | F36: Kits | G36: per unit | H36: 20 | I36: Program Tracking Data | K36: =ROUND((AS36/AW36-BA36/BE36)*BI36*BM36/BQ36/BU36,4) -> 134.0948 | L36: Calculated Value | N36: =ROUND(0.0153,4) -> 0.0153 | O36: 1 | P36: IL TRM v7 vol3 | Q36: 203 | R36: =ROUND(K36/U36,4) -> 0.0153 | S36: Calculated Value | U36: 8766 | V36: IL TRM v7 vol3 | W36: 204 | X36: 5 | Y36: IL TRM v7 vol3 | Z36: 203 | AA36: Water heater insulation increased from R12 to R22, 50gal | AC36: IL TRM v7 vol3 | AD36: 204 | AE36: R12, 50-gal water heater insulation (no wrap) | AG36: IL TRM v7 vol3 | AH36: 204 | AI36: =ROUND((AS36/AW36-BA36/BE36)*BI36*BM36/BQ36/BU36,4) | AJ36: =ROUND(K36/U36,4) | AK36: IL TRM v7 vol3 | AL36: 203, 205 | AM36: 2020-01-01 | AS36: 24.99 | AT36: Abase | AU36: IL TRM v7 vol3 | AV36: 204 | AW36: 12 | AX36: Rbase | AY36: IL TRM v7 vol3 | AZ36: 204 | BA36: 27.06 | BB36: Ainsul | BC36: IL TRM v7 vol3 | BD36: 204 | BE36: 22 | BF36: Rinsul | BG36: IL TRM v7 vol3 | BH36: 204 | BI36: 60 | BJ36: deltaT | BK36: IL TRM v7 vol3 | BL36: 204 | BM36: 8766 | BN36: Hours | BO36: IL TRM v7 vol3 | BP36: 204 | BQ36: 0.98 | BR36: eta DHW | BS36: IL TRM v7 vol3 | BT36: 204 | BU36: 3412 | BV36: Conversion from BTU to kWh | BW36: IL TRM v7 vol3 | BX36: 204
A37: Heating, Cooling & Home Comfort | B37: Smart Power Strip - Wh7-Plug | C37: 13.2 | D37: Single Family | E37: Electronics | F37: Kits | G37: per unit | H37: 16 | I37: Program Tracking Data | K37: =ROUND(103,4) -> 103 | L37: Calculated Value | N37: =K37/U37 -> 0.01444802918 | O37: 0.8 | P37: IL TRM v5 vol3 | Q37: 55 | R37: =ROUND(0.0115,4) -> 0.0115 | S37: Calculated Value | U37: 7129 | V37: IL TRM v5 vol3 | W37: 54 | X37: 7 | Y37: IL TRM v6 vol3 | Z37: 53 | AA37: Smart strip | AC37: IL TRM v6 vol3 | AD37: 53 | AE37: Standard outlet strip | AG37: IL TRM v6 vol3 | AH37: 53 | AI37: =ROUND(103,4) | AJ37: =ROUND(0.0115,4) | AK37: IL TRM v6 vol3 | AL37: 53 | AM37: 2020-01-01
A38: Heating, Cooling & Home Comfort | B38: Air Sealing | C38: 14.3 | D38: Single Family | E38: HVAC - Shell | G38: per sq ft (floor area) | H38: 0.12 | I38: Program Tracking Data, with 50% co-delivery costs shared with Spire Missouri | K38: =ROUND((BQ38*((AF38-AB38)/BE38*AS38*BM38*AO38)/BA38)/BU38+(((AF38-AB38)/BI38*AS38*AP38)/AW38)/BU38,4) -> 0.4337 | L38: Calculated Value | N38: 0.0005876693767 | O38: 0.72 | P38: IL TRM v5 vol3 | Q38: 268 | R38: =ROUND((((BQ38*((AF38-AB38)/BE38*AS38*BM38*AO38)/BA38)/BU38)/U38)*O38,8) -> 8.182e-05 | S38: Calculated Value | U38: 738 | V38: EFLHcool, from 2017 MO TRM | W38: 122 | X38: 15 | Y38: IL TRM v5 vol3 | Z38: 267 | AA38: Efficient CFM | AB38: 3083.594156 | AC38: IL TRM v5 vol3 | AD38: 268 | AE38: Baseline CFM | AF38: 4342.996753 | AG38: IL TRM v5 vol3 | AH38: 268 | AI38: =ROUND((BQ38*((AF38-AB38)/BE38*AS38*BM38*AO38)/BA38)/BU38+(((AF38-AB38)/BI38*AS38*AP38)/AW38)/BU38,4) | AJ38: =ROUND((((BQ38*((AF38-AB38)/BE38*AS38*BM38*AO38)/BA38)/BU38)/U38)*O38,8) | AK38: IL TRM v5 vol3 | AL38: 268, 273 | AM38: 2020-01-01 | AO38: 1445 | AP38: 5155 | AQ38: MO TRM and Navigant Analysis | AS38: 25.92 | AT38: Air Sealing Coefficient: 60 * 24 * 0.018 | AU38: IL TRM v5 vol3 | AV38: 269 | AW38: 6551.04 | AX38: Heating Coefficient: COP * 3,412 COP = 1.7 for units before 2006 COP = 1.92 for units between 2006-2014 COP = 2.4 for units after 2014 | AY38: IL TRM v5 vol3 | AZ38: 269 | BA38: 13000 | BB38: Cooling Coefficient | BC38: IL TRM v5 vol3: SEER * 1,000. SEER 10 for units before 2006 SEER 13 for units after 2006 | BD38: 269 | BE38: 35.8 | BF38: Ncool: Infiltration conversion factor | BG38: IL TRM v5 vol3 | BH38: 268 | BI38: 22.5 | BJ38: Nheat: Infiltration conversion factor | BK38: IL TRM v5 vol3 | BL38: 270 | BM38: 0.75 | BN38: DUA: Discretionary Use Adjustment | BO38: IL TRM v5 vol3 | BP38: 269 | BQ38: 3.6 | BR38: LM: Latent Cooling Multiplier | BS38: IL TRM v5 vol3 | BT38: 270 | BU38: 3263 | BV38: Square footage installed | BW38: Program tracking Data
A39: Heating, Cooling & Home Comfort | B39: Increased Ceiling Insulation | C39: 15.3 | D39: Single Family | E39: HVAC - Shell | G39: per sq ft (ceiling area) | H39: 0.76 | I39: Program Tracking Data, with 50% co-delivery costs shared with Spire Missouri | K39: =ROUND(((((1/AF39-1/AB39)*(1-BE39)*24*AO39*BA39)/AW39)*BI39)+((((1/AF39-1/AB39)*(1-BE39)*24*AP39)/AS39)*BM39),4) -> 0.4028 | L39: Calculated Value | N39: 0.000545799458 | O39: 0.7 | P39: IL TRM v5 vol3 | Q39: 293 | R39: =ROUND((((((1/AF39-1/AB39)*(1-BE39)*24*AO39*BA39)/AW39)*BI39)/U39)*O39,8) -> 4.728e-05 | S39: Calculated Value | U39: 738 | V39: EFLHcool, from 2017 MO TRM | W39: 122 | X39: 25 | Y39: IL TRM v5 vol3 | Z39: 293 | AA39: Final R-value | AB39: 41.03164557 | AC39: Program Tracking Data | AE39: Previous R-value | AF39: 17.28280255 | AG39: Program Tracking Data | AI39: =ROUND(((((1/AF39-1/AB39)*(1-BE39)*24*AO39*BA39)/AW39)*BI39)+((((1/AF39-1/AB39)*(1-BE39)*24*AP39)/AS39)*BM39),4) | AJ39: =ROUND((((((1/AF39-1/AB39)*(1-BE39)*24*AO39*BA39)/AW39)*BI39)/U39)*O39,8) | AK39: IL TRM v5 vol3 | AL39: 294, 297 | AM39: 2020-01-01 | AO39: 1445 | AP39: 5155 | AQ39: MO TRM and Navigant Analysis | AS39: 6551.04 | AT39: Heating Coefficient: COP * 3,412 COP = 1.7 for units before 2006 COP = 1.92 for units between 2006-2014 COP = 2.4 for units after 2014 | AU39: IL TRM v5 vol3 | AV39: 296 | AW39: 13000 | AX39: Cooling Coefficient | AY39: IL TRM v5 vol3: SEER * 1,000. SEER 10 for units before 2006 SEER 13 for units after 2006 | AZ39: 295 | BA39: 0.75 | BB39: DUA: Discretionary Use Adjustment | BC39: IL TRM v5 vol3 | BD39: 295 | BE39: 0.07 | BF39: Framing Factor, Ceiling | BG39: IL TRM v5 vol3 | BH39: 294 | BI39: 0.8 | BJ39: ADJcool: adjustment for cooling savings from basement wall insulation | BK39: IL TRM v5 vol3 | BL39: 295 | BM39: 0.6 | BN39: ADJheat: adjustment for wall and attic insulation | BO39: IL TRM v5 vol3 | BP39: 296
A40: Heating, Cooling & Home Comfort | B40: Increased Wall Insulation | C40: 16.3 | D40: Single Family | E40: HVAC - Shell | G40: per sq ft (wall area) | H40: 1.32 | I40: Program Tracking Data, with 50% co-delivery costs shared with Spire Missouri | K40: =ROUND(((((1/AF40-1/AB40)*(1-BE40)*24*AO40*BA40)/AW40)*BI40)+((((1/AF40-1/AB40)*(1-BE40)*24*AP40)/AS40)*BM40),4) -> 0.8476 | L40: Calculated Value | N40: 0.001148509485 | O40: 0.7 | P40: IL TRM v5 vol3 | Q40: 293 | R40: =ROUND((((((1/AF40-1/AB40)*(1-BE40)*24*AO40*BA40)/AW40)*BI40)/U40)*O40,8) -> 9.951e-05 | S40: Calculated Value | U40: 738 | V40: EFLHcool, from 2017 MO TRM | W40: 122 | X40: 25 | Y40: IL TRM v5 vol3 | Z40: 293 | AA40: Final R-value | AB40: 17.23484848 | AC40: Program Tracking Data | AE40: Previous R-value | AF40: 6.876923077 | AG40: Program Tracking Data | AI40: =ROUND(((((1/AF40-1/AB40)*(1-BE40)*24*AO40*BA40)/AW40)*BI40)+((((1/AF40-1/AB40)*(1-BE40)*24*AP40)/AS40)*BM40),4) | AJ40: =ROUND((((((1/AF40-1/AB40)*(1-BE40)*24*AO40*BA40)/AW40)*BI40)/U40)*O40,8) | AK40: IL TRM v5 vol3 | AL40: 294, 297 | AM40: 2020-01-01 | AO40: 1445 | AP40: 5155 | AQ40: MO TRM and Navigant Analysis | AS40: 6551.04 | AT40: Heating Coefficient: COP * 3,412 COP = 1.7 for units before 2006 COP = 1.92 for units between 2006-2014 COP = 2.4 for units after 2014 | AU40: IL TRM v5 vol3 | AV40: 296 | AW40: 13000 | AX40: Cooling Coefficient | AY40: IL TRM v5 vol3: SEER * 1,000. SEER 10 for units before 2006 SEER 13 for units after 2006 | AZ40: 295 | BA40: 0.75 | BB40: DUA: Discretionary Use Adjustment | BC40: IL TRM v5 vol3 | BD40: 295 | BE40: 0.25 | BF40: Framing Factor, Wall | BG40: IL TRM v5 vol3 | BH40: 294 | BI40: 0.8 | BJ40: ADJcool: adjustment for cooling savings from basement wall insulation | BK40: IL TRM v5 vol3 | BL40: 295 | BM40: 0.6 | BN40: ADJheat: adjustment for wall and attic insulation | BO40: IL TRM v5 vol3 | BP40: 296
A41: Heating, Cooling & Home Comfort | B41: Heat Pump Ductless Mini Split | C41: 20.3 | D41: Single Family | E41: All | G41: per unit | H41: 3787.974684 | I41: IL TRM v5 vol3 | J41: 134 | K41: =ROUND((BM41*AS41*(1/AF41-1/AB41))/1000+(BQ41*AS41*(1/BA41-1/AW41)/1000),4) -> 2135.9704 | L41: Calculated Value | N41: 2.894268835 | O41: 0.43 | P41: IL TRM v5 vol3 | Q41: 135 | R41: =ROUND((AS41*(1/BI41-1/BE41)/1000)*O41,4) -> 0.1999 | S41: Calculated Value | U41: 738 | V41: MO TRM 2017 vol 3 | W41: 85 | X41: 18 | Y41: IL TRM v5 vol3 | Z41: 134 | AA41: SEER | AB41: 22.94 | AC41: per PY2018 Metadata | AE41: SEER | AF41: 9.12 | AG41: IL TRM v5 vol3 | AH41: 137 | AI41: =ROUND((BM41*AS41*(1/AF41-1/AB41))/1000+(BQ41*AS41*(1/BA41-1/AW41)/1000),4) | AJ41: =ROUND((AS41*(1/BI41-1/BE41)/1000)*O41,4) | AK41: IL TRM v5 vol3 | AL41: 136138 | AM41: 2020-01-01 | AN41: 2020-03-31 | AS41: 12000 | AT41: Allows for Capacity input in Tons; converts tons to BTUs | AW41: 11.12424242 | AX41: HSPFee | AY41: Calculated per PY2018 Metadata | BA41: 5.44 | BB41: HSPFbase | BC41: IL TRM v5 vol3 | BD41: 136 | BE41: 12.78461538 | BF41: EERee | BG41: Calculated per PY2016 Metadata | BI41: 8.55 | BJ41: EERbase | BK41: IL TRM v5 vol3 | BL41: 138 | BM41: 738 | BN41: EFLHcool | BO41: 2017 MO TRM, vol 3 | BP41: 85 | BQ41: 1376 | BR41: EFLHheat | BS41: The EFLH Cooling and Heating hours are based on a EnergyStar study that was normalized (based on HDD and CDD) to Kansas City. This was for both AC and HP units.
A42: Heating, Cooling & Home Comfort | B42: Heat Pump Ductless Mini Split | C42: 20.4 | D42: Single Family | E42: All | G42: per unit | H42: 3787.974684 | I42: IL TRM v7 vol3 | J42: 138 | K42: =ROUND((BM42*AS42*(1/AF42-1/AB42))/1000+(BQ42*AS42*(1/BA42-1/AW42)/1000),4) -> 1655.2989 | L42: Calculated Value | N42: 2.242952439 | O42: 0.43 | P42: IL TRM v7 vol3 | Q42: 139 | R42: =ROUND((AS42*(1/BI42-1/BE42)/1000)*O42,4) -> 0.0655 | S42: Calculated Value | U42: 738 | V42: MO TRM 2017 vol 3 | W42: 85 | X42: 15 | Y42: IL TRM v7 vol3 | Z42: 138 | AA42: SEER | AB42: 22.94 | AC42: per PY2018 Metadata | AE42: SEER | AF42: 13 | AG42: IL TRM v7 vol3 | AH42: 142 | AI42: =ROUND((BM42*AS42*(1/AF42-1/AB42))/1000+(BQ42*AS42*(1/BA42-1/AW42)/1000),4) | AJ42: =ROUND((AS42*(1/BI42-1/BE42)/1000)*O42,4) | AK42: IL TRM v7 vol3 | AL42: 140143 | AM42: 2020-04-01 | AS42: 12000 | AT42: Allows for Capacity input in Tons; converts tons to BTUs | AW42: 11.12424242 | AX42: HSPFee | AY42: Calculated per PY2018 Metadata | BA42: =(8.2+3.41)/2 -> 5.805 | BB42: HSPFbase | BC42: IL TRM v7 vol3 | BD42: 141 (average of two unit types) | BE42: 12.78461538 | BF42: EERee | BG42: Calculated per PY2016 Metadata | BI42: 11 | BJ42: EERbase | BK42: IL TRM v7 vol3 | BL42: 143 | BM42: 738 | BN42: EFLHcool | BO42: 2017 MO TRM, vol 3 | BP42: 85 | BQ42: 1376 | BR42: EFLHheat | BS42: The EFLH Cooling and Heating hours are based on a EnergyStar study that was normalized (based on HDD and CDD) to Kansas City. This was for both AC and HP units.
A43: Heating, Cooling & Home Comfort | B43: CAC SEER 15 | C43: 21.3 | D43: Single Family | E43: HVAC | G43: per ton | H43: 238 | I43: IL TRM v7 vol3 | J43: 77 | K43: =ROUND((BE43*AW43*(1/AF43-1/AB43))/1000,4) -> 95.5165 | L43: Calculated Value | N43: 0.1294261518 | O43: 0.68 | P43: IL TRM v7 vol3 | Q43: 81 | R43: =ROUND(((AW43*((1/BA43)-(1/AS43)))/1000)*O43,4) -> 0.0685 | S43: Calculated Value | U43: 738 | V43: EFLHcool, from 2017 MO TRM | W43: 122 | X43: 18 | Y43: IL TRM v7 vol3 | Z43: 77 | AA43: SEER | AB43: 15.12 | AC43: Based on SEER value of efficient equipment | AE43: SEER | AF43: 13 | AG43: IL TRM v7 vol3 | AH43: 79 | AI43: =ROUND((BE43*AW43*(1/AF43-1/AB43))/1000,4) | AJ43: =ROUND(((AW43*((1/BA43)-(1/AS43)))/1000)*O43,4) | AK43: IL TRM v7 vol3 | AL43: 78 | AM43: 2020-01-01 | AN43: 2020-03-31 | AS43: 12.362112 | AT43: EERee | AU43: Based on calculation from SEER of installed equipment | AW43: 12000 | AX43: Allows for Capacity input in Tons; converts tons to BTUs | BA43: 11.2 | BB43: EERbase | BC43: IL TRM v7 vol3 | BD43: 81 | BE43: 738 | BF43: EFLHcool | BG43: EFLHcool, from 2017 MO TRM | BH43: 122 | BI43: 1376 | BJ43: EFLHheat | BK43: The EFLH Cooling and Heating hours are based on a EnergyStar study that was normalized (based on HDD and CDD) to Kansas City. This was for both AC and HP units.
A44: Heating, Cooling & Home Comfort | B44: CAC SEER 15 | C44: 21.4 | D44: Single Family | E44: HVAC | G44: per ton | H44: =108/3.5 -> 30.85714286 | I44: IL TRM v7 vol3 | J44: 77 | K44: =ROUND((BE44*AW44*(1/((1-BU44)*AF44)-1/((1-BY44)*(CC44)*AB44)))/1000,4) -> 122.1065 | L44: Calculated Value | N44: 0.1654559621 | O44: 0.68 | P44: IL TRM v7 vol3 | Q44: 81 | R44: =ROUND(((AW44*((1/((1-BU44)*BA44))-(1/((1-BY44)*AS44))))/1000)*O44,4) -> 0.1301 | S44: Calculated Value | U44: 738 | V44: EFLHcool, from 2017 MO TRM Vol. 3 | W44: 122 | X44: 18 | Y44: IL TRM v7 vol3 | Z44: 77 | AA44: SEERee | AB44: 15.12 | AC44: Average SEER value of equipment installed in portfolio | AE44: SEERbase | AF44: 13 | AG44: IL TRM v7 vol3 | AH44: 79 | AI44: =ROUND((BE44*AW44*(1/((1-BU44)*AF44)-1/((1-BY44)*(CC44)*AB44)))/1000,4) | AJ44: =ROUND(((AW44*((1/((1-BU44)*BA44))-(1/((1-BY44)*AS44))))/1000)*O44,4) | AK44: IL TRM v7 vol3 | AL44: 78, 80 | AM44: 2020-04-01 | AS44: =1.12*AB44-0.02*AB44^2 -> 12.362112 | AT44: EERee | AU44: Calculated value | AW44: 12000 | AX44: Allows for Capacity input in Tons; converts tons to BTUs | BA44: 10.5 | BB44: EERbase | BC44: IL TRM v7 vol3 | BD44: 81 | BE44: 738 | BF44: EFLHcool | BG44: EFLHcool, from 2017 MO TRM Vol. 3 | BH44: 122 | BI44: 1376 | BJ44: EFLHheat | BK44: The EFLH Cooling and Heating hours are based on a EnergyStar study that was normalized (based on HDD and CDD) to Kansas City. This was for both AC and HP units. | BU44: 0.1 | BV44: DeratingCoolBase | BW44: IL TRM v7 vol3 | BX44: 80 | BY44: 0.1 | BZ44: DeratingCoolEff | CA44: IL TRM v7 vol3 | CB44: 80 | CC44: =0.805*(AS44/AB44)+0.367 -> 1.025168 | CD44: SEERadj | CE44: Caclulated value, using alhgorthim from IL TRM v7 vol3 | CF44: 79,80
A45: Heating, Cooling & Home Comfort | B45: CAC SEER 15 - Early Replacement | C45: 22.3 | D45: Single Family | E45: HVAC | G45: per ton | H45: =DA45+DE45/DM45-DI45/DM45*(1+CW45)^(-X45) -> 231.514124 | I45: IL TRM v7 vol3 | J45: 77 | K45: =ROUND((BE45*AW45*(1/AF45-1/AB45))/1000,4) -> 301.0455 | L45: Calculated Value | N45: 0.4079207317 | O45: 0.68 | P45: IL TRM v7 vol3 | Q45: 81 | R45: =ROUND(((AW45*((1/BA45)-(1/AS45)))/1000)*O45,4) -> 0.2277 | S45: Calculated Value | U45: 738 | V45: EFLHcool, from 2017 MO TRM | W45: 122 | X45: 6 | Y45: IL TRM v7 vol3 | Z45: 77 | AA45: SEER | AB45: 15.15 | AC45: Based on SEER value of efficient equipment | AE45: SEER | AF45: 10 | AG45: IL TRM v7 vol3 | AH45: 79 | AI45: =ROUND((BE45*AW45*(1/AF45-1/AB45))/1000,4) | AJ45: =ROUND(((AW45*((1/BA45)-(1/AS45)))/1000)*O45,4) | AK45: IL TRM v7 vol3 | AL45: 78 | AM45: 2020-01-01 | AN45: 2020-03-31 | AS45: 12.37755 | AT45: EERee | AU45: Based on calculation from SEER of installed equipment | AW45: 12000 | AX45: Allows for Capacity input in Tons; converts tons to BTUs | BA45: 9.2 | BB45: EERexist | BC45: IL TRM v7 vol3 | BD45: 81 | BE45: 738 | BF45: EFLHcool | BG45: EFLHcool, from 2017 MO TRM | BH45: 122 | BI45: 1376 | BJ45: EFLHheat | BK45: The EFLH Cooling and Heating hours are based on a EnergyStar study that was normalized (based on HDD and CDD) to Kansas City. This was for both AC and HP units. | CW45: 0.03 | CX45: Societal Discount Rate | CY45: Evergy Standard | DA45: 952 | DB45: First Cost $/ton | DC45: IL TRM v7 vol3 | DD45: 77 | DE45: 108 | DF45: One-time per-system labor cost | DG45: IL TRM v7 vol3 | DH45: 77 | DI45: 3140 | DJ45: Deferred cost savings, per UNIT | DK45: IL TRM v7 vol3 | DL45: 78 | DM45: 3.5 | DN45: Assumed average system tons | DO45: Tracking Data
A46: Heating, Cooling & Home Comfort | B46: CAC SEER 15 - Early Replacement | C46: 22.4 | D46: Single Family | E46: HVAC | G46: per ton | H46: =DA46+DE46/DM46-DI46/DM46*(1+CW46)^(-X46) -> 231.514124 | I46: IL TRM v7 vol3 | J46: 77 | K46: =ROUND((BE46*AW46*(1/((1-BU46)*AF46)-1/((1-BY46)*(CC46)*AB46)))/1000,4) -> 424.2064 | L46: Calculated Value | N46: 0.5748054201 | O46: 0.68 | P46: IL TRM v7 vol3 | Q46: 78 | R46: =ROUND(((AW46*((1/((1-BU46)*BA46))-(1/((1-BY46)*AS46))))/1000)*O46,4) -> 0.4764 | S46: Calculated Value | U46: 738 | V46: EFLHcool, from 2017 MO TRM Vol. 3 | W46: 122 | X46: 6 | Y46: IL TRM v7 vol3 | Z46: 77 | AA46: SEERee | AB46: 15.15 | AC46: Average SEER value of equipment installed in portfolio | AE46: SEERexist | AF46: 9.3 | AG46: IL TRM v7 vol3 | AH46: 79 | AI46: =ROUND((BE46*AW46*(1/((1-BU46)*AF46)-1/((1-BY46)*(CC46)*AB46)))/1000,4) | AJ46: =ROUND(((AW46*((1/((1-BU46)*BA46))-(1/((1-BY46)*AS46))))/1000)*O46,4) | AK46: IL TRM v7 vol3 | AL46: 78, 80 | AM46: 2020-04-01 | AS46: =1.12*AB46-0.02*AB46^2 -> 12.37755 | AT46: EERee | AU46: Calculated value | AW46: 12000 | AX46: Allows for Capacity input in Tons; converts tons to BTUs | BA46: 7.5 | BB46: EERexist | BC46: IL TRM v7 vol3 | BD46: 81 | BE46: 738 | BF46: EFLHcool | BG46: EFLHcool, from 2017 MO TRM Vol. 3 | BH46: 122 | BI46: 1376 | BJ46: EFLHheat | BK46: The EFLH Cooling and Heating hours are based on a EnergyStar study that was normalized (based on HDD and CDD) to Kansas City. This was for both AC and HP units. | BU46: 0.1 | BV46: DeratingCoolBase | BW46: IL TRM v7 vol3 | BX46: 80 | BY46: 0.1 | BZ46: DeratingCoolEff | CA46: IL TRM v7 vol3 | CB46: 80 | CC46: =0.805*(AS46/AB46)+0.367 -> 1.024685 | CD46: SEERadj | CE46: Caclulated value, using alhgorthim from IL TRM v7 vol3 | CF46: 79,80 | CW46: 0.03 | CX46: Societal Discount Rate | CY46: Evergy Standard | DA46: 952 | DB46: First Cost $/ton | DC46: IL TRM v7 vol3 | DD46: 77 | DE46: 108 | DF46: One-time per-system labor cost | DG46: IL TRM v7 vol3 | DH46: 77 | DI46: 3140 | DJ46: Deferred cost savings, per UNIT | DK46: IL TRM v7 vol3 | DL46: 78 | DM46: 3.5 | DN46: Assumed average system tons | DO46: Tracking Data
A47: Heating, Cooling & Home Comfort | B47: CAC SEER 15 - Early Replacement (future) | C47: 23.3 | D47: Single Family | E47: HVAC | G47: per ton | H47: 0 | I47: IL TRM v7 vol3 | J47: 77 | K47: =ROUND((BM47*AW47*(1/BE47-1/AB47))/1000,4) -> 96.6763 | L47: Calculated Value | N47: 0.1309976965 | O47: 0.68 | P47: IL TRM v7 vol3 | Q47: 81 | R47: =ROUND(((AW47*((1/BI47)-(1/AS47)))/1000)*O47,4) -> 0.0693 | S47: Calculated Value | U47: 738 | V47: EFLHcool, from 2017 MO TRM | W47: 122 | X47: 12 | Y47: IL TRM v7 vol3 | Z47: 77 | AA47: SEER | AB47: 15.15 | AC47: Based on SEER value of efficient equipment | AE47: =BF47 -> SEERbase | AF47: =BE47 -> 13 | AG47: IL TRM v7 vol3 | AH47: 79 | AI47: =ROUND((BM47*AW47*(1/BE47-1/AB47))/1000,4) | AJ47: =ROUND(((AW47*((1/BI47)-(1/AS47)))/1000)*O47,4) | AK47: IL TRM v7 vol3 | AL47: 78 | AM47: 2020-01-01 | AN47: 2020-03-31 | AS47: 12.37755 | AT47: EERee | AU47: Based on calculation from SEER of installed equipment | AW47: 12000 | AX47: Allows for Capacity input in Tons; converts tons to BTUs | BE47: 13 | BF47: SEERbase | BG47: IL TRM v7 vol3 | BH47: 79 | BI47: 11.2 | BJ47: EERbase | BK47: IL TRM v7 vol3 | BL47: 81 | BM47: 738 | BN47: EFLHcool | BO47: EFLHcool, from 2017 MO TRM | BP47: 122 | BQ47: 1376 | BR47: EFLHheat | BS47: The EFLH Cooling and Heating hours are based on a EnergyStar study that was normalized (based on HDD and CDD) to Kansas City. This was for both AC and HP units. | CW47: 0.03 | CX47: Societal Discount Rate | CY47: Evergy Standard | DA47: 952 | DB47: First Cost $/ton | DC47: IL TRM v7 vol3 | DD47: 77 | DE47: 108 | DF47: One-time per-system labor cost | DG47: IL TRM v7 vol3 | DH47: 77 | DI47: 3140 | DJ47: Deferred cost savings, per UNIT | DK47: IL TRM v7 vol3 | DL47: 78 | DM47: 3.5 | DN47: Assumed average system tons | DO47: Tracking Data
A48: Heating, Cooling & Home Comfort | B48: CAC SEER 15 - Early Replacement (future) | C48: 23.4 | D48: Single Family | E48: HVAC | G48: per ton | H48: 0 | I48: IL TRM v7 vol3 | J48: 77 | K48: =ROUND((BM48*AW48*(1/((1-BU48)*BE48)-1/((1-BY48)*(CC48)*AB48)))/1000,4) -> 123.0649 | L48: Calculated Value | N48: 0.166754607 | O48: 0.68 | P48: IL TRM v7 vol3 | Q48: 78 | R48: =ROUND(((AW48*((1/((1-BU48)*BI48))-(1/((1-BY48)*AS48))))/1000)*O48,4) -> 0.131 | S48: Calculated Value | U48: 738 | V48: EFLHcool, from 2017 MO TRM Vol. 3 | W48: 122 | X48: 12 | Y48: IL TRM v7 vol3 | Z48: 77 | AA48: SEERee | AB48: 15.15 | AC48: Average SEER value of equipment installed in portfolio | AE48: =BF48 -> SEERbase | AF48: =BE48 -> 13 | AG48: IL TRM v7 vol3 | AH48: 79 | AI48: =ROUND((BM48*AW48*(1/((1-BU48)*BE48)-1/((1-BY48)*(CC48)*AB48)))/1000,4) | AJ48: =ROUND(((AW48*((1/((1-BU48)*BI48))-(1/((1-BY48)*AS48))))/1000)*O48,4) | AK48: IL TRM v7 vol3 | AL48: 78, 80, 81 | AM48: 2020-04-01 | AS48: =1.12*AB48-0.02*AB48^2 -> 12.37755 | AT48: EERee | AU48: Calculated value | AW48: 12000 | AX48: Allows for Capacity input in Tons; converts tons to BTUs | BE48: 13 | BF48: SEERbase | BG48: IL TRM v7 vol3 | BH48: 79 | BI48: 10.5 | BJ48: EERbase | BK48: IL TRM v7 vol3 | BL48: 81 | BM48: 738 | BN48: EFLHcool | BO48: EFLHcool, from 2017 MO TRM Vol. 3 | BP48: 122 | BQ48: 1376 | BR48: EFLHheat | BS48: The EFLH Cooling and Heating hours are based on a EnergyStar study that was normalized (based on HDD and CDD) to Kansas City. This was for both AC and HP units. | BU48: 0.1 | BV48: DeratingCoolBase | BW48: IL TRM v7 vol3 | BX48: 80 | BY48: 0.1 | BZ48: DeratingCoolEff | CA48: IL TRM v7 vol3 | CB48: 80 | CC48: =0.805*(AS48/AB48)+0.367 -> 1.024685 | CD48: SEERadj | CE48: Caclulated value, using alhgorthim from IL TRM v7 vol3 | CF48: 79,80 | CW48: 0.03 | CX48: Societal Discount Rate | CY48: Evergy Standard | DA48: 952 | DB48: First Cost $/ton | DC48: IL TRM v7 vol3 | DD48: 77 | DE48: 108 | DF48: One-time per-system labor cost | DG48: IL TRM v7 vol3 | DH48: 77 | DI48: 3140 | DJ48: Deferred cost savings, per UNIT | DK48: IL TRM v7 vol3 | DL48: 78 | DM48: 3.5 | DN48: Assumed average system tons | DO48: Tracking Data
A49: Heating, Cooling & Home Comfort | B49: CAC SEER 16 | C49: 24.3 | D49: Single Family | E49: HVAC | G49: per ton | H49: 357 | I49: IL TRM v7 vol3 | J49: 77 | K49: =ROUND((BE49*AW49*(1/AF49-1/AB49))/1000,4) -> 144.5035 | L49: Calculated Value | N49: 0.1958042005 | O49: 0.68 | P49: IL TRM v7 vol3 | Q49: 81 | R49: =ROUND(((AW49*((1/BA49)-(1/AS49)))/1000)*O49,4) -> 0.1026 | S49: Calculated Value | U49: 738 | V49: EFLHcool, from 2017 MO TRM | W49: 122 | X49: 18 | Y49: IL TRM v7 vol3 | Z49: 77 | AA49: SEER | AB49: 16.5 | AC49: Based on SEER value of efficient equipment | AE49: SEER | AF49: 13 | AG49: IL TRM v7 vol3 | AH49: 79 | AI49: =ROUND((BE49*AW49*(1/AF49-1/AB49))/1000,4) | AJ49: =ROUND(((AW49*((1/BA49)-(1/AS49)))/1000)*O49,4) | AK49: IL TRM v7 vol3 | AL49: 78 | AM49: 2020-01-01 | AN49: 2020-03-31 | AS49: 13.035 | AT49: EERee | AU49: Based on calculation from SEER of installed equipment | AW49: 12000 | AX49: Allows for Capacity input in Tons; converts tons to BTUs | BA49: 11.2 | BB49: EERbase | BC49: IL TRM v7 vol3 | BD49: 81 | BE49: 738 | BF49: EFLHcool | BG49: EFLHcool, from 2017 MO TRM | BH49: 122 | BI49: 1376 | BJ49: EFLHheat | BK49: The EFLH Cooling and Heating hours are based on a EnergyStar study that was normalized (based on HDD and CDD) to Kansas City. This was for both AC and HP units.
A50: Heating, Cooling & Home Comfort | B50: CAC SEER 16 | C50: 24.4 | D50: Single Family | E50: HVAC | G50: per ton | H50: =221/3.5 -> 63.14285714 | I50: IL TRM v7 vol3 | J50: 77 | K50: =ROUND((BE50*AW50*(1/((1-BU50)*AF50)-1/((1-BY50)*(CC50)*AB50)))/1000,4) -> 162.3135 | L50: Calculated Value | N50: 0.2199369919 | O50: 0.68 | P50: IL TRM v7 vol3 | Q50: 78 | R50: =ROUND(((AW50*((1/((1-BU50)*BA50))-(1/((1-BY50)*AS50))))/1000)*O50,4) -> 0.1679 | S50: Calculated Value | U50: 738 | V50: EFLHcool, from 2017 MO TRM Vol. 3 | W50: 122 | X50: 18 | Y50: IL TRM v7 vol3 | Z50: 77 | AA50: SEERee | AB50: 16.5 | AC50: Average SEER value of equipment installed in portfolio | AE50: SEERbase | AF50: 13 | AG50: IL TRM v7 vol3 | AH50: 79 | AI50: =ROUND((BE50*AW50*(1/((1-BU50)*AF50)-1/((1-BY50)*(CC50)*AB50)))/1000,4) | AJ50: =ROUND(((AW50*((1/((1-BU50)*BA50))-(1/((1-BY50)*AS50))))/1000)*O50,4) | AK50: IL TRM v7 vol3 | AL50: 78, 80 | AM50: 2020-04-01 | AS50: =1.12*AB50-0.02*AB50^2 -> 13.035 | AT50: EERee | AU50: Calculated value | AW50: 12000 | AX50: Allows for Capacity input in Tons; converts tons to BTUs | BA50: 10.5 | BB50: EERbase | BC50: IL TRM v7 vol3 | BD50: 81 | BE50: 738 | BF50: EFLHcool | BG50: EFLHcool, from 2017 MO TRM Vol. 3 | BH50: 122 | BI50: 1376 | BJ50: EFLHheat | BK50: The EFLH Cooling and Heating hours are based on a EnergyStar study that was normalized (based on HDD and CDD) to Kansas City. This was for both AC and HP units. | BU50: 0.1 | BV50: DeratingCoolBase | BW50: IL TRM v7 vol3 | BX50: 80 | BY50: 0.1 | BZ50: DeratingCoolEff | CA50: IL TRM v7 vol3 | CB50: 80 | CC50: =0.805*(AS50/AB50)+0.367 -> 1.00295 | CD50: SEERadj | CE50: Caclulated value, using alhgorthim from IL TRM v7 vol3 | CF50: 79,80
A51: Heating, Cooling & Home Comfort | B51: CAC SEER 16 - Early Replacement | C51: 25.3 | D51: Single Family | E51: HVAC | G51: per ton | H51: =DA51+DE51/DM51-DI51/DM51*(1+CW51)^(-X51) -> 263.7998383 | I51: IL TRM v7 vol3 | J51: 77 | K51: =ROUND((BE51*AW51*(1/AF51-1/AB51))/1000,4) -> 349.8468 | L51: Calculated Value | N51: 0.4740471545 | O51: 0.68 | P51: IL TRM v7 vol3 | Q51: 81 | R51: =ROUND(((AW51*((1/BA51)-(1/AS51)))/1000)*O51,4) -> 0.2616 | S51: Calculated Value | U51: 738 | V51: EFLHcool, from 2017 MO TRM | W51: 122 | X51: 6 | Y51: IL TRM v7 vol3 | Z51: 77 | AA51: SEER | AB51: 16.53 | AC51: Based on SEER value of efficient equipment | AE51: SEER | AF51: 10 | AG51: IL TRM v7 vol3 | AH51: 79 | AI51: =ROUND((BE51*AW51*(1/AF51-1/AB51))/1000,4) | AJ51: =ROUND(((AW51*((1/BA51)-(1/AS51)))/1000)*O51,4) | AK51: IL TRM v7 vol3 | AL51: 78 | AM51: 2020-01-01 | AN51: 2020-03-31 | AS51: 13.048782 | AT51: EERee | AU51: Based on calculation from SEER of installed equipment | AW51: 12000 | AX51: Allows for Capacity input in Tons; converts tons to BTUs | BA51: 9.2 | BB51: EERexist | BC51: IL TRM v7 vol3 | BD51: 81 | BE51: 738 | BF51: EFLHcool | BG51: EFLHcool, from 2017 MO TRM | BH51: 122 | BI51: 1376 | BJ51: EFLHheat | BK51: The EFLH Cooling and Heating hours are based on a EnergyStar study that was normalized (based on HDD and CDD) to Kansas City. This was for both AC and HP units. | CW51: 0.03 | CX51: Societal Discount Rate | CY51: Evergy Standard | DA51: 952 | DB51: First Cost $/ton | DC51: IL TRM v7 vol3 | DD51: 77 | DE51: 221 | DF51: One-time per-system labor cost | DG51: IL TRM v7 vol3 | DH51: 77 | DI51: 3140 | DJ51: Deferred cost savings, per UNIT | DK51: IL TRM v7 vol3 | DL51: 78 | DM51: 3.5 | DN51: Assumed average system tons | DO51: Tracking Data
A52: Heating, Cooling & Home Comfort | B52: CAC SEER 16 - Early Replacement | C52: 25.4 | D52: Single Family | E52: HVAC | G52: per ton | H52: =DA52+DE52/DM52-DI52/DM52*(1+CW52)^(-X52) -> 263.7998383 | I52: IL TRM v7 vol3 | J52: 77 | K52: =ROUND((BE52*AW52*(1/((1-BU52)*AF52)-1/((1-BY52)*(CC52)*AB52)))/1000,4) -> 464.2482 | L52: Calculated Value | N52: 0.6290626016 | O52: 0.68 | P52: IL TRM v7 vol3 | Q52: 78 | R52: =ROUND(((AW52*((1/((1-BU52)*BA52))-(1/((1-BY52)*AS52))))/1000)*O52,4) -> 0.5141 | S52: Calculated Value | U52: 738 | V52: EFLHcool, from 2017 MO TRM Vol. 3 | W52: 122 | X52: 6 | Y52: IL TRM v7 vol3 | Z52: 77 | AA52: SEERee | AB52: 16.53 | AC52: Average SEER value of equipment installed in portfolio | AE52: SEERexist | AF52: 9.3 | AG52: IL TRM v7 vol3 | AH52: 79 | AI52: =ROUND((BE52*AW52*(1/((1-BU52)*AF52)-1/((1-BY52)*(CC52)*AB52)))/1000,4) | AJ52: =ROUND(((AW52*((1/((1-BU52)*BA52))-(1/((1-BY52)*AS52))))/1000)*O52,4) | AK52: IL TRM v7 vol3 | AL52: 78, 80 | AM52: 2020-04-01 | AS52: =1.12*AB52-0.02*AB52^2 -> 13.048782 | AT52: EERee | AU52: Calculated value | AW52: 12000 | AX52: Allows for Capacity input in Tons; converts tons to BTUs | BA52: 7.5 | BB52: EERexist | BC52: IL TRM v7 vol3 | BD52: 81 | BE52: 738 | BF52: EFLHcool | BG52: EFLHcool, from 2017 MO TRM Vol. 3 | BH52: 122 | BI52: 1376 | BJ52: EFLHheat | BK52: The EFLH Cooling and Heating hours are based on a EnergyStar study that was normalized (based on HDD and CDD) to Kansas City. This was for both AC and HP units. | BU52: 0.1 | BV52: DeratingCoolBase | BW52: IL TRM v7 vol3 | BX52: 80 | BY52: 0.1 | BZ52: DeratingCoolEff | CA52: IL TRM v7 vol3 | CB52: 80 | CC52: =0.805*(AS52/AB52)+0.367 -> 1.002467 | CD52: SEERadj | CE52: Caclulated value, using alhgorthim from IL TRM v7 vol3 | CF52: 79,80 | CW52: 0.03 | CX52: Societal Discount Rate | CY52: Evergy Standard | DA52: 952 | DB52: First Cost $/ton | DC52: IL TRM v7 vol3 | DD52: 77 | DE52: 221 | DF52: One-time per-system labor cost | DG52: IL TRM v7 vol3 | DH52: 77 | DI52: 3140 | DJ52: Deferred cost savings, per UNIT | DK52: IL TRM v7 vol3 | DL52: 78 | DM52: 3.5 | DN52: Assumed average system tons | DO52: Tracking Data
A53: Heating, Cooling & Home Comfort | B53: CAC SEER 16 - Early Replacement (future) | C53: 26.3 | D53: Single Family | E53: HVAC | G53: per ton | H53: 0 | I53: IL TRM v7 vol3 | J53: 77 | K53: =ROUND((BM53*AW53*(1/BE53-1/AB53))/1000,4) -> 145.4776 | L53: Calculated Value | N53: 0.1971241192 | O53: 0.68 | P53: IL TRM v7 vol3 | Q53: 81 | R53: =ROUND(((AW53*((1/BI53)-(1/AS53)))/1000)*O53,4) -> 0.1032 | S53: Calculated Value | U53: 738 | V53: EFLHcool, from 2017 MO TRM | W53: 122 | X53: 12 | Y53: IL TRM v7 vol3 | Z53: 77 | AA53: SEER | AB53: 16.53 | AC53: Based on SEER value of efficient equipment | AE53: =BF53 -> SEERbase | AF53: =BE53 -> 13 | AG53: IL TRM v7 vol3 | AH53: 79 | AI53: =ROUND((BM53*AW53*(1/BE53-1/AB53))/1000,4) | AJ53: =ROUND(((AW53*((1/BI53)-(1/AS53)))/1000)*O53,4) | AK53: IL TRM v7 vol3 | AL53: 78 | AM53: 2020-01-01 | AN53: 2020-03-31 | AS53: 13.048782 | AT53: EERee | AU53: Based on calculation from SEER of installed equipment | AW53: 12000 | AX53: Allows for Capacity input in Tons; converts tons to BTUs | BE53: 13 | BF53: SEERbase | BG53: IL TRM v7 vol3 | BH53: 79 | BI53: 11.2 | BJ53: EERbase | BK53: IL TRM v7 vol3 | BL53: 81 | BM53: 738 | BN53: EFLHcool | BO53: EFLHcool, from 2017 MO TRM | BP53: 122 | BQ53: 1376 | BR53: EFLHheat | BS53: The EFLH Cooling and Heating hours are based on a EnergyStar study that was normalized (based on HDD and CDD) to Kansas City. This was for both AC and HP units. | CW53: 0.03 | CX53: Societal Discount Rate | CY53: Evergy Standard | DA53: 952 | DB53: First Cost $/ton | DC53: IL TRM v7 vol3 | DD53: 77 | DE53: 221 | DF53: One-time per-system labor cost | DG53: IL TRM v7 vol3 | DH53: 77 | DI53: 3140 | DJ53: Deferred cost savings, per UNIT | DK53: IL TRM v7 vol3 | DL53: 78 | DM53: 3.5 | DN53: Assumed average system tons | DO53: Tracking Data
A54: Heating, Cooling & Home Comfort | B54: CAC SEER 16 - Early Replacement (future) | C54: 26.4 | D54: Single Family | E54: HVAC | G54: per ton | H54: 0 | I54: IL TRM v7 vol3 | J54: 77 | K54: =ROUND((BM54*AW54*(1/((1-BU54)*BE54)-1/((1-BY54)*(CC54)*AB54)))/1000,4) -> 163.1067 | L54: Calculated Value | N54: 0.2210117886 | O54: 0.68 | P54: IL TRM v7 vol3 | Q54: 78 | R54: =ROUND(((AW54*((1/((1-BU54)*BI54))-(1/((1-BY54)*AS54))))/1000)*O54,4) -> 0.1687 | S54: Calculated Value | U54: 738 | V54: EFLHcool, from 2017 MO TRM Vol. 3 | W54: 122 | X54: 12 | Y54: IL TRM v7 vol3 | Z54: 77 | AA54: SEERee | AB54: 16.53 | AC54: Average SEER value of equipment installed in portfolio | AE54: SEERbase | AF54: =BE54 -> 13 | AG54: IL TRM v7 vol3 | AH54: 79 | AI54: =ROUND((BM54*AW54*(1/((1-BU54)*BE54)-1/((1-BY54)*(CC54)*AB54)))/1000,4) | AJ54: =ROUND(((AW54*((1/((1-BU54)*BI54))-(1/((1-BY54)*AS54))))/1000)*O54,4) | AK54: IL TRM v7 vol3 | AL54: 78, 80, 81 | AM54: 2020-04-01 | AS54: =1.12*AB54-0.02*AB54^2 -> 13.048782 | AT54: EERee | AU54: Calculated value | AW54: 12000 | AX54: Allows for Capacity input in Tons; converts tons to BTUs | BE54: 13 | BF54: SEERbase | BG54: IL TRM v7 vol3 | BH54: 79 | BI54: 10.5 | BJ54: EERbase | BK54: IL TRM v7 vol3 | BL54: 81 | BM54: 738 | BN54: EFLHcool | BO54: EFLHcool, from 2017 MO TRM Vol. 3 | BP54: 122 | BQ54: 1376 | BR54: EFLHheat | BS54: The EFLH Cooling and Heating hours are based on a EnergyStar study that was normalized (based on HDD and CDD) to Kansas City. This was for both AC and HP units. | BU54: 0.1 | BV54: DeratingCoolBase | BW54: IL TRM v7 vol3 | BX54: 80 | BY54: 0.1 | BZ54: DeratingCoolEff | CA54: IL TRM v7 vol3 | CB54: 80 | CC54: =0.805*(AS54/AB54)+0.367 -> 1.002467 | CD54: SEERadj | CE54: Caclulated value, using alhgorthim from IL TRM v7 vol3 | CF54: 79,80 | CW54: 0.03 | CX54: Societal Discount Rate | CY54: Evergy Standard | DA54: 952 | DB54: First Cost $/ton | DC54: IL TRM v7 vol3 | DD54: 77 | DE54: 221 | DF54: One-time per-system labor cost | DG54: IL TRM v7 vol3 | DH54: 77 | DI54: 3140 | DJ54: Deferred cost savings, per UNIT | DK54: IL TRM v7 vol3 | DL54: 78 | DM54: 3.5 | DN54: Assumed average system tons | DO54: Tracking Data
A55: Heating, Cooling & Home Comfort | B55: CAC SEER 17 | C55: 27.3 | D55: Single Family | E55: HVAC | G55: per ton | H55: 368.51 | I55: IL TRM v7 vol3 | J55: 77 | K55: =ROUND((BE55*AW55*(1/AF55-1/AB55))/1000,4) -> 160.2896 | L55: Calculated Value | N55: 0.2171945799 | O55: 0.68 | P55: IL TRM v7 vol3 | Q55: 81 | R55: =ROUND(((AW55*((1/BA55)-(1/AS55)))/1000)*O55,4) -> 0.1132 | S55: Calculated Value | U55: 738 | V55: EFLHcool, from 2017 MO TRM | W55: 122 | X55: 18 | Y55: IL TRM v7 vol3 | Z55: 77 | AA55: SEER | AB55: 17 | AC55: Based on SEER value of efficient equipment | AE55: SEER | AF55: 13 | AG55: IL TRM v7 vol3 | AH55: 79 | AI55: =ROUND((BE55*AW55*(1/AF55-1/AB55))/1000,4) | AJ55: =ROUND(((AW55*((1/BA55)-(1/AS55)))/1000)*O55,4) | AK55: IL TRM v7 vol3 | AL55: 78 | AM55: 2020-01-01 | AN55: 2020-03-31 | AS55: 13.26 | AT55: EERee | AU55: Based on calculation from SEER of installed equipment | AW55: 12000 | AX55: Allows for Capacity input in Tons; converts tons to BTUs | BA55: 11.2 | BB55: EERbase | BC55: IL TRM v7 vol3 | BD55: 81 | BE55: 738 | BF55: EFLHcool | BG55: EFLHcool, from 2017 MO TRM | BH55: 122 | BI55: 1376 | BJ55: EFLHheat | BK55: The EFLH Cooling and Heating hours are based on a EnergyStar study that was normalized (based on HDD and CDD) to Kansas City. This was for both AC and HP units.
A56: Heating, Cooling & Home Comfort | B56: CAC SEER 17 | C56: 27.4 | D56: Single Family | E56: HVAC | G56: per ton | H56: =620/3.5 -> 177.1428571 | I56: IL TRM v7 vol3 | J56: 77 | K56: =ROUND((BE56*AW56*(1/((1-BU56)*AF56)-1/((1-BY56)*(CC56)*AB56)))/1000,4) -> 175.1324 | L56: Calculated Value | N56: 0.2373067751 | O56: 0.68 | P56: IL TRM v7 vol3 | Q56: 78 | R56: =ROUND(((AW56*((1/((1-BU56)*BA56))-(1/((1-BY56)*AS56))))/1000)*O56,4) -> 0.1797 | S56: Calculated Value | U56: 738 | V56: EFLHcool, from 2017 MO TRM Vol. 3 | W56: 122 | X56: 18 | Y56: IL TRM v7 vol3 | Z56: 77 | AA56: SEERee | AB56: 17 | AC56: Average SEER value of equipment installed in portfolio | AE56: SEERbase | AF56: 13 | AG56: IL TRM v7 vol3 | AH56: 79 | AI56: =ROUND((BE56*AW56*(1/((1-BU56)*AF56)-1/((1-BY56)*(CC56)*AB56)))/1000,4) | AJ56: =ROUND(((AW56*((1/((1-BU56)*BA56))-(1/((1-BY56)*AS56))))/1000)*O56,4) | AK56: IL TRM v7 vol3 | AL56: 78, 80 | AM56: 2020-04-01 | AS56: =1.12*AB56-0.02*AB56^2 -> 13.26 | AT56: EERee | AU56: Calculated value | AW56: 12000 | AX56: Allows for Capacity input in Tons; converts tons to BTUs | BA56: 10.5 | BB56: EERbase | BC56: IL TRM v7 vol3 | BD56: 81 | BE56: 738 | BF56: EFLHcool | BG56: EFLHcool, from 2017 MO TRM Vol. 3 | BH56: 122 | BI56: 1376 | BJ56: EFLHheat | BK56: The EFLH Cooling and Heating hours are based on a EnergyStar study that was normalized (based on HDD and CDD) to Kansas City. This was for both AC and HP units. | BU56: 0.1 | BV56: DeratingCoolBase | BW56: IL TRM v7 vol3 | BX56: 80 | BY56: 0.1 | BZ56: DeratingCoolEff | CA56: IL TRM v7 vol3 | CB56: 80 | CC56: =0.805*(AS56/AB56)+0.367 -> 0.9949 | CD56: SEERadj | CE56: Caclulated value, using alhgorthim from IL TRM v7 vol3 | CF56: 79,80
A57: Heating, Cooling & Home Comfort | B57: CAC SEER 17 - Early Replacement | C57: 28.3 | D57: Single Family | E57: HVAC | G57: per ton | H57: =DA57+DE57/DM57-DI57/DM57*(1+CW57)^(-X57) -> 377.7998383 | I57: IL TRM v7 vol3 | J57: 77 | K57: =ROUND((BE57*AW57*(1/AF57-1/AB57))/1000,4) -> 364.6588 | L57: Calculated Value | N57: 0.4941176152 | O57: 0.68 | P57: IL TRM v7 vol3 | Q57: 81 | R57: =ROUND(((AW57*((1/BA57)-(1/AS57)))/1000)*O57,4) -> 0.2716 | S57: Calculated Value | U57: 738 | V57: EFLHcool, from 2017 MO TRM | W57: 122 | X57: 6 | Y57: IL TRM v7 vol3 | Z57: 77 | AA57: SEER | AB57: 17 | AC57: Based on SEER value of efficient equipment | AE57: SEER | AF57: 10 | AG57: IL TRM v7 vol3 | AH57: 79 | AI57: =ROUND((BE57*AW57*(1/AF57-1/AB57))/1000,4) | AJ57: =ROUND(((AW57*((1/BA57)-(1/AS57)))/1000)*O57,4) | AK57: IL TRM v7 vol3 | AL57: 78 | AM57: 2020-01-01 | AN57: 2020-03-31 | AS57: 13.26 | AT57: EERee | AU57: Based on calculation from SEER of installed equipment | AW57: 12000 | AX57: Allows for Capacity input in Tons; converts tons to BTUs | BA57: 9.2 | BB57: EERexist | BC57: IL TRM v7 vol3 | BD57: 81 | BE57: 738 | BF57: EFLHcool | BG57: EFLHcool, from 2017 MO TRM | BH57: 122 | BI57: 1376 | BJ57: EFLHheat | BK57: The EFLH Cooling and Heating hours are based on a EnergyStar study that was normalized (based on HDD and CDD) to Kansas City. This was for both AC and HP units. | CW57: 0.03 | CX57: Societal Discount Rate | CY57: Evergy Standard | DA57: 952 | DB57: First Cost $/ton | DC57: IL TRM v7 vol3 | DD57: 77 | DE57: 620 | DF57: One-time per-system labor cost | DG57: IL TRM v7 vol3 | DH57: 77 | DI57: 3140 | DJ57: Deferred cost savings, per UNIT | DK57: IL TRM v7 vol3 | DL57: 78 | DM57: 3.5 | DN57: Assumed average system tons | DO57: Tracking Data
A58: Heating, Cooling & Home Comfort | B58: CAC SEER 17 - Early Replacement | C58: 28.4 | D58: Single Family | E58: HVAC | G58: per ton | H58: =DA58+DE58/DM58-DI58/DM58*(1+CW58)^(-X58) -> 377.7998383 | I58: IL TRM v7 vol3 | J58: 77 | K58: =ROUND((BE58*AW58*(1/((1-BU58)*AF58)-1/((1-BY58)*(CC58)*AB58)))/1000,4) -> 476.2739 | L58: Calculated Value | N58: 0.6453575881 | O58: 0.68 | P58: IL TRM v7 vol3 | Q58: 78 | R58: =ROUND(((AW58*((1/((1-BU58)*BA58))-(1/((1-BY58)*AS58))))/1000)*O58,4) -> 0.5251 | S58: Calculated Value | U58: 738 | V58: EFLHcool, from 2017 MO TRM Vol. 3 | W58: 122 | X58: 6 | Y58: IL TRM v7 vol3 | Z58: 77 | AA58: SEERee | AB58: 17 | AC58: Average SEER value of equipment installed in portfolio | AE58: SEERexist | AF58: 9.3 | AG58: IL TRM v7 vol3 | AH58: 79 | AI58: =ROUND((BE58*AW58*(1/((1-BU58)*AF58)-1/((1-BY58)*(CC58)*AB58)))/1000,4) | AJ58: =ROUND(((AW58*((1/((1-BU58)*BA58))-(1/((1-BY58)*AS58))))/1000)*O58,4) | AK58: IL TRM v7 vol3 | AL58: 78, 80 | AM58: 2020-04-01 | AS58: =1.12*AB58-0.02*AB58^2 -> 13.26 | AT58: EERee | AU58: Calculated value | AW58: 12000 | AX58: Allows for Capacity input in Tons; converts tons to BTUs | BA58: 7.5 | BB58: EERexist | BC58: IL TRM v7 vol3 | BD58: 81 | BE58: 738 | BF58: EFLHcool | BG58: EFLHcool, from 2017 MO TRM Vol. 3 | BH58: 122 | BI58: 1376 | BJ58: EFLHheat | BK58: The EFLH Cooling and Heating hours are based on a EnergyStar study that was normalized (based on HDD and CDD) to Kansas City. This was for both AC and HP units. | BU58: 0.1 | BV58: DeratingCoolBase | BW58: IL TRM v7 vol3 | BX58: 80 | BY58: 0.1 | BZ58: DeratingCoolEff | CA58: IL TRM v7 vol3 | CB58: 80 | CC58: =0.805*(AS58/AB58)+0.367 -> 0.9949 | CD58: SEERadj | CE58: Caclulated value, using alhgorthim from IL TRM v7 vol3 | CF58: 79,80 | CW58: 0.03 | CX58: Societal Discount Rate | CY58: Evergy Standard | DA58: 952 | DB58: First Cost $/ton | DC58: IL TRM v7 vol3 | DD58: 77 | DE58: 620 | DF58: One-time per-system labor cost | DG58: IL TRM v7 vol3 | DH58: 77 | DI58: 3140 | DJ58: Deferred cost savings, per UNIT | DK58: IL TRM v7 vol3 | DL58: 78 | DM58: 3.5 | DN58: Assumed average system tons | DO58: Tracking Data
A59: Heating, Cooling & Home Comfort | B59: CAC SEER 17 - Early Replacement (future) | C59: 29.3 | D59: Single Family | E59: HVAC | G59: per ton | H59: 0 | I59: IL TRM v7 vol3 | J59: 77 | K59: =ROUND((BM59*AW59*(1/BE59-1/AB59))/1000,4) -> 160.2896 | L59: Calculated Value | N59: 0.2171945799 | O59: 0.68 | P59: IL TRM v7 vol3 | Q59: 81 | R59: =ROUND(((AW59*((1/BI59)-(1/AS59)))/1000)*O59,4) -> 0.1132 | S59: Calculated Value | U59: 738 | V59: EFLHcool, from 2017 MO TRM | W59: 122 | X59: 12 | Y59: IL TRM v7 vol3 | Z59: 77 | AA59: SEER | AB59: 17 | AC59: Based on SEER value of efficient equipment | AE59: =BF59 -> SEERbase | AF59: =BE59 -> 13 | AG59: IL TRM v7 vol3 | AH59: 79 | AI59: =ROUND((BM59*AW59*(1/BE59-1/AB59))/1000,4) | AJ59: =ROUND(((AW59*((1/BI59)-(1/AS59)))/1000)*O59,4) | AK59: IL TRM v7 vol3 | AL59: 78 | AM59: 2020-01-01 | AN59: 2020-03-31 | AS59: 13.26 | AT59: EERee | AU59: Based on calculation from SEER of installed equipment | AW59: 12000 | AX59: Allows for Capacity input in Tons; converts tons to BTUs | BE59: 13 | BF59: SEERbase | BG59: IL TRM v7 vol3 | BH59: 79 | BI59: 11.2 | BJ59: EERbase | BK59: IL TRM v7 vol3 | BL59: 81 | BM59: 738 | BN59: EFLHcool | BO59: EFLHcool, from 2017 MO TRM | BP59: 122 | BQ59: 1376 | BR59: EFLHheat | BS59: The EFLH Cooling and Heating hours are based on a EnergyStar study that was normalized (based on HDD and CDD) to Kansas City. This was for both AC and HP units. | CW59: 0.03 | CX59: Societal Discount Rate | CY59: Evergy Standard | DA59: 952 | DB59: First Cost $/ton | DC59: IL TRM v7 vol3 | DD59: 77 | DE59: 620 | DF59: One-time per-system labor cost | DG59: IL TRM v7 vol3 | DH59: 77 | DI59: 3140 | DJ59: Deferred cost savings, per UNIT | DK59: IL TRM v7 vol3 | DL59: 78 | DM59: 3.5 | DN59: Assumed average system tons | DO59: Tracking Data
A60: Heating, Cooling & Home Comfort | B60: CAC SEER 17 - Early Replacement (future) | C60: 29.4 | D60: Single Family | E60: HVAC | G60: per ton | H60: 0 | I60: IL TRM v7 vol3 | J60: 77 | K60: =ROUND((BM60*AW60*(1/((1-BU60)*BE60)-1/((1-BY60)*(CC60)*AB60)))/1000,4) -> 175.1324 | L60: Calculated Value | N60: 0.2373067751 | O60: 0.68 | P60: IL TRM v7 vol3 | Q60: 78 | R60: =ROUND(((AW60*((1/((1-BU60)*BI60))-(1/((1-BY60)*AS60))))/1000)*O60,4) -> 0.1797 | S60: Calculated Value | U60: 738 | V60: EFLHcool, from 2017 MO TRM Vol. 3 | W60: 122 | X60: 12 | Y60: IL TRM v7 vol3 | Z60: 77 | AA60: SEERee | AB60: 17 | AC60: Average SEER value of equipment installed in portfolio | AE60: SEERbase | AF60: =BE60 -> 13 | AG60: IL TRM v7 vol3 | AH60: 79 | AI60: =ROUND((BM60*AW60*(1/((1-BU60)*BE60)-1/((1-BY60)*(CC60)*AB60)))/1000,4) | AJ60: =ROUND(((AW60*((1/((1-BU60)*BI60))-(1/((1-BY60)*AS60))))/1000)*O60,4) | AK60: IL TRM v7 vol3 | AL60: 78, 80, 81 | AM60: 2020-04-01 | AS60: =1.12*AB60-0.02*AB60^2 -> 13.26 | AT60: EERee | AU60: Calculated value | AW60: 12000 | AX60: Allows for Capacity input in Tons; converts tons to BTUs | BE60: 13 | BF60: SEERbase | BG60: IL TRM v7 vol3 | BH60: 79 | BI60: 10.5 | BJ60: EERbase | BK60: IL TRM v7 vol3 | BL60: 81 | BM60: 738 | BN60: EFLHcool | BO60: EFLHcool, from 2017 MO TRM Vol. 3 | BP60: 122 | BQ60: 1376 | BR60: EFLHheat | BS60: The EFLH Cooling and Heating hours are based on a EnergyStar study that was normalized (based on HDD and CDD) to Kansas City. This was for both AC and HP units. | BU60: 0.1 | BV60: DeratingCoolBase | BW60: IL TRM v7 vol3 | BX60: 80 | BY60: 0.1 | BZ60: DeratingCoolEff | CA60: IL TRM v7 vol3 | CB60: 80 | CC60: =0.805*(AS60/AB60)+0.367 -> 0.9949 | CD60: SEERadj | CE60: Caclulated value, using alhgorthim from IL TRM v7 vol3 | CF60: 79,80 | CW60: 0.03 | CX60: Societal Discount Rate | CY60: Evergy Standard | DA60: 952 | DB60: First Cost $/ton | DC60: IL TRM v7 vol3 | DD60: 77 | DE60: 620 | DF60: One-time per-system labor cost | DG60: IL TRM v7 vol3 | DH60: 77 | DI60: 3140 | DJ60: Deferred cost savings, per UNIT | DK60: IL TRM v7 vol3 | DL60: 78 | DM60: 3.5 | DN60: Assumed average system tons | DO60: Tracking Data
A61: Heating, Cooling & Home Comfort | B61: CAC Dual-Speed Compressor | C61: 395 | D61: Single Family | E61: HVAC | G61: per ton | H61: =(952*(AW61/12000)+620)/BU61 -> 1262 | I61: IL TRM v6 vol3 | J61: 72 | K61: =ROUND((AS61*AW61*(1/BA61-1/BE61))/1000/BU61,4) -> 265.3846 | L61: Calculated Value | N61: =ROUND(R61/O61,4) -> 0.2143 | O61: 0.68 | P61: Calculated Value | R61: =ROUND((AW61*(1/BI61-1/BM61))/1000*BQ61/BU61,4) -> 0.1457 | S61: Calculated Value | U61: 1035 | V61: IL TRM v6 vol3 | W61: 74 | X61: 18 | Y61: IL TRM v6 vol3 | Z61: 72 | AA61: SEER | AB61: 18 | AC61: Daikin DX18TC Series Indoor Model Number: DV29PTCB14A | AE61: SEER | AF61: 13 | AG61: IL TRM v6 vol3 | AH61: 72 | AI61: =ROUND((AS61*AW61*(1/BA61-1/BE61))/1000/BU61,4) | AJ61: =ROUND((AW61*(1/BI61-1/BM61))/1000*BQ61/BU61,4) | AK61: IL TRM v6 vol3 | AL61: 73, 75 | AM61: 2020-01-01 | AS61: 1035 | AT61: FLHcool | AU61: IL TRM v6 vol3 | AV61: 74 | AW61: 24000 | AX61: Capacity (Btu/hr) | AY61: Daikin DX18TC Series Indoor Model Number: DV29PTCB14A | BA61: 13 | BB61: SEERbase | BC61: IL TRM v6 vol3 | BD61: 74 | BE61: 18 | BF61: SEERee | BG61: Daikin DX18TC Series Indoor Model Number: DV29PTCB14A | BI61: 11.2 | BJ61: EERbase | BK61: IL TRM v6 vol3 | BL61: 75 | BM61: 14 | BN61: EERee | BO61: Daikin DX18TC Series Indoor Model Number: DV29PTCB14A | BQ61: 0.68 | BR61: CF | BS61: IL TRM v6 vol3 | BT61: 75 | BU61: =AW61/12000 -> 2 | BV61: Tons | BW61: IL TRM v6 vol3 | BY61: Daikin DX18TC Series Indoor Model Number: DV29PTCB14A
A62: Heating, Cooling & Home Comfort | B62: CAC Variable-Speed Compressor | C62: 396 | D62: Single Family | E62: HVAC | G62: per ton | H62: =(952*(AW62/12000)+620)/BU62 -> 1278.315789 | I62: IL TRM v6 vol3 | J62: 72 | K62: =ROUND((AS62*AW62*(1/BA62-1/BE62))/1000/BU62,4) -> 415.3846 | L62: Calculated Value | N62: =ROUND(R62/O62,4) -> 0.2143 | O62: 0.68 | P62: Calculated Value | R62: =ROUND((AW62*(1/BI62-1/BM62))/1000*BQ62/BU62,4) -> 0.1457 | S62: Calculated Value | U62: 1035 | V62: IL TRM v6 vol3 | W62: 74 | X62: 18 | Y62: IL TRM v6 vol3 | Z62: 72 | AA62: SEER | AB62: 23 | AC62: Amana AVXC20 Indoor Model Number: AVPVC24C14A | AE62: SEER | AF62: 13 | AG62: IL TRM v6 vol3 | AH62: 72 | AI62: =ROUND((AS62*AW62*(1/BA62-1/BE62))/1000/BU62,4) | AJ62: =ROUND((AW62*(1/BI62-1/BM62))/1000*BQ62/BU62,4) | AK62: IL TRM v6 vol3 | AL62: 73, 75 | AM62: 2020-01-01 | AS62: 1035 | AT62: FLHcool | AU62: IL TRM v6 vol3 | AV62: 74 | AW62: 22800 | AX62: Capacity (Btu/hr) | AY62: Amana AVXC20 Indoor Model Number: AVPVC24C14A | BA62: 13 | BB62: SEERbase | BC62: IL TRM v6 vol3 | BD62: 74 | BE62: 23 | BF62: SEERee | BG62: Amana AVXC20 Indoor Model Number: AVPVC24C14A | BI62: 11.2 | BJ62: EERbase | BK62: IL TRM v6 vol3 | BL62: 75 | BM62: 14 | BN62: EERee | BO62: Amana AVXC20 Indoor Model Number: AVPVC24C14A | BQ62: 0.68 | BR62: CF | BS62: IL TRM v6 vol3 | BT62: 75 | BU62: =AW62/12000 -> 1.9 | BV62: Tons | BW62: IL TRM v6 vol3 | BY62: Amana AVXC20 Indoor Model Number: AVPVC24C14A
A63: Heating, Cooling & Home Comfort | B63: ASHP SEER 15 | C63: 30.3 | D63: Single Family | E63: HVAC | G63: per ton | H63: =303/3.5 -> 86.57142857 | I63: IL TRM v7 vol3 | J63: 64 | K63: =ROUND(((U63*AS63*(1/(AF63*(1-BY63))-1/(AB63*CC63*(1-CG63))))/1000)+((BQ63*AS63*(1/(BA63*(1-CK63))-1/(AW63*CO63*(1-CS63))))/1000),4) -> 163.324 | L63: Calculated Value | N63: =R63 -> 0.1047 | O63: 0.72 | P63: IL TRM v7 vol3 | Q63: 65 | R63: =ROUND((AS63*(1/(BI63*(1-BY63))-1/(BE63*(1-CG63))))/1000*O63,4) -> 0.1047 | S63: Calculated Value | U63: 738 | V63: EFLHcool, from 2017 MO TRM | W63: 85 | X63: 16 | Y63: IL TRM v7 vol3 | Z63: 64 | AA63: SEERee | AB63: 15.17 | AC63: per PY2018 Metadata WHE | AE63: SEERbase | AF63: 14 | AG63: IL TRM v7 vol3 | AH63: 67 | AI63: =ROUND(((U63*AS63*(1/(AF63*(1-BY63))-1/(AB63*CC63*(1-CG63))))/1000)+((BQ63*AS63*(1/(BA63*(1-CK63))-1/(AW63*CO63*(1-CS63))))/1000),4) | AJ63: =ROUND((AS63*(1/(BI63*(1-BY63))-1/(BE63*(1-CG63))))/1000*O63,4) | AK63: IL TRM v7 vol3 | AL63: 65, 69 | AM63: 2020-01-01 | AN63: 2020-03-31 | AS63: 12000 | AT63: Allows for Capacity input in Tons; converts tons to BTUs | AW63: 8.583333333 | AX63: HSPFee | AY63: per PY2018 Metadata WHE | BA63: 8.2 | BB63: HSPFbase | BC63: IL TRM v7 vol3 | BD63: 68 | BE63: 12.5 | BF63: EERee | BG63: Calculated per PY2018 Metadata WHE | BI63: 11 | BJ63: EERbase | BK63: IL TRM v7 vol3 | BL63: 70 | BM63: 738 | BN63: EFLHcool | BO63: EFLHcool, from 2017 MO TRM | BP63: 85 | BQ63: 1376 | BR63: EFLHheat | BS63: The EFLH Cooling and Heating hours are based on a EnergyStar study that was normalized (based on HDD and CDD) to Kansas City. This was for both AC and HP units. | BU63: 8.2 | BV63: HSPFbase | BW63: IL TRM v7 vol3 | BX63: 68 | BY63: 0.1 | BZ63: Derating_Cool_Base | CA63: IL TRM v7 vol3 | CB63: 67 | CC63: 1.011 | CD63: SEERadj | CE63: IL TRM v7 vol3 | CF63: 69 (example) | CG63: 0.1 | CH63: Derating_Cool_Eff | CI63: IL TRM v7 vol3 | CJ63: 67 | CK63: 0.1 | CL63: Derating_Heat_Base | CM63: IL TRM v7 vol3 | CN63: 68 | CO63: 1.001 | CP63: HSPFadj | CQ63: IL TRM v7 vol3 | CR63: 69 (example) | CS63: 0.1 | CT63: Derating_Heat_Eff | CU63: IL TRM v7 vol3 | CV63: 68
A64: Heating, Cooling & Home Comfort | B64: ASHP SEER 15 | C64: 30.4 | D64: Single Family | E64: HVAC | G64: per ton | H64: =303/3.5 -> 86.57142857 | I64: IL TRM v7 vol3 | J64: 64 | K64: 171.6937 | L64: Calculated Value | N64: =K64/U64 -> 0.23264729 | O64: 0.72 | P64: IL TRM v7 vol3 | Q64: 65 | R64: 0.0978 | S64: Calculated Value | U64: 738 | V64: EFLHcool, from 2017 MO TRM Vol. 3 | W64: 85 | X64: 16 | Y64: IL TRM v7 vol3 | Z64: 64 | AA64: SEERee | AB64: 15.17 | AC64: per PY2018 Metadata WHE | AE64: SEERbase | AF64: 14 | AG64: IL TRM v7 vol3 | AH64: 67 | AI64: =ROUND(((U64*AS64*(1/(AF64*(1-BY64))-1/(AB64*CC64*(1-CG64))))/1000)+((BQ64*AS64*(1/(BA64*(1-CK64))-1/(AW64*CO64*(1-CS64))))/1000),4) | AJ64: =ROUND((AS64*(1/(BI64*(1-BY64))-1/(BE64*(1-CG64))))/1000*O64,4) | AK64: IL TRM v7 vol3 | AL64: 65, 66, 69 | AM64: 2020-04-01 | AS64: 12000 | AT64: Allows for Capacity input in Tons; converts tons to BTUs | AU64: IL TRM v7 vol3 | AV64: 66 | AW64: 8.583333333 | AX64: HSPFee | AY64: per PY2018 Metadata WHE | BA64: 8.2 | BB64: HSPFbase | BC64: IL TRM v7 vol3 | BD64: 68 | BE64: =1.12*AB64-0.02*AB64^2 -> 12.387822 | BF64: EERee | BG64: Calculated value | BI64: 11 | BJ64: EERbase | BK64: IL TRM v7 vol3 | BL64: 70 | BM64: 738 | BN64: EFLHcool | BO64: EFLHcool, from 2017 MO TRM Vol. 3 | BP64: 85 | BQ64: 1376 | BR64: EFLHheat | BS64: The EFLH Cooling and Heating hours are based on a EnergyStar study that was normalized (based on HDD and CDD) to Kansas City. This was for both AC and HP units. | BU64: 8.2 | BV64: HSPFbase | BW64: IL TRM v7 vol3 | BX64: 68 | BY64: 0.1 | BZ64: Derating_Cool_Base | CA64: IL TRM v7 vol3 | CB64: 67 | CC64: =0.805*(BE64/AB64)+0.367 -> 1.024363 | CD64: SEERadj | CE64: IL TRM v7 vol3 | CF64: 69 (example) | CG64: 0.1 | CH64: Derating_Cool_Eff | CI64: IL TRM v7 vol3 | CJ64: 67 | CK64: 0.1 | CL64: Derating_Heat_Base | CM64: IL TRM v7 vol3 | CN64: 68 | CO64: 1.001 | CP64: HSPFadj | CQ64: IL TRM v7 vol3 | CR64: 69 (example) | CS64: 0.1 | CT64: Derating_Heat_Eff | CU64: IL TRM v7 vol3 | CV64: 68
A65: Heating, Cooling & Home Comfort | B65: ASHP SEER 15 - Early Replacement | C65: 31.3 | D65: Single Family | E65: HVAC | G65: per ton | H65: =DA65+DE65/DM65-DI65*(1+CW65)^(-X65) -> 196.2703269 | I65: IL TRM v7 vol3 | J65: 64 | K65: 1685.2531 | L65: Calculated Value | N65: =K65/U65 -> 2.283540786 | O65: 0.72 | P65: IL TRM v7 vol3 | Q65: 70 | R65: 0.505 | S65: Calculated Value | U65: 738 | V65: EFLHcool, from 2017 MO TRM | W65: 85 | X65: 6 | Y65: IL TRM v7 vol3 | Z65: 64 | AA65: SEERee | AB65: 15.17 | AC65: per PY2018 Metadata WHE | AE65: SEERexist | AF65: 9.3 | AG65: IL TRM v7 vol3 | AH65: 66 | AI65: =ROUND(((U65*AS65*(1/(AF65*(1-BY65))-1/(AB65*CC65*(1-CG65))))/1000)+((BQ65*AS65*(1/(BA65*(1-CK65))-1/(AW65*CO65*(1-CS65))))/1000),4) | AJ65: =ROUND((AS65*(1/(BI65*(1-BY65))-1/(BE65*(1-CG65))))/1000*O65,4) | AK65: IL TRM v7 vol3 | AL65: 65, 69 | AM65: 2020-01-01 | AN65: 2020-03-31 | AS65: 12000 | AT65: Allows for Capacity input in Tons; converts tons to BTUs | AW65: 8.712142857 | AX65: HSPFee | AY65: per PY2018 Metadata WHE | BA65: 5.44 | BB65: HSPFbase | BC65: IL TRM v7 vol3 | BD65: 68 | BE65: =(-0.02*AB65^2)+(1.12*AB65) -> 12.387822 | BF65: EERee | BG65: Calculated per PY2018 Metadata WHE | BI65: 7.5 | BJ65: EERexist | BK65: IL TRM v7 vol3 | BL65: 70 | BM65: 738 | BN65: EFLHcool | BO65: EFLHcool, from 2017 MO TRM | BP65: 85 | BQ65: 1376 | BR65: EFLHheat | BS65: The EFLH Cooling and Heating hours are based on a EnergyStar study that was normalized (based on HDD and CDD) to Kansas City. This was for both AC and HP units. | BU65: 5.54 | BV65: HSPFexist | BW65: IL TRM v7 vol3 | BX65: 68 | BY65: 0.1 | BZ65: Derating_Cool_Base | CA65: IL TRM v7 vol3 | CB65: 67 | CC65: 1.011 | CD65: SEERadj | CE65: IL TRM v7 vol3 | CF65: 69 (example) | CG65: 0.1 | CH65: Derating_Cool_Eff | CI65: IL TRM v7 vol3 | CJ65: 67 | CK65: 0.1 | CL65: Derating_Heat_Base | CM65: IL TRM v7 vol3 | CN65: 68 | CO65: 1.001 | CP65: HSPFadj | CQ65: IL TRM v7 vol3 | CR65: 69 (example) | CS65: 0.1 | CT65: Derating_Heat_Eff | CU65: IL TRM v7 vol3 | CV65: 68 | CW65: 0.03 | CX65: Societal Discount Rate | CY65: Evergy Standard | DA65: 1381 | DB65: First Cost $/ton | DC65: IL TRM v7 vol3 | DD65: 64 | DE65: 303 | DF65: One-time per-system labor cost | DG65: IL TRM v7 vol3 | DH65: 64 | DI65: 1518 | DJ65: Deferred cost savings | DK65: IL TRM v7 vol3 | DL65: 65 | DM65: 3.5 | DN65: Assumed average system tons | DO65: Tracking Data
A66: Heating, Cooling & Home Comfort | B66: ASHP SEER 15 - Early Replacement | C66: 31.4 | D66: Single Family | E66: HVAC | G66: per ton | H66: =DA66+DE66/DM66-DI66*(1+CW66)^(-X66) -> 196.2703269 | I66: IL TRM v7 vol3 | J66: 64 | K66: 1693.6228 | L66: Calculated Value | N66: =K69/U69 -> 0.3159800813 | O66: 0.72 | P66: IL TRM v7 vol3 | Q66: 65 | R66: 0.505 | S66: Calculated Value | U66: 738 | V66: EFLHcool, from 2017 MO TRM Vol. 3 | W66: 85 | X66: 6 | Y66: IL TRM v7 vol3 | Z66: 64 | AA66: SEERee | AB66: 15.17 | AC66: per PY2018 Metadata WHE | AE66: SEERexist | AF66: 9.3 | AG66: IL TRM v7 vol3 | AH66: 66 | AI66: =ROUND(((U66*AS66*(1/(AF66*(1-BY66))-1/(AB66*CC66*(1-CG66))))/1000)+((BQ66*AS66*(1/(BA66*(1-CK66))-1/(AW66*CO66*(1-CS66))))/1000),4) | AJ66: =ROUND((AS66*(1/(BI66*(1-BY66))-1/(BE66*(1-CG66))))/1000*O66,4) | AK66: IL TRM v7 vol3 | AL66: 65, 66, 69 | AM66: 2020-04-01 | AS66: 12000 | AT66: Allows for Capacity input in Tons; converts tons to BTUs | AU66: IL TRM v7 vol3 | AV66: 66 | AW66: 8.712142857 | AX66: HSPFee | AY66: per PY2018 Metadata WHE | BA66: 5.44 | BB66: HSPFexist | BC66: IL TRM v7 vol3 | BD66: 68 | BE66: =1.12*AB66-0.02*AB66^2 -> 12.387822 | BF66: EERee | BG66: Calculated value | BI66: 7.5 | BJ66: EERexist | BK66: IL TRM v7 vol3 | BL66: 69,70 | BM66: 738 | BN66: EFLHcool | BO66: EFLHcool, from 2017 MO TRM Vol. 3 | BP66: 85 | BQ66: 1376 | BR66: EFLHheat | BS66: The EFLH Cooling and Heating hours are based on a EnergyStar study that was normalized (based on HDD and CDD) to Kansas City. This was for both AC and HP units. | BU66: 5.54 | BV66: HSPFexist | BW66: IL TRM v7 vol3 | BX66: 68 | BY66: 0.1 | BZ66: Derating_Cool_Base | CA66: IL TRM v7 vol3 | CB66: 67 | CC66: =0.805*(BE66/AB66)+0.367 -> 1.024363 | CD66: SEERadj | CE66: IL TRM v7 vol3 | CF66: 69 (example) | CG66: 0.1 | CH66: Derating_Cool_Eff | CI66: IL TRM v7 vol3 | CJ66: 67 | CK66: 0.1 | CL66: Derating_Heat_Base | CM66: IL TRM v7 vol3 | CN66: 68 | CO66: 1.001 | CP66: HSPFadj | CQ66: IL TRM v7 vol3 | CR66: 69 (example) | CS66: 0.1 | CT66: Derating_Heat_Eff | CU66: IL TRM v7 vol3 | CV66: 68 | CW66: 0.03 | CX66: Societal Discount Rate | CY66: Evergy Standard | DA66: 1381 | DB66: First Cost $/ton | DC66: IL TRM v7 vol3 | DD66: 64 | DE66: 303 | DF66: One-time per-system labor cost | DG66: IL TRM v7 vol3 | DH66: 64 | DI66: 1518 | DJ66: Deferred cost savings | DK66: IL TRM v7 vol3 | DL66: 65 | DM66: 3.5 | DN66: Assumed average system tons | DO66: Tracking Data
A67: Heating, Cooling & Home Comfort | B67: ASHP SEER 15 - Early Replacement (future) | C67: 32.3 | D67: Single Family | E67: HVAC | G67: per ton | H67: 0 | I67: IL TRM v7 vol3 | J67: 64 | K67: 194.8951 | L67: Calculated Value | N67: =K67/U67 -> 0.2640855014 | O67: 0.72 | P67: IL TRM v7 vol3 | Q67: 70 | R67: 0.0978 | S67: Calculated Value | U67: 738 | V67: EFLHcool, from 2017 MO TRM | W67: 85 | X67: 10 | Y67: IL TRM v7 vol3 | Z67: 64 | AA67: SEERee | AB67: 15.17 | AC67: per PY2018 Metadata WHE | AE67: SEERbase | AF67: 14 | AG67: IL TRM v7 vol3 | AH67: 66 | AI67: =ROUND(((U67*AS67*(1/(AF67*(1-BY67))-1/(AB67*CC67*(1-CG67))))/1000)+((BQ67*AS67*(1/(BA67*(1-CK67))-1/(AW67*CO67*(1-CS67))))/1000),4) | AJ67: =ROUND((AS67*(1/(BI67*(1-BY67))-1/(BE67*(1-CG67))))/1000*O67,4) | AK67: IL TRM v7 vol3 | AL67: 65, 69 | AM67: 2020-01-01 | AN67: 2020-03-31 | AS67: 12000 | AT67: Allows for Capacity input in Tons; converts tons to BTUs | AW67: 8.712142857 | AX67: HSPFee | AY67: per PY2018 Metadata WHE | BA67: 8.2 | BB67: HSPFexist | BC67: IL TRM v7 vol3 | BD67: 68 | BE67: =(-0.02*AB67^2)+(1.12*AB67) -> 12.387822 | BF67: EERee | BG67: Calculated per PY2018 Metadata WHE | BI67: 11 | BJ67: EERbase | BK67: IL TRM v7 vol3 | BL67: 70 | BM67: 738 | BN67: EFLHcool | BO67: EFLHcool, from 2017 MO TRM | BP67: 85 | BQ67: 1376 | BR67: EFLHheat | BS67: The EFLH Cooling and Heating hours are based on a EnergyStar study that was normalized (based on HDD and CDD) to Kansas City. This was for both AC and HP units. | BU67: 8.2 | BV67: HSPFbase | BW67: IL TRM v7 vol3 | BX67: 68 | BY67: 0.1 | BZ67: Derating_Cool_Base | CA67: IL TRM v7 vol3 | CB67: 67 | CC67: 1.011 | CD67: SEERadj | CE67: IL TRM v7 vol3 | CF67: 69 (example) | CG67: 0.1 | CH67: Derating_Cool_Eff | CI67: IL TRM v7 vol3 | CJ67: 67 | CK67: 0.1 | CL67: Derating_Heat_Base | CM67: IL TRM v7 vol3 | CN67: 68 | CO67: 1.001 | CP67: HSPFadj | CQ67: IL TRM v7 vol3 | CR67: 69 (example) | CS67: 0.1 | CT67: Derating_Heat_Eff | CU67: IL TRM v7 vol3 | CV67: 68 | CW67: 0.03 | CX67: Societal Discount Rate | CY67: Evergy Standard | DA67: 1381 | DB67: First Cost $/ton | DC67: IL TRM v7 vol3 | DD67: 64 | DE67: 303 | DF67: One-time per-system labor cost | DG67: IL TRM v7 vol3 | DH67: 64 | DI67: 1518 | DJ67: Deferred cost savings | DK67: IL TRM v7 vol3 | DL67: 65 | DM67: 3.5 | DN67: Assumed average system tons | DO67: Tracking Data
A68: Heating, Cooling & Home Comfort | B68: ASHP SEER 15 - Early Replacement (future) | C68: 32.4 | D68: Single Family | E68: HVAC | G68: per ton | H68: 0 | I68: IL TRM v7 vol3 | J68: 64 | K68: 203.2648 | L68: Calculated Value | N68: =K68/U68 -> 0.2754265583 | O68: 0.72 | P68: IL TRM v7 vol3 | Q68: 65 | R68: 0.0978 | S68: Calculated Value | U68: 738 | V68: EFLHcool, from 2017 MO TRM Vol. 3 | W68: 85 | X68: 10 | Y68: IL TRM v7 vol3 | Z68: 64 | AA68: SEERee | AB68: 15.17 | AC68: per PY2018 Metadata WHE | AE68: SEERbase | AF68: 14 | AG68: IL TRM v7 vol3 | AH68: 67 | AI68: =ROUND(((U68*AS68*(1/(AF68*(1-BY68))-1/(AB68*CC68*(1-CG68))))/1000)+((BQ68*AS68*(1/(BA68*(1-CK68))-1/(AW68*CO68*(1-CS68))))/1000),4) | AJ68: =ROUND((AS68*(1/(BI68*(1-BY68))-1/(BE68*(1-CG68))))/1000*O68,4) | AK68: IL TRM v7 vol3 | AL68: 65, 66, 69 | AM68: 2020-04-01 | AS68: 12000 | AT68: Allows for Capacity input in Tons; converts tons to BTUs | AU68: IL TRM v7 vol3 | AV68: 66 | AW68: 8.712142857 | AX68: HSPFee | AY68: per PY2018 Metadata WHE | BA68: 8.2 | BB68: HSPFexist | BC68: IL TRM v7 vol3 | BD68: 68 | BE68: =1.12*AB68-0.02*AB68^2 -> 12.387822 | BF68: EERee | BG68: Calculated value | BI68: 11 | BJ68: EERbase | BK68: IL TRM v7 vol3 | BL68: 70 | BM68: 738 | BN68: EFLHcool | BO68: EFLHcool, from 2017 MO TRM Vol. 3 | BP68: 85 | BQ68: 1376 | BR68: EFLHheat | BS68: The EFLH Cooling and Heating hours are based on a EnergyStar study that was normalized (based on HDD and CDD) to Kansas City. This was for both AC and HP units. | BU68: 8.2 | BV68: HSPFbase | BW68: IL TRM v7 vol3 | BX68: 68 | BY68: 0.1 | BZ68: Derating_Cool_Base | CA68: IL TRM v7 vol3 | CB68: 67 | CC68: =0.805*(BE68/AB68)+0.367 -> 1.024363 | CD68: SEERadj | CE68: IL TRM v7 vol3 | CF68: 69 (example) | CG68: 0.1 | CH68: Derating_Cool_Eff | CI68: IL TRM v7 vol3 | CJ68: 67 | CK68: 0.1 | CL68: Derating_Heat_Base | CM68: IL TRM v7 vol3 | CN68: 68 | CO68: 1.001 | CP68: HSPFadj | CQ68: IL TRM v7 vol3 | CR68: 69 (example) | CS68: 0.1 | CT68: Derating_Heat_Eff | CU68: IL TRM v7 vol3 | CV68: 68 | CW68: 0.03 | CX68: Societal Discount Rate | CY68: Evergy Standard | DA68: 1381 | DB68: First Cost $/ton | DC68: IL TRM v7 vol3 | DD68: 64 | DE68: 303 | DF68: One-time per-system labor cost | DG68: IL TRM v7 vol3 | DH68: 64 | DI68: 1518 | DJ68: Deferred cost savings | DK68: IL TRM v7 vol3 | DL68: 65 | DM68: 3.5 | DN68: Assumed average system tons | DO68: Tracking Data
A69: Heating, Cooling & Home Comfort | B69: ASHP SEER 15 - Replace Electric Resistance Heat | C69: 33.3 | D69: Single Family | E69: HVAC | G69: per ton | H69: =303/3.5 -> 86.57142857 | I69: IL TRM v7 vol3 | J69: 64 | K69: 233.1933 | L69: Calculated Value | N69: =R69 -> 0.1198 | O69: 0.72 | P69: IL TRM v7 vol3 | Q69: 65 | R69: 0.1198 | S69: Calculated Value | U69: 738 | V69: EFLHcool, from 2017 MO TRM | W69: 85 | X69: 16 | Y69: IL TRM v7 vol3 | Z69: 64 | AA69: SEERee | AB69: 15.17 | AC69: per PY2018 Metadata WHE | AE69: SEERbase | AF69: 14 | AG69: IL TRM v7 vol3 | AH69: 67 | AI69: =ROUND(((U69*AS69*(1/(AF69*(1-BY69))-1/(AB69*CC69*(1-CG69))))/1000)+((BQ69*AS69*(1/(BA69*(1-CK69))-1/(AW69*CO69*(1-CS69))))/1000),4) | AJ69: =ROUND((AS69*(1/(BI69*(1-BY69))-1/(BE69*(1-CG69))))/1000*O69,4) | AK69: IL TRM v7 vol3 | AL69: 65, 69 | AM69: 2020-01-01 | AN69: 2020-03-31 | AS69: 12000 | AT69: Allows for Capacity input in Tons; converts tons to BTUs | AW69: 8.873684211 | AX69: HSPFee | AY69: per PY2018 Metadata WHE | BA69: 8.2 | BB69: HSPFbase | BC69: IL TRM v7 vol3 | BD69: 68 | BE69: 12.75 | BF69: EERee | BG69: Calculated per PY2018 Metadata WHE | BI69: 11 | BJ69: EERbase | BK69: IL TRM v7 vol3 | BL69: 70 | BM69: 738 | BN69: EFLHcool | BO69: EFLHcool, from 2017 MO TRM | BP69: 85 | BQ69: 1376 | BR69: EFLHheat | BS69: The EFLH Cooling and Heating hours are based on a EnergyStar study that was normalized (based on HDD and CDD) to Kansas City. This was for both AC and HP units. | BU69: 8.2 | BV69: HSPFbase | BW69: IL TRM v7 vol3 | BX69: 68 | BY69: 0.1 | BZ69: Derating_Cool_Base | CA69: IL TRM v7 vol3 | CB69: 67 | CC69: 1.011 | CD69: SEERadj | CE69: IL TRM v7 vol3 | CF69: 69 (example) | CG69: 0.1 | CH69: Derating_Cool_Eff | CI69: IL TRM v7 vol3 | CJ69: 67 | CK69: 0.1 | CL69: Derating_Heat_Base | CM69: IL TRM v7 vol3 | CN69: 68 | CO69: 1.001 | CP69: HSPFadj | CQ69: IL TRM v7 vol3 | CR69: 69 (example) | CS69: 0.1 | CT69: Derating_Heat_Eff | CU69: IL TRM v7 vol3 | CV69: 68
A70: Heating, Cooling & Home Comfort | B70: ASHP SEER 15 - Replace Electric Resistance Heat | C70: 33.4 | D70: Single Family | E70: HVAC | G70: per ton | H70: =303/3.5 -> 86.57142857 | I70: IL TRM v7 vol3 | J70: 64 | K70: 596.7703 | L70: Calculated Value | N70: =K70/U70 -> 0.8086318428 | O70: 0.72 | P70: IL TRM v7 vol3 | Q70: 65 | R70: 0.0978 | S70: Calculated Value | U70: 738 | V70: EFLHcool, from 2017 MO TRM Vol. 3 | W70: 85 | X70: 16 | Y70: IL TRM v7 vol3 | Z70: 64 | AA70: SEERee | AB70: 15.17 | AC70: per PY2018 Metadata WHE | AE70: SEERbase | AF70: 9.3 | AG70: IL TRM v7 vol3 | AH70: 66 | AI70: =ROUND(((U70*AS70*(1/(AF70*(1-BY70))-1/(AB70*CC70*(1-CG70))))/1000)+((BQ70*AS70*(1/(BA70*(1-CK70))-1/(AW70*CO70*(1-CS70))))/1000),4) | AJ70: =ROUND((AS70*(1/(BI70*(1-BY70))-1/(BE70*(1-CG70))))/1000*O70,4) | AK70: IL TRM v7 vol3 | AL70: 65, 66, 69 | AM70: 2020-04-01 | AS70: 12000 | AT70: Allows for Capacity input in Tons; converts tons to BTUs | AU70: IL TRM v7 vol3 | AV70: 66 | AW70: 8.873684211 | AX70: HSPFee | AY70: per PY2018 Metadata WHE | BA70: 8.2 | BB70: HSPFbase | BC70: IL TRM v7 vol3 | BD70: 68 | BE70: =1.12*AB70-0.02*AB70^2 -> 12.387822 | BF70: EERee | BG70: Calculated value | BI70: 11 | BJ70: EERbase | BK70: IL TRM v7 vol3 | BL70: 70 | BM70: 738 | BN70: EFLHcool | BO70: EFLHcool, from 2017 MO TRM Vol. 3 | BP70: 85 | BQ70: 1376 | BR70: EFLHheat | BS70: The EFLH Cooling and Heating hours are based on a EnergyStar study that was normalized (based on HDD and CDD) to Kansas City. This was for both AC and HP units. | BU70: 8.2 | BV70: HSPFbase | BW70: IL TRM v7 vol3 | BX70: 68 | BY70: 0.1 | BZ70: Derating_Cool_Base | CA70: IL TRM v7 vol3 | CB70: 67 | CC70: =0.805*(BE70/AB70)+0.367 -> 1.024363 | CD70: SEERadj | CE70: IL TRM v7 vol3 | CF70: 69 (example) | CG70: 0.1 | CH70: Derating_Cool_Eff | CI70: IL TRM v7 vol3 | CJ70: 67 | CK70: 0.1 | CL70: Derating_Heat_Base | CM70: IL TRM v7 vol3 | CN70: 68 | CO70: 1.001 | CP70: HSPFadj | CQ70: IL TRM v7 vol3 | CR70: 69 (example) | CS70: 0.1 | CT70: Derating_Heat_Eff | CU70: IL TRM v7 vol3 | CV70: 68
A71: Heating, Cooling & Home Comfort | B71: ASHP SEER 15 - Replace Electric Resistance Heat - Early Replacement | C71: 314.2 | D71: Single Family | E71: HVAC | G71: per ton | H71: =DA71+DE71/DM71-DI71*(1+CW71)^(-X71) -> 196.2703269 | I71: IL TRM v7 vol3 | J71: 64 | K71: 3692.9583 | L71: Calculated Value | N71: =R71 -> 0.505 | O71: 0.72 | P71: IL TRM v7 vol3 | Q71: 65 | R71: 0.505 | S71: Calculated Value | U71: 738 | V71: EFLHcool, from 2017 MO TRM | W71: 85 | X71: 6 | Y71: IL TRM v7 vol3 | Z71: 64 | AA71: SEERee | AB71: 15.17 | AC71: per PY2018 Metadata WHE | AE71: SEERexist | AF71: 9.3 | AG71: IL TRM v7 vol3 | AH71: 66 | AI71: =cellformula(K71) -> =ROUND(((U71*AS71*(1/(AF71*(1-BY71))-1/(AB71*CC71*(1-CG71))))/1000)+((BQ71*AS71*(1/(BA71*(1-CK71))-1/(AW71*CO71*(1-CS71))))/1000),4) | AJ71: =cellformula(R71) -> =ROUND((AS71*(1/(BI71*(1-BY71))-1/(BE71*(1-CG71))))/1000*O71,4) | AK71: IL TRM v7 vol3 | AL71: 65, 69 | AM71: 2020-01-01 | AN71: 2020-03-31 | AS71: 12000 | AT71: Allows for Capacity input in Tons; converts tons to BTUs | AW71: 8.712142857 | AX71: HSPFee | AY71: per PY2018 Metadata WHE | BA71: 3.41 | BB71: HSPFexist | BC71: IL TRM v7 vol3 | BD71: 68 | BE71: =(-0.02*AB71^2)+(1.12*AB71) -> 12.387822 | BF71: EERee | BG71: Calculated per PY2018 Metadata WHE | BI71: 7.5 | BJ71: EERexist | BK71: IL TRM v7 vol3 | BL71: 70 | BM71: 738 | BN71: EFLHcool | BO71: EFLHcool, from 2017 MO TRM | BP71: 85 | BQ71: 1376 | BR71: EFLHheat | BS71: The EFLH Cooling and Heating hours are based on a EnergyStar study that was normalized (based on HDD and CDD) to Kansas City. This was for both AC and HP units. | BU71: 3.41 | BV71: HSPFexist | BW71: IL TRM v7 vol3 | BX71: 68 | BY71: 0.1 | BZ71: Derating_Cool_Base | CA71: IL TRM v7 vol3 | CB71: 67 | CC71: 1.011 | CD71: SEERadj | CE71: IL TRM v7 vol3 | CF71: 69 (example) | CG71: 0.1 | CH71: Derating_Cool_Eff | CI71: IL TRM v7 vol3 | CJ71: 67 | CK71: 0.1 | CL71: Derating_Heat_Base | CM71: IL TRM v7 vol3 | CN71: 68 | CO71: 1.001 | CP71: HSPFadj | CQ71: IL TRM v7 vol3 | CR71: 69 (example) | CS71: 0.1 | CT71: Derating_Heat_Eff | CU71: IL TRM v7 vol3 | CV71: 68 | CW71: 0.03 | CX71: Societal Discount Rate | CY71: Evergy Standard | DA71: 1381 | DB71: First Cost $/ton | DC71: IL TRM v7 vol3 | DD71: 64 | DE71: 303 | DF71: One-time per-system labor cost | DG71: IL TRM v7 vol3 | DH71: 64 | DI71: 1518 | DJ71: Deferred cost savings | DK71: IL TRM v7 vol3 | DL71: 65 | DM71: 3.5 | DN71: Assumed average system tons | DO71: Tracking Data
A72: Heating, Cooling & Home Comfort | B72: ASHP SEER 15 - Replace Electric Resistance Heat - Early Replacement | C72: 314.3 | D72: Single Family | E72: HVAC | G72: per ton | H72: =DA72+DE72/DM72-DI72*(1+CW72)^(-X72) -> 196.2703269 | I72: IL TRM v7 vol3 | J72: 64 | K72: 3701.3279 | L72: Calculated Value | N72: =K72/U72 -> 5.015349458 | O72: 0.72 | P72: IL TRM v7 vol3 | Q72: 65 | R72: 0.505 | S72: Calculated Value | U72: 738 | V72: EFLHcool, from 2017 MO TRM | W72: 85 | X72: 6 | Y72: IL TRM v7 vol3 | Z72: 64 | AA72: SEERee | AB72: 15.17 | AC72: per PY2018 Metadata WHE | AE72: SEERexist | AF72: 9.3 | AG72: IL TRM v7 vol3 | AH72: 66 | AI72: =ROUND(((U72*AS72*(1/(AF72*(1-BY72))-1/(AB72*CC72*(1-CG72))))/1000)+((BQ72*AS72*(1/(BA72*(1-CK72))-1/(AW72*CO72*(1-CS72))))/1000),4) | AJ72: =ROUND((AS72*(1/(BI72*(1-BY72))-1/(BE72*(1-CG72))))/1000*O72,4) | AK72: IL TRM v7 vol3 | AL72: 65, 69 | AM72: 2020-04-01 | AS72: 12000 | AT72: Allows for Capacity input in Tons; converts tons to BTUs | AW72: 8.712142857 | AX72: HSPFee | AY72: per PY2018 Metadata WHE | BA72: 3.41 | BB72: HSPFexist | BC72: IL TRM v7 vol3 | BD72: 68 | BE72: =(-0.02*AB72^2)+(1.12*AB72) -> 12.387822 | BF72: EERee | BG72: Calculated per PY2018 Metadata WHE | BI72: 7.5 | BJ72: EERexist | BK72: IL TRM v7 vol3 | BL72: 70 | BM72: 738 | BN72: EFLHcool | BO72: EFLHcool, from 2017 MO TRM | BP72: 85 | BQ72: 1376 | BR72: EFLHheat | BS72: The EFLH Cooling and Heating hours are based on a EnergyStar study that was normalized (based on HDD and CDD) to Kansas City. This was for both AC and HP units. | BU72: 3.41 | BV72: HSPFexist | BW72: IL TRM v7 vol3 | BX72: 68 | BY72: 0.1 | BZ72: Derating_Cool_Base | CA72: IL TRM v7 vol3 | CB72: 67 | CC72: =0.805*(BE72/AB72)+0.367 -> 1.024363 | CD72: SEERadj | CE72: IL TRM v7 vol3 | CF72: 69 (example) | CG72: 0.1 | CH72: Derating_Cool_Eff | CI72: IL TRM v7 vol3 | CJ72: 67 | CK72: 0.1 | CL72: Derating_Heat_Base | CM72: IL TRM v7 vol3 | CN72: 68 | CO72: 1.001 | CP72: HSPFadj | CQ72: IL TRM v7 vol3 | CR72: 69 (example) | CS72: 0.1 | CT72: Derating_Heat_Eff | CU72: IL TRM v7 vol3 | CV72: 68 | CW72: 0.03 | CX72: Societal Discount Rate | CY72: Evergy Standard | DA72: 1381 | DB72: First Cost $/ton | DC72: IL TRM v7 vol3 | DD72: 64 | DE72: 303 | DF72: One-time per-system labor cost | DG72: IL TRM v7 vol3 | DH72: 64 | DI72: 1518 | DJ72: Deferred cost savings | DK72: IL TRM v7 vol3 | DL72: 65 | DM72: 3.5 | DN72: Assumed average system tons | DO72: Tracking Data
A73: Heating, Cooling & Home Comfort | B73: ASHP SEER 15 - Replace Electric Resistance Heat - Early Replacement (future) | C73: 315.2 | D73: Single Family | E73: HVAC | G73: per ton | H73: 0 | I73: IL TRM v7 vol3 | J73: 65 | K73: 194.8951 | L73: Calculated Value | N73: =R73 -> 0.0978 | O73: 0.72 | P73: IL TRM v7 vol3 | Q73: 65 | R73: 0.0978 | S73: Calculated Value | U73: 738 | V73: EFLHcool, from 2017 MO TRM | W73: 85 | X73: 10 | Y73: IL TRM v7 vol3 | Z73: 64 | AA73: SEERee | AB73: 15.17 | AC73: per PY2018 Metadata WHE | AE73: SEERbase | AF73: 14 | AG73: IL TRM v7 vol3 | AH73: 67 | AI73: =ROUND(((U73*AS73*(1/(AF73*(1-BY73))-1/(AB73*CC73*(1-CG73))))/1000)+((BQ73*AS73*(1/(BA73*(1-CK73))-1/(AW73*CO73*(1-CS73))))/1000),4) | AJ73: =ROUND((AS73*(1/(BI73*(1-BY73))-1/(BE73*(1-CG73))))/1000*O73,4) | AK73: IL TRM v7 vol3 | AL73: 65, 69 | AM73: 2020-01-01 | AN73: 2020-03-31 | AS73: 12000 | AT73: Allows for Capacity input in Tons; converts tons to BTUs | AW73: 8.712142857 | AX73: HSPFee | AY73: per PY2018 Metadata WHE | BA73: 8.2 | BB73: HSPFbase | BC73: IL TRM v7 vol3 | BD73: 68 | BE73: =(-0.02*AB73^2)+(1.12*AB73) -> 12.387822 | BF73: EERee | BG73: Calculated per PY2018 Metadata WHE | BI73: 11 | BJ73: EERbase | BK73: IL TRM v7 vol3 | BL73: 70 | BM73: 738 | BN73: EFLHcool | BO73: EFLHcool, from 2017 MO TRM | BP73: 85 | BQ73: 1376 | BR73: EFLHheat | BS73: The EFLH Cooling and Heating hours are based on a EnergyStar study that was normalized (based on HDD and CDD) to Kansas City. This was for both AC and HP units. | BU73: 8.2 | BV73: HSPFbase | BW73: IL TRM v7 vol3 | BX73: 68 | BY73: 0.1 | BZ73: Derating_Cool_Base | CA73: IL TRM v7 vol3 | CB73: 67 | CC73: 1.011 | CD73: SEERadj | CE73: IL TRM v7 vol3 | CF73: 69 (example) | CG73: 0.1 | CH73: Derating_Cool_Eff | CI73: IL TRM v7 vol3 | CJ73: 67 | CK73: 0.1 | CL73: Derating_Heat_Base | CM73: IL TRM v7 vol3 | CN73: 68 | CO73: 1.001 | CP73: HSPFadj | CQ73: IL TRM v7 vol3 | CR73: 69 (example) | CS73: 0.1 | CT73: Derating_Heat_Eff | CU73: IL TRM v7 vol3 | CV73: 68 | CW73: 0.03 | CX73: Societal Discount Rate | CY73: Evergy Standard | DA73: 1381 | DB73: First Cost $/ton | DC73: IL TRM v7 vol3 | DD73: 64 | DE73: 303 | DF73: One-time per-system labor cost | DG73: IL TRM v7 vol3 | DH73: 64 | DI73: 1518 | DJ73: Deferred cost savings | DK73: IL TRM v7 vol3 | DL73: 65 | DM73: 3.5 | DN73: Assumed average system tons | DO73: Tracking Data
A74: Heating, Cooling & Home Comfort | B74: ASHP SEER 15 - Replace Electric Resistance Heat - Early Replacement (future) | C74: 315.3 | D74: Single Family | E74: HVAC | G74: per ton | H74: 0 | I74: IL TRM v7 vol3 | J74: 64 | K74: 203.2648 | L74: Calculated Value | N74: =K74/U74 -> 0.2754265583 | O74: 0.72 | P74: IL TRM v7 vol3 | Q74: 65 | R74: 0.0978 | S74: Calculated Value | U74: 738 | V74: EFLHcool, from 2017 MO TRM | W74: 85 | X74: 10 | Y74: IL TRM v7 vol3 | Z74: 64 | AA74: SEERee | AB74: 15.17 | AC74: per PY2018 Metadata WHE | AE74: SEERbase | AF74: 14 | AG74: IL TRM v7 vol3 | AH74: 67 | AI74: =ROUND(((U74*AS74*(1/(AF74*(1-BY74))-1/(AB74*CC74*(1-CG74))))/1000)+((BQ74*AS74*(1/(BA74*(1-CK74))-1/(AW74*CO74*(1-CS74))))/1000),4) | AJ74: =ROUND((AS74*(1/(BI74*(1-BY74))-1/(BE74*(1-CG74))))/1000*O74,4) | AK74: IL TRM v7 vol3 | AL74: 65, 69 | AM74: 2020-04-01 | AS74: 12000 | AT74: Allows for Capacity input in Tons; converts tons to BTUs | AW74: 8.712142857 | AX74: HSPFee | AY74: per PY2018 Metadata WHE | BA74: 8.2 | BB74: HSPFbase | BC74: IL TRM v7 vol3 | BD74: 68 | BE74: =(-0.02*AB74^2)+(1.12*AB74) -> 12.387822 | BF74: EERee | BG74: Calculated per PY2018 Metadata WHE | BI74: 11 | BJ74: EERbase | BK74: IL TRM v7 vol3 | BL74: 70 | BM74: 738 | BN74: EFLHcool | BO74: EFLHcool, from 2017 MO TRM | BP74: 85 | BQ74: 1376 | BR74: EFLHheat | BS74: The EFLH Cooling and Heating hours are based on a EnergyStar study that was normalized (based on HDD and CDD) to Kansas City. This was for both AC and HP units. | BU74: 8.2 | BV74: HSPFbase | BW74: IL TRM v7 vol3 | BX74: 68 | BY74: 0.1 | BZ74: Derating_Cool_Base | CA74: IL TRM v7 vol3 | CB74: 67 | CC74: =0.805*(BE74/AB74)+0.367 -> 1.024363 | CD74: SEERadj | CE74: IL TRM v7 vol3 | CF74: 69 (example) | CG74: 0.1 | CH74: Derating_Cool_Eff | CI74: IL TRM v7 vol3 | CJ74: 67 | CK74: 0.1 | CL74: Derating_Heat_Base | CM74: IL TRM v7 vol3 | CN74: 68 | CO74: 1.001 | CP74: HSPFadj | CQ74: IL TRM v7 vol3 | CR74: 69 (example) | CS74: 0.1 | CT74: Derating_Heat_Eff | CU74: IL TRM v7 vol3 | CV74: 68 | CW74: 0.03 | CX74: Societal Discount Rate | CY74: Evergy Standard | DA74: 1381 | DB74: First Cost $/ton | DC74: IL TRM v7 vol3 | DD74: 64 | DE74: 303 | DF74: One-time per-system labor cost | DG74: IL TRM v7 vol3 | DH74: 64 | DI74: 1518 | DJ74: Deferred cost savings | DK74: IL TRM v7 vol3 | DL74: 65 | DM74: 3.5 | DN74: Assumed average system tons | DO74: Tracking Data
A75: Heating, Cooling & Home Comfort | B75: ASHP SEER 16 | C75: 34.3 | D75: Single Family | E75: HVAC | G75: per ton | H75: =438/3.5 -> 125.1428571 | I75: IL TRM v7 vol3 | J75: 64 | K75: 314.7392 | L75: Calculated Value | N75: =R75 -> 0.1307 | O75: 0.72 | P75: IL TRM v7 vol3 | Q75: 65 | R75: 0.1307 | S75: Calculated Value | U75: 738 | V75: EFLHcool, from 2017 MO TRM | W75: 85 | X75: 16 | Y75: IL TRM v7 vol3 | Z75: 64 | AA75: SEERee | AB75: 16.04 | AC75: per PY2018 Metadata WHE | AE75: SEERbase | AF75: 14 | AG75: IL TRM v7 vol3 | AH75: 67 | AI75: =ROUND(((U75*AS75*(1/(AF75*(1-BY75))-1/(AB75*CC75*(1-CG75))))/1000)+((BQ75*AS75*(1/(BA75*(1-CK75))-1/(AW75*CO75*(1-CS75))))/1000),4) | AJ75: =ROUND((AS75*(1/(BI75*(1-BY75))-1/(BE75*(1-CG75))))/1000*O75,4) | AK75: IL TRM v7 vol3 | AL75: 65, 69 | AM75: 2020-01-01 | AN75: 2020-03-31 | AS75: 12000 | AT75: Allows for Capacity input in Tons; converts tons to BTUs | AW75: 9.079166667 | AX75: HSPFee | AY75: per PY2018 Metadata WHE | BA75: 8.2 | BB75: HSPFbase | BC75: IL TRM v7 vol3 | BD75: 68 | BE75: 12.9375 | BF75: EERee | BG75: Calculated per PY2018 Metadata WHE | BI75: 11 | BJ75: EERbase | BK75: IL TRM v7 vol3 | BL75: 70 | BM75: 738 | BN75: EFLHcool | BO75: EFLHcool, from 2017 MO TRM | BP75: 85 | BQ75: 1376 | BR75: EFLHheat | BS75: The EFLH Cooling and Heating hours are based on a EnergyStar study that was normalized (based on HDD and CDD) to Kansas City. This was for both AC and HP units. | BU75: 8.2 | BV75: HSPFbase | BW75: IL TRM v7 vol3 | BX75: 68 | BY75: 0.1 | BZ75: Derating_Cool_Base | CA75: IL TRM v7 vol3 | CB75: 67 | CC75: 1.011 | CD75: SEERadj | CE75: IL TRM v7 vol3 | CF75: 69 (example) | CG75: 0.1 | CH75: Derating_Cool_Eff | CI75: IL TRM v7 vol3 | CJ75: 67 | CK75: 0.1 | CL75: Derating_Heat_Base | CM75: IL TRM v7 vol3 | CN75: 68 | CO75: 1.001 | CP75: HSPFadj | CQ75: IL TRM v7 vol3 | CR75: 69 (example) | CS75: 0.1 | CT75: Derating_Heat_Eff | CU75: IL TRM v7 vol3 | CV75: 68
A76: Heating, Cooling & Home Comfort | B76: ASHP SEER 16 | C76: 34.4 | D76: Single Family | E76: HVAC | G76: per ton | H76: =438/3.5 -> 125.1428571 | I76: IL TRM v7 vol3 | J76: 64 | K76: 314.3524 | L76: Calculated Value | N76: =K76/U76 -> 0.4259517615 | O76: 0.72 | P76: IL TRM v7 vol3 | Q76: 65 | R76: 0.1238 | S76: Calculated Value | U76: 738 | V76: EFLHcool, from 2017 MO TRM Vol. 3 | W76: 85 | X76: 16 | Y76: IL TRM v7 vol3 | Z76: 64 | AA76: SEERee | AB76: 16.04 | AC76: per PY2018 Metadata WHE | AE76: SEERbase | AF76: 14 | AG76: IL TRM v7 vol3 | AH76: 67 | AI76: =ROUND(((U76*AS76*(1/(AF76*(1-BY76))-1/(AB76*CC76*(1-CG76))))/1000)+((BQ76*AS76*(1/(BA76*(1-CK76))-1/(AW76*CO76*(1-CS76))))/1000),4) | AJ76: =ROUND((AS76*(1/(BI76*(1-BY76))-1/(BE76*(1-CG76))))/1000*O76,4) | AK76: IL TRM v7 vol3 | AL76: 65, 66, 69 | AM76: 2020-04-01 | AS76: 12000 | AT76: Allows for Capacity input in Tons; converts tons to BTUs | AU76: IL TRM v7 vol3 | AV76: 66 | AW76: 9.079166667 | AX76: HSPFee | AY76: per PY2018 Metadata WHE | BA76: 8.2 | BB76: HSPFbase | BC76: IL TRM v7 vol3 | BD76: 68 | BE76: =1.12*AB76-0.02*AB76^2 -> 12.819168 | BF76: EERee | BG76: Calculated value | BI76: 11 | BJ76: EERbase | BK76: IL TRM v7 vol3 | BL76: 70 | BM76: 738 | BN76: EFLHcool | BO76: EFLHcool, from 2017 MO TRM Vol. 3 | BP76: 85 | BQ76: 1376 | BR76: EFLHheat | BS76: The EFLH Cooling and Heating hours are based on a EnergyStar study that was normalized (based on HDD and CDD) to Kansas City. This was for both AC and HP units. | BU76: 8.2 | BV76: HSPFbase | BW76: IL TRM v7 vol3 | BX76: 68 | BY76: 0.1 | BZ76: Derating_Cool_Base | CA76: IL TRM v7 vol3 | CB76: 67 | CC76: =0.805*(BE76/AB76)+0.367 -> 1.010356 | CD76: SEERadj | CE76: IL TRM v7 vol3 | CF76: 69 (example) | CG76: 0.1 | CH76: Derating_Cool_Eff | CI76: IL TRM v7 vol3 | CJ76: 67 | CK76: 0.1 | CL76: Derating_Heat_Base | CM76: IL TRM v7 vol3 | CN76: 68 | CO76: 1.001 | CP76: HSPFadj | CQ76: IL TRM v7 vol3 | CR76: 69 (example) | CS76: 0.1 | CT76: Derating_Heat_Eff | CU76: IL TRM v7 vol3 | CV76: 68
A77: Heating, Cooling & Home Comfort | B77: ASHP SEER 16 - Early Replacement | C77: 35.3 | D77: Single Family | E77: HVAC | G77: per ton | H77: =DA77+DE77/DM77-DI77*(1+CW77)^(-X77) -> 196.2703269 | I77: IL TRM v7 vol3 | J77: 64 | K77: 1804.8718 | L77: Calculated Value | N77: 2.445625745 | O77: 0.72 | P77: IL TRM v7 vol3 | Q77: 70 | R77: 0.5322 | S77: Calculated Value | U77: 738 | V77: EFLHcool, from 2017 MO TRM | W77: 85 | X77: 6 | Y77: IL TRM v7 vol3 | Z77: 64 | AA77: SEER | AB77: 16.08 | AC77: per PY2018 Metadata WHE | AE77: SEER | AF77: 9.12 | AG77: IL TRM v7 vol3 | AH77: 66 | AI77: =ROUND(((U77*AS77*(1/(AF77*(1-BY77))-1/(AB77*CC77*(1-CG77))))/1000)+((BQ77*AS77*(1/(BA77*(1-CK77))-1/(AW77*CO77*(1-CS77))))/1000),4) | AJ77: =ROUND((AS77*(1/(BI77*(1-BY77))-1/(BE77*(1-CG77))))/1000*O77,4) | AK77: IL TRM v7 vol3 | AL77: 65, 69 | AM77: 2020-01-01 | AN77: 2020-03-31 | AS77: 12000 | AT77: Allows for Capacity input in Tons; converts tons to BTUs | AW77: 8.978571429 | AX77: HSPFee | AY77: per PY2018 Metadata WHE | BA77: 5.44 | BB77: HSPFbase | BC77: IL TRM v7 vol3 | BD77: 68 | BE77: =(-0.02*AB77^2)+(1.12*AB77) -> 12.838272 | BF77: EERee | BG77: Calculated per PY2018 Metadata WHE | BI77: 7.5 | BJ77: EERexist | BK77: IL TRM v7 vol3 | BL77: 70 | BM77: 738 | BN77: EFLHcool | BO77: EFLHcool, from 2017 MO TRM | BP77: 85 | BQ77: 1376 | BR77: EFLHheat | BS77: The EFLH Cooling and Heating hours are based on a EnergyStar study that was normalized (based on HDD and CDD) to Kansas City. This was for both AC and HP units. | BU77: 5.54 | BV77: HSPFexist | BW77: IL TRM v7 vol3 | BX77: 68 | BY77: 0.1 | BZ77: Derating_Cool_Base | CA77: IL TRM v7 vol3 | CB77: 67 | CC77: 1.011 | CD77: SEERadj | CE77: IL TRM v7 vol3 | CF77: 69 (example) | CG77: 0.1 | CH77: Derating_Cool_Eff | CI77: IL TRM v7 vol3 | CJ77: 67 | CK77: 0.1 | CL77: Derating_Heat_Base | CM77: IL TRM v7 vol3 | CN77: 68 | CO77: 1.001 | CP77: HSPFadj | CQ77: IL TRM v7 vol3 | CR77: 69 (example) | CS77: 0.1 | CT77: Derating_Heat_Eff | CU77: IL TRM v7 vol3 | CV77: 68 | CW77: 0.03 | CX77: Societal Discount Rate | CY77: Evergy Standard | DA77: 1381 | DB77: First Cost $/ton | DC77: IL TRM v7 vol3 | DD77: 64 | DE77: 303 | DF77: One-time per-system labor cost | DG77: IL TRM v7 vol3 | DH77: 64 | DI77: 1518 | DJ77: Deferred cost savings | DK77: IL TRM v7 vol3 | DL77: 65 | DM77: 3.5 | DN77: Assumed average system tons | DO77: Tracking Data
A78: Heating, Cooling & Home Comfort | B78: ASHP SEER 16 - Early Replacement | C78: 35.4 | D78: Single Family | E78: HVAC | G78: per ton | H78: =DA78+DE78/DM78-DI78*(1+CW78)^(-X78) -> 196.2703269 | I78: IL TRM v7 vol3 | J78: 64 | K78: 1783.2169 | L78: Calculated Value | N78: 2.416283062 | O78: 0.72 | P78: IL TRM v7 vol3 | Q78: 65 | R78: 0.5322 | S78: Calculated Value | U78: 738 | V78: EFLHcool, from 2017 MO TRM Vol. 3 | W78: 85 | X78: 6 | Y78: IL TRM v7 vol3 | Z78: 64 | AA78: SEERee | AB78: 16.08 | AC78: per PY2018 Metadata WHE | AE78: SEERexist | AF78: 9.3 | AG78: IL TRM v7 vol3 | AH78: 66 | AI78: =ROUND(((U78*AS78*(1/(AF78*(1-BY78))-1/(AB78*CC78*(1-CG78))))/1000)+((BQ78*AS78*(1/(BA78*(1-CK78))-1/(AW78*CO78*(1-CS78))))/1000),4) | AJ78: =ROUND((AS78*(1/(BI78*(1-BY78))-1/(BE78*(1-CG78))))/1000*O78,4) | AK78: IL TRM v7 vol3 | AL78: 65, 66, 69 | AM78: 2020-04-01 | AS78: 12000 | AT78: Allows for Capacity input in Tons; converts tons to BTUs | AU78: IL TRM v7 vol3 | AV78: 66 | AW78: 8.978571429 | AX78: HSPFee | AY78: per PY2018 Metadata WHE | BA78: 5.44 | BB78: HSPFbase | BC78: IL TRM v7 vol3 | BD78: 68 | BE78: =1.12*AB78-0.02*AB78^2 -> 12.838272 | BF78: EERee | BG78: Calculated value | BI78: 7.5 | BJ78: EERexist | BK78: IL TRM v7 vol3 | BL78: 69,70 | BM78: 738 | BN78: EFLHcool | BO78: EFLHcool, from 2017 MO TRM Vol. 3 | BP78: 85 | BQ78: 1376 | BR78: EFLHheat | BS78: The EFLH Cooling and Heating hours are based on a EnergyStar study that was normalized (based on HDD and CDD) to Kansas City. This was for both AC and HP units. | BU78: 5.54 | BV78: HSPFexist | BW78: IL TRM v7 vol3 | BX78: 68 | BY78: 0.1 | BZ78: Derating_Cool_Base | CA78: IL TRM v7 vol3 | CB78: 67 | CC78: =0.805*(BE78/AB78)+0.367 -> 1.009712 | CD78: SEERadj | CE78: IL TRM v7 vol3 | CF78: 69 (example) | CG78: 0.1 | CH78: Derating_Cool_Eff | CI78: IL TRM v7 vol3 | CJ78: 67 | CK78: 0.1 | CL78: Derating_Heat_Base | CM78: IL TRM v7 vol3 | CN78: 68 | CO78: 1.001 | CP78: HSPFadj | CQ78: IL TRM v7 vol3 | CR78: 69 (example) | CS78: 0.1 | CT78: Derating_Heat_Eff | CU78: IL TRM v7 vol3 | CV78: 68 | CW78: 0.03 | CX78: Societal Discount Rate | CY78: Evergy Standard | DA78: 1381 | DB78: First Cost $/ton | DC78: IL TRM v7 vol3 | DD78: 64 | DE78: 303 | DF78: One-time per-system labor cost | DG78: IL TRM v7 vol3 | DH78: 64 | DI78: 1518 | DJ78: Deferred cost savings | DK78: IL TRM v7 vol3 | DL78: 65 | DM78: 3.5 | DN78: Assumed average system tons | DO78: Tracking Data
A79: Heating, Cooling & Home Comfort | B79: ASHP SEER 16 - Early Replacement (future) | C79: 36.3 | D79: Single Family | E79: HVAC | G79: per ton | H79: 0 | I79: IL TRM v7 vol3 | J79: 64 | K79: 108.9521 | L79: Calculated Value | N79: 0.1476315718 | O79: 0.72 | P79: IL TRM v7 vol3 | Q79: 70 | R79: 0.125 | S79: Calculated Value | U79: 738 | V79: EFLHcool, from 2017 MO TRM | W79: 85 | X79: 10 | Y79: IL TRM v7 vol3 | Z79: 64 | AA79: SEER | AB79: 16.08 | AC79: per PY2018 Metadata WHE | AE79: =BN79 -> SEERbase | AF79: =BM79 -> 14 | AG79: IL TRM v7 vol3 | AH79: 66 | AI79: =ROUND(((U79*AS79*(1/(AF79*(1-BY79))-1/(AB79*CC79*(1-CG79))))/1000)+((BQ79*AS79*(1/(BA79*(1-CK79))-1/(AW79*CO79*(1-CS79))))/1000),4) | AJ79: =ROUND((AS79*(1/(BI79*(1-BY79))-1/(BE79*(1-CG79))))/1000*O79,4) | AK79: IL TRM v7 vol3 | AL79: 65, 69 | AM79: 2020-01-01 | AN79: 2020-03-31 | AS79: 12000 | AT79: Allows for Capacity input in Tons; converts tons to BTUs | AW79: 8.978571429 | AX79: HSPFee | AY79: per PY2018 Metadata WHE | BA79: 5.44 | BB79: HSPFexist | BC79: IL TRM v7 vol3 | BD79: 68 | BE79: =(-0.02*AB79^2)+(1.12*AB79) -> 12.838272 | BF79: EERee | BG79: Calculated per PY2018 Metadata WHE | BI79: 11 | BJ79: EERbase | BK79: IL TRM v7 vol3 | BL79: 70 | BM79: 14 | BN79: SEERbase | BO79: EFLHcool, from 2017 MO TRM | BP79: 85 | BQ79: =(-0.02*BM79^2)+(1.12*BM79) -> 11.76 | BR79: EERbase | BS79: Based on SEER base | BU79: 8.2 | BV79: HSPFbase | BW79: IL TRM v7 vol3 | BX79: 68 | BY79: 0.1 | BZ79: Derating_Cool_Base | CA79: IL TRM v7 vol3 | CB79: 67 | CC79: 1.011 | CD79: SEERadj | CE79: IL TRM v7 vol3 | CF79: 69 (example) | CG79: 0.1 | CH79: Derating_Cool_Eff | CI79: IL TRM v7 vol3 | CJ79: 67 | CK79: 0.1 | CL79: Derating_Heat_Base | CM79: IL TRM v7 vol3 | CN79: 68 | CO79: 1.001 | CP79: HSPFadj | CQ79: IL TRM v7 vol3 | CR79: 69 (example) | CS79: 0.1 | CT79: Derating_Heat_Eff | CU79: IL TRM v7 vol3 | CV79: 68 | CW79: 0.03 | CX79: Societal Discount Rate | CY79: Evergy Standard | DA79: 1381 | DB79: First Cost $/ton | DC79: IL TRM v7 vol3 | DD79: 64 | DE79: 303 | DF79: One-time per-system labor cost | DG79: IL TRM v7 vol3 | DH79: 64 | DI79: 1518 | DJ79: Deferred cost savings | DK79: IL TRM v7 vol3 | DL79: 65 | DM79: 3.5 | DN79: Assumed average system tons | DO79: Tracking Data
A80: Heating, Cooling & Home Comfort | B80: ASHP SEER 16 - Early Replacement (future) | C80: 36.4 | D80: Single Family | E80: HVAC | G80: per ton | H80: 0 | I80: IL TRM v7 vol3 | J80: 64 | K80: 107.4448 | L80: Calculated Value | N80: 0.1455891599 | O80: 0.72 | P80: IL TRM v7 vol3 | Q80: 65 | R80: 0.125 | S80: Calculated Value | U80: 738 | V80: EFLHcool, from 2017 MO TRM Vol. 3 | W80: 85 | X80: 10 | Y80: IL TRM v7 vol3 | Z80: 64 | AA80: SEERee | AB80: 16.08 | AC80: per PY2018 Metadata WHE | AE80: =BN80 -> SEERbase | AF80: =BM80 -> 14 | AG80: IL TRM v7 vol3 | AH80: 67 | AI80: =ROUND(((U80*AS80*(1/(AF80*(1-BY80))-1/(AB80*CC80*(1-CG80))))/1000)+((BQ80*AS80*(1/(BA80*(1-CK80))-1/(AW80*CO80*(1-CS80))))/1000),4) | AJ80: =ROUND((AS80*(1/(BI80*(1-BY80))-1/(BE80*(1-CG80))))/1000*O80,4) | AK80: IL TRM v7 vol3 | AL80: 65, 66, 69 | AM80: 2020-04-01 | AS80: 12000 | AT80: Allows for Capacity input in Tons; converts tons to BTUs | AU80: IL TRM v7 vol3 | AV80: 66 | AW80: 8.978571429 | AX80: HSPFee | AY80: per PY2018 Metadata WHE | BA80: 5.44 | BB80: HSPFexist | BC80: IL TRM v7 vol3 | BD80: 68 | BE80: =1.12*AB80-0.02*AB80^2 -> 12.838272 | BF80: EERee | BG80: Calculated value | BI80: 11 | BJ80: EERbase | BK80: IL TRM v7 vol3 | BL80: 70 | BM80: 14 | BN80: SEERbase | BO80: IL TRM v7 vol3 | BP80: 67 | BQ80: 11 | BR80: EERbase | BS80: IL TRM v7 vol3 | BT80: 70 | BU80: 8.2 | BV80: HSPFbase | BW80: IL TRM v7 vol3 | BX80: 68 | BY80: 0.1 | BZ80: Derating_Cool_Base | CA80: IL TRM v7 vol3 | CB80: 67 | CC80: =0.805*(BE80/AB80)+0.367 -> 1.009712 | CD80: SEERadj | CE80: IL TRM v7 vol3 | CF80: 69 (example) | CG80: 0.1 | CH80: Derating_Cool_Eff | CI80: IL TRM v7 vol3 | CJ80: 67 | CK80: 0.1 | CL80: Derating_Heat_Base | CM80: IL TRM v7 vol3 | CN80: 68 | CO80: 1.001 | CP80: HSPFadj | CQ80: IL TRM v7 vol3 | CR80: 69 (example) | CS80: 0.1 | CT80: Derating_Heat_Eff | CU80: IL TRM v7 vol3 | CV80: 68 | CW80: 0.03 | CX80: Societal Discount Rate | CY80: Evergy Standard | DA80: 1381 | DB80: First Cost $/ton | DC80: IL TRM v7 vol3 | DD80: 64 | DE80: 303 | DF80: One-time per-system labor cost | DG80: IL TRM v7 vol3 | DH80: 64 | DI80: 1518 | DJ80: Deferred cost savings | DK80: IL TRM v7 vol3 | DL80: 65 | DM80: 3.5 | DN80: Assumed average system tons | DO80: Tracking Data
A81: Heating, Cooling & Home Comfort | B81: ASHP SEER 16 - Replace Electric Resistance Heat | C81: 37.3 | D81: Single Family | E81: HVAC | G81: per ton | H81: 793.1578947 | I81: IL TRM v5 | J81: 59 | K81: =ROUND((BM81*AS81*(1/AF81-1/AB81))/1000+(BQ81*AS81*(1/BA81-1/AW81)/1000),4) -> 273.2928 | L81: Calculated Value | N81: 0.3703154472 | O81: 0.72 | P81: Calculated Value | R81: =ROUND((AS81*(1/BI81-1/BE81)/1000)*O81,4) -> 0.0478 | S81: Calculated Value | U81: 738 | V81: EFLHcool, from 2017 MO TRM | W81: 85 | X81: 18 | Y81: IL TRM v5 vol3 | Z81: 59 | AA81: SEER | AB81: 16.11 | AC81: per PY2018 Metadata | AE81: SEERbase | AF81: 14 | AG81: IL TRM v5 vol3 | AH81: 62 | AI81: =ROUND((BM81*AS81*(1/AF81-1/AB81))/1000+(BQ81*AS81*(1/BA81-1/AW81)/1000),4) | AJ81: =ROUND((AS81*(1/BI81-1/BE81)/1000)*O81,4) | AK81: IL TRM v5 vol3 | AL81: 60, 63 | AM81: 2020-01-01 | AN81: 2020-03-31 | AS81: 12000 | AT81: Allows for Capacity input in Tons; converts tons to BTUs | AW81: 9.056521739 | AX81: HSPFee | AY81: Calculated per PY2016 Metadata | BA81: 8.2 | BB81: HSPFbase | BC81: IL TRM v5 vol3 | BD81: 63 | BE81: 12.625 | BF81: EERee | BG81: Calculated per PY2016 Metadata | BI81: 11.8 | BJ81: EERbase | BK81: IL TRM v5 vol3 | BL81: 64 | BM81: 738 | BN81: EFLHcool | BO81: EFLHcool, from 2017 MO TRM | BP81: 85 | BQ81: 1376 | BR81: EFLHheat | BS81: The EFLH Cooling and Heating hours are based on a EnergyStar study that was normalized (based on HDD and CDD) to Kansas City. This was for both AC and HP units.
A82: Heating, Cooling & Home Comfort | B82: ASHP SEER 16 - Replace Electric Resistance Heat | C82: 37.4 | D82: Single Family | E82: HVAC | G82: per ton | H82: =438/3.5 -> 125.1428571 | I82: IL TRM v7 vol3 | J82: 64 | K82: =ROUND((BM82*AS82*(1/((1-BU82)*AF82)-1/((1-CC82)*(BY82)*AB82)))/1000+(BQ82*AS82*(1/((1-CG82)*BA82)-1/((1-CO82)*(CK82)*AW82))/1000),4) -> 666.4753 | L82: Calculated Value | N82: 0.9030830623 | O82: 0.72 | P82: IL TRM v7 vol3 | Q82: 65 | R82: =ROUND((AS82*(1/((1-BU82)*BI82)-1/((1-CC82)*BE82))/1000)*O82,4) -> 0.1258 | S82: Calculated Value | U82: 738 | V82: EFLHcool, from 2017 MO TRM Vol. 3 | W82: 85 | X82: 16 | Y82: IL TRM v7 vol3 | Z82: 64 | AA82: SEERee | AB82: 16.11 | AC82: per PY2018 Metadata WHE | AE82: SEERbase | AF82: 9.3 | AG82: IL TRM v7 vol3 | AH82: 66 | AI82: =ROUND((BM82*AS82*(1/((1-BU82)*AF82)-1/((1-CC82)*(BY82)*AB82)))/1000+(BQ82*AS82*(1/((1-CG82)*BA82)-1/((1-CO82)*(CK82)*AW82))/1000),4) | AJ82: =ROUND((AS82*(1/((1-BU82)*BI82)-1/((1-CC82)*BE82))/1000)*O82,4) | AK82: IL TRM v7 vol3 | AL82: 65, 66, 69 | AM82: 2020-04-01 | AS82: 12000 | AT82: Allows for Capacity input in Tons; converts tons to BTUs | AU82: IL TRM v7 vol3 | AV82: 66 | AW82: 9.056521739 | AX82: HSPFee | AY82: per PY2018 Metadata WHE | BA82: 8.2 | BB82: HSPFbase | BC82: IL TRM v5 vol3 | BD82: 68 | BE82: =1.12*AB82-0.02*AB82^2 -> 12.852558 | BF82: EERee | BG82: Calculated value | BI82: 11 | BJ82: EERbase | BK82: IL TRM v7 vol3 | BL82: 70 | BM82: 738 | BN82: EFLHcool | BO82: EFLHcool, from 2017 MO TRM Vol. 3 | BP82: 85 | BQ82: 1376 | BR82: EFLHheat | BS82: The EFLH Cooling and Heating hours are based on a EnergyStar study that was normalized (based on HDD and CDD) to Kansas City. This was for both AC and HP units. | BU82: 0.1 | BV82: Derating_Cool_Base | BW82: IL TRM v7 vol3 | BX82: 67 | BY82: =0.805*(BE82/AB82)+0.367 -> 1.009229 | BZ82: SEERadj | CA82: IL TRM v7 vol3 | CB82: 69 (example) | CC82: 0.1 | CD82: Derating_Cool_Eff | CE82: IL TRM v7 vol3 | CF82: 67 | CG82: 0.1 | CH82: Derating_Heat_Base | CI82: IL TRM v7 vol3 | CJ82: 68 | CK82: 1.001 | CL82: HSPFadj | CM82: IL TRM v7 vol3 | CN82: 69 (example) | CO82: 0.1 | CP82: Derating_Heat_Eff | CQ82: IL TRM v7 vol3 | CR82: 68
A83: Heating, Cooling & Home Comfort | B83: ASHP SEER 16 - Replace Electric Resistance Heat - Early Replacement | C83: 316.2 | D83: Single Family | E83: HVAC | G83: per ton | H83: =DA83+DE83/DM83-DI83*(1+CW83)^(-X83) -> 234.8417555 | I83: IL TRM v7 vol3 | J83: 64 | K83: =ROUND(((U83*AS83*(1/(AF83*(1-BY83))-1/(AB83*CC83*(1-CG83))))/1000)+((BQ83*AS83*(1/(BA83*(1-CK83))-1/(AW83*CO83*(1-CS83))))/1000),4) -> 3791.6941 | L83: Calculated Value | N83: =R83 -> 0.5322 | O83: 0.72 | P83: IL TRM v7 vol3 | Q83: 65 | R83: =ROUND((AS83*(1/(BI83*(1-BY83))-1/(BE83*(1-CG83))))/1000*O83,4) -> 0.5322 | S83: Calculated Value | U83: 738 | V83: EFLHcool, from 2017 MO TRM | W83: 85 | X83: 6 | Y83: IL TRM v7 vol3 | Z83: 64 | AA83: SEERee | AB83: 16.08 | AC83: per PY2018 Metadata WHE | AE83: SEERexist | AF83: 9.3 | AG83: IL TRM v7 vol3 | AH83: 66 | AI83: =ROUND(((U83*AS83*(1/(AF83*(1-BY83))-1/(AB83*CC83*(1-CG83))))/1000)+((BQ83*AS83*(1/(BA83*(1-CK83))-1/(AW83*CO83*(1-CS83))))/1000),4) | AJ83: =ROUND((AS83*(1/(BI83*(1-BY83))-1/(BE83*(1-CG83))))/1000*O83,4) | AK83: IL TRM v7 vol3 | AL83: 65, 69 | AM83: 2020-01-01 | AS83: 12000 | AT83: Allows for Capacity input in Tons; converts tons to BTUs | AW83: 8.978571429 | AX83: HSPFee | AY83: per PY2018 Metadata WHE | BA83: 3.41 | BB83: HSPFexist | BC83: IL TRM v7 vol3 | BD83: 68 | BE83: =(-0.02*AB83^2)+(1.12*AB83) -> 12.838272 | BF83: EERee | BG83: Calculated per PY2018 Metadata WHE | BI83: 7.5 | BJ83: EERexist | BK83: IL TRM v7 vol3 | BL83: 70 | BM83: 738 | BN83: EFLHcool | BO83: EFLHcool, from 2017 MO TRM | BP83: 85 | BQ83: 1376 | BR83: EFLHheat | BS83: The EFLH Cooling and Heating hours are based on a EnergyStar study that was normalized (based on HDD and CDD) to Kansas City. This was for both AC and HP units. | BU83: 3.41 | BV83: HSPFexist | BW83: IL TRM v7 vol3 | BX83: 68 | BY83: 0.1 | BZ83: Derating_Cool_Base | CA83: IL TRM v7 vol3 | CB83: 67 | CC83: 1.011 | CD83: SEERadj | CE83: IL TRM v7 vol3 | CF83: 69 (example) | CG83: 0.1 | CH83: Derating_Cool_Eff | CI83: IL TRM v7 vol3 | CJ83: 67 | CK83: 0.1 | CL83: Derating_Heat_Base | CM83: IL TRM v7 vol3 | CN83: 68 | CO83: 1.001 | CP83: HSPFadj | CQ83: IL TRM v7 vol3 | CR83: 69 (example) | CS83: 0.1 | CT83: Derating_Heat_Eff | CU83: IL TRM v7 vol3 | CV83: 68 | CW83: 0.03 | CX83: Societal Discount Rate | CY83: Evergy Standard | DA83: 1381 | DB83: First Cost $/ton | DC83: IL TRM v7 vol3 | DD83: 64 | DE83: 438 | DF83: One-time per-system labor cost | DG83: IL TRM v7 vol3 | DH83: 64 | DI83: 1518 | DJ83: Deferred cost savings | DK83: IL TRM v7 vol3 | DL83: 65 | DM83: 3.5 | DN83: Assumed average system tons | DO83: Tracking Data
A84: Heating, Cooling & Home Comfort | B84: ASHP SEER 16 - Replace Electric Resistance Heat - Early Replacement (future) | C84: 317.2 | D84: Single Family | E84: HVAC | G84: per ton | H84: 0 | I84: IL TRM v7 vol3 | J84: 65 | K84: =ROUND(((U84*AS84*(1/(AF84*(1-BY84))-1/(AB84*CC84*(1-CG84))))/1000)+((BQ84*AS84*(1/(BA84*(1-CK84))-1/(AW84*CO84*(1-CS84))))/1000),4) -> 293.6309 | L84: Calculated Value | N84: =R84 -> 0.125 | O84: 0.72 | P84: IL TRM v7 vol3 | Q84: 65 | R84: =ROUND((AS84*(1/(BI84*(1-BY84))-1/(BE84*(1-CG84))))/1000*O84,4) -> 0.125 | S84: Calculated Value | U84: 738 | V84: EFLHcool, from 2017 MO TRM | W84: 85 | X84: 10 | Y84: IL TRM v7 vol3 | Z84: 64 | AA84: SEERee | AB84: 16.08 | AC84: per PY2018 Metadata WHE | AE84: SEERbase | AF84: 14 | AG84: IL TRM v7 vol3 | AH84: 67 | AI84: =ROUND(((U84*AS84*(1/(AF84*(1-BY84))-1/(AB84*CC84*(1-CG84))))/1000)+((BQ84*AS84*(1/(BA84*(1-CK84))-1/(AW84*CO84*(1-CS84))))/1000),4) | AJ84: =ROUND((AS84*(1/(BI84*(1-BY84))-1/(BE84*(1-CG84))))/1000*O84,4) | AK84: IL TRM v7 vol3 | AL84: 65, 69 | AM84: 2020-01-01 | AS84: 12000 | AT84: Allows for Capacity input in Tons; converts tons to BTUs | AW84: 8.978571429 | AX84: HSPFee | AY84: per PY2018 Metadata WHE | BA84: 8.2 | BB84: HSPFbase | BC84: IL TRM v7 vol3 | BD84: 68 | BE84: =(-0.02*AB84^2)+(1.12*AB84) -> 12.838272 | BF84: EERee | BG84: Calculated per PY2018 Metadata WHE | BI84: 11 | BJ84: EERbase | BK84: IL TRM v7 vol3 | BL84: 70 | BM84: 738 | BN84: EFLHcool | BO84: EFLHcool, from 2017 MO TRM | BP84: 85 | BQ84: 1376 | BR84: EFLHheat | BS84: The EFLH Cooling and Heating hours are based on a EnergyStar study that was normalized (based on HDD and CDD) to Kansas City. This was for both AC and HP units. | BU84: 8.2 | BV84: HSPFbase | BW84: IL TRM v7 vol3 | BX84: 68 | BY84: 0.1 | BZ84: Derating_Cool_Base | CA84: IL TRM v7 vol3 | CB84: 67 | CC84: 1.011 | CD84: SEERadj | CE84: IL TRM v7 vol3 | CF84: 69 (example) | CG84: 0.1 | CH84: Derating_Cool_Eff | CI84: IL TRM v7 vol3 | CJ84: 67 | CK84: 0.1 | CL84: Derating_Heat_Base | CM84: IL TRM v7 vol3 | CN84: 68 | CO84: 1.001 | CP84: HSPFadj | CQ84: IL TRM v7 vol3 | CR84: 69 (example) | CS84: 0.1 | CT84: Derating_Heat_Eff | CU84: IL TRM v7 vol3 | CV84: 68 | CW84: 0.03 | CX84: Societal Discount Rate | CY84: Evergy Standard | DA84: 1381 | DB84: First Cost $/ton | DC84: IL TRM v7 vol3 | DD84: 64 | DE84: 438 | DF84: One-time per-system labor cost | DG84: IL TRM v7 vol3 | DH84: 64 | DI84: 1518 | DJ84: Deferred cost savings | DK84: IL TRM v7 vol3 | DL84: 65 | DM84: 3.5 | DN84: Assumed average system tons | DO84: Tracking Data
A85: Heating, Cooling & Home Comfort | B85: ASHP SEER 17 | C85: 38.3 | D85: Single Family | E85: HVAC | G85: per ton | H85: 411 | I85: IL TRM v5 | J85: 59 | K85: =ROUND((BM85*AS85*(1/AF85-1/AB85))/1000+(BQ85*AS85*(1/BA85-1/AW85)/1000),4) -> 318.3332 | L85: Calculated Value | N85: =K85/U85 -> 0.4313457995 | O85: 0.72 | P85: Calculated Value | R85: =ROUND((AS85*(1/BI85-1/BE85)/1000)*O85,4) -> 0.041 | S85: Calculated Value | U85: 738 | V85: EFLHcool, from 2017 MO TRM | W85: 85 | X85: 18 | Y85: IL TRM v5 vol3 | Z85: 59 | AA85: SEER | AB85: 17.25 | AC85: per PY2018 Metadata | AE85: SEER | AF85: 14 | AG85: IL TRM v5 vol3 | AH85: 62 | AI85: =ROUND((BM85*AS85*(1/AF85-1/AB85))/1000+(BQ85*AS85*(1/BA85-1/AW85)/1000),4) | AJ85: =ROUND((AS85*(1/BI85-1/BE85)/1000)*O85,4) | AK85: IL TRM v5 vol3 | AL85: 60, 63 | AM85: 2020-01-01 | AN85: 2020-03-31 | AS85: 12000 | AT85: Allows for Capacity input in Tons; converts tons to BTUs | AW85: 9.1 | AX85: HSPFee | AY85: Calculated per PY2016 Metadata | BA85: 8.2 | BB85: HSPFbase | BC85: IL TRM v5 vol3 | BD85: 63 | BE85: 12.5 | BF85: EERee | BG85: Calculated per PY2016 Metadata | BI85: 11.8 | BJ85: EERbase | BK85: IL TRM v5 vol3 | BL85: 64 | BM85: 738 | BN85: EFLHcool | BO85: EFLHcool, from 2017 MO TRM | BP85: 85 | BQ85: 1376 | BR85: EFLHheat | BS85: The EFLH Cooling and Heating hours are based on a EnergyStar study that was normalized (based on HDD and CDD) to Kansas City. This was for both AC and HP units.
A86: Heating, Cooling & Home Comfort | B86: ASHP SEER 17 | C86: 38.4 | D86: Single Family | E86: HVAC | G86: per ton | H86: =724/3.5 -> 206.8571429 | I86: IL TRM v7 vol3 | J86: 64 | K86: =ROUND((BM86*AS86*(1/((1-BU86)*AF86)-1/((1-CC86)*(BY86)*AB86)))/1000+(BQ86*AS86*(1/((1-CG86)*BA86)-1/((1-CO86)*(CK86)*AW86))/1000),4) -> 350.4645 | L86: Calculated Value | N86: 0.4748841463 | O86: 0.72 | P86: IL TRM v7 vol3 | Q86: 65 | R86: =ROUND((AS86*(1/((1-BU86)*BI86)-1/((1-CC86)*BE86))/1000)*O86,4) -> 0.1546 | S86: Calculated Value | U86: 738 | V86: EFLHcool, from 2017 MO TRM Vol. 3 | W86: 85 | X86: 16 | Y86: IL TRM v7 vol3 | Z86: 64 | AA86: SEERee | AB86: 17.25 | AC86: per PY2018 Metadata WHE | AE86: SEERbase | AF86: 14 | AG86: IL TRM v7 vol3 | AH86: 67 | AI86: =ROUND((BM86*AS86*(1/((1-BU86)*AF86)-1/((1-CC86)*(BY86)*AB86)))/1000+(BQ86*AS86*(1/((1-CG86)*BA86)-1/((1-CO86)*(CK86)*AW86))/1000),4) | AJ86: =ROUND((AS86*(1/((1-BU86)*BI86)-1/((1-CC86)*BE86))/1000)*O86,4) | AK86: IL TRM v7 vol3 | AL86: 65, 66, 69 | AM86: 2020-04-01 | AS86: 12000 | AT86: Allows for Capacity input in Tons; converts tons to BTUs | AU86: IL TRM v7 vol3 | AV86: 66 | AW86: 9.1 | AX86: HSPFee | AY86: per PY2018 Metadata WHE | BA86: 8.2 | BB86: HSPFbase | BC86: IL TRM v7 vol3 | BD86: 68 | BE86: =1.12*AB86-0.02*AB86^2 -> 13.36875 | BF86: EERee | BG86: Calculated value | BI86: 11 | BJ86: EERbase | BK86: IL TRM v7 vol3 | BL86: 70 | BM86: 738 | BN86: EFLHcool | BO86: EFLHcool, from 2017 MO TRM Vol. 3 | BP86: 85 | BQ86: 1376 | BR86: EFLHheat | BS86: The EFLH Cooling and Heating hours are based on a EnergyStar study that was normalized (based on HDD and CDD) to Kansas City. This was for both AC and HP units. | BU86: 0.1 | BV86: Derating_Cool_Base | BW86: IL TRM v7 vol3 | BX86: 67 | BY86: =0.805*(BE86/AB86)+0.367 -> 0.990875 | BZ86: SEERadj | CA86: IL TRM v7 vol3 | CB86: 69 (example) | CC86: 0.1 | CD86: Derating_Cool_Eff | CE86: IL TRM v7 vol3 | CF86: 67 | CG86: 0.1 | CH86: Derating_Heat_Base | CI86: IL TRM v7 vol3 | CJ86: 68 | CK86: 1.001 | CL86: HSPFadj | CM86: IL TRM v7 vol3 | CN86: 69 (example) | CO86: 0.1 | CP86: Derating_Heat_Eff | CQ86: IL TRM v7 vol3 | CR86: 68
A87: Heating, Cooling & Home Comfort | B87: ASHP SEER 17 - Early Replacement | C87: 39.3 | D87: Single Family | E87: HVAC | G87: per ton | H87: =DA87+DE87/DM87-DI87*(1+CW87)^(-X87) -> 196.2703269 | I87: IL TRM v7 vol3 | J87: 64 | K87: =ROUND(((U87*AS87*(1/(AF87*(1-BY87))-1/(AB87*CC87*(1-CG87))))/1000)+((BQ87*AS87*(1/(BA87*(1-CK87))-1/(AW87*CO87*(1-CS87))))/1000),4) -> 2003.7332 | L87: Calculated Value | N87: 2.715085637 | O87: 0.72 | P87: IL TRM v7 vol3 | Q87: 70 | R87: =ROUND((AS87*(1/(BI87*(1-BY87))-1/(BE87*(1-CG87))))/1000*O87,4) -> 0.585 | S87: Calculated Value | U87: 738 | V87: EFLHcool, from 2017 MO TRM | W87: 85 | X87: 6 | Y87: IL TRM v7 vol3 | Z87: 64 | AA87: SEER | AB87: 18.34 | AC87: per PY2018 Metadata WHE | AE87: SEER | AF87: 9.12 | AG87: IL TRM v7 vol3 | AH87: 66 | AI87: =ROUND(((U87*AS87*(1/(AF87*(1-BY87))-1/(AB87*CC87*(1-CG87))))/1000)+((BQ87*AS87*(1/(BA87*(1-CK87))-1/(AW87*CO87*(1-CS87))))/1000),4) | AJ87: =ROUND((AS87*(1/(BI87*(1-BY87))-1/(BE87*(1-CG87))))/1000*O87,4) | AK87: IL TRM v7 vol3 | AL87: 65, 69 | AM87: 2020-01-01 | AN87: 2020-03-31 | AS87: 12000 | AT87: Allows for Capacity input in Tons; converts tons to BTUs | AW87: 9.560606061 | AX87: HSPFee | AY87: per PY2018 Metadata WHE | BA87: 5.44 | BB87: HSPFbase | BC87: IL TRM v7 vol3 | BD87: 68 | BE87: =(-0.02*AB87^2)+(1.12*AB87) -> 13.813688 | BF87: EERee | BG87: Calculated per PY2018 Metadata WHE | BI87: 7.5 | BJ87: EERexist | BK87: IL TRM v7 vol3 | BL87: 70 | BM87: 738 | BN87: EFLHcool | BO87: EFLHcool, from 2017 MO TRM | BP87: 85 | BQ87: 1376 | BR87: EFLHheat | BS87: The EFLH Cooling and Heating hours are based on a EnergyStar study that was normalized (based on HDD and CDD) to Kansas City. This was for both AC and HP units. | BU87: 5.54 | BV87: HSPFexist | BW87: IL TRM v7 vol3 | BX87: 68 | BY87: 0.1 | BZ87: Derating_Cool_Base | CA87: IL TRM v7 vol3 | CB87: 67 | CC87: 1.011 | CD87: SEERadj | CE87: IL TRM v7 vol3 | CF87: 69 (example) | CG87: 0.1 | CH87: Derating_Cool_Eff | CI87: IL TRM v7 vol3 | CJ87: 67 | CK87: 0.1 | CL87: Derating_Heat_Base | CM87: IL TRM v7 vol3 | CN87: 68 | CO87: 1.001 | CP87: HSPFadj | CQ87: IL TRM v7 vol3 | CR87: 69 (example) | CS87: 0.1 | CT87: Derating_Heat_Eff | CU87: IL TRM v7 vol3 | CV87: 68 | CW87: 0.03 | CX87: Societal Discount Rate | CY87: Evergy Standard | DA87: 1381 | DB87: First Cost $/ton | DC87: IL TRM v7 vol3 | DD87: 64 | DE87: 303 | DF87: One-time per-system labor cost | DG87: IL TRM v7 vol3 | DH87: 64 | DI87: 1518 | DJ87: Deferred cost savings | DK87: IL TRM v7 vol3 | DL87: 65 | DM87: 3.5 | DN87: Assumed average system tons | DO87: Tracking Data
A88: Heating, Cooling & Home Comfort | B88: ASHP SEER 17 - Early Replacement | C88: 39.4 | D88: Single Family | E88: HVAC | G88: per ton | H88: =DA88+DE88/DM88-DI88*(1+CW88)^(-X88) -> 196.2703269 | I88: IL TRM v7 vol3 | J88: 64 | K88: 1962.309 | L88: Calculated Value | N88: 2.658955285 | O88: 0.72 | P88: IL TRM v7 vol3 | Q88: 65 | R88: 0.585 | S88: Calculated Value | U88: 738 | V88: EFLHcool, from 2017 MO TRM Vol. 3 | W88: 85 | X88: 6 | Y88: IL TRM v7 vol3 | Z88: 64 | AA88: SEERee | AB88: 18.34 | AC88: per PY2018 Metadata WHE | AE88: SEERexist | AF88: 9.3 | AG88: IL TRM v7 vol3 | AH88: 66 | AI88: =ROUND(((U88*AS88*(1/(AF88*(1-BY88))-1/(AB88*CC88*(1-CG88))))/1000)+((BQ88*AS88*(1/(BA88*(1-CK88))-1/(AW88*CO88*(1-CS88))))/1000),4) | AJ88: =ROUND((AS88*(1/(BI88*(1-BY88))-1/(BE88*(1-CG88))))/1000*O88,4) | AK88: IL TRM v7 vol3 | AL88: 65, 66, 69 | AM88: 2020-04-01 | AS88: 12000 | AT88: Allows for Capacity input in Tons; converts tons to BTUs | AU88: IL TRM v7 vol3 | AV88: 66 | AW88: 9.560606061 | AX88: HSPFee | AY88: per PY2018 Metadata WHE | BA88: 5.44 | BB88: HSPFbase | BC88: IL TRM v7 vol3 | BD88: 68 | BE88: =1.12*AB88-0.02*AB88^2 -> 13.813688 | BF88: EERee | BG88: Calculated value | BI88: 7.5 | BJ88: EERexist | BK88: IL TRM v7 vol3 | BL88: 69,70 | BM88: 738 | BN88: EFLHcool | BO88: EFLHcool, from 2017 MO TRM Vol. 3 | BP88: 85 | BQ88: 1376 | BR88: EFLHheat | BS88: The EFLH Cooling and Heating hours are based on a EnergyStar study that was normalized (based on HDD and CDD) to Kansas City. This was for both AC and HP units. | BU88: 5.54 | BV88: HSPFexist | BW88: IL TRM v7 vol3 | BX88: 68 | BY88: 0.1 | BZ88: Derating_Cool_Base | CA88: IL TRM v7 vol3 | CB88: 67 | CC88: =0.805*(BE88/AB88)+0.367 -> 0.973326 | CD88: SEERadj | CE88: IL TRM v7 vol3 | CF88: 69 (example) | CG88: 0.1 | CH88: Derating_Cool_Eff | CI88: IL TRM v7 vol3 | CJ88: 67 | CK88: 0.1 | CL88: Derating_Heat_Base | CM88: IL TRM v7 vol3 | CN88: 68 | CO88: 1.001 | CP88: HSPFadj | CQ88: IL TRM v7 vol3 | CR88: 69 (example) | CS88: 0.1 | CT88: Derating_Heat_Eff | CU88: IL TRM v7 vol3 | CV88: 68 | CW88: 0.03 | CX88: Societal Discount Rate | CY88: Evergy Standard | DA88: 1381 | DB88: First Cost $/ton | DC88: IL TRM v7 vol3 | DD88: 64 | DE88: 303 | DF88: One-time per-system labor cost | DG88: IL TRM v7 vol3 | DH88: 64 | DI88: 1518 | DJ88: Deferred cost savings | DK88: IL TRM v7 vol3 | DL88: 65 | DM88: 3.5 | DN88: Assumed average system tons | DO88: Tracking Data
A89: Heating, Cooling & Home Comfort | B89: ASHP SEER 17 - Early Replacement (future) | C89: 40.3 | D89: Single Family | E89: HVAC | G89: per ton | H89: 0 | I89: IL TRM v7 vol3 | J89: 64 | K89: 184.6019 | L89: Calculated Value | N89: 0.2501380759 | O89: 0.72 | P89: IL TRM v7 vol3 | Q89: 70 | R89: 0.1778 | S89: Calculated Value | U89: 738 | V89: EFLHcool, from 2017 MO TRM | W89: 85 | X89: 10 | Y89: IL TRM v7 vol3 | Z89: 64 | AA89: SEER | AB89: 18.34 | AC89: per PY2018 Metadata WHE | AE89: =BN89 -> SEERbase | AF89: =BM89 -> 14 | AG89: IL TRM v7 vol3 | AH89: 66 | AI89: =ROUND(((U89*AS89*(1/(AF89*(1-BY89))-1/(AB89*CC89*(1-CG89))))/1000)+((BQ89*AS89*(1/(BA89*(1-CK89))-1/(AW89*CO89*(1-CS89))))/1000),4) | AJ89: =ROUND((AS89*(1/(BI89*(1-BY89))-1/(BE89*(1-CG89))))/1000*O89,4) | AK89: IL TRM v7 vol3 | AL89: 65, 69 | AM89: 2020-01-01 | AN89: 2020-03-31 | AS89: 12000 | AT89: Allows for Capacity input in Tons; converts tons to BTUs | AW89: 9.560606061 | AX89: HSPFee | AY89: per PY2018 Metadata WHE | BA89: 5.44 | BB89: HSPFexist | BC89: IL TRM v7 vol3 | BD89: 68 | BE89: =(-0.02*AB89^2)+(1.12*AB89) -> 13.813688 | BF89: EERee | BG89: Calculated per PY2018 Metadata WHE | BI89: 11 | BJ89: EERbase | BK89: IL TRM v7 vol3 | BL89: 70 | BM89: 14 | BN89: SEERbase | BO89: EFLHcool, from 2017 MO TRM | BP89: 85 | BQ89: =(-0.02*BM89^2)+(1.12*BM89) -> 11.76 | BR89: EERbase | BS89: Based on SEER base | BU89: 8.2 | BV89: HSPFbase | BW89: IL TRM v7 vol3 | BX89: 68 | BY89: 0.1 | BZ89: Derating_Cool_Base | CA89: IL TRM v7 vol3 | CB89: 67 | CC89: 1.011 | CD89: SEERadj | CE89: IL TRM v7 vol3 | CF89: 69 (example) | CG89: 0.1 | CH89: Derating_Cool_Eff | CI89: IL TRM v7 vol3 | CJ89: 67 | CK89: 0.1 | CL89: Derating_Heat_Base | CM89: IL TRM v7 vol3 | CN89: 68 | CO89: 1.001 | CP89: HSPFadj | CQ89: IL TRM v7 vol3 | CR89: 69 (example) | CS89: 0.1 | CT89: Derating_Heat_Eff | CU89: IL TRM v7 vol3 | CV89: 68 | CW89: 0.03 | CX89: Societal Discount Rate | CY89: Evergy Standard | DA89: 1381 | DB89: First Cost $/ton | DC89: IL TRM v7 vol3 | DD89: 64 | DE89: 303 | DF89: One-time per-system labor cost | DG89: IL TRM v7 vol3 | DH89: 64 | DI89: 1518 | DJ89: Deferred cost savings | DK89: IL TRM v7 vol3 | DL89: 65 | DM89: 3.5 | DN89: Assumed average system tons | DO89: Tracking Data
A90: Heating, Cooling & Home Comfort | B90: ASHP SEER 17 - Early Replacement (future) | C90: 40.4 | D90: Single Family | E90: HVAC | G90: per ton | H90: 0 | I90: IL TRM v7 vol3 | J90: 64 | K90: 163.2567 | L90: Calculated Value | N90: 0.2212150407 | O90: 0.72 | P90: IL TRM v7 vol3 | Q90: 65 | R90: 0.1778 | S90: Calculated Value | U90: 738 | V90: EFLHcool, from 2017 MO TRM Vol. 3 | W90: 85 | X90: 10 | Y90: IL TRM v7 vol3 | Z90: 64 | AA90: SEERee | AB90: 18.34 | AC90: per PY2018 Metadata WHE | AE90: =BN90 -> SEERbase | AF90: =BM90 -> 14 | AG90: IL TRM v7 vol3 | AH90: 67 | AI90: =ROUND(((U90*AS90*(1/(AF90*(1-BY90))-1/(AB90*CC90*(1-CG90))))/1000)+((BQ90*AS90*(1/(BA90*(1-CK90))-1/(AW90*CO90*(1-CS90))))/1000),4) | AJ90: =ROUND((AS90*(1/(BI90*(1-BY90))-1/(BE90*(1-CG90))))/1000*O90,4) | AK90: IL TRM v7 vol3 | AL90: 65, 66, 69 | AM90: 2020-04-01 | AS90: 12000 | AT90: Allows for Capacity input in Tons; converts tons to BTUs | AU90: IL TRM v7 vol3 | AV90: 66 | AW90: 9.560606061 | AX90: HSPFee | AY90: per PY2018 Metadata WHE | BA90: 5.44 | BB90: HSPFexist | BC90: IL TRM v7 vol3 | BD90: 68 | BE90: =1.12*AB90-0.02*AB90^2 -> 13.813688 | BF90: EERee | BG90: Calculated value | BI90: 11 | BJ90: EERbase | BK90: IL TRM v7 vol3 | BL90: 70 | BM90: 14 | BN90: SEERbase | BO90: IL TRM v7 vol3 | BP90: 67 | BQ90: 11 | BR90: EERbase | BS90: IL TRM v7 vol3 | BT90: 70 | BU90: 8.2 | BV90: HSPFbase | BW90: IL TRM v7 vol3 | BX90: 68 | BY90: 0.1 | BZ90: Derating_Cool_Base | CA90: IL TRM v7 vol3 | CB90: 67 | CC90: =0.805*(BE90/AB90)+0.367 -> 0.973326 | CD90: SEERadj | CE90: IL TRM v7 vol3 | CF90: 69 (example) | CG90: 0.1 | CH90: Derating_Cool_Eff | CI90: IL TRM v7 vol3 | CJ90: 67 | CK90: 0.1 | CL90: Derating_Heat_Base | CM90: IL TRM v7 vol3 | CN90: 68 | CO90: 1.001 | CP90: HSPFadj | CQ90: IL TRM v7 vol3 | CR90: 69 (example) | CS90: 0.1 | CT90: Derating_Heat_Eff | CU90: IL TRM v7 vol3 | CV90: 68 | CW90: 0.03 | CX90: Societal Discount Rate | CY90: Evergy Standard | DA90: 1381 | DB90: First Cost $/ton | DC90: IL TRM v7 vol3 | DD90: 64 | DE90: 303 | DF90: One-time per-system labor cost | DG90: IL TRM v7 vol3 | DH90: 64 | DI90: 1518 | DJ90: Deferred cost savings | DK90: IL TRM v7 vol3 | DL90: 65 | DM90: 3.5 | DN90: Assumed average system tons | DO90: Tracking Data
A91: Heating, Cooling & Home Comfort | B91: ASHP SEER 17 - Replace Electric Resistance Heat | C91: 41.3 | D91: Single Family | E91: HVAC | G91: per ton | H91: =724/3.5 -> 206.8571429 | I91: IL TRM v7 vol3 | J91: 64 | K91: 503.9911 | L91: Calculated Value | N91: =R91 -> 0.2613 | O91: 0.72 | P91: IL TRM v7 vol3 | Q91: 65 | R91: 0.2613 | S91: Calculated Value | U91: 738 | V91: EFLHcool, from 2017 MO TRM | W91: 85 | X91: 16 | Y91: IL TRM v7 vol3 | Z91: 64 | AA91: SEERee | AB91: 18.27 | AC91: per PY2018 Metadata WHE | AE91: SEERbase | AF91: 14 | AG91: IL TRM v7 vol3 | AH91: 66 | AI91: =ROUND(((U91*AS91*(1/(AF91*(1-BY91))-1/(AB91*CC91*(1-CG91))))/1000)+((BQ91*AS91*(1/(BA91*(1-CK91))-1/(AW91*CO91*(1-CS91))))/1000),4) | AJ91: =ROUND((AS91*(1/(BI91*(1-BY91))-1/(BE91*(1-CG91))))/1000*O91,4) | AK91: IL TRM v7 vol3 | AL91: 65, 69 | AM91: 2020-01-01 | AN91: 2020-03-31 | AS91: 12000 | AT91: Allows for Capacity input in Tons; converts tons to BTUs | AW91: 9.628571429 | AX91: HSPFee | AY91: per PY2018 Metadata WHE | BA91: 8.2 | BB91: HSPFbase | BC91: IL TRM v7 vol3 | BD91: 68 | BE91: 15.7 | BF91: EERee | BG91: Calculated per PY2018 Metadata WHE | BI91: 11 | BJ91: EERbase | BK91: IL TRM v7 vol3 | BL91: 70 | BM91: 738 | BN91: EFLHcool | BO91: EFLHcool, from 2017 MO TRM | BP91: 85 | BQ91: 1376 | BR91: EFLHheat | BS91: The EFLH Cooling and Heating hours are based on a EnergyStar study that was normalized (based on HDD and CDD) to Kansas City. This was for both AC and HP units. | BU91: 8.2 | BV91: HSPFbase | BW91: IL TRM v7 vol3 | BX91: 68 | BY91: 0.1 | BZ91: Derating_Cool_Base | CA91: IL TRM v7 vol3 | CB91: 67 | CC91: 1.011 | CD91: SEERadj | CE91: IL TRM v7 vol3 | CF91: 69 (example) | CG91: 0.1 | CH91: Derating_Cool_Eff | CI91: IL TRM v7 vol3 | CJ91: 67 | CK91: 0.1 | CL91: Derating_Heat_Base | CM91: IL TRM v7 vol3 | CN91: 68 | CO91: 1.001 | CP91: HSPFadj | CQ91: IL TRM v7 vol3 | CR91: 69 (example) | CS91: 0.1 | CT91: Derating_Heat_Eff | CU91: IL TRM v7 vol3 | CV91: 68
A92: Heating, Cooling & Home Comfort | B92: ASHP SEER 17 - Replace Electric Resistance Heat | C92: 41.4 | D92: Single Family | E92: HVAC | G92: per ton | H92: =724/3.5 -> 206.8571429 | I92: IL TRM v7 vol3 | J92: 64 | K92: 839.2184 | L92: Calculated Value | N92: =R92 -> 0.1764 | O92: 0.72 | P92: IL TRM v7 vol3 | Q92: 65 | R92: 0.1764 | S92: Calculated Value | U92: 738 | V92: EFLHcool, from 2017 MO TRM Vol. 3 | W92: 85 | X92: 16 | Y92: IL TRM v7 vol3 | Z92: 64 | AA92: SEERee | AB92: 18.27 | AC92: per PY2018 Metadata WHE | AE92: SEERbase | AF92: 9.3 | AG92: IL TRM v7 vol3 | AH92: 66 | AI92: =ROUND(((U92*AS92*(1/(AF92*(1-BY92))-1/(AB92*CC92*(1-CG92))))/1000)+((BQ92*AS92*(1/(BA92*(1-CK92))-1/(AW92*CO92*(1-CS92))))/1000),4) | AJ92: =ROUND((AS92*(1/(BI92*(1-BY92))-1/(BE92*(1-CG92))))/1000*O92,4) | AK92: IL TRM v7 vol3 | AL92: 65, 66, 69 | AM92: 2020-04-01 | AS92: 12000 | AT92: Allows for Capacity input in Tons; converts tons to BTUs | AU92: IL TRM v7 vol3 | AV92: 66 | AW92: 9.628571429 | AX92: HSPFee | AY92: per PY2018 Metadata WHE | BA92: 8.2 | BB92: HSPFbase | BC92: IL TRM v7 vol3 | BD92: 68 | BE92: =1.12*AB92-0.02*AB92^2 -> 13.786542 | BF92: EERee | BG92: Calculated value | BI92: 11 | BJ92: EERbase | BK92: IL TRM v7 vol3 | BL92: 70 | BM92: 738 | BN92: EFLHcool | BO92: EFLHcool, from 2017 MO TRM Vol. 3 | BP92: 85 | BQ92: 1376 | BR92: EFLHheat | BS92: The EFLH Cooling and Heating hours are based on a EnergyStar study that was normalized (based on HDD and CDD) to Kansas City. This was for both AC and HP units. | BU92: 8.2 | BV92: HSPFbase | BW92: IL TRM v7 vol3 | BX92: 68 | BY92: 0.1 | BZ92: Derating_Cool_Base | CA92: IL TRM v7 vol3 | CB92: 67 | CC92: =0.805*(BE92/AB92)+0.367 -> 0.974453 | CD92: SEERadj | CE92: IL TRM v7 vol3 | CF92: 69 (example) | CG92: 0.1 | CH92: Derating_Cool_Eff | CI92: IL TRM v7 vol3 | CJ92: 67 | CK92: 0.1 | CL92: Derating_Heat_Base | CM92: IL TRM v7 vol3 | CN92: 68 | CO92: 1.001 | CP92: HSPFadj | CQ92: IL TRM v7 vol3 | CR92: 69 (example) | CS92: 0.1 | CT92: Derating_Heat_Eff | CU92: IL TRM v7 vol3 | CV92: 68
A93: Heating, Cooling & Home Comfort | B93: ASHP SEER 17 - Replace Electric Resistance Heat - Early Replacement | C93: 318.2 | D93: Single Family | E93: HVAC | G93: per ton | H93: =DA93+DE93/DM93-DI93*(1+CW93)^(-X93) -> 316.5560412 | I93: IL TRM v7 vol3 | J93: 64 | K93: 3990.5555 | L93: Calculated Value | N93: =R93 -> 0.585 | O93: 0.72 | P93: IL TRM v7 vol3 | Q93: 65 | R93: 0.585 | S93: Calculated Value | U93: 738 | V93: EFLHcool, from 2017 MO TRM | W93: 85 | X93: 6 | Y93: IL TRM v7 vol3 | Z93: 64 | AA93: SEERee | AB93: 18.34 | AC93: per PY2018 Metadata WHE | AE93: SEERexist | AF93: 9.3 | AG93: IL TRM v7 vol3 | AH93: 66 | AI93: =ROUND(((U93*AS93*(1/(AF93*(1-BY93))-1/(AB93*CC93*(1-CG93))))/1000)+((BQ93*AS93*(1/(BA93*(1-CK93))-1/(AW93*CO93*(1-CS93))))/1000),4) | AJ93: =ROUND((AS93*(1/(BI93*(1-BY93))-1/(BE93*(1-CG93))))/1000*O93,4) | AK93: IL TRM v7 vol3 | AL93: 65, 69 | AM93: 2020-01-01 | AS93: 12000 | AT93: Allows for Capacity input in Tons; converts tons to BTUs | AW93: 9.560606061 | AX93: HSPFee | AY93: per PY2018 Metadata WHE | BA93: 3.41 | BB93: HSPFexist | BC93: IL TRM v7 vol3 | BD93: 68 | BE93: =(-0.02*AB93^2)+(1.12*AB93) -> 13.813688 | BF93: EERee | BG93: Calculated per PY2018 Metadata WHE | BI93: 7.5 | BJ93: EERexist | BK93: IL TRM v7 vol3 | BL93: 70 | BM93: 738 | BN93: EFLHcool | BO93: EFLHcool, from 2017 MO TRM | BP93: 85 | BQ93: 1376 | BR93: EFLHheat | BS93: The EFLH Cooling and Heating hours are based on a EnergyStar study that was normalized (based on HDD and CDD) to Kansas City. This was for both AC and HP units. | BU93: 3.41 | BV93: HSPFexist | BW93: IL TRM v7 vol3 | BX93: 68 | BY93: 0.1 | BZ93: Derating_Cool_Base | CA93: IL TRM v7 vol3 | CB93: 67 | CC93: 1.011 | CD93: SEERadj | CE93: IL TRM v7 vol3 | CF93: 69 (example) | CG93: 0.1 | CH93: Derating_Cool_Eff | CI93: IL TRM v7 vol3 | CJ93: 67 | CK93: 0.1 | CL93: Derating_Heat_Base | CM93: IL TRM v7 vol3 | CN93: 68 | CO93: 1.001 | CP93: HSPFadj | CQ93: IL TRM v7 vol3 | CR93: 69 (example) | CS93: 0.1 | CT93: Derating_Heat_Eff | CU93: IL TRM v7 vol3 | CV93: 68 | CW93: 0.03 | CX93: Societal Discount Rate | CY93: Evergy Standard | DA93: 1381 | DB93: First Cost $/ton | DC93: IL TRM v7 vol3 | DD93: 64 | DE93: 724 | DF93: One-time per-system labor cost | DG93: IL TRM v7 vol3 | DH93: 64 | DI93: 1518 | DJ93: Deferred cost savings | DK93: IL TRM v7 vol3 | DL93: 65 | DM93: 3.5 | DN93: Assumed average system tons | DO93: Tracking Data
A94: Heating, Cooling & Home Comfort | B94: ASHP SEER 17 - Replace Electric Resistance Heat - Early Replacement (future) | C94: 319.2 | D94: Single Family | E94: HVAC | G94: per ton | H94: 0 | I94: IL TRM v7 vol3 | J94: 65 | K94: 492.4923 | L94: Calculated Value | N94: =R94 -> 0.1778 | O94: 0.72 | P94: IL TRM v7 vol3 | Q94: 65 | R94: 0.1778 | S94: Calculated Value | U94: 738 | V94: EFLHcool, from 2017 MO TRM | W94: 85 | X94: 10 | Y94: IL TRM v7 vol3 | Z94: 64 | AA94: SEERee | AB94: 18.34 | AC94: per PY2018 Metadata WHE | AE94: SEERbase | AF94: 14 | AG94: IL TRM v7 vol3 | AH94: 67 | AI94: =ROUND(((U94*AS94*(1/(AF94*(1-BY94))-1/(AB94*CC94*(1-CG94))))/1000)+((BQ94*AS94*(1/(BA94*(1-CK94))-1/(AW94*CO94*(1-CS94))))/1000),4) | AJ94: =ROUND((AS94*(1/(BI94*(1-BY94))-1/(BE94*(1-CG94))))/1000*O94,4) | AK94: IL TRM v7 vol3 | AL94: 65, 69 | AM94: 2020-01-01 | AS94: 12000 | AT94: Allows for Capacity input in Tons; converts tons to BTUs | AW94: 9.560606061 | AX94: HSPFee | AY94: per PY2018 Metadata WHE | BA94: 8.2 | BB94: HSPFbase | BC94: IL TRM v7 vol3 | BD94: 68 | BE94: =(-0.02*AB94^2)+(1.12*AB94) -> 13.813688 | BF94: EERee | BG94: Calculated per PY2018 Metadata WHE | BI94: 11 | BJ94: EERbase | BK94: IL TRM v7 vol3 | BL94: 70 | BM94: 738 | BN94: EFLHcool | BO94: EFLHcool, from 2017 MO TRM | BP94: 85 | BQ94: 1376 | BR94: EFLHheat | BS94: The EFLH Cooling and Heating hours are based on a EnergyStar study that was normalized (based on HDD and CDD) to Kansas City. This was for both AC and HP units. | BU94: 8.2 | BV94: HSPFbase | BW94: IL TRM v7 vol3 | BX94: 68 | BY94: 0.1 | BZ94: Derating_Cool_Base | CA94: IL TRM v7 vol3 | CB94: 67 | CC94: 1.011 | CD94: SEERadj | CE94: IL TRM v7 vol3 | CF94: 69 (example) | CG94: 0.1 | CH94: Derating_Cool_Eff | CI94: IL TRM v7 vol3 | CJ94: 67 | CK94: 0.1 | CL94: Derating_Heat_Base | CM94: IL TRM v7 vol3 | CN94: 68 | CO94: 1.001 | CP94: HSPFadj | CQ94: IL TRM v7 vol3 | CR94: 69 (example) | CS94: 0.1 | CT94: Derating_Heat_Eff | CU94: IL TRM v7 vol3 | CV94: 68 | CW94: 0.03 | CX94: Societal Discount Rate | CY94: Evergy Standard | DA94: 1381 | DB94: First Cost $/ton | DC94: IL TRM v7 vol3 | DD94: 64 | DE94: 724 | DF94: One-time per-system labor cost | DG94: IL TRM v7 vol3 | DH94: 64 | DI94: 1518 | DJ94: Deferred cost savings | DK94: IL TRM v7 vol3 | DL94: 65 | DM94: 3.5 | DN94: Assumed average system tons | DO94: Tracking Data
A95: Heating, Cooling & Home Comfort | B95: ASHP Dual-Speed Compressor | C95: 397 | D95: Single Family | E95: HVAC | G95: per ton | H95: =(1381*(AW95/12000)+438)/CK95 -> 1603.711864 | I95: IL TRM v6 vol3 | J95: 61 | K95: =ROUND(((AS95*AW95*(1/BA95-1/BE95))/1000/CK95)+((BI95*BM95*(1/BQ95-1/BU95))/1000/CO95),4) -> 275.5758 | L95: Calculated Value | N95: =R95/O95 -> 0.09388888889 | O95: 0.72 | P95: Calculated Value | R95: =ROUND((AW95*(1/BY95-1/CC95))/1000*CG95/CK95,4) -> 0.0676 | S95: Calculated Value | X95: 18 | Y95: IL TRM v6 vol3 | Z95: 61 | AA95: SEER | AB95: 16 | AC95: Goodman GSZC16 Indoor Units: CA*F3137*6A*+MBVC1200**-1A*+TX, G*VC80603B*C* | AE95: SEER | AF95: 14 | AG95: IL TRM v6 vol3 | AH95: 63 | AI95: =ROUND(((AS95*AW95*(1/BA95-1/BE95))/1000/CK95)+((BI95*BM95*(1/BQ95-1/BU95))/1000/CO95),4) | AJ95: =ROUND((AW95*(1/BY95-1/CC95))/1000*CG95/CK95,4) | AK95: IL TRM v6 vol3 | AL95: 62, 65 | AM95: 2020-01-01 | AS95: 1035 | AT95: FLH_cooling | AU95: IL TRM v6 vol3 | AV95: 63 | AW95: 23600 | AX95: Capacity_cooling | AY95: Goodman GSZC16 Indoor Units: CA*F3137*6A*+MBVC1200**-1A*+TX, G*VC80603B*C* | BA95: 14 | BB95: SEER_base | BC95: IL TRM v6 vol3 | BD95: 63 | BE95: 16 | BF95: SEER_ee | BG95: Goodman GSZC16 Indoor Units: CA*F3137*6A*+MBVC1200**-1A*+TX, G*VC80603B*C* | BI95: 1266 | BJ95: FLH_heat | BK95: IL TRM v6 vol3 | BL95: 64 | BM95: 22800 | BN95: Capacity_heating | BO95: Goodman GSZC16 Indoor Units: CA*F3137*6A*+MBVC1200**-1A*+TX, G*VC80603B*C* | BQ95: 8.2 | BR95: HSPF_base | BS95: IL TRM v6 vol3 | BT95: 64 | BU95: 9 | BV95: HSPF_ee | BW95: Goodman GSZC16 Indoor Units: CA*F3137*6A*+MBVC1200**-1A*+TX, G*VC80603B*C* | BY95: 11.8 | BZ95: EER_base | CA95: IL TRM v6 vol3 | CB95: 66 | CC95: 13 | CD95: EER_ee | CE95: Goodman GSZC16 Indoor Units: CA*F3137*6A*+MBVC1200**-1A*+TX, G*VC80603B*C* | CG95: 0.72 | CH95: CF | CI95: IL TRM v6 vol3 | CJ95: 66 | CK95: =AW95/12000 -> 1.966666667 | CL95: Cooling Capacity Tons | CM95: Goodman GSZC16 Indoor Units: CA*F3137*6A*+MBVC1200**-1A*+TX, G*VC80603B*C* | CO95: =BM95/12000 -> 1.9 | CP95: Heating Capacity Tons | CQ95: Goodman GSZC16 Indoor Units: CA*F3137*6A*+MBVC1200**-1A*+TX, G*VC80603B*C*
A96: Heating, Cooling & Home Comfort | B96: ASHP Variable-Speed Compressor | C96: 398 | D96: Single Family | E96: HVAC | G96: per ton | H96: =(1381*(AW96/12000)+724)/CK96 -> 1752.282051 | I96: IL TRM v6 vol3 | J96: 61 | K96: =ROUND(((AS96*AW96*(1/BA96-1/BE96))/1000/CK96)+((BI96*BM96*(1/BQ96-1/BU96))/1000/CO96),4) -> 629.1972 | L96: Calculated Value | N96: =R96/O96 -> 0.09388888889 | O96: 0.72 | P96: Calculated Value | R96: =ROUND((AW96*(1/BY96-1/CC96))/1000*CG96/CK96,4) -> 0.0676 | S96: Calculated Value | X96: 18 | Y96: IL TRM v6 vol3 | Z96: 61 | AA96: SEER | AB96: 21 | AC96: Daikin DZ20VC Inddor Units: CA*F3642*6D*+MBVC1200**-1A*+TXV | AE96: SEER | AF96: 14 | AG96: IL TRM v6 vol3 | AH96: 63 | AI96: =ROUND(((AS96*AW96*(1/BA96-1/BE96))/1000/CK96)+((BI96*BM96*(1/BQ96-1/BU96))/1000/CO96),4) | AJ96: =ROUND((AW96*(1/BY96-1/CC96))/1000*CG96/CK96,4) | AK96: IL TRM v6 vol3 | AL96: 62, 65 | AM96: 2020-01-01 | AS96: 1035 | AT96: FLH_cooling | AU96: IL TRM v6 vol3 | AV96: 63 | AW96: 23400 | AX96: Capacity_cooling | AY96: Daikin DZ20VC Inddor Units: CA*F3642*6D*+MBVC1200**-1A*+TXV | BA96: 14 | BB96: SEER_base | BC96: IL TRM v6 vol3 | BD96: 63 | BE96: 21 | BF96: SEER_ee | BG96: Daikin DZ20VC Inddor Units: CA*F3642*6D*+MBVC1200**-1A*+TXV | BI96: 1266 | BJ96: FLH_heat | BK96: IL TRM v6 vol3 | BL96: 64 | BM96: 23600 | BN96: Capacity_heating | BO96: Daikin DZ20VC Inddor Units: CA*F3642*6D*+MBVC1200**-1A*+TXV | BQ96: 8.2 | BR96: HSPF_base | BS96: IL TRM v6 vol3 | BT96: 64 | BU96: 10 | BV96: HSPF_ee | BW96: Daikin DZ20VC Inddor Units: CA*F3642*6D*+MBVC1200**-1A*+TXV | BY96: 11.8 | BZ96: EER_base | CA96: IL TRM v6 vol3 | CB96: 66 | CC96: 13 | CD96: EER_ee | CE96: Daikin DZ20VC Inddor Units: CA*F3642*6D*+MBVC1200**-1A*+TXV | CG96: 0.72 | CH96: CF | CI96: IL TRM v6 vol3 | CJ96: 66 | CK96: =AW96/12000 -> 1.95 | CL96: Cooling Capacity Tons | CM96: Daikin DZ20VC Inddor Units: CA*F3642*6D*+MBVC1200**-1A*+TXV | CO96: =BM96/12000 -> 1.966666667 | CP96: Heating Capacity Tons | CQ96: Daikin DZ20VC Inddor Units: CA*F3642*6D*+MBVC1200**-1A*+TXV
A97: Heating, Cooling & Home Comfort | B97: Furnace Filter Alarm | C97: 234.3 | D97: Single Family | E97: HVAC | F97: Kits | G97: per unit | H97: 2.8 | I97: Program Tracking Data | K97: =ROUND((AS97*BI97*AW97*BA97)+(AS97*BE97*AW97*BA97),4) -> 75.1527 | L97: Calculated Value | N97: =K97/U97 -> 0.04551950333 | O97: 0.647 | P97: PA TRM 2016 | Q97: 74 | R97: =ROUND(((AS97*BE97*AW97*BA97)/BE97)*O97,4) -> 0.023 | S97: Calculated Value | U97: 1651 | V97: MO TRM 2017 vol 3 | W97: 85 | X97: 14 | Y97: PA TRM 2016 | Z97: 73 | AA97: Furnace Filter Alarm | AE97: No Filter | AI97: =ROUND((AS97*BI97*AW97*BA97)+(AS97*BE97*AW97*BA97),4) | AJ97: =ROUND(((AS97*BE97*AW97*BA97)/BE97)*O97,4) | AK97: PA TRM 2016 | AL97: 73 | AM97: 2020-01-01 | AS97: 0.5 | AT97: Average motor full load electric demand | AU97: PA TRM 2016 | AV97: 74 | AW97: 0.15 | AX97: Efficiency Improvement | AY97: PA TRM 2016 | AZ97: 74 | BA97: 0.474 | BB97: ISR | BC97: PA TRM 2016 | BD97: 74 | BE97: 738 | BF97: EFLHcool | BG97: MO TRM | BH97: 85 | BI97: 1376 | BJ97: EFLHheat | BK97: The EFLH Cooling and Heating hours are based on a EnergyStar study that was normalized (based on HDD and CDD) to Kansas City. This was for both AC and HP units.
A98: Heating, Cooling & Home Comfort | B98: Indoor Coil Cleaning_SF:CAC | C98: 262.2 | D98: Single Family | E98: HVAC | G98: per measure | H98: 35 | I98: WI TRM 2017 | J98: 143 | K98: =ROUND(AW98*BA98/1000*(1/(BI98*BM98)-1/BI98),4) -> 148.1408 | L98: Calculated Value | N98: =BA98/1000*(1/(BE98*BM98)-1/BE98) -> 0.2855010263 | O98: 0.9 | P98: WI TRM 2017 | Q98: 144 | R98: =ROUND(N98*O98,4) -> 0.257 | S98: Calculated Value | X98: 3 | Y98: WI TRM 2017 | Z98: 144 | AA98: Coil cleaning of packaged air conditioning unit. | AC98: WI TRM 2017 | AD98: 143 | AE98: The baseline condition is an AC system with fouled condenser coils. | AG98: WI TRM 2017 | AH98: 143 | AI98: =ROUND(AW98*BA98/1000*(1/(BI98*BM98)-1/BI98),4) | AJ98: =ROUND(N98*O98,4) | AK98: WI TRM 2017 | AL98: 143, 144 | AM98: 2020-01-01 | AW98: 564 | AX98: Equivalent Full Load Hours for Mechanical Cooling | AY98: IL TRM v6 vol3 | AZ98: 127 | BA98: 36000 | BB98: Unit Cooling Capacity in Btu/hour | BC98: Installed Equipment; actual value | BE98: =-0.02*BI98^2+1.12*BI98 -> 9.2 | BF98: EER | BG98: Installed Equipment; actual nameplate EER | BI98: 10 | BJ98: SEER | BK98: Installed Equipment; actual nameplate EER | BM98: 0.932 | BN98: Condenser coil fouling efficiency degradation factor | BO98: WI TRM 2017 | BP98: 144
A99: Heating, Cooling & Home Comfort | B99: Indoor Coil Cleaning_SF:ASHP | C99: 263.2 | D99: Single Family | E99: HVAC | G99: per measure | H99: 35 | I99: WI TRM 2017 | J99: 143 | K99: =ROUND(AW99*BA99/1000*(1/(BI99*BM99)-1/BI99),4) -> 148.1408 | L99: Calculated Value | N99: =BA99/1000*(1/(BE99*BM99)-1/BE99) -> 0.2855010263 | O99: 0.9 | P99: WI TRM 2017 | Q99: 144 | R99: =ROUND(N99*O99,4) -> 0.257 | S99: Calculated Value | X99: 3 | Y99: WI TRM 2017 | Z99: 144 | AA99: Coil cleaning of packaged air conditioning unit. | AC99: WI TRM 2017 | AD99: 143 | AE99: The baseline condition is an AC system with fouled condenser coils. | AG99: WI TRM 2017 | AH99: 143 | AI99: =ROUND(AW99*BA99/1000*(1/(BI99*BM99)-1/BI99),4) | AJ99: =ROUND(N99*O99,4) | AK99: WI TRM 2017 | AL99: 143, 144 | AM99: 2020-01-01 | AW99: 564 | AX99: Equivalent Full Load Hours for Mechanical Cooling | AY99: IL TRM v6 vol3 | AZ99: 127 | BA99: 36000 | BB99: Unit Cooling Capacity in Btu/hour | BC99: Installed Equipment; actual value | BE99: =-0.02*BI99^2+1.12*BI99 -> 9.2 | BF99: EER | BG99: Installed Equipment; actual nameplate EER | BI99: 10 | BJ99: SEER | BK99: Installed Equipment; actual nameplate EER | BM99: 0.932 | BN99: Condenser coil fouling efficiency degradation factor | BO99: WI TRM 2017 | BP99: 144
A100: Heating, Cooling & Home Comfort | B100: Outdoor Coil Cleaning_SF:CAC | C100: 264.2 | D100: Single Family | E100: HVAC | G100: per measure | H100: 35 | I100: WI TRM 2017 | J100: 143 | K100: =ROUND(AW100*BA100/1000*(1/(BI100*BM100)-1/BI100),4) -> 148.1408 | L100: Calculated Value | N100: =BA100/1000*(1/(BE100*BM100)-1/BE100) -> 0.2855010263 | O100: 0.9 | P100: WI TRM 2017 | Q100: 144 | R100: =ROUND(N100*O100,4) -> 0.257 | S100: Calculated Value | X100: 3 | Y100: WI TRM 2017 | Z100: 144 | AA100: Coil cleaning of packaged air conditioning unit. | AC100: WI TRM 2017 | AD100: 143 | AE100: The baseline condition is an AC system with fouled condenser coils. | AG100: WI TRM 2017 | AH100: 143 | AI100: =ROUND(AW100*BA100/1000*(1/(BI100*BM100)-1/BI100),4) | AJ100: =ROUND(N100*O100,4) | AK100: WI TRM 2017 | AL100: 143, 144 | AM100: 2020-01-01 | AW100: 564 | AX100: Equivalent Full Load Hours for Mechanical Cooling | AY100: IL TRM v6 vol3 | AZ100: 127 | BA100: 36000 | BB100: Unit Cooling Capacity in Btu/hour | BC100: Installed Equipment; actual value | BE100: =-0.02*BI100^2+1.12*BI100 -> 9.2 | BF100: EER | BG100: Installed Equipment; actual nameplate EER | BI100: 10 | BJ100: SEER | BK100: Installed Equipment; actual nameplate EER | BM100: 0.932 | BN100: Condenser coil fouling efficiency degradation factor | BO100: WI TRM 2017 | BP100: 144
A101: Heating, Cooling & Home Comfort | B101: Outdoor Coil Cleaning_SF:ASHP | C101: 265.2 | D101: Single Family | E101: HVAC | G101: per measure | H101: 35 | I101: WI TRM 2017 | J101: 143 | K101: =ROUND(AW101*BA101/1000*(1/(BI101*BM101)-1/BI101),4) -> 148.1408 | L101: Calculated Value | N101: =BA101/1000*(1/(BE101*BM101)-1/BE101) -> 0.2855010263 | O101: 0.9 | P101: WI TRM 2017 | Q101: 144 | R101: =ROUND(N101*O101,4) -> 0.257 | S101: Calculated Value | X101: 3 | Y101: WI TRM 2017 | Z101: 144 | AA101: Coil cleaning of packaged air conditioning unit. | AC101: WI TRM 2017 | AD101: 143 | AE101: The baseline condition is an AC system with fouled condenser coils. | AG101: WI TRM 2017 | AH101: 143 | AI101: =ROUND(AW101*BA101/1000*(1/(BI101*BM101)-1/BI101),4) | AJ101: =ROUND(N101*O101,4) | AK101: WI TRM 2017 | AL101: 143, 144 | AM101: 2020-01-01 | AW101: 564 | AX101: Equivalent Full Load Hours for Mechanical Cooling | AY101: IL TRM v6 vol3 | AZ101: 127 | BA101: 36000 | BB101: Unit Cooling Capacity in Btu/hour | BC101: Installed Equipment; actual value | BE101: =-0.02*BI101^2+1.12*BI101 -> 9.2 | BF101: EER | BG101: Installed Equipment; actual nameplate EER | BI101: 10 | BJ101: SEER | BK101: Installed Equipment; actual nameplate EER | BM101: 0.932 | BN101: Condenser coil fouling efficiency degradation factor | BO101: WI TRM 2017 | BP101: 144
A102: Heating, Cooling & Home Comfort | B102: Refrigerant Charge Adjustment (RCA)_SF: CAC | C102: 266.2 | D102: Single Family | E102: HVAC | G102: per measure | H102: 175 | I102: IL TRM v5 vol3 | J102: 124 | K102: =ROUND((BM102*BA102*(1/BE102))/1000*AS102,4) -> 44.28 | L102: Calculated Value | N102: =K102/BM102 -> 0.06 | O102: 0.68 | P102: Calculated Value | R102: =ROUND(BA102*(1/BI102)/1000*AW102*O102,4) -> 0.0177 | S102: Calculated Value | X102: 2 | Y102: IL TRM v5 vol3 | Z102: 124 | AA102: Sub-measure of HVAC Maintenance and Tune-up | AC102: IL TRM v5 vol3 | AD102: 124 | AE102: The baseline condition is an AC system with incorrect refrigerant charge. | AG102: IL TRM v5 vol3 | AH102: 124 | AI102: =ROUND((BM102*BA102*(1/BE102))/1000*AS102,4) | AJ102: =ROUND(BA102*(1/BI102)/1000*AW102*O102,4) | AK102: IL TRM v5 vol3 | AL102: 125, 127 | AM102: 2020-01-01 | AS102: 0.05 | AT102: MFe | AU102: IL TRM v5 vol3 | AV102: 125 | AW102: 0.02 | AX102: MFd | AY102: IL TRM v5 vol3 | AZ102: 127 | BA102: 12000 | BB102: Allows for Capacity input in Tons; converts tons to BTUs | BE102: 10 | BF102: SEERCAC | BG102: IL TRM v5 vol3 | BH102: 126 | BI102: 9.2 | BJ102: EER | BK102: IL TRM v5 vol3 | BL102: Calculated Value | BM102: 738 | BN102: EFLHcool | BO102: The EFLH Cooling and Heating hours are based on a EnergyStar study that was normalized (based on HDD and CDD) to Kansas City. This was for both AC and HP units. | BQ102: 1376 | BR102: EFLHheat | BS102: The EFLH Cooling and Heating hours are based on a EnergyStar study that was normalized (based on HDD and CDD) to Kansas City. This was for both AC and HP units.
A103: Heating, Cooling & Home Comfort | B103: Refrigerant Charge Adjustment (RCA)_SF: ASHP | C103: 267.2 | D103: Single Family | E103: HVAC | G103: per measure | H103: 175 | I103: IL TRM v5 vol3 | J103: 124 | K103: =ROUND((BQ103*BA103*(1/BE103))/1000*AS103+(BU103*BA103*(1/BM103))/1000*AS103,4) -> 165.6918 | L103: Calculated Value | N103: =K103/BQ103 -> 0.2245146341 | O103: 0.72 | P103: Calculated Value | R103: =ROUND(BA103*(1/BI103)/1000*AW103*O103,4) -> 0.0188 | S103: Calculated Value | X103: 2 | Y103: IL TRM v5 vol3 | Z103: 124 | AA103: Sub-measure of HVAC Maintenance and Tune-up | AC103: IL TRM v5 vol3 | AD103: 124 | AE103: The baseline condition is a heat pump system with incorrect refrigerant charge. | AG103: IL TRM v5 vol3 | AH103: 124 | AI103: =ROUND((BQ103*BA103*(1/BE103))/1000*AS103+(BU103*BA103*(1/BM103))/1000*AS103,4) | AJ103: =ROUND(BA103*(1/BI103)/1000*AW103*O103,4) | AK103: IL TRM v5 vol3 | AL103: 125, 127 | AM103: 2020-01-01 | AS103: 0.05 | AT103: MFe | AU103: IL TRM v5 vol3 | AV103: 125 | AW103: 0.02 | AX103: MFd | AY103: IL TRM v5 vol3 | AZ103: 127 | BA103: 12000 | BB103: Allows for Capacity input in Tons; converts tons to BTUs | BE103: 10 | BF103: SEERASHP | BG103: IL TRM v5 vol3 | BH103: 126 | BI103: 9.2 | BJ103: EER | BK103: IL TRM v5 vol3 | BL103: Calculated Value | BM103: 6.8 | BN103: HSPFASHP | BO103: IL TRM v5 vol3 | BP103: 126 | BQ103: 738 | BR103: EFLHcool | BS103: The EFLH Cooling and Heating hours are based on a EnergyStar study that was normalized (based on HDD and CDD) to Kansas City. This was for both AC and HP units. | BU103: 1376 | BV103: EFLHheat | BW103: The EFLH Cooling and Heating hours are based on a EnergyStar study that was normalized (based on HDD and CDD) to Kansas City. This was for both AC and HP units.
A104: Heating, Cooling & Home Comfort | B104: HVAC Maintenance and Tune-up_SF: CAC | C104: 238.2 | D104: Single Family | E104: HVAC | G104: per measure | H104: 175 | I104: IL TRM v7 vol3 | J104: 127 | K104: =ROUND(AS104*BE104*(1/AW104)/1000*BA104,4) -> 44.28 | L104: Calculated Value | N104: 0.0165 | O104: 0.68 | P104: IL TRM v7 vol3 | Q104: 127 | R104: =ROUND(AS104*(1/BI104)/1000*BM104*O104,4) -> 0.0177 | S104: Calculated Value | U104: 738 | V104: EFLHcool, from 2017 MO TRM | W104: 85 | X104: 2 | Y104: IL TRM v7 vol3 | Z104: 127 | AA104: Maintenance and Tune-up on CAC unit | AE104: AC unit that has not been serviced for at least 3 years | AG104: IL TRM v7 vol3 | AH104: 127 | AI104: =ROUND(AS104*BE104*(1/AW104)/1000*BA104,4) | AJ104: =ROUND(AS104*(1/BI104)/1000*BM104*O104,4) | AK104: IL TRM v7 vol3 | AL104: 129 | AM104: 2020-01-01 | AS104: 12000 | AT104: Cooling capacity (1 ton) | AU104: IL TRM v7 vol3 | AV104: 128 | AW104: 10 | AX104: SEERcac | AY104: IL TRM v7 vol3 | AZ104: 128 | BA104: 0.05 | BB104: Maintenance Savings Factor | BC104: IL TRM v7 vol3 | BD104: 128 | BE104: 738 | BF104: EFLHcool, from 2017 MO TRM | BG104: 85 | BH104: 128 | BI104: =-0.02*AW104^2+1.12*AW104 -> 9.2 | BJ104: EER - calculated based on SEER | BK104: IL TRM v7 vol3 | BL104: 129 | BM104: 0.02 | BN104: Maintenance demand savings factor | BO104: IL TRM v7 vol3 | BP104: 130
A105: Heating, Cooling & Home Comfort | B105: GSHP - Early Replacement GSHP_SF: HVAC, replace ASHP | C105: 239.3 | D105: Single Family | E105: HVAC | G105: per unit | H105: 4859 | I105: IL TRM v7 vol3 | J105: 110 | K105: =ROUND(((BY105*AS105*(1/AF105)-(1/AB105))/1000)+((CC105*AS105*(1/AW105)-(1/(BA105*3.412)))/1000)+((BE105*BI105*(1/BM105)*BQ105)/1000),4) -> 6211.8058 | L105: Calculated Value | N105: =K105/U105 -> 8.41708103 | O105: 0.72 | P105: IL TRM v7 vol3 | Q105: 111 | R105: =ROUND(((AS105*(1/BU105)-(1/AB105))/1000)*O105,4) -> 1.0105 | S105: Calculated Value | U105: 738 | V105: EFLHcool, from 2017 MO TRM | W105: 85 | X105: 18 | Y105: IL TRM v7 vol3 | Z105: 110 | AA105: Part Load EER Efficiency of efficient GSHP unit | AB105: 23 | AC105: IL TRM v7 vol3 | AE105: SEER Efficiency of existing cooling unit = Actual, if available | AF105: 8.55 | AG105: IL TRM v7 vol3 | AH105: 113 | AI105: =ROUND(((BY105*AS105*(1/AF105)-(1/AB105))/1000)+((CC105*AS105*(1/AW105)-(1/(BA105*3.412)))/1000)+((BE105*BI105*(1/BM105)*BQ105)/1000),4) | AJ105: =ROUND(((AS105*(1/BU105)-(1/AB105))/1000)*O105,4) | AK105: IL TRM v7 vol3 | AL105: 111 | AM105: 2020-01-01 | AN105: 2020-03-31 | AS105: 12000 | AT105: Allows for Capacity input in Tons; converts tons to BTUs | AW105: 5.44 | AX105: HSPFexist = Heating System Performance Factor of existing heating system 5.44 for replacing ASHP 3.41 for replacing Electric Resistance Heat | AY105: IL TRM v7 vol3 | AZ105: 114 | BA105: 4.5 | BB105: COPpl = Part Load Coefficient of Performance, Actual installed value | BC105: This example value is the mean of values listed in ENERGY STAR criteria here: https://www.energystar.gov/index.cfm?c=most_efficient.me_geothermal_heat_pumps , https://data.energystar.gov/Active-Specifications/ENERGY-STAR-Most-Efficient-Geothermal-Heat-Pumps/4c82-7ysy . Ideally this value would come from the specs of the actual unit installed. | BD105: 116 | BE105: 1 | BF105: ElecDHW: = 1 if HW system is electric = 0 if HW system is not electric | BG105: IL TRM v7 vol3 | BH105: 114 | BI105: 0.44 | BJ105: %DHWdisplaced = Percentage of total DHW load the GSHP will provide. = Actual, if known = 0% if no desuperheater installed = 44% if desuperheater installed and actual is unknown | BK105: IL TRM v7 vol3 | BL105: 114 | BM105: 2.0005 | BN105: Efelec = Energy Factor of electric WH. = Actual, if known = 0.96 – (0.0003 * rated volume in gallons) for 55+ gallon DHW = 2.057 – (0.00113 * rated volume in gallons) for < 55 gallon DHW | BO105: IL TRM v7 vol3 | BP105: 115 | BQ105: 9732988.447 | BR105: GSHP Coefficient = GPD * Household * 365.25 * γWater * (Tout - Tin) | BS105: IL TRM v7 vol3 | BT105: 115 | BU105: 8.55 | BV105: Energy Efficiency Ratio of existing cooling unit = Actual, if available = 8.55 for replacing ASHP = 8.15 for replacing Central AC | BW105: IL TRM v7 vol3 | BX105: 116 | BY105: 738 | BZ105: EFLHcool | CA105: EFLHcool, from 2017 MO TRM | CB105: 85 | CC105: 1376 | CD105: EFLHheat | CE105: The EFLH Cooling and Heating hours are based on a EnergyStar study that was normalized (based on HDD and CDD) to Kansas City. This was for both AC and HP units.
A106: Heating, Cooling & Home Comfort | B106: GSHP - EER 23 Early Retirement GSHP_SF: HVAC | C106: 239.4 | D106: Single Family | E106: HVAC | G106: per ton | H106: 5064 | I106: Program Tracking Data | K106: =ROUND(((BY106*AS106*(1/AF106-1/AB106))/1000)+((CC106*AS106*(1/AW106-1/(BA106*3.412)))/1000)+((BE106*BI106*(1/BM106)*CG106*CK106*CO106*CS106*(CW106-DA106)*DE106)/BQ106),4) -> 3099.7097 | L106: Calculated Value | N106: 4.200148645 | O106: 0.72 | P106: IL TRM v7 vol3 | Q106: 111 | R106: 1.152 | S106: Calculated Value | U106: 738 | V106: EFLHcool, from 2017 MO TRM Vol. 3 | W106: 85 | X106: 25 | Y106: IL TRM v7 vol3 | Z106: 110 | AA106: Part Load EER Efficiency of efficient GSHP unit | AB106: 23 | AC106: Measure Definition | AE106: SEER Efficiency of existing cooling unit = Actual, if available | AF106: 9.3 | AG106: IL TRM v7 vol3 | AH106: 113 | AI106: =ROUND(((BY106*AS106*(1/AF106-1/AB106))/1000)+((CC106*AS106*(1/AW106-1/(BA106*3.412)))/1000)+((BE106*BI106*(1/BM106)*CG106*CK106*CO106*CS106*(CW106-DA106)*DE106)/BQ106),4) | AJ106: =ROUND(((AS106*(1/BU106)-(1/AB106))/1000)*O106,4) | AK106: IL TRM v7 vol3 | AL106: 111116 | AM106: 2020-04-01 | AS106: 12000 | AT106: Allows for Capacity input in Tons; converts tons to BTUs | AW106: 5.54 | AX106: HSPFexist = Heating System Performance Factor of existing heating system 5.44 for replacing ASHP 3.41 for replacing Electric Resistance Heat | AY106: IL TRM v7 vol3 | AZ106: 114 | BA106: 4.5 | BB106: COPpl = Part Load Coefficient of Performance, Actual installed value | BC106: This example value is the mean of values listed in ENERGY STAR criteria here: https://www.energystar.gov/index.cfm?c=most_efficient.me_geothermal_heat_pumps , https://data.energystar.gov/Active-Specifications/ENERGY-STAR-Most-Efficient-Geothermal-Heat-Pumps/4c82-7ysy . Ideally this value would come from the specs of the actual unit installed. | BD106: 114 | BE106: 1 | BF106: ElecDHW: = 1 if HW system is electric = 0 if HW system is not electric | BG106: IL TRM v7 vol3 | BH106: 113 | BI106: 0.44 | BJ106: %DHWdisplaced = Percentage of total DHW load the GSHP will provide. = Actual, if known = 0% if no desuperheater installed = 44% if desuperheater installed and actual is unknown | BK106: IL TRM v7 vol3 | BL106: 114 | BM106: =2.057-0.00113*50 -> 2.0005 | BN106: Efelec = Energy Factor of electric WH. = Actual, if known = 0.96 – (0.0003 * rated volume in gallons) for 55+ gallon DHW = 2.057 – (0.00113 * rated volume in gallons) for < 55 gallon DHW | BO106: IL TRM v7 vol3 | BP106: 115 | BQ106: 3412 | BR106: Conversion from BTU to kWh | BS106: IL TRM v7 vol3 | BT106: 115 | BU106: 7.5 | BV106: Energy Efficiency Ratio of existing/baseline cooling unit | BW106: IL TRM v7 vol3 | BX106: 116 | BY106: 738 | BZ106: EFLHcool | CA106: MO TRM 2017 Vol 3 | CB106: 85 | CC106: 1376 | CD106: EFLHheat | CE106: The EFLH Cooling and Heating hours are based on a EnergyStar study that was normalized (based on HDD and CDD) to Kansas City. This was for both AC and HP units. | CG106: 17.6 | CH106: GPD | CI106: IL TRM v7 vol3 | CJ106: 115 | CK106: 2.56 | CL106: Household | CM106: IL TRM v7 vol3 | CN106: 115 | CO106: 365.25 | CP106: Days per year | CQ106: IL TRM v7 vol3 | CR106: 115 | CS106: 8.33 | CT106: Specific weight of water | CU106: IL TRM v7 vol3 | CV106: 115 | CW106: 125 | CX106: Tout | CY106: IL TRM v7 vol3 | CZ106: 115 | DA106: 54 | DB106: Tin | DC106: IL TRM v7 vol3 | DD106: 115 | DE106: 1 | DF106: Heat Capacity of Water | DG106: IL TRM v7 vol3 | DH106: 115
A107: Heating, Cooling & Home Comfort | B107: GSHP - Replace at Fail GSHP_SF: HVAC | C107: 240.3 | D107: Single Family | E107: HVAC | G107: per unit | H107: 3200 | I107: IL TRM v7 vol3 | J107: 110 | K107: =ROUND(((BY107*AS107*(1/AF107)-(1/AB107))/1000)+((CC107*AS107*(1/AW107)-(1/(BA107*3.412)))/1000)+((BE107*BI107*(1/BM107)*BQ107)/1000),4) -> 4959.4716 | L107: Calculated Value | N107: 6.72015122 | O107: 0.72 | P107: IL TRM v7 vol3 | Q107: 111 | R107: 0.7322 | S107: Calculated Value | U107: 738 | V107: EFLHcool, from 2017 MO TRM | W107: 85 | X107: 18 | Y107: IL TRM v7 vol3 | Z107: 110 | AA107: Part Load EER Efficiency of efficient GSHP unit | AB107: 23 | AC107: IL TRM v7 vol3 | AE107: GSHP replacing Failed GSHP – 23 EER minimum (EER) | AF107: 11 | AG107: IL TRM v7 vol3 | AH107: 113 | AI107: =ROUND(((BY107*AS107*(1/AF107)-(1/AB107))/1000)+((CC107*AS107*(1/AW107)-(1/(BA107*3.412)))/1000)+((BE107*BI107*(1/BM107)*BQ107)/1000),4) | AJ107: =ROUND(((AS107*(1/BU107)-(1/AB107))/1000)*O107,4) | AK107: IL TRM v7 vol3 | AL107: 111 | AM107: 2020-01-01 | AN107: 2020-03-31 | AS107: 12000 | AT107: Allows for Capacity input in Tons; converts tons to BTUs | AW107: 8.2 | AX107: HSPFbase = Heating System Performance Factor of new replacement baseline heating system 8.2 for replacing ASHP 3.41 for replacing Electric Resistance Heat | AY107: IL TRM v7 vol3 | AZ107: 114 | BA107: 4.5 | BB107: COPpl = Part Load Coefficient of Performance, Actual installed value | BC107: This example value is the mean of values listed in ENERGY STAR criteria here: https://www.energystar.gov/index.cfm?c=most_efficient.me_geothermal_heat_pumps , https://data.energystar.gov/Active-Specifications/ENERGY-STAR-Most-Efficient-Geothermal-Heat-Pumps/4c82-7ysy . Ideally this value would come from the specs of the actual unit installed. | BD107: 116 | BE107: 1 | BF107: ElecDHW: = 1 if HW system is electric = 0 if HW system is not electric | BG107: IL TRM Version 7 Volume 5 | BH107: 114 | BI107: 0.44 | BJ107: %DHWdisplaced = Percentage of total DHW load the GSHP will provide. = Actual, if known = 0% if no desuperheater installed = 44% if desuperheater installed and actual is unknown | BK107: IL TRM Version 7 Volume 5 | BL107: 114 | BM107: 2.0005 | BN107: Efelec = Energy Factor of electric WH. = Actual, if known = 0.96 – (0.0003 * rated volume in gallons) for 55+ gallon DHW = 2.057 – (0.00113 * rated volume in gallons) for < 55 gallon DHW | BO107: IL TRM Version 7 Volume 5 | BP107: 115 | BQ107: 9732988.447 | BR107: GSHP Coefficient = GPD * Household * 365.25 * γWater * (Tout - Tin) | BS107: IL TRM v7 vol3 | BT107: 115 | BU107: 11.8 | BV107: EER Efficiency of new replacement ASHP | BW107: IL TRM v7 vol3 | BX107: 116 | BY107: 738 | BZ107: EFLHcool | CA107: EFLHcool, from 2017 MO TRM | CB107: 85 | CC107: 1376 | CD107: EFLHheat | CE107: The EFLH Cooling and Heating hours are based on a EnergyStar study that was normalized (based on HDD and CDD) to Kansas City. This was for both AC and HP units.
A108: Heating, Cooling & Home Comfort | B108: GSHP - EER 23_Replace at Fail / Time of Sale_SF: HVAC | C108: 240.4 | D108: Single Family | E108: HVAC | G108: per ton | H108: 1841 | I108: Program Tracking Data | K108: =ROUND(((BY108*AS108*(1/AF108-1/AB108))/1000)+((CC108*AS108*(1/AW108-1/(BA108*3.412)))/1000)+((BE108*BI108*(1/BM108)*CG108*CK108*CO108*CS108*(CW108-DA108)*DE108)/BQ108),4) -> 1813.1762 | L108: Calculated Value | N108: 2.45687832 | O108: 0.72 | P108: IL TRM v7 vol3 | Q108: 111 | R108: 0.7322 | S108: Calculated Value | U108: 738 | V108: EFLHcool, from 2017 MO TRM Vol. 3 | W108: 85 | X108: 25 | Y108: IL TRM v7 vol3 | Z108: 110 | AA108: Part Load EER Efficiency of efficient GSHP unit | AB108: 23 | AC108: Measure Definition | AE108: GSHP replacing Failed GSHP – 23 EER minimum (EER) | AF108: 14 | AG108: IL TRM v7 vol3 | AH108: 113 | AI108: =ROUND(((BY108*AS108*(1/AF108-1/AB108))/1000)+((CC108*AS108*(1/AW108-1/(BA108*3.412)))/1000)+((BE108*BI108*(1/BM108)*CG108*CK108*CO108*CS108*(CW108-DA108)*DE108)/BQ108),4) | AJ108: =ROUND(((AS108*(1/BU108)-(1/AB108))/1000)*O108,4) | AK108: IL TRM v7 vol3 | AL108: 111116 | AM108: 2020-04-01 | AS108: 12000 | AT108: Allows for Capacity input in Tons; converts tons to BTUs | AW108: 8.2 | AX108: HSPFbase = Heating System Performance Factor of new replacement baseline heating system 8.2 for replacing ASHP 3.41 for replacing Electric Resistance Heat | AY108: IL TRM v7 vol3 | AZ108: 114 | BA108: 4.5 | BB108: COPpl = Part Load Coefficient of Performance, Actual installed value | BC108: This example value is the mean of values listed in ENERGY STAR criteria here: https://www.energystar.gov/index.cfm?c=most_efficient.me_geothermal_heat_pumps , https://data.energystar.gov/Active-Specifications/ENERGY-STAR-Most-Efficient-Geothermal-Heat-Pumps/4c82-7ysy . Ideally this value would come from the specs of the actual unit installed. | BD108: 114 | BE108: 1 | BF108: ElecDHW: = 1 if HW system is electric = 0 if HW system is not electric | BG108: IL TRM v7 vol3 | BH108: 113 | BI108: 0.44 | BJ108: %DHWdisplaced = Percentage of total DHW load the GSHP will provide. = Actual, if known = 0% if no desuperheater installed = 44% if desuperheater installed and actual is unknown | BK108: IL TRM v7 vol3 | BL108: 114 | BM108: =2.057-0.00113*50 -> 2.0005 | BN108: Efelec = Energy Factor of electric WH. = Actual, if known = 0.96 – (0.0003 * rated volume in gallons) for 55+ gallon DHW = 2.057 – (0.00113 * rated volume in gallons) for < 55 gallon DHW | BO108: IL TRM v7 vol3 | BP108: 115 | BQ108: 3412 | BR108: Conversion from BTU to kWh | BS108: IL TRM v7 vol3 | BT108: 115 | BU108: 11.8 | BV108: Energy Efficiency Ratio of existing/baseline cooling unit | BW108: IL TRM v7 vol3 | BX108: 116 | BY108: 738 | BZ108: EFLHcool | CA108: MO TRM 2017 Vol 3 | CB108: 85 | CC108: 1376 | CD108: EFLHheat | CE108: The EFLH Cooling and Heating hours are based on a EnergyStar study that was normalized (based on HDD and CDD) to Kansas City. This was for both AC and HP units. | CG108: 17.6 | CH108: GPD | CI108: IL TRM v7 vol3 | CJ108: 115 | CK108: 2.56 | CL108: Household | CM108: IL TRM v7 vol3 | CN108: 115 | CO108: 365.25 | CP108: Days per year | CQ108: IL TRM v7 vol3 | CR108: 115 | CS108: 8.33 | CT108: Specific weight of water | CU108: IL TRM v7 vol3 | CV108: 115 | CW108: 125 | CX108: Tout | CY108: IL TRM v7 vol3 | CZ108: 115 | DA108: 54 | DB108: Tin | DC108: IL TRM v7 vol3 | DD108: 115 | DE108: 1 | DF108: Heat Capacity of Water | DG108: IL TRM v7 vol3 | DH108: 115
A109: Heating, Cooling & Home Comfort | B109: GSHP - AC + Early Replacement Electric Resistance Furnace_SF: HVAC | C109: 241.3 | D109: Single Family | E109: HVAC | G109: per unit | H109: 5250 | I109: IL TRM v7 vol3 | J109: 110 | K109: =ROUND(((BY109*AS109*(1/AF109)-(1/AB109))/1000)+((CC109*AS109*(1/AW109)-(1/(BA109*3.412)))/1000)+((BE109*BI109*(1/BM109)*BQ109)/1000),4) -> 8069.5767 | L109: Calculated Value | N109: 10.93438577 | O109: 0.72 | P109: IL TRM v7 vol3 | Q109: 111 | R109: 1.0601 | S109: Calculated Value | U109: 738 | V109: EFLHcool, from 2017 MO TRM | W109: 85 | X109: 18 | Y109: IL TRM v7 vol3 | Z109: 110 | AA109: Part Load EER Efficiency of efficient GSHP unit | AB109: 23 | AC109: IL TRM v7 vol3 | AE109: SEER Efficiency of existing cooling unit = Actual, if available | AF109: 8.15 | AG109: IL TRM v7 vol3 | AH109: 113 | AI109: =ROUND(((BY109*AS109*(1/AF109)-(1/AB109))/1000)+((CC109*AS109*(1/AW109)-(1/(BA109*3.412)))/1000)+((BE109*BI109*(1/BM109)*BQ109)/1000),4) | AJ109: =ROUND(((AS109*(1/BU109)-(1/AB109))/1000)*O109,4) | AK109: IL TRM v7 vol3 | AL109: 111 | AM109: 2020-01-01 | AN109: 2020-03-31 | AS109: 12000 | AT109: Allows for Capacity input in Tons; converts tons to BTUs | AW109: 3.41 | AX109: HSPFexist = Heating System Performance Factor of existing heating system 5.44 for replacing ASHP 3.41 for replacing Electric Resistance Heat | AY109: IL TRM v7 vol3 | AZ109: 114 | BA109: 4.5 | BB109: COPpl = Part Load Coefficient of Performance, Actual installed value | BC109: This example value is the mean of values listed in ENERGY STAR criteria here: https://www.energystar.gov/index.cfm?c=most_efficient.me_geothermal_heat_pumps , https://data.energystar.gov/Active-Specifications/ENERGY-STAR-Most-Efficient-Geothermal-Heat-Pumps/4c82-7ysy . Ideally this value would come from the specs of the actual unit installed. | BD109: 116 | BE109: 1 | BF109: ElecDHW: = 1 if HW system is electric = 0 if HW system is not electric | BG109: IL TRM Version 7 Volume 7 | BH109: 114 | BI109: 0.44 | BJ109: %DHWdisplaced = Percentage of total DHW load the GSHP will provide. = Actual, if known = 0% if no desuperheater installed = 44% if desuperheater installed and actual is unknown | BK109: IL TRM Version 7 Volume 7 | BL109: 114 | BM109: 2.0005 | BN109: Efelec = Energy Factor of electric WH. = Actual, if known = 0.96 – (0.0003 * rated volume in gallons) for 55+ gallon DHW = 2.057 – (0.00113 * rated volume in gallons) for < 55 gallon DHW | BO109: IL TRM Version 7 Volume 7 | BP109: 115 | BQ109: 9732988.447 | BR109: GSHP Coefficient = GPD * Household * 365.25 * γWater * (Tout - Tin) | BS109: IL TRM v7 vol3 | BT109: 115 | BU109: 8.15 | BV109: Energy Efficiency Ratio of existing cooling unit = Actual, if available = 8.55 for replacing ASHP = 8.15 for replacing Central AC | BW109: IL TRM v7 vol3 | BX109: 116 | BY109: 738 | BZ109: EFLHcool | CA109: EFLHcool, from 2017 MO TRM | CB109: 85 | CC109: 1376 | CD109: EFLHheat | CE109: The EFLH Cooling and Heating hours are based on a EnergyStar study that was normalized (based on HDD and CDD) to Kansas City. This was for both AC and HP units.
A110: Heating, Cooling & Home Comfort | B110: GSHP - EER 23_Early Retirement AC/Electric Furnace_SF: HVAC | C110: 241.4 | D110: Single Family | E110: HVAC | G110: per ton | H110: 5064 | I110: Program Tracking Data | K110: =ROUND(((BY110*AS110*(1/AF110-1/AB110))/1000)+((CC110*AS110*(1/AW110-1/(BA110*3.412)))/1000)+((BE110*BI110*(1/BM110)*CG110*CK110*CO110*CS110*(CW110-DA110)*DE110)/BQ110),4) -> 4961.4331 | L110: Calculated Value | N110: 6.722809079 | O110: 0.72 | P110: IL TRM v7 vol3 | Q110: 111 | R110: 1.152 | S110: Calculated Value | U110: 738 | V110: EFLHcool, from 2017 MO TRM Vol. 3 | W110: 85 | X110: 25 | Y110: IL TRM v7 vol3 | Z110: 110 | AA110: Part Load EER Efficiency of efficient GSHP unit | AB110: 23 | AC110: Measure Definition | AE110: SEER Efficiency of existing cooling unit = Actual, if available | AF110: 9.3 | AG110: IL TRM v7 vol3 | AH110: 113 | AI110: =ROUND(((BY110*AS110*(1/AF110-1/AB110))/1000)+((CC110*AS110*(1/AW110-1/(BA110*3.412)))/1000)+((BE110*BI110*(1/BM110)*CG110*CK110*CO110*CS110*(CW110-DA110)*DE110)/BQ110),4) | AJ110: =ROUND(((AS110*(1/BU110)-(1/AB110))/1000)*O110,4) | AK110: IL TRM v7 vol3 | AL110: 111116 | AM110: 2020-04-01 | AS110: 12000 | AT110: Allows for Capacity input in Tons; converts tons to BTUs | AW110: 3.41 | AX110: HSPFexist = Heating System Performance Factor of existing heating system 5.44 for replacing ASHP 3.41 for replacing Electric Resistance Heat | AY110: IL TRM v7 vol3 | AZ110: 114 | BA110: 4.5 | BB110: COPpl = Part Load Coefficient of Performance, Actual installed value | BC110: This example value is the mean of values listed in ENERGY STAR criteria here: https://www.energystar.gov/index.cfm?c=most_efficient.me_geothermal_heat_pumps , https://data.energystar.gov/Active-Specifications/ENERGY-STAR-Most-Efficient-Geothermal-Heat-Pumps/4c82-7ysy . Ideally this value would come from the specs of the actual unit installed. | BD110: 114 | BE110: 1 | BF110: ElecDHW: = 1 if HW system is electric = 0 if HW system is not electric | BG110: IL TRM v7 vol3 | BH110: 113 | BI110: 0.44 | BJ110: %DHWdisplaced = Percentage of total DHW load the GSHP will provide. = Actual, if known = 0% if no desuperheater installed = 44% if desuperheater installed and actual is unknown | BK110: IL TRM v7 vol3 | BL110: 114 | BM110: =2.057-0.00113*50 -> 2.0005 | BN110: Efelec = Energy Factor of electric WH. = Actual, if known = 0.96 – (0.0003 * rated volume in gallons) for 55+ gallon DHW = 2.057 – (0.00113 * rated volume in gallons) for < 55 gallon DHW | BO110: IL TRM v7 vol3 | BP110: 115 | BQ110: 3412 | BR110: Conversion from BTU to kWh | BS110: IL TRM v7 vol3 | BT110: 115 | BU110: 7.5 | BV110: Energy Efficiency Ratio of existing/baseline cooling unit | BW110: IL TRM v7 vol3 | BX110: 116 | BY110: 738 | BZ110: EFLHcool | CA110: MO TRM 2017 Vol 3 | CB110: 85 | CC110: 1376 | CD110: EFLHheat | CE110: The EFLH Cooling and Heating hours are based on a EnergyStar study that was normalized (based on HDD and CDD) to Kansas City. This was for both AC and HP units. | CG110: 17.6 | CH110: GPD | CI110: IL TRM v7 vol3 | CJ110: 115 | CK110: 2.56 | CL110: Household | CM110: IL TRM v7 vol3 | CN110: 115 | CO110: 365.25 | CP110: Days per year | CQ110: IL TRM v7 vol3 | CR110: 115 | CS110: 8.33 | CT110: Specific weight of water | CU110: IL TRM v7 vol3 | CV110: 115 | CW110: 125 | CX110: Tout | CY110: IL TRM v7 vol3 | CZ110: 115 | DA110: 54 | DB110: Tin | DC110: IL TRM v7 vol3 | DD110: 115 | DE110: 1 | DF110: Heat Capacity of Water | DG110: IL TRM v7 vol3 | DH110: 115
A111: Heating, Cooling & Home Comfort | B111: GSHP - AC + Replace at Fail Electric Resistance Furnace_SF: HVAC | C111: 242.3 | D111: Single Family | E111: HVAC | G111: per unit | H111: 4717 | I111: IL TRM v7 vol3 | J111: 110 | K111: =ROUND(((BY111*AS111*(1/AF111)-(1/AB111))/1000)+((CC111*AS111*(1/AW111)-(1/(BA111*3.412)))/1000)+((BE111*BI111*(1/BM111)*BQ111)/1000),4) -> 7788.0418 | L111: Calculated Value | N111: 10.55290217 | O111: 0.72 | P111: IL TRM v7 vol3 | Q111: 111 | R111: 0.7854 | S111: Calculated Value | U111: 738 | V111: EFLHcool, from 2017 MO TRM | W111: 85 | X111: 18 | Y111: IL TRM v7 vol3 | Z111: 110 | AA111: Part Load EER Efficiency of efficient GSHP unit | AB111: 23 | AC111: IL TRM v7 vol3 | AE111: GSHP replacing failed AC w/ electric furnace – 23 EER minimum (EER) | AF111: 11 | AG111: IL TRM v7 vol3 | AH111: 113 | AI111: =ROUND(((BY111*AS111*(1/AF111)-(1/AB111))/1000)+((CC111*AS111*(1/AW111)-(1/(BA111*3.412)))/1000)+((BE111*BI111*(1/BM111)*BQ111)/1000),4) | AJ111: =ROUND(((AS111*(1/BU111)-(1/AB111))/1000)*O111,4) | AK111: IL TRM v7 vol3 | AL111: 111 | AM111: 2020-01-01 | AN111: 2020-03-31 | AS111: 12000 | AT111: Allows for Capacity input in Tons; converts tons to BTUs | AW111: 3.41 | AX111: HSPFbase = Heating System Performance Factor of new replacement baseline heating system 8.2 for replacing ASHP 3.41 for replacing Electric Resistance Heat | AY111: IL TRM v7 vol3 | AZ111: 114 | BA111: 4.5 | BB111: COPpl = Part Load Coefficient of Performance, Actual installed value | BC111: This example value is the mean of values listed in ENERGY STAR criteria here: https://www.energystar.gov/index.cfm?c=most_efficient.me_geothermal_heat_pumps , https://data.energystar.gov/Active-Specifications/ENERGY-STAR-Most-Efficient-Geothermal-Heat-Pumps/4c82-7ysy . Ideally this value would come from the specs of the actual unit installed. | BD111: 116 | BE111: 1 | BF111: ElecDHW: = 1 if HW system is electric = 0 if HW system is not electric | BG111: IL TRM Version 7 Volume 9 | BH111: 114 | BI111: 0.44 | BJ111: %DHWdisplaced = Percentage of total DHW load the GSHP will provide. = Actual, if known = 0% if no desuperheater installed = 44% if desuperheater installed and actual is unknown | BK111: IL TRM Version 7 Volume 9 | BL111: 114 | BM111: 2.0005 | BN111: Efelec = Energy Factor of electric WH. = Actual, if known = 0.96 – (0.0003 * rated volume in gallons) for 55+ gallon DHW = 2.057 – (0.00113 * rated volume in gallons) for < 55 gallon DHW | BO111: IL TRM Version 7 Volume 9 | BP111: 115 | BQ111: 9732988.447 | BR111: GSHP Coefficient = GPD * Household * 365.25 * γWater * (Tout - Tin) | BS111: IL TRM v7 vol3 | BT111: 115 | BU111: 11 | BV111: EER Efficiency of new replacement Central AC | BW111: IL TRM v7 vol3 | BX111: 116 | BY111: 738 | BZ111: EFLHcool | CA111: EFLHcool, from 2017 MO TRM | CB111: 85 | CC111: 1376 | CD111: EFLHheat | CE111: The EFLH Cooling and Heating hours are based on a EnergyStar study that was normalized (based on HDD and CDD) to Kansas City. This was for both AC and HP units.
A112: Heating, Cooling & Home Comfort | B112: GSHP - ASHP + Early Replacement _SF: HVAC | C112: 243.3 | D112: Single Family | E112: HVAC | G112: per unit | H112: 5250 | I112: IL TRM v7 vol3 | J112: 110 | K112: =ROUND(((BY112*AS112*(1/AF112)-(1/AB112))/1000)+((CC112*AS112*(1/AW112)-(1/(BA112*3.412)))/1000)+((BE112*BI112*(1/BM112)*BQ112)/1000),4) -> 6211.8058 | L112: Calculated Value | N112: 8.41708103 | O112: 0.72 | P112: IL TRM v7 vol3 | Q112: 111 | R112: 1.0105 | S112: Calculated Value | U112: 738 | V112: EFLHcool, from 2017 MO TRM | W112: 85 | X112: 18 | Y112: IL TRM v7 vol3 | Z112: 110 | AA112: Part Load EER Efficiency of efficient GSHP unit | AB112: 23 | AC112: IL TRM v7 vol3 | AE112: SEER Efficiency of existing cooling unit = Actual, if available | AF112: 8.55 | AG112: IL TRM v7 vol3 | AH112: 113 | AI112: =ROUND(((BY112*AS112*(1/AF112)-(1/AB112))/1000)+((CC112*AS112*(1/AW112)-(1/(BA112*3.412)))/1000)+((BE112*BI112*(1/BM112)*BQ112)/1000),4) | AJ112: =ROUND(((AS112*(1/BU112)-(1/AB112))/1000)*O112,4) | AK112: IL TRM v7 vol3 | AL112: 111 | AM112: 2020-01-01 | AN112: 2020-03-31 | AS112: 12000 | AT112: Allows for Capacity input in Tons; converts tons to BTUs | AW112: 5.44 | AX112: HSPFexist = Heating System Performance Factor of existing heating system 5.44 for replacing ASHP 3.41 for replacing Electric Resistance Heat | AY112: IL TRM v7 vol3 | AZ112: 114 | BA112: 4.5 | BB112: COPpl = Part Load Coefficient of Performance, Actual installed value | BC112: This example value is the mean of values listed in ENERGY STAR criteria here: https://www.energystar.gov/index.cfm?c=most_efficient.me_geothermal_heat_pumps , https://data.energystar.gov/Active-Specifications/ENERGY-STAR-Most-Efficient-Geothermal-Heat-Pumps/4c82-7ysy . Ideally this value would come from the specs of the actual unit installed. | BD112: 116 | BE112: 1 | BF112: ElecDHW: = 1 if HW system is electric = 0 if HW system is not electric | BG112: IL TRM Version 7 Volume 11 | BH112: 114 | BI112: 0.44 | BJ112: %DHWdisplaced = Percentage of total DHW load the GSHP will provide. = Actual, if known = 0% if no desuperheater installed = 44% if desuperheater installed and actual is unknown | BK112: IL TRM Version 7 Volume 11 | BL112: 114 | BM112: 2.0005 | BN112: Efelec = Energy Factor of electric WH. = Actual, if known = 0.96 – (0.0003 * rated volume in gallons) for 55+ gallon DHW = 2.057 – (0.00113 * rated volume in gallons) for < 55 gallon DHW | BO112: IL TRM Version 7 Volume 11 | BP112: 115 | BQ112: 9732988.447 | BR112: GSHP Coefficient = GPD * Household * 365.25 * γWater * (Tout - Tin) | BS112: IL TRM v7 vol3 | BT112: 115 | BU112: 8.55 | BV112: Energy Efficiency Ratio of existing cooling unit = Actual, if available = 8.55 for replacing ASHP = 8.15 for replacing Central AC | BW112: IL TRM v7 vol3 | BX112: 116 | BY112: 738 | BZ112: EFLHcool | CA112: EFLHcool, from 2017 MO TRM | CB112: 85 | CC112: 1376 | CD112: EFLHheat | CE112: The EFLH Cooling and Heating hours are based on a EnergyStar study that was normalized (based on HDD and CDD) to Kansas City. This was for both AC and HP units.
A113: Heating, Cooling & Home Comfort | B113: GSHP - EER 23_Early Retirement ASHP_SF: HVAC | C113: 243.4 | D113: Single Family | E113: HVAC | G113: per ton | H113: 5064 | I113: Program Tracking Data | K113: =ROUND(((BY113*AS113*(1/AF113-1/AB113))/1000)+((CC113*AS113*(1/AW113-1/(BA113*3.412)))/1000)+((BE113*BI113*(1/BM113)*CG113*CK113*CO113*CS113*(CW113-DA113)*DE113)/BQ113),4) -> 3099.7097 | L113: Calculated Value | N113: 4.200148645 | O113: 0.72 | P113: IL TRM v7 vol3 | Q113: 111 | R113: 1.152 | S113: Calculated Value | U113: 738 | V113: EFLHcool, from 2017 MO TRM Vol. 3 | W113: 85 | X113: 25 | Y113: IL TRM v7 vol3 | Z113: 110 | AA113: Part Load EER Efficiency of efficient GSHP unit | AB113: 23 | AC113: Measure Definition | AE113: SEER Efficiency of existing cooling unit = Actual, if available | AF113: 9.3 | AG113: IL TRM v7 vol3 | AH113: 113 | AI113: =ROUND(((BY113*AS113*(1/AF113-1/AB113))/1000)+((CC113*AS113*(1/AW113-1/(BA113*3.412)))/1000)+((BE113*BI113*(1/BM113)*CG113*CK113*CO113*CS113*(CW113-DA113)*DE113)/BQ113),4) | AJ113: =ROUND(((AS113*(1/BU113)-(1/AB113))/1000)*O113,4) | AK113: IL TRM v7 vol3 | AL113: 111116 | AM113: 2020-04-01 | AS113: 12000 | AT113: Allows for Capacity input in Tons; converts tons to BTUs | AW113: 5.54 | AX113: HSPFexist = Heating System Performance Factor of existing heating system 5.44 for replacing ASHP 3.41 for replacing Electric Resistance Heat | AY113: IL TRM v7 vol3 | AZ113: 114 | BA113: 4.5 | BB113: COPpl = Part Load Coefficient of Performance, Actual installed value | BC113: This example value is the mean of values listed in ENERGY STAR criteria here: https://www.energystar.gov/index.cfm?c=most_efficient.me_geothermal_heat_pumps , https://data.energystar.gov/Active-Specifications/ENERGY-STAR-Most-Efficient-Geothermal-Heat-Pumps/4c82-7ysy . Ideally this value would come from the specs of the actual unit installed. | BD113: 114 | BE113: 1 | BF113: ElecDHW: = 1 if HW system is electric = 0 if HW system is not electric | BG113: IL TRM v7 vol3 | BH113: 113 | BI113: 0.44 | BJ113: %DHWdisplaced = Percentage of total DHW load the GSHP will provide. = Actual, if known = 0% if no desuperheater installed = 44% if desuperheater installed and actual is unknown | BK113: IL TRM v7 vol3 | BL113: 114 | BM113: =2.057-0.00113*50 -> 2.0005 | BN113: Efelec = Energy Factor of electric WH. = Actual, if known = 0.96 – (0.0003 * rated volume in gallons) for 55+ gallon DHW = 2.057 – (0.00113 * rated volume in gallons) for < 55 gallon DHW | BO113: IL TRM v7 vol3 | BP113: 115 | BQ113: 3412 | BR113: Conversion from BTU to kWh | BS113: IL TRM v7 vol3 | BT113: 115 | BU113: 7.5 | BV113: Energy Efficiency Ratio of existing/baseline cooling unit | BW113: IL TRM v7 vol3 | BX113: 116 | BY113: 738 | BZ113: EFLHcool | CA113: MO TRM 2017 Vol 3 | CB113: 85 | CC113: 1376 | CD113: EFLHheat | CE113: The EFLH Cooling and Heating hours are based on a EnergyStar study that was normalized (based on HDD and CDD) to Kansas City. This was for both AC and HP units. | CG113: 17.6 | CH113: GPD | CI113: IL TRM v7 vol3 | CJ113: 115 | CK113: 2.56 | CL113: Household | CM113: IL TRM v7 vol3 | CN113: 115 | CO113: 365.25 | CP113: Days per year | CQ113: IL TRM v7 vol3 | CR113: 115 | CS113: 8.33 | CT113: Specific weight of water | CU113: IL TRM v7 vol3 | CV113: 115 | CW113: 125 | CX113: Tout | CY113: IL TRM v7 vol3 | CZ113: 115 | DA113: 54 | DB113: Tin | DC113: IL TRM v7 vol3 | DD113: 115 | DE113: 1 | DF113: Heat Capacity of Water | DG113: IL TRM v7 vol3 | DH113: 115
A114: Heating, Cooling & Home Comfort | B114: Duct Repair and Sealing | C114: 278 | D114: Single Family | E114: HVAC | G114: per home (25% to 10%) | H114: 497.62 | I114: Program Tracking Data | K114: =ROUND(((((AS114-AW114)/AS114)*BA114*BE114*BI114)/1000/BM114)+(((((AS114-AW114)/AS114))*BQ114*BU114*BY114)/CC114/3412),4) -> 1218.8362 | L114: Calculated Value | O114: 0.466 | P114: Calculated Value | R114: =ROUND(((((AS114-AW114)/AS114)*BA114*BE114*BI114)/1000/BM114)/BA114*O114,8) -> 0.09117391 | S114: Calculated Value | X114: 20 | Y114: IL TRM v6 vol3 | Z114: 77 | AA114: Duct sealing using mastic sealant or metal tape | AE114: Unsealed/leaking ductwork | AI114: =ROUND(((((AS114-AW114)/AS114)*BA114*BE114*BI114)/1000/BM114)+(((((AS114-AW114)/AS114))*BQ114*BU114*BY114)/CC114/3412),4) | AJ114: =ROUND(((((AS114-AW114)/AS114)*BA114*BE114*BI114)/1000/BM114)/BA114*O114,8) | AK114: IL TRM v6 vol3 | AL114: 78 - 85 | AM114: 2020-01-01 | AS114: 0.92 | AT114: Deafter | AU114: IL TRM v6 vol3, example rating | AV114: 84 | AW114: 0.85 | AX114: Debefore | AY114: IL TRM v6 vol3, example rating | AZ114: 84 | BA114: 1035 | BB114: FLHcool | BC114: IL TRM v6 vol3 for Single Family Home | BD114: 83 | BE114: 36000 | BF114: CapacityCool | BG114: IL TRM v6 vol3, Example Rating | BH114: 82 | BI114: 1 | BJ114: TRFcool | BK114: IL TRM v6 vol3 | BL114: 83 | BM114: 14 | BN114: ηCool | BO114: IL TRM v6 vol3 for heat pumps after 2015 (assuming upgrades as part of program participation) | BP114: 83 | BQ114: 1266 | BR114: FLHheat | BS114: IL TRM v6 vol3 | BT114: 84 | BU114: 36000 | BV114: OutputCapacityHeat | BW114: IL TRM v6 vol3 | BY114: 1 | BZ114: TRFheat | CA114: IL TRM v6 vol3 | CB114: 84 | CC114: 1 | CD114: ηHeat | CE114: IL TRM v6 vol3 | CF114: 84
A115: Income-Eligible Multi-Family | B115: Screw In - LEDs (In-Unit) | C115: 53.4 | D115: Multi-Family | E115: Lighting | F115: Kits | G115: per lamp | H115: 3.93 | I115: Program Tracking Data | K115: =ROUND(($AF115-$AB115)/1000*$U115*$AS115*$BA115,4) -> 37.3133 | L115: Calculated Value | N115: =K115/U115 -> 0.03426382002 | O115: 0.128 | P115: IL TRM v7 vol3 | Q115: 274 | R115: =ROUND(($AF115-$AB115)/1000*O115*$AW115*$BA115,4) -> 0.0045 | S115: Calculated Value | U115: 1089 | V115: IL TRM v7 vol3 | W115: 271 | X115: 10 | Y115: IL TRM v7 vol3 | Z115: 268 | AA115: Screw In - LEDs | AB115: 9 | AC115: Program Tracking Data | AE115: 43 watts based on halogen equivalent to average of bulbs sold in program | AF115: 43 | AG115: Program Tracking Database | AI115: =ROUND(($AF115-$AB115)/1000*$U115*$AS115*$BA115,4) | AJ115: =ROUND(($AF115-$AB115)/1000*O115*$AW115*$BA115,4) | AK115: IL TRM v7 vol3 | AL115: 269, 273 | AM115: 2020-01-01 | AS115: 1.04 | AT115: Waste Heat Factor, Energy | AU115: IL TRM v7 vol3 - Multifamily in unit | AV115: 271 | AW115: 1.07 | AX115: Waste Heat Factor, Demand | AY115: IL TRM v7 vol3 - Multifamily in unit | AZ115: 273 | BA115: 0.969 | BB115: ISR | BC115: IL TRM v7 vol3 | BD115: 270
A116: Income-Eligible Multi-Family | B116: Low Flow Faucet Aerator-Bathroom | C116: 268.2 | D116: Multi-Family | E116: Hot Water | F116: Kits | G116: per unit | H116: 8 | I116: IL TRM v5 vol3 | J116: 174 | K116: =ROUND(((AF116-AB116)*AW116*BA116*365.25)*AS116*BE116,4) -> 66.7349 | L116: Calculated Value | N116: =K116/U116 -> 3.033404545 | O116: 0.022 | P116: IL TRM v5 vol3 | Q116: 179 | R116: =ROUND((((AF116-AB116)*AW116*BA116*365.25)*AS116*BE116)/U116*O116,4) -> 0.0667 | S116: Calculated Value | U116: 22 | V116: IL TRM v5 vol3 | W116: 179 | X116: 9 | Y116: IL TRM v5 vol3 | Z116: 174 | AA116: Low Flow (GPM) | AB116: 1 | AC116: Program Tracking Data | AE116: Standard (GPM) | AF116: 2.2 | AG116: Federal Baseline | AI116: =ROUND(((AF116-AB116)*AW116*BA116*365.25)*AS116*BE116,4) | AJ116: =ROUND((((AF116-AB116)*AW116*BA116*365.25)*AS116*BE116)/U116*O116,4) | AK116: IL TRM v5 vol3 | AL116: 175, 179 | AM116: 2020-01-01 | AS116: 0.0795 | AT116: kWh per gallon hot water, bathroom | AU116: IL TRM v5 vol3 | AV116: 177 | AW116: =1.6*0.9/1.5 -> 0.96 | AX116: Faucet Coefficient, Bathroom: Minutes/day * Drain Factor / Faucets per Household | AY116: IL TRM v5 vol3 | AZ116: 176177 | BA116: 2.1 | BB116: Persons per household | BC116: IL TRM v5 vol3 | BD116: 176 | BE116: 0.95 | BF116: Installation Rate | BG116: IL TRM v5 vol3 | BH116: 178
A117: Income-Eligible Multi-Family | B117: Low Flow Faucet Aerator-Kitchen | C117: 269.2 | D117: Multi-Family | E117: Hot Water | F117: Kits | G117: per unit | H117: 8 | I117: IL TRM v5 vol3 | J117: 174 | K117: =ROUND(((AF117-AB117)*AW117*BA117*365.25)*AS117*BE117,4) -> 159.7889 | L117: Calculated Value | N117: =K117/U117 -> 2.075180519 | O117: 0.022 | P117: IL TRM v5 vol3 | Q117: 179 | R117: =ROUND((((AF117-AB117)*AW117*BA117*365.25)*AS117*BE117)/U117*O117,4) -> 0.0457 | S117: Calculated Value | U117: 77 | V117: IL TRM v5 vol3 | W117: 179 | X117: 9 | Y117: IL TRM v5 vol3 | Z117: 174 | AA117: Low Flow (GPM) | AB117: 1.5 | AC117: Program Tracking Data | AE117: Standard (GPM) | AF117: 2.2 | AG117: Federal Baseline | AI117: =ROUND(((AF117-AB117)*AW117*BA117*365.25)*AS117*BE117,4) | AJ117: =ROUND((((AF117-AB117)*AW117*BA117*365.25)*AS117*BE117)/U117*O117,4) | AK117: IL TRM v5 vol3 | AL117: 175, 179 | AM117: 2020-01-01 | AS117: 0.0969 | AT117: kWh per gallon hot water, kitchen | AU117: IL TRM v5 vol3 | AV117: 177 | AW117: =4.5*0.75/1 -> 3.375 | AX117: Faucet Coefficient, Kitchen | AY117: IL TRM v5 vol3 | AZ117: 176177 | BA117: 2.1 | BB117: Persons per household | BC117: IL TRM v5 vol3 | BD117: 176 | BE117: 0.91 | BF117: Installation Rate | BG117: IL TRM v5 vol3 | BH117: 178
A118: Income-Eligible Multi-Family | B118: Pipe Insulated | C118: 55.3 | D118: Multi-Family | E118: Hot Water | F118: Kits | G118: per unit | H118: 18 | I118: IL TRM v5 vol3 | J118: 160 | K118: =ROUND(((((AS118*PI()*BA118)/AF118) - ((AW118*PI()*BA118)/AB118))*BE118)/BI118/3412,4) -> 72.065 | L118: Calculated Value | N118: =K118/8766 -> 0.008220967374 | O118: 1 | P118: IL TRM v5 vol3 | Q118: 160 | R118: =ROUND(K118/8766,4) -> 0.0082 | S118: Calculated Value | U118: 8766 | V118: IL TRM v5 vol3 | W118: 161 | X118: 15 | Y118: IL TRM v5 vol3 | Z118: 160 | AA118: Efficient R-Value due to added insulation | AB118: =1+5 -> 6 | AC118: Program Tracking Data | AE118: R-Value of bare pipe | AF118: 1 | AG118: IL TRM v5 vol3 | AH118: 161 | AI118: =ROUND(((((AS118*PI()*BA118)/AF118) - ((AW118*PI()*BA118)/AB118))*BE118)/BI118/3412,4) | AJ118: =ROUND(K118/8766,4) | AK118: IL TRM v5 vol3 | AL118: 161162 | AM118: 2020-01-01 | AS118: =0.75/12 -> 0.0625 | AT118: Dbase = Pipe Diameter (ft) | AU118: IL TRM v5 vol3 | AV118: 161 | AW118: =(0.75+1*2)/12 -> 0.2291666667 | AX118: Dee = Updated Pipe Diameter, due to added insulation (ft) | AY118: IL TRM v5 vol3 | AZ118: 161 | BA118: 6 | BB118: Length of added pipe insulation | BC118: Program Tracking Data | BE118: =60*8766 -> 525960 | BF118: Pipe Insulated Coefficient 1 = ∆T * Hours = 60 * 8766 | BG118: IL TRM v5 vol3 | BH118: 161 | BI118: 0.98 | BJ118: Recovery efficiency of electric water heater | BK118: IL TRM v5 vol3 | BL118: 161
A119: Income-Eligible Multi-Family | B119: Low Flow Showerhead | C119: 56.3 | D119: Multi-Family | E119: Hot Water | F119: Kits | G119: per unit | H119: 12 | I119: IL TRM v5 vol3 | J119: 183 | K119: =ROUND(((AF119-AB119)*AW119*BA119*365.25)*AS119*BE119,4) -> 359.0933 | L119: Calculated Value | N119: =K119/U119 -> 1.447956855 | O119: 0.0278 | P119: IL TRM v5 vol3 | Q119: 183 | R119: =ROUND((((AF119-AB119)*AW119*BA119*365.25)*AS119*BE119)/U119*O119,4) -> 0.0403 | S119: Calculated Value | U119: 248 | V119: IL TRM v5 vol3 | W119: 187 | X119: 10 | Y119: IL TRM v5 vol3 | Z119: 183 | AA119: Low Flow (GPM) | AB119: 1.5 | AC119: Program Tracking Data | AE119: Standard (GPM) | AF119: 2.67 | AG119: IL TRM v5 vol3 | AH119: 184 | AI119: =ROUND(((AF119-AB119)*AW119*BA119*365.25)*AS119*BE119,4) | AJ119: =ROUND((((AF119-AB119)*AW119*BA119*365.25)*AS119*BE119)/U119*O119,4) | AK119: IL TRM v5 vol3 | AL119: 184186 | AM119: 2020-01-01 | AS119: 0.117 | AT119: kWh per gallon hot water | AU119: IL TRM v5 vol3 | AV119: 185 | AW119: =7.8*0.6/1.3 -> 3.6 | AX119: Showerhead Coefficient: Minutes per day * Showers per day / Showers per household | AY119: IL TRM v5 vol3 | AZ119: 185 | BA119: 2.1 | BB119: Persons per household | BC119: IL TRM v5 vol3 | BD119: 185 | BE119: 0.95 | BF119: Installation Rate | BG119: IL TRM v5 vol3 | BH119: 186
A120: Income-Eligible Multi-Family | B120: Water Heater Tank Wrap | C120: 57.1 | D120: Multi-Family | E120: Hot Water | F120: Kits | G120: per unit | H120: 20 | I120: Program Tracking Data | K120: =ROUND((AS120/AW120-BA120/BE120)*BI120*BM120/BQ120/BU120,4) -> 134.0948 | L120: Calculated Value | N120: =ROUND(0.0153,4) -> 0.0153 | O120: 1 | P120: IL TRM v7 vol3 | Q120: 203 | R120: =ROUND(K120/U120,4) -> 0.0153 | S120: Calculated Value | U120: 8766 | V120: IL TRM v7 vol3 | W120: 204 | X120: 5 | Y120: IL TRM v7 vol3 | Z120: 203 | AA120: Water heater insulation increased from R12 to R22, 50gal | AC120: IL TRM v7 vol3 | AD120: 204 | AE120: R12, 50-gal water heater insulation (no wrap) | AG120: IL TRM v7 vol3 | AH120: 204 | AI120: =ROUND((AS120/AW120-BA120/BE120)*BI120*BM120/BQ120/BU120,4) | AJ120: =ROUND(K120/U120,4) | AK120: IL TRM v7 vol3 | AL120: 203, 205 | AM120: 2020-01-01 | AS120: 24.99 | AT120: Abase | AU120: IL TRM v7 vol3 | AV120: 204 | AW120: 12 | AX120: Rbase | AY120: IL TRM v7 vol3 | AZ120: 204 | BA120: 27.06 | BB120: Ainsul | BC120: IL TRM v7 vol3 | BD120: 204 | BE120: 22 | BF120: Rinsul | BG120: IL TRM v7 vol3 | BH120: 204 | BI120: 60 | BJ120: deltaT | BK120: IL TRM v7 vol3 | BL120: 204 | BM120: 8766 | BN120: Hours | BO120: IL TRM v7 vol3 | BP120: 204 | BQ120: 0.98 | BR120: eta DHW | BS120: IL TRM v7 vol3 | BT120: 204 | BU120: 3412 | BV120: Conversion from BTU to kWh | BW120: IL TRM v7 vol3 | BX120: 204
A121: Income-Eligible Multi-Family | B121: Smart Power Strip - Wh7-Plug | C121: 248.2 | D121: Multi-Family | E121: Electronics | F121: Kits | G121: per unit | H121: 26 | I121: Program Tracking Data | K121: =ROUND(103,4) -> 103 | L121: Calculated Value | N121: =K121/U121 -> 0.01444802918 | O121: 0.8 | P121: IL TRM v5 vol3 | Q121: 55 | R121: =ROUND(0.0115,4) -> 0.0115 | S121: Calculated Value | U121: 7129 | V121: IL TRM v5 vol3 | W121: 54 | X121: 7 | Y121: IL TRM v6 vol3 | Z121: 53 | AA121: Smart strip | AC121: IL TRM v6 vol3 | AD121: 53 | AE121: Standard outlet strip | AG121: IL TRM v6 vol3 | AH121: 53 | AI121: =ROUND(103,4) | AJ121: =ROUND(0.0115,4) | AK121: IL TRM v6 vol3 | AL121: 53 | AM121: 2020-01-01
A122: Income-Eligible Multi-Family | B122: LED Exit Sign | C122: 59.2 | D122: Multi-Family | E122: Lighting | F122: Common Area - DI | G122: per unit | H122: 30 | I122: IL TRM v5 vol3 | J122: 254 | K122: =ROUND((AF122-AB122)/1000*U122*AS122,4) -> 82.0498 | L122: Calculated Value | N122: =(AF122-AB122)/1000*AW122 -> 0.00963 | O122: 1 | P122: IL TRM v5 vol3 | Q122: 254 | R122: =ROUND(N122*O122,4) -> 0.0096 | S122: Calculated Value | U122: 8766 | V122: IL TRM v5 vol3 | W122: 255 | X122: 16 | Y122: IL TRM v5 vol3 | Z122: 254 | AA122: LED (watts) | AB122: 2 | AC122: IL TRM v5 vol3 | AD122: 255 | AE122: Fluorescent (watts) | AF122: 11 | AG122: IL TRM v5 vol3 | AH122: 255 | AI122: =ROUND((AF122-AB122)/1000*U122*AS122,4) | AJ122: =ROUND(N122*O122,4) | AK122: IL TRM v5 vol3 | AL122: 255256 | AM122: 2020-01-01 | AS122: 1.04 | AT122: Waste Heat Factor (energy) | AU122: IL TRM v5 vol3 | AV122: 255 | AW122: 1.07 | AX122: Waste Heat Factor (demand) | AY122: IL TRM v5 vol3 | AZ122: 256
A123: Income-Eligible Multi-Family | B123: High Bay Fluorescent Fixture w/ HE Electronic Ballast (T5 >4 lamps) | C123: 60.1 | D123: Multi-Family | E123: Lighting | F123: Common Area - DI | G123: per fixture | H123: 100 | I123: IL TRM v6 vol2 | J123: 413 | K123: =ROUND((AF123-AB123)/1000*U123*AS123,4) -> 701.0069 | L123: Calculated Value | N123: 0.21574 | O123: 0.66 | P123: IL TRM v6 vol2 | Q123: 412 | R123: =ROUND(N123*O123,4) -> 0.1424 | S123: Calculated Value | U123: 3088 | V123: IL TRM v6 vol2 | W123: 338 | X123: 15 | Y123: IL TRM v6 vol2 | Z123: 410 | AA123: High Bay - T5 >4 lamp | AB123: 295 | AC123: Program Tracking Database (weighted average( | AE123: Metal Halide (watts) | AF123: 456 | AG123: IL TRM v6 vol2 | AH123: 412 | AI123: =ROUND((AF123-AB123)/1000*U123*AS123,4) | AJ123: =ROUND(N123*O123,4) | AK123: IL TRM v6 vol2 | AL123: 411412 | AM123: 2020-01-01 | AN123: 2020-03-31 | AS123: 1.41 | AT123: Waste Heat Factor | AU123: IL TRM v6 vol2 | AV123: 337 (portfolio weighted average) | AW123: 1.34 | AX123: Waste Heat Factor | AY123: IL TRM v6 vol2 | AZ123: 337 (portfolio weighted average)
A124: Income-Eligible Multi-Family | B124: High Bay Fluorescent Fixture w/ HE Electronic Ballast (T5 >4 lamps) | C124: 60.2 | D124: Multi-Family | E124: Lighting | F124: Common Area - DI | G124: per fixture | H124: 100 | I124: IL TRM v6 vol2 | J124: 413 | K124: =ROUND((AF124-AB124)/1000*U124*AS124,4) -> 1266.5149 | L124: Calculated Value | N124: 0.23892 | O124: 0.64 | P124: IL TRM v6 vol2 | Q124: 338 | R124: =ROUND(N124*O124,4) -> 0.1529 | S124: Calculated Value | U124: 6138 | V124: IL TRM v6 vol2 | W124: 338 | X124: 15 | Y124: IL TRM v6 vol2 | Z124: 410 | AA124: High Bay - T5 >4 lamp | AB124: 295 | AC124: Program Tracking Database (weighted average) | AE124: Metal Halide (watts) | AF124: 476 | AG124: IL TRM v6 vol2 | AH124: 413 | AI124: =ROUND((AF124-AB124)/1000*U124*AS124,4) | AJ124: =ROUND(N124*O124,4) | AK124: IL TRM v6 vol2 | AL124: 411412 | AM124: 2020-04-01 | AS124: 1.14 | AT124: Waste Heat Factor | AU124: IL TRM v6 vol2 | AV124: 337 | AW124: 1.32 | AX124: Waste Heat Factor | AY124: IL TRM v6 vol2 | AZ124: 337
A125: Income-Eligible Multi-Family | B125: Low Wattage T8 Lamp | C125: 61.1 | D125: Multi-Family | E125: Lighting | F125: Common Area - DI | G125: per lamp | H125: 2 | I125: IL TRM v6 vol2 | J125: 358 | K125: =ROUND((AF125-AB125)/1000*U125*AS125,4) -> 21.1219 | L125: Calculated Value | N125: 0.00792 | O125: 0.66 | P125: IL TRM v6 vol2 | Q125: 354 | R125: =ROUND(N125*O125,4) -> 0.0052 | S125: Calculated Value | U125: 3088 | V125: IL TRM v6 vol2 | W125: 338 | X125: 10 | Y125: IL TRM v6 vol2 | Z125: 361 | AA125: Low Wattage T8 (watts) | AB125: 22 | AC125: IL TRM v6 vol2 | AD125: 358 | AE125: Standard T8 (watts) | AF125: 28 | AG125: IL TRM v6 vol2 | AH125: 358 | AI125: =ROUND((AF125-AB125)/1000*U125*AS125,4) | AJ125: =ROUND(N125*O125,4) | AK125: IL TRM v6 vol2 | AL125: 353354 | AM125: 2020-01-01 | AN125: 2020-03-31 | AS125: 1.14 | AT125: Waste Heat Factor, Energy | AU125: IL TRM v6 vol2 | AV125: 338 | AW125: 1.32 | AX125: Waste Heat Factor, Demand | AY125: IL TRM v6 vol2 | AZ125: 338
A126: Income-Eligible Multi-Family | B126: Low Wattage T8 Lamp | C126: 61.2 | D126: Multi-Family | E126: Lighting | F126: Common Area - DI | G126: per lamp | H126: 2 | I126: IL TRM v6 vol2 | J126: 358 | K126: =ROUND((AF126-AB126)/1000*U126*AS126,4) -> 41.9839 | L126: Calculated Value | N126: 0.00792 | O126: 0.62 | P126: IL TRM v6 vol2 | Q126: 338 | R126: =ROUND(N126*O126,4) -> 0.0049 | S126: Calculated Value | U126: 6138 | V126: IL TRM v6 vol2 | W126: 338 | X126: 15 | Y126: IL TRM v6 vol2 | Z126: 352 | AA126: Low Wattage T8 (watts) | AB126: 22 | AC126: IL TRM v6 vol2 | AD126: 358 | AE126: Standard T8 (watts) | AF126: 28 | AG126: IL TRM v6 vol2 | AH126: 358 | AI126: =ROUND((AF126-AB126)/1000*U126*AS126,4) | AJ126: =ROUND(N126*O126,4) | AK126: IL TRM v6 vol2 | AL126: 353354 | AM126: 2020-04-01 | AS126: 1.14 | AT126: Waste Heat Factor, Energy | AU126: IL TRM v6 vol2 | AV126: 338 | AW126: 1.32 | AX126: Waste Heat Factor, Demand | AY126: IL TRM v6 vol2 | AZ126: 338
A127: Income-Eligible Multi-Family | B127: LED Flood Light (<15W) (Exterior) | C127: 62.2 | D127: Multi-Family | E127: Lighting | F127: Common Area - DI | G127: per lamp | H127: 3.93 | I127: IL TRM v5 vol3 | J127: 265 | K127: =ROUND(($AF127-$AB127)/1000*$U127*$AS127*$BA127,4) -> 212.465 | L127: Calculated Value | N127: 0.04601 | O127: 0 | P127: IL TRM v6 vol2 | Q127: 338 | R127: =ROUND(($AF127-$AB127)/1000*$O127*$AW127*$BA127,4) -> 0 | U127: 4903 | V127: IL TRM v6 vol2 | W127: 338 | X127: 10 | Y127: IL TRM v6 vol2 | Z127: 374 | AA127: LED (watts) | AB127: 8.7 | AC127: Program Tracking Data | AE127: Metal Halide (watts) | AF127: 51.7 | AG127: IL TRM v6 vol2 | AH127: 364 | AI127: =ROUND(($AF127-$AB127)/1000*$U127*$AS127*$BA127,4) | AJ127: =ROUND(($AF127-$AB127)/1000*$O127*$AW127*$BA127,4) | AK127: IL TRM v6 vol2 | AL127: 364368 | AM127: 2020-01-01 | AS127: 1.04 | AT127: Waste Heat Factor (energy) | AU127: IL TRM v5 vol3 | AV127: 255 | AW127: 1.07 | AX127: Waste Heat Factor (demand) | AY127: IL TRM v5 vol3 | AZ127: 256 | BA127: 0.969 | BB127: ISR | BC127: IL TRM v5 vol3 | BD127: 260
A128: Income-Eligible Multi-Family | B128: Screw In - LEDs - Common Area (Interior) | C128: 249.2 | D128: Multi-Family | E128: Lighting | F128: Common Area - DI | G128: per lamp | H128: 3.93 | I128: IL TRM v5 vol3 | J128: 265 | K128: =ROUND(($AF128-$AB128)/1000*$U128*$AS128*$BA128,4) -> 29.5796 | L128: Calculated Value | N128: =K128/U128 -> 0.0349227863 | O128: 0.081 | P128: IL TRM v5 vol3 | Q128: 258 | R128: =ROUND(($AF128-$AB128)/1000*$O128*$AW128*$BA128,4) -> 0.003 | S128: Calculated Value | U128: 847 | V128: IL TRM v5 vol3 | W128: 208 | X128: 5 | Y128: IL TRM v5 vol3 | Z128: 205 | AA128: LED (watts) | AB128: 9 | AC128: Program Tracking Data | AE128: EISA tier 1 compliant Halogen (watts) | AF128: 43 | AG128: IL TRM v5 vol3 | AH128: 265 | AI128: =ROUND(($AF128-$AB128)/1000*$U128*$AS128*$BA128,4) | AJ128: =ROUND(($AF128-$AB128)/1000*$O128*$AW128*$BA128,4) | AK128: IL TRM v5 vol3 | AL128: 259263 | AM128: 2020-01-01 | AN128: 2020-03-31 | AS128: 1.06 | AT128: Waste Heat Factor (energy) | AU128: IL TRM v5 vol3 | AV128: 261 | AW128: 1.11 | AX128: Waste Heat Factor (demand) | AY128: IL TRM v5 vol3 | AZ128: 264 | BA128: 0.969 | BB128: ISR | BC128: IL TRM v5 vol3 | BD128: 260
A129: Income-Eligible Multi-Family | B129: Screw In - LEDs - Common Area (Interior) | C129: 249.3 | D129: Multi-Family | E129: Lighting | F129: Common Area - DI | G129: per lamp | H129: 1.45 | I129: Program Tracking Data | K129: =ROUND(($AF129-$AB129)/1000*$U129*$AS129*$BA129,4) -> 37.3133 | L129: Calculated Value | N129: =K129/U129 -> 0.03426382002 | O129: 0.128 | P129: IL TRM v7 vol3 - assumes Interior 9W bulb | Q129: 274 | R129: =ROUND(($AF129-$AB129)/1000*$O129*$AW129*$BA129,4) -> 0.0045 | S129: Calculated Value | U129: 1089 | V129: IL TRM v7 vol3 - assumes Interior 9W bulb | W129: 271 | X129: 10 | Y129: IL TRM v7 vol3 - assumes interior lighting | Z129: 268 | AA129: LED (watts) | AB129: 9 | AC129: Program Tracking Data | AE129: EISA tier 1 compliant Halogen (watts) | AF129: 43 | AG129: Program Tracking Database | AI129: =ROUND(($AF129-$AB129)/1000*$U129*$AS129*$BA129,4) | AJ129: =ROUND(($AF129-$AB129)/1000*$O129*$AW129*$BA129,4) | AK129: IL TRM v7 vol3 | AL129: 269, 273 | AM129: 2020-04-01 | AS129: 1.04 | AT129: Waste Heat Factor (energy) | AU129: IL TRM v7 vol3 - Multifamily in unit | AV129: 271 | AW129: 1.07 | AX129: Waste Heat Factor (demand) | AY129: IL TRM v7 vol3 - Multifamily in unit | AZ129: 273 | BA129: 0.969 | BB129: ISR | BC129: IL TRM v7 vol3 | BD129: 270
A130: Income-Eligible Multi-Family | B130: Screw In - LEDs - Common Area (Exterior) | C130: 250.2 | D130: Multi-Family | E130: Lighting | F130: Common Area - DI | G130: per lamp | H130: 3.93 | I130: IL TRM v5 vol3 | J130: 265 | K130: =ROUND(($AF130-$AB130)/1000*$U130*$AS130*$BA130,4) -> 81.5414 | L130: Calculated Value | N130: =K130/U130 -> 0.0329460202 | O130: 0.273 | P130: IL TRM v5 vol3 | Q130: 258 | R130: =ROUND(($AF130-$AB130)/1000*$O130*$AW130*$BA130,4) -> 0.009 | S130: Calculated Value | U130: 2475 | V130: IL TRM v5 vol3 | W130: 208 | X130: 5 | Y130: IL TRM v5 vol3 | Z130: 205 | AA130: LED (watts) | AB130: 9 | AC130: Program Tracking Data | AE130: EISA tier 1 compliant Halogen (watts) | AF130: 43 | AG130: IL TRM v5 vol3 | AH130: 265 | AI130: =ROUND(($AF130-$AB130)/1000*$U130*$AS130*$BA130,4) | AJ130: =ROUND(($AF130-$AB130)/1000*$O130*$AW130*$BA130,4) | AK130: IL TRM v5 vol3 | AL130: 259263 | AM130: 2020-01-01 | AN130: 2020-03-31 | AS130: 1 | AT130: Waste Heat Factor (energy) | AU130: IL TRM v5 vol3 | AV130: 261 | AW130: 1 | AX130: Waste Heat Factor (demand) | AY130: IL TRM v5 vol3 | AZ130: 264 | BA130: 0.969 | BB130: ISR | BC130: IL TRM v5 vol3 | BD130: 260
A131: Income-Eligible Multi-Family | B131: Screw In - LEDs - Common Area (Exterior) | C131: 250.3 | D131: Multi-Family | E131: Lighting | F131: Common Area - DI | G131: per lamp | H131: 1.45 | I131: Program Tracking Data | K131: =ROUND(($AF131-$AB131)/1000*$U131*$AS131*$BA131,4) -> 81.5414 | L131: Calculated Value | N131: =K131/U131 -> 0.0329460202 | O131: 0.273 | P131: IL TRM v7 vol3 | Q131: 274 | R131: =ROUND(($AF131-$AB131)/1000*$O131*$AW131*$BA131,4) -> 0.009 | S131: Calculated Value | U131: 2475 | V131: IL TRM v7 vol3 - Exterior | W131: 271 | X131: 6.1 | Y131: IL TRM v7 vol3 | Z131: 268 | AA131: LED (watts) | AB131: 9 | AC131: Program Tracking Data | AE131: EISA tier 1 compliant Halogen (watts) | AF131: 43 | AG131: Program Tracking Database | AI131: =ROUND(($AF131-$AB131)/1000*$U131*$AS131*$BA131,4) | AJ131: =ROUND(($AF131-$AB131)/1000*$O131*$AW131*$BA131,4) | AK131: IL TRM v7 vol3 | AL131: 269, 273 | AM131: 2020-04-01 | AS131: 1 | AT131: Waste Heat Factor (energy) | AU131: IL TRM v7 vol3 - exterior value | AV131: 271 | AW131: 1 | AX131: Waste Heat Factor (demand) | AY131: IL TRM v7 vol3 - Exterior | AZ131: 274 | BA131: 0.969 | BB131: ISR | BC131: IL TRM v7 vol3 | BD131: 270
A132: Income-Eligible Multi-Family | B132: Air Sealing (Infiltration reduction) - 30% MF LI DI electric furnace base/electric resistance | C132: 441 | D132: Multi-Family | E132: HVAC - Shell | G132: per sq ft (floor area) | H132: 0.12 | I132: Program tracking data, with 50% co-delivery costs shared with Spire Missouri | K132: =ROUND(0.285,4) -> 0.285 | L132: Calculated Value | O132: 0 | P132: Calculated Value | R132: =ROUND(O132*K132,4) -> 0 | S132: No cooling savings, no coincident savings | X132: 15 | Y132: MO TRM 2017 | Z132: 162 | AA132: air leaks are detected and sealed | AE132: air leaks | AI132: =ROUND(0.285,4) | AJ132: =ROUND(O132*K132,4) | AM132: 2020-01-01 | AN132: 2020-03-31 | AS132: 3263 | AT132: Square footage installed | AU132: PY2016 average
A133: Income-Eligible Multi-Family | B133: Air Sealing (Infiltration reduction) - 30% MF LI DI electric furnace base/electric resistance | C133: 441.1 | D133: Multi-Family | E133: HVAC - Shell | G133: per sq ft (floor area) | H133: 0.12 | I133: Program tracking data, with 50% co-delivery costs shared with Spire Missouri | K133: =ROUND((((AF133-AB133)/AS133)*AW133*AP133*BA133) / (BE133*BI133),4) -> 2524.7343 | L133: Calculated Value | O133: 0 | P133: Calculated Value | R133: =ROUND(O133*K133,4) -> 0 | S133: No cooling savings, no coincident savings | X133: 15 | Y133: MO TRM 2017 | Z133: 295 | AA133: Efficient CFM | AB133: 3139.44 | AC133: Calculated Value from Tracking Data | AE133: Baseline CFM | AF133: 4428.85 | AG133: Calculated Value from Tracking Data | AI133: =ROUND((((AF133-AB133)/AS133)*AW133*AP133*BA133) / (BE133*BI133),4) | AJ133: =ROUND(O133*K133,4) | AK133: MO TRM 2017 vol 2 | AL133: 165 | AM133: 2020-04-01 | AO133: 1445 | AP133: 5155 | AQ133: MO TRM and Navigant Analysis | AS133: 20 | AT133: N_heat for 1.5 story building in Kansas City, MO | AU133: MO TRM 2017 vol 2 | AV133: 165 | AW133: =60*24 -> 1440 | AX133: Convert CFM to cubic ft per day | AY133: MO TRM 2017 vol 2 | AZ133: 163 | BA133: 0.018 | BB133: Specific heat capacity of air | BC133: MO TRM 2017 vol 2 | BD133: 164 | BE133: 1 | BF133: Efficiency (effective COP estimate) of electric resistance heating from MO TRM | BG133: MO TRM 2017 vol 2 | BH133: 166 | BI133: 3412 | BJ133: Convert Btu to kWh | BK133: MO TRM 2017 vol 2 | BL133: 166
A134: Income-Eligible Multi-Family | B134: Air Sealing (Infiltration reduction) - 30% MF LI DI ASHP base- Heating Only | C134: 442 | D134: Multi-Family | E134: HVAC - Shell | G134: per sq ft (floor area) | H134: 0.12 | I134: Program tracking data, with 50% co-delivery costs shared with Spire Missouri | K134: =ROUND(0.208,4) -> 0.208 | L134: Calculated Value | O134: 0 | P134: Calculated Value | R134: =ROUND(O134*K134,4) -> 0 | S134: No cooling savings, no coincident savings | X134: 15 | Y134: MO TRM 2017 | Z134: 162 | AA134: air leaks are detected and sealed | AE134: air leaks | AI134: =ROUND(0.208,4) | AJ134: =ROUND(O134*K134,4) | AM134: 2020-01-01 | AN134: 2020-03-31 | AS134: 3263 | AT134: Square footage installed | AU134: PY2016 average
A135: Income-Eligible Multi-Family | B135: Air Sealing (Infiltration reduction) - 30% MF LI DI ASHP base- Heating Only | C135: 442.1 | D135: Multi-Family | E135: HVAC - Shell | G135: per sq ft (floor area) | H135: 0.12 | I135: Program tracking data, with 50% co-delivery costs shared with Spire Missouri | K135: =ROUND((((AF135-AB135)/AS135)*AW135*AP135*BA135) / (BE135*BI135),4) -> 1237.6149 | L135: Calculated Value | O135: 0 | P135: Calculated Value | R135: =ROUND(O135*K135,4) -> 0 | S135: No cooling savings, no coincident savings | X135: 15 | Y135: MO TRM 2017 | Z135: 295 | AA135: Efficient CFM | AB135: 3139.44 | AC135: Calculated Value from Tracking Data | AE135: Baseline CFM | AF135: 4428.85 | AG135: Calculated Value from Tracking Data | AI135: =cellformula(K135) -> =ROUND((((AF135-AB135)/AS135)*AW135*AP135*BA135) / (BE135*BI135),4) | AJ135: =cellformula(R135) -> =ROUND(O135*K135,4) | AK135: MO TRM 2017 vol 2 | AL135: 165 | AM135: 2020-04-01 | AO135: 1445 | AP135: 5155 | AQ135: MO TRM and Navigant Analysis | AS135: 20 | AT135: N_heat for 1.5 story building in Kansas City, MO | AU135: MO TRM 2017 vol 2 | AV135: 165 | AW135: =60*24 -> 1440 | AX135: Convert CFM to cubic ft per day | AY135: MO TRM 2017 vol 2 | AZ135: 163 | BA135: 0.018 | BB135: Specific heat capacity of air | BC135: MO TRM 2017 vol 2 | BD135: 164 | BE135: 2.04 | BF135: Efficiency (effective COP estimate) of ASHP, using "Heat Pump After 2015" from MO TRM | BG135: MO TRM 2017 vol 2 | BH135: 166 | BI135: 3412 | BJ135: Convert Btu to kWh | BK135: MO TRM 2017 vol 2 | BL135: 166
A136: Income-Eligible Multi-Family | B136: Air Sealing (Infiltration reduction) - 30% MF LI DI CAC or ASHP- Cooling Only | C136: 452 | D136: Multi-Family | E136: HVAC - Shell | G136: per sq ft (floor area) | H136: 0.12 | I136: Program tracking data, with 50% co-delivery costs shared with Spire Missouri | K136: =ROUND(0.043,4) -> 0.043 | L136: Calculated Value | O136: 0.0009474181 | P136: Calculated Value | R136: =ROUND(K136*O136,8) -> 4.074e-05 | S136: Calculated Value | X136: 15 | Y136: MO TRM 2017 | Z136: 162 | AA136: air leaks are detected and sealed | AE136: air leaks | AI136: =ROUND(0.043,4) | AJ136: =ROUND(K136*O136,8) | AM136: 2020-01-01 | AN136: 2020-03-31 | AS136: 3263 | AT136: Square footage installed | AU136: PY2016 average
A137: Income-Eligible Multi-Family | B137: Air Sealing (Infiltration reduction) - 30% MF LI DI CAC or ASHP- Cooling Only | C137: 452.1 | D137: Multi-Family | E137: HVAC - Shell | G137: per sq ft (floor area) | H137: 0.12 | I137: Program tracking data, with 50% co-delivery costs shared with Spire Missouri | K137: =ROUND((((AF137-AB137)/AS137)*AW137*AO137*BA137*BE137*BM137) / (BQ137*BI137),4) -> 373.6004 | L137: Calculated Value | O137: 0.0009474181 | P137: MO TRM 2017 | Q137: 167 | R137: =ROUND(K137*O137,8) -> 0.35395578 | S137: Calculated Value | U137: 738 | V137: EFLHcool, from 2017 MO TRM | W137: 122 | X137: 15 | Y137: MO TRM 2017 | Z137: 295 | AA137: Efficient CFM | AB137: 3139.44 | AC137: Calculated Value from Tracking Data | AE137: Baseline CFM | AF137: 4428.85 | AG137: Calculated Value from Tracking Data | AI137: =ROUND((((AF137-AB137)/AS137)*AW137*AO137*BA137*BE137*BM137) / (BQ137*BI137),4) | AJ137: =ROUND(K137*O137,8) | AK137: MO TRM 2017 vol 2 | AL137: 163, 167 | AM137: 2020-04-01 | AO137: 1445 | AP137: 5155 | AQ137: MO TRM and Navigant Analysis | AS137: 27.7 | AT137: N_cool for 1.5 story building in Kansas City, MO | AU137: MO TRM 2017 vol 2 | AV137: 163 | AW137: =60*24 -> 1440 | AX137: Convert CFM to cubic ft per day | AY137: MO TRM 2017 vol 2 | AZ137: 163 | BA137: 0.75 | BB137: DUA, discretionary use adjustment | BC137: MO TRM 2017 vol 2 | BD137: 164 | BE137: 0.018 | BF137: Specific heat capacity of air | BG137: MO TRM 2017 vol 2 | BH137: 164 | BI137: 14 | BJ137: Efficiency (SEER) of ASHP, using "Heat Pump After 1/1/2015" from MO TRM | BK137: MO TRM 2017 vol 2 | BL137: 164 | BM137: 4 | BN137: LM, latent multiplier to account for latent cooling demand | BO137: MO TRM 2017 vol 2 | BP137: 164 | BQ137: 1000 | BR137: Convert Btu to kBtu | BS137: MO TRM 2017 vol 2 | BT137: 164
A138: Income-Eligible Multi-Family | B138: Interior Directional LED Lamp replacing 50-70W Lamp | C138: 321 | D138: Multi-Family | E138: Lighting | G138: per lamp | H138: 1.65 | I138: IL TRM v7 vol3 | J138: 251 | K138: =ROUND((AF138-AB138)/1000*U138*AS138*BA138,4) -> 48.6547 | L138: Calculated Value | N138: =R138/O138 -> 0.05234375 | O138: 0.128 | P138: IL TRM v7 vol3 | Q138: 251 | R138: =ROUND((AF138-AB138)*AW138*BA138*O138/1000,4) -> 0.0067 | S138: Calculated Value | U138: 974 | V138: IL TRM v7 vol3 | W138: 255 | X138: 10 | Y138: IL TRM v7 vol3 | Z138: 250 | AA138: Interior Directional LED Lamp | AB138: 9.496 | AC138: IL TRM v7 vol3 | AD138: 253 | AE138: 50-70Watts Lamp | AF138: 60 | AG138: IL TRM v7 vol3 | AH138: 253 | AI138: =ROUND((AF138-AB138)/1000*U138*AS138*BA138,4) | AJ138: =ROUND((AF138-AB138)*AW138*BA138*O138/1000,4) | AK138: IL TRM v7 vol3 | AL138: 251, 259 | AM138: 2020-01-01 | AS138: 1.05 | AT138: Waste Heat Factor_Energy | AU138: IL TRM v7 vol3 | AV138: 255 | AW138: 1.1 | AX138: Waste Heat Factor_Demand | AY138: IL TRM v7 vol3 | AZ138: 259 | BA138: 0.942 | BB138: ISR | BC138: Navigant MEEIA Cycle 1 Research
A139: Income-Eligible Multi-Family | B139: Interior LED 2X4 Retrofit Kit replacing T8, T12 or T5/T5HO | C139: 322 | D139: Multi-Family | E139: Lighting | G139: per unit | H139: 26 | I139: IL TRM v7 vol3 | J139: 278 | K139: =ROUND((AF139-AB139)/1000*U139*AS139*BA139,4) -> 63.6796 | L139: Calculated Value | N139: 0.06875 | O139: 0.128 | P139: IL TRM v7 vol3 | Q139: 278 | R139: =ROUND((AF139-AB139)*AW139*BA139*O139/1000,4) -> 0.0088 | S139: Calculated Value | U139: 974 | V139: IL TRM v7 vol3 | W139: 255 | X139: 15 | Y139: IL TRM v7 vol3 | Z139: 277 | AA139: LED 2X4 Retrofit Kits | AB139: 22.4 | AC139: IL TRM v7 vol3 | AD139: 278 | AE139: 2x4 T8, T12 or T5 Fluorescents | AF139: 88.5 | AG139: IL TRM v7 vol3 | AH139: 278 | AI139: =ROUND((AF139-AB139)/1000*U139*AS139*BA139,4) | AJ139: =ROUND((AF139-AB139)*AW139*BA139*O139/1000,4) | AK139: IL TRM v7 vol3 | AL139: 278, 281 | AM139: 2020-01-01 | AS139: 1.05 | AT139: Waste Heat Factor_Energy | AU139: IL TRM v7 vol3 | AV139: 279 | AW139: 1.1 | AX139: Waste Heat Factor_Demand | AY139: IL TRM v7 vol3 | AZ139: 281 | BA139: 0.942 | BB139: ISR | BC139: Navigant MEEIA Cycle 1 Research
A140: Income-Eligible Multi-Family | B140: ECM Auto Fan Early Replacement - MF | C140: 390 | D140: Multi-Family | E140: Motor | G140: per unit | H140: 97 | I140: WI TRM 2018 | J140: 915 | K140: =ROUND(AS140*BE140*12*(1/AW140-1/BA140)*BM140+BQ140*BU140+BY140*CC140,4) -> 1084.7825 | L140: Calculated Value | N140: 0.8147058824 | O140: 0.68 | P140: WI TRM 2018 | Q140: 916 | R140: =ROUND(AS140*12*(1/CG140-1/CK140)*O140*BM140,4) -> 0.554 | S140: Calculated Value | X140: 6 | Y140: WI TRM 2018 - total is 18 years | Z140: 916 | AA140: ECM Blower Motor | AE140: Non-ECM Blower Motor | AI140: =ROUND(AS140*BE140*12*(1/AW140-1/BA140)*BM140+BQ140*BU140+BY140*CC140,4) | AJ140: =ROUND(AS140*12*(1/CG140-1/CK140)*O140*BM140,4) | AK140: WI TRM 2018 | AL140: 916 | AM140: 2020-01-01 | AS140: 2.425 | AT140: Air conditioner capacity in tons | AU140: WI TRM 2018 | AV140: 916 | AW140: 8.86 | AX140: SEERexist | AY140: This value is from IL TRM v6 vol3 but should be actual equipment SEER value. | BA140: 13 | BB140: SEERecm | BC140: WI TRM 2018 | BD140: 916 | BE140: 738 | BF140: FLH_cooling | BG140: MO TRM 2017 | BH140: 85 | BI140: 0.68 | BJ140: CF | BK140: WI TRM 2018 | BL140: 916 | BM140: 0.925 | BN140: Percentage of furnaces with AC | BO140: WI TRM 2018 | BP140: 916 | BQ140: 1376 | BR140: EFLHheat | BS140: The EFLH Cooling and Heating hours are based on a EnergyStar study that was normalized (based on HDD and CDD) to Kansas City. This was for both AC and HP units. | BU140: 0.116 | BV140: Energy savings in heating | BW140: WI TRM 2018 | BX140: 916 | BY140: 1020 | BZ140: Hours of fan-only operation | CA140: WI TRM 2018 | CB140: 916 | CC140: 0.207 | CD140: Energy savings in fan-only | CE140: WI TRM 2018 | CF140: 916 | CG140: =-0.02*AW140^2+1.12*AW140 -> 8.353208 | CH140: EERexist | CI140: Value Calculated from SEER | CK140: =-0.02*BA140^2+1.12*BA140 -> 11.18 | CL140: EERecm | CM140: Value Calculated from SEER
A141: Income-Eligible Multi-Family | B141: ECM Auto Fan Early Replacement (future) - MF | C141: 391 | D141: Multi-Family | E141: Motor | G141: per unit | H141: 0 | I141: WI TRM 2018 | J141: 915 | K141: =ROUND(AS141*BE141*12*(1/AW141-1/BA141)*BM141+BQ141*BU141+BY141*CC141,4) -> 498.0965 | L141: Calculated Value | N141: 0.1413235294 | O141: 0.68 | P141: WI TRM 2018 | Q141: 916 | R141: =ROUND(AS141*12*(1/CG141-1/CK141)*O141*BM141,4) -> 0.0961 | S141: Calculated Value | X141: 12 | Y141: WI TRM 2018 - total is 18 years | Z141: 916 | AA141: ECM Blower Motor | AE141: Non-ECM Blower Motor | AI141: =ROUND(AS141*BE141*12*(1/AW141-1/BA141)*BM141+BQ141*BU141+BY141*CC141,4) | AJ141: =ROUND(AS141*12*(1/CG141-1/CK141)*O141*BM141,4) | AK141: WI TRM 2018 | AL141: 916 | AM141: 2020-01-01 | AS141: 2.425 | AT141: Air conditioner capacity in tons | AU141: WI TRM 2018 | AV141: 916 | AW141: 12 | AX141: SEERbase | AY141: WI TRM 2018 | AZ141: 916 | BA141: 13 | BB141: SEERecm | BC141: WI TRM 2018 | BD141: 916 | BE141: 738 | BF141: FLH_cooling | BG141: MO TRM 2017 | BH141: 85 | BI141: 0.68 | BJ141: CF | BK141: WI TRM 2018 | BL141: 916 | BM141: 0.925 | BN141: Percentage of furnaces with AC | BO141: WI TRM 2018 | BP141: 916 | BQ141: 1376 | BR141: EFLHheat | BS141: The EFLH Cooling and Heating hours are based on a EnergyStar study that was normalized (based on HDD and CDD) to Kansas City. This was for both AC and HP units. | BU141: 0.116 | BV141: Energy savings in heating | BW141: WI TRM 2018 | BX141: 916 | BY141: 1020 | BZ141: Hours of fan-only operation | CA141: WI TRM 2018 | CB141: 916 | CC141: 0.207 | CD141: Energy savings in fan-only | CE141: WI TRM 2018 | CF141: 916 | CG141: =-0.02*AW141^2+1.12*AW141 -> 10.56 | CH141: EERbase | CI141: WI TRM 2018 | CJ141: 916 | CK141: =-0.02*BA141^2+1.12*BA141 -> 11.18 | CL141: EERecm | CM141: WI TRM 2018 | CN141: 916
A142: Income-Eligible Multi-Family | B142: ECM Continous Fan Early Replacement - MF | C142: 393 | D142: Multi-Family | E142: Motor | G142: per unit | H142: 97 | I142: WI TRM 2018 | J142: 915 | K142: =ROUND(AS142*BE142*12*(1/AW142-1/BA142)*BM142+BQ142*BU142+BY142*CC142,4) -> 1084.7825 | L142: Calculated Value | N142: 0.8147058824 | O142: 0.68 | P142: WI TRM 2018 | Q142: 916 | R142: =ROUND(AS142*12*(1/CG142-1/CK142)*O142*BM142,4) -> 0.554 | S142: Calculated Value | X142: 6 | Y142: WI TRM 2018 - total is 18 years | Z142: 916 | AA142: ECM Blower Motor | AE142: Non-ECM Blower Motor | AI142: =ROUND(AS142*BE142*12*(1/AW142-1/BA142)*BM142+BQ142*BU142+BY142*CC142,4) | AJ142: =ROUND(AS142*12*(1/CG142-1/CK142)*O142*BM142,4) | AK142: WI TRM 2018 | AL142: 916 | AM142: 2020-01-01 | AS142: 2.425 | AT142: Air conditioner capacity in tons | AU142: WI TRM 2018 | AV142: 916 | AW142: 8.86 | AX142: SEERexist | AY142: This value is from IL TRM v6 vol3 but should be actual equipment SEER value. | BA142: 13 | BB142: SEERecm | BC142: WI TRM 2018 | BD142: 916 | BE142: 738 | BF142: FLH_cooling | BG142: MO TRM 2017 | BH142: 85 | BI142: 0.68 | BJ142: CF | BK142: WI TRM 2018 | BL142: 916 | BM142: 0.925 | BN142: Percentage of furnaces with AC | BO142: WI TRM 2018 | BP142: 916 | BQ142: 1376 | BR142: EFLHheat | BS142: The EFLH Cooling and Heating hours are based on a EnergyStar study that was normalized (based on HDD and CDD) to Kansas City. This was for both AC and HP units. | BU142: 0.116 | BV142: Energy savings in heating | BW142: WI TRM 2018 | BX142: 916 | BY142: 1020 | BZ142: Hours of fan-only operation | CA142: WI TRM 2018 | CB142: 916 | CC142: 0.207 | CD142: Energy savings in fan-only | CE142: WI TRM 2018 | CF142: 916 | CG142: =-0.02*AW142^2+1.12*AW142 -> 8.353208 | CH142: EERexist | CI142: Value Calculated from SEER | CK142: =-0.02*BA142^2+1.12*BA142 -> 11.18 | CL142: EERecm | CM142: Value Calculated from SEER
A143: Income-Eligible Multi-Family | B143: ECM Continous Fan Early Replacement (future) - MF | C143: 394 | D143: Multi-Family | E143: Motor | G143: per unit | H143: 0 | I143: WI TRM 2018 | J143: 915 | K143: =ROUND(AS143*BE143*12*(1/AW143-1/BA143)*BM143+BQ143*BU143+BY143*CC143,4) -> 498.0965 | L143: Calculated Value | N143: 0.1413235294 | O143: 0.68 | P143: WI TRM 2018 | Q143: 916 | R143: =ROUND(AS143*12*(1/CG143-1/CK143)*O143*BM143,4) -> 0.0961 | S143: Calculated Value | X143: 12 | Y143: WI TRM 2018 - total is 18 years | Z143: 916 | AA143: ECM Blower Motor | AE143: Non-ECM Blower Motor | AI143: =ROUND(AS143*BE143*12*(1/AW143-1/BA143)*BM143+BQ143*BU143+BY143*CC143,4) | AJ143: =ROUND(AS143*12*(1/CG143-1/CK143)*O143*BM143,4) | AK143: WI TRM 2018 | AL143: 916 | AM143: 2020-01-01 | AS143: 2.425 | AT143: Air conditioner capacity in tons | AU143: WI TRM 2018 | AV143: 916 | AW143: 12 | AX143: SEERbase | AY143: WI TRM 2018 | AZ143: 916 | BA143: 13 | BB143: SEERecm | BC143: WI TRM 2018 | BD143: 916 | BE143: 738 | BF143: FLH_cooling | BG143: MO TRM 2017 | BH143: 85 | BI143: 0.68 | BJ143: CF | BK143: WI TRM 2018 | BL143: 916 | BM143: 0.925 | BN143: Percentage of furnaces with AC | BO143: WI TRM 2018 | BP143: 916 | BQ143: 1376 | BR143: EFLHheat | BS143: The EFLH Cooling and Heating hours are based on a EnergyStar study that was normalized (based on HDD and CDD) to Kansas City. This was for both AC and HP units. | BU143: 0.116 | BV143: Energy savings in heating | BW143: WI TRM 2018 | BX143: 916 | BY143: 1020 | BZ143: Hours of fan-only operation | CA143: WI TRM 2018 | CB143: 916 | CC143: 0.207 | CD143: Energy savings in fan-only | CE143: WI TRM 2018 | CF143: 916 | CG143: =-0.02*AW143^2+1.12*AW143 -> 10.56 | CH143: EERbase | CI143: WI TRM 2018 | CJ143: 916 | CK143: =-0.02*BA143^2+1.12*BA143 -> 11.18 | CL143: EERecm | CM143: WI TRM 2018 | CN143: 916
A144: Income-Eligible Multi-Family | B144: Refrigerator - Early Replacement - MF | C144: 405 | D144: Multi-Family | E144: Appliances | G144: per unit | H144: 451 | I144: IL TRM v6 vol3 | J144: 28 | K144: =ROUND((BI144-BE144),4) -> 696 | L144: Calculated Value | N144: =K144/U144 -> 0.07939767283 | R144: =ROUND((K144/DE144)*CW144*DA144,4) -> 0.1049 | S144: Calculated Value | U144: 8766 | V144: IL TRM v6 vol3 | W144: 30 | X144: 4 | Y144: IL TRM v6 vol3 | Z144: 28 | AA144: UEC | AB144: =BE144 -> 331.7 | AC144: IL TRM v6 vol3 | AD144: 28 | AE144: UEC | AF144: =BI144 -> 1027.7 | AG144: IL TRM v6 vol3 | AH144: 28 | AI144: =ROUND((BI144-BE144),4) | AJ144: =ROUND((K144/DE144)*CW144*DA144,4) | AK144: IL TRM v6 vol3 | AL144: 28, 30 | AM144: 2020-01-01 | AS144: 14.75 | AT144: Fresh Volume_ee (ft3) | AU144: IL TRM v6 vol3 | AV144: 31 | AW144: 6.76 | AX144: Freezer Volume_ee (ft3) | AY144: IL TRM v6 vol3 | AZ144: 31 | BA144: =ROUND(AS144+1.63*AW144,2) -> 25.77 | BB144: Adjusted Volume_ee | BC144: IL TRM v6 vol3 | BD144: 31 | BE144: =ROUND(6.11*BA144+174.2,1) -> 331.7 | BF144: UECEE | BG144: IL TRM v6 vol3 | BH144: 28 | BI144: =ROUND((83.32+(BM144*3.68)+(BQ144*485.04)+(BU144*27.15)+(BY144*406.78)+(CC144*161.86)+(CG144*CK144*15.37)+(CO144*CK144-11.07))*CS144,1) -> 1027.7 | BJ144: UECEXIST | BK144: IL TRM v6 vol3 | BL144: 28 | BM144: 10 | BN144: Age | BO144: IL TRM v6 vol3 | BP144: 30 | BQ144: 0 | BR144: Pre-1990 | BS144: IL TRM v6 vol3 | BT144: 30 | BU144: 21.5 | BV144: Size (ft3) | BW144: IL TRM v6 vol3 | BX144: 30 | BY144: 1 | BZ144: Side-by-side | CA144: IL TRM v6 vol3 | CB144: 30 | CC144: 1 | CD144: Proportion of Primary Appliances | CE144: IL TRM v6 vol3 | CF144: 30 | CG144: =1570/365 -> 4.301369863 | CH144: CDD/365 | CI144: IL TRM v6 vol3 | CJ144: 30 | CK144: 0 | CL144: Unconditioned | CM144: IL TRM v6 vol3 | CN144: 30 | CO144: =4379/365 -> 11.99726027 | CP144: HDD/365 | CQ144: IL TRM v6 vol3 | CR144: 30 | CS144: =ROUND(0.814729665,4) -> 0.8147 | CT144: Part Use Factor | CU144: IL TRM v6 vol3 | CV144: 29 | CW144: 1.25 | CX144: TAF | CY144: IL TRM v6 vol3 | CZ144: 30 | DA144: 1.057 | DB144: LSAF | DC144: IL TRM v6 vol3 | DD144: 31 | DE144: 8766 | DF144: Hours | DG144: IL TRM v6 vol3 | DH144: 30
A145: Income-Eligible Multi-Family | B145: Refrigerator - Early Replacement (future) - MF | C145: 406 | D145: Multi-Family | E145: Appliances | G145: per measure | H145: 0 | I145: IL TRM v6 vol3 | J145: 28 | K145: =ROUND((BI145-BE145),4) -> 36.9 | L145: Calculated Value | R145: =ROUND((K145/BU145)*BM145*BQ145,4) -> 0.0056 | S145: Calculated Value | U145: 8766 | V145: IL TRM v6 vol3 | W145: 30 | X145: 8 | Y145: IL TRM v6 vol3 | Z145: 28 | AA145: UEC | AB145: =BE145 -> 331.7 | AC145: IL TRM v6 vol3 | AD145: 30 | AE145: UEC | AF145: =BI145 -> 368.6 | AG145: IL TRM v6 vol3 | AH145: 30 | AI145: =ROUND((BI145-BE145),4) | AJ145: =ROUND((K145/BU145)*BM145*BQ145,4) | AK145: IL TRM v6 vol3 | AL145: 28, 30 | AM145: 2020-01-01 | AS145: 14.75 | AT145: Fresh Volume_ee (ft3) | AU145: IL TRM v6 vol3 | AV145: 31 | AW145: 6.76 | AX145: Freezer Volume_ee (ft3) | AY145: IL TRM v6 vol3 | AZ145: 31 | BA145: =ROUND(AS145+1.63*AW145,2) -> 25.77 | BB145: Adjusted Volume_ee | BC145: IL TRM v6 vol3 | BD145: 31 | BE145: =ROUND(6.11*BA145+174.2,1) -> 331.7 | BF145: UECEE | BG145: IL TRM v6 vol3 | BH145: 30 | BI145: =ROUND(6.79*BA145+193.6,1) -> 368.6 | BJ145: UECBASE | BK145: IL TRM v6 vol3 | BL145: 30 | BM145: 1.25 | BN145: TAF | BO145: IL TRM v6 vol3 | BP145: 30 | BQ145: 1.057 | BR145: LSAF | BS145: IL TRM v6 vol3 | BT145: 31 | BU145: 8766 | BV145: Hours | BW145: IL TRM v6 vol3 | BX145: 30
A146: Income-Eligible Multi-Family | B146: Commercial Grade Washing Machines | C146: 407 | D146: Common Area MF | E146: Appliances | G146: per unit | H146: 65 | I146: IL TRM v6 vol3 | J146: 8 | K146: =ROUND((AS146*1/AW146*BA146*(BE146+(BI146*BM146)+(BQ146*BU146)))-(AS146*1/BY146*BA146*(CC146+(CG146*CK146)+(CO146*CS146))),4) -> 162.7706 | L146: Calculated Value | N146: =K146/U146 -> 0.5517647458 | O146: 0.038 | P146: IL TRM v6 vol3 | Q146: 11 | R146: =ROUND(K146/CW146*DA146,4) -> 0.021 | S146: Calculated Value | U146: 295 | V146: IL TRM v6 vol3 | W146: 11 | X146: 14 | Y146: IL TRM v6 vol3 | Z146: 8 | AA146: IMEF | AB146: 2.26 | AC146: IL TRM v6 vol3 | AD146: 10 | AE146: IMEF | AF146: 1.66 | AG146: IL TRM v6 vol3 | AH146: 9 | AI146: =ROUND((AS146*1/AW146*BA146*(BE146+(BI146*BM146)+(BQ146*BU146)))-(AS146*1/BY146*BA146*(CC146+(CG146*CK146)+(CO146*CS146))),4) | AJ146: =ROUND(K146/CW146*DA146,4) | AK146: IL TRM v6 vol3 | AL146: 10, 11 | AM146: 2020-01-01 | AS146: 3.45 | AT146: Capacity | AU146: IL TRM v6 vol3 | AV146: 9 | AW146: 1.66 | AX146: IMEFbase | AY146: IL TRM v6 vol3 | AZ146: 9 | BA146: 295 | BB146: Ncycles | BC146: IL TRM v6 vol3 | BD146: 9 | BE146: 0.076 | BF146: %Cwbase | BG146: IL TRM v6 vol3 | BH146: 10 | BI146: 0.312 | BJ146: %DHWbase | BK146: IL TRM v6 vol3 | BL146: 10 | BM146: 1 | BN146: %Electric_DHW | BO146: IL TRM v6 vol3 | BP146: 10 | BQ146: 0.612 | BR146: %Dryerbase | BS146: IL TRM v6 vol3 | BT146: 10 | BU146: 1 | BV146: %Electric_dryer | BW146: IL TRM v6 vol3 | BX146: 10 | BY146: 2.26 | BZ146: IMEFeff | CA146: IL TRM v6 vol3 | CB146: 10 | CC146: 0.081 | CD146: %Cweff | CE146: IL TRM v6 vol3 | CF146: 10 | CG146: 0.234 | CH146: %DHWeff | CI146: IL TRM v6 vol3 | CJ146: 10 | CK146: 1 | CL146: %Electric_DHW | CM146: IL TRM v6 vol3 | CN146: 10 | CO146: 0.685 | CP146: %Dryereff | CQ146: IL TRM v6 vol3 | CR146: 10 | CS146: 1 | CT146: %Electric_Dryer | CU146: IL TRM v6 vol3 | CV146: 10 | CW146: 295 | CX146: Hours | CY146: IL TRM v6 vol3 | CZ146: 11 | DA146: 0.038 | DB146: CF | DC146: IL TRM v6 vol3 | DD146: 9
A147: Income-Eligible Multi-Family | B147: Commercial Grade Dryers | C147: 408 | D147: Common Area MF | E147: Appliances | G147: per unit | H147: 152 | I147: IL TRM v6 vol3 | J147: 46 | K147: =ROUND((AS147/AW147-AS147/BA147)*BE147*BI147,4) -> 160.4368 | L147: Calculated Value | N147: =K147/U147 -> 0.5669144876 | O147: 0.038 | P147: IL TRM v6 vol3 | Q147: 48 | R147: =ROUND(K147/BM147*BQ147,4) -> 0.0215 | S147: Calculated Value | U147: 283 | V147: IL TRM v6 vol3 | W147: 48 | X147: 14 | Y147: IL TRM v6 vol3 | Z147: 48 | AA147: CEF | AB147: 3.93 | AC147: IL TRM v6 vol3 | AD147: 47 | AE147: CEF | AF147: 3.11 | AG147: IL TRM v6 vol3 | AH147: 47 | AI147: =ROUND((AS147/AW147-AS147/BA147)*BE147*BI147,4) | AJ147: =ROUND(K147/BM147*BQ147,4) | AK147: IL TRM v6 vol3 | AL147: 47, 48 | AM147: 2020-01-01 | AS147: 8.45 | AT147: Load | AU147: IL TRM v6 vol3 | AV147: 47 | AW147: 3.11 | AX147: CEF_base | AY147: IL TRM v6 vol3 | AZ147: 47 | BA147: 3.93 | BB147: CEF_eff | BC147: IL TRM v6 vol3 | BD147: 47 | BE147: 283 | BF147: N_cycles | BG147: IL TRM v6 vol3 | BH147: 48 | BI147: 1 | BJ147: %Electric | BK147: IL TRM v6 vol3 | BL147: 48 | BM147: 283 | BN147: Hours | BO147: IL TRM v6 vol3 | BP147: 48 | BQ147: 0.038 | BR147: CF | BS147: IL TRM v6 vol3 | BT147: 46
A148: Income-Eligible Multi-Family | B148: Shower Start 1.5 gpm electric water heater | C148: 409 | D148: Multi-Family | E148: Hot Water | G148: per unit | H148: 30 | I148: IL TRM v5 vol3 | J148: 198 | K148: =ROUND((((AF148*AW148)*BA148*BE148*BI148)/BM148)*AS147*BQ148,4) -> 3376.5175 | L148: Calculated Value | N148: =K148/U148 -> 119.3115724 | O148: 0.0022 | P148: IL TRM v5 vol3 | Q148: 202 | R148: =ROUND((((AF148-AB148)*AW148*BA148*365.25)*AS148*BQ148)/U148*O148,4) -> 0.0069 | S148: Calculated Value | U148: 28.3 | V148: IL TRM v5 vol3 | W148: 202 | X148: 10 | Y148: IL TRM v5 vol3 | Z148: 198 | AA148: Low Flow (GPM) | AB148: 1.5 | AC148: IL TRM Version 5 | AD148: 199 | AE148: Standard (GPM) | AF148: 2.67 | AG148: IL TRM Version 5 | AH148: 199 | AI148: =ROUND((((AF148*AW148)*BA148*BE148*BI148)/BM148)*AS147*BQ148,4) | AJ148: =ROUND((((AF148-AB148)*AW148*BA148*365.25)*AS148*BQ148)/U148*O148,4) | AK148: IL TRM v5 vol3 | AL148: 199, 202 | AM148: 2020-01-01 | AS148: 0.117 | AT148: kWh per gallon hot water | AU148: IL TRM v5 vol3 | AV148: 201 | AW148: 0.89 | AX148: Hot water waste time avoided | AY148: IL TRM v5 vol3 | AZ148: 199 | BA148: 2.1 | BB148: Persons per household | BC148: IL TRM v5 vol3 | BD148: 200 | BE148: 0.3 | BF148: Showers per capita per day | BG148: IL TRM v5 vol3 | BH148: 200 | BI148: 365.25 | BJ148: Days per year | BK148: IL TRM v5 vol3 | BL148: 200 | BM148: 1.3 | BN148: Showers per hoursehold | BO148: IL TRM v5 vol3 | BP148: 200 | BQ148: 0.95 | BR148: In Service Rate | BS148: IL TRM v5 vol3 | BT148: 201
A149: Income-Eligible Multi-Family | B149: CAC Tune-up /Indoor Coil (Evaporator) Cleaning MF | C149: 410 | D149: Multi-Family | E149: HVAC | G149: per ton | H149: 35 | I149: WI TRM 2017 | J149: 143 | K149: =ROUND(AW149*BA149/1000*(1/(BI149*BM149)-1/BI149),4) -> 148.1408 | L149: Calculated Value | N149: =BA149/1000*(1/(BE149*BM149)-1/BE149) -> 0.2855010263 | O149: 0.9 | P149: WI TRM 2017 | Q149: 144 | R149: =ROUND(N149*O149,4) -> 0.257 | S149: Calculated Value | X149: 3 | Y149: WI TRM 2017 | Z149: 144 | AA149: Coil cleaning of packaged air conditioning unit. | AC149: WI TRM 2017 | AD149: 143 | AE149: The baseline condition is an AC system with fouled condenser coils. | AG149: WI TRM 2017 | AH149: 143 | AI149: =ROUND(AW149*BA149/1000*(1/(BI149*BM149)-1/BI149),4) | AJ149: =ROUND(N149*O149,4) | AK149: IL TRM v6 vol3 | AL149: 143, 144 | AM149: 2020-01-01 | AW149: 564 | AX149: Equivalent Full Load Hours for Mechanical Cooling | AY149: IL TRM v6 vol3 | AZ149: 127 | BA149: 36000 | BB149: Unit Cooling Capacity in Btu/hour | BC149: Installed Equipment; actual value | BE149: =-0.02*BI149^2+1.12*BI149 -> 9.2 | BF149: EER | BG149: Installed Equipment; actual nameplate EER | BI149: 10 | BJ149: SEER | BK149: Installed Equipment; actual nameplate EER | BM149: 0.932 | BN149: Condenser coil fouling efficiency degradation factor | BO149: WI TRM 2017 | BP149: 144
A150: Income-Eligible Multi-Family | B150: CAC Tune-up /Outdoor Coil (Condenser) Cleaning MF | C150: 411 | D150: Multi-Family | E150: HVAC | F150: Kits | G150: per ton | H150: 35 | I150: WI TRM 2017 | J150: 143 | K150: =ROUND(AW150*BA150/1000*(1/(BI150*BM150)-1/BI150),4) -> 148.1408 | L150: Calculated Value | N150: =BA150/1000*(1/(BE150*BM150)-1/BE150) -> 0.2855010263 | O150: 0.9 | P150: WI TRM 2017 | Q150: 144 | R150: =ROUND(N150*O150,4) -> 0.257 | S150: Calculated Value | X150: 3 | Y150: WI TRM 2017 | Z150: 144 | AA150: Coil cleaning of packaged air conditioning unit. | AC150: WI TRM 2017 | AD150: 143 | AE150: The baseline condition is an AC system with fouled condenser coils. | AG150: WI TRM 2017 | AH150: 143 | AI150: =ROUND(AW150*BA150/1000*(1/(BI150*BM150)-1/BI150),4) | AJ150: =ROUND(N150*O150,4) | AK150: IL TRM v6 vol3 | AL150: 143, 144 | AM150: 2020-01-01 | AW150: 564 | AX150: Equivalent Full Load Hours for Mechanical Cooling | AY150: IL TRM v6 vol3 | AZ150: 127 | BA150: 36000 | BB150: Unit Cooling Capacity in Btu/hour | BC150: Installed Equipment; actual value | BE150: =-0.02*BI150^2+1.12*BI150 -> 9.2 | BF150: EER | BG150: Installed Equipment; actual nameplate EER | BI150: 10 | BJ150: SEER | BK150: Installed Equipment; actual nameplate EER | BM150: 0.932 | BN150: Condenser coil fouling efficiency degradation factor | BO150: WI TRM 2017 | BP150: 144
A151: Income-Eligible Multi-Family | B151: CAC SEER 15 - Early Replacement: MF | C151: 443 | D151: Multi-Family | E151: HVAC | G151: per ton | H151: =DA151+DE151/DM151-DI151/DM151*(1+CW151)^(-X151) -> 231.514124 | I151: IL TRM v7 vol3 | J151: 77 | K151: =ROUND(((U151*AW151*(1/BA151-1/BI151))/1000),4) -> 295.2 | L151: Calculated Value | N151: =R151/O151 -> 0.3044117647 | O151: 0.68 | P151: IL TRM v6 vol3 | Q151: 73 | R151: =ROUND(((AW151*(1/BM151-1/BU151))/1000*BY151),4) -> 0.207 | S151: Calculated Value | U151: 738 | V151: EFLHcool, from 2017 MO TRM | W151: 122 | X151: 6 | Y151: IL TRM v6 vol3 | Z151: 72 | AA151: SEER | AB151: 15 | AC151: As Installed | AE151: SEER | AF151: 10 | AG151: IL TRM v6 vol3 | AH151: 74 | AI151: =ROUND(((U151*AW151*(1/BA151-1/BI151))/1000),4) | AJ151: =ROUND(((AW151*(1/BM151-1/BU151))/1000*BY151),4) | AK151: IL TRM v6 vol3 | AL151: Energy Page 73, Demand Page 75 | AM151: 2020-01-01 | AN151: 2020-03-31 | AW151: 12000 | AX151: Capacity (Btu/hr) | AY151: IL TRM v6 vol3 | AZ151: 74 | BA151: 10 | BB151: SEERexist | BC151: IL TRM v6 vol3 | BD151: 74 | BE151: 13 | BF151: SEERbase | BG151: IL TRM v6 vol3 | BH151: 74 | BI151: 15 | BJ151: SEERee | BK151: Program Tracking Data | BM151: 9.2 | BN151: EERexist | BO151: IL TRM v6 vol3 | BP151: 75 | BQ151: 11.2 | BR151: EERbase | BS151: IL TRM v6 vol3 | BT151: 75 | BU151: 12 | BV151: EERee | BW151: IL TRM v6 vol3 | BX151: 75 | BY151: 0.68 | BZ151: CF | CA151: IL TRM v6 vol3 | CB151: 75 | CW151: 0.03 | CX151: Societal Discount Rate | CY151: Evergy Standard | DA151: 952 | DB151: First Cost $/ton | DC151: IL TRM v7 vol3 | DD151: 77 | DE151: 108 | DF151: One-time per-system labor cost | DG151: IL TRM v7 vol3 | DH151: 77 | DI151: 3140 | DJ151: Deferred cost savings, per UNIT | DK151: IL TRM v7 vol3 | DL151: 78 | DM151: 3.5 | DN151: Assumed average system tons | DO151: Tracking Data
A152: Income-Eligible Multi-Family | B152: CAC SEER 15 - Early Replacement: MF | C152: 443.1 | D152: Multi-Family | E152: HVAC | G152: per ton | H152: =DA152+DE152/DM152-DI152/DM152*(1+CW152)^(-X152) -> 231.514124 | I152: IL TRM v7 vol3 | J152: 77 | K152: =ROUND(((U152*AW152*(1/((1-AS152)*BA152)-1/((1-CC152)*CG152*BI152))/1000)),4) -> 374.0186 | L152: Calculated Value | N152: 0.6666176471 | O152: 0.68 | P152: IL TRM v7 vol3 | Q152: 78 | R152: =ROUND(((AW152*(1/((1-AS152)*BM152)-1/((1-CC152)*BU152)))/1000*BY152),4) -> 0.4533 | S152: Calculated Value | U152: 738 | V152: EFLHcool, from 2017 MO TRM | W152: 122 | X152: 6 | Y152: IL TRM v6 vol3 | Z152: 77 | AA152: SEER | AB152: 15 | AC152: As Installed | AE152: SEERexist | AF152: 9.3 | AG152: IL TRM v7 vol3 | AH152: 79 | AI152: =ROUND(((U152*AW152*(1/((1-AS152)*BA152)-1/((1-CC152)*CG152*BI152))/1000)),4) | AJ152: =ROUND(((AW152*(1/((1-AS152)*BM152)-1/((1-CC152)*BU152)))/1000*BY152),4) | AK152: IL TRM v7 vol3 | AL152: 78, 80 | AM152: 2020-04-01 | AS152: 0.1 | AT152: DeratingCoolBase | AU152: IL TRM v7 vol3 | AV152: 80 | AW152: 12000 | AX152: Capacity (Btu/hr) | AY152: Variable definition | BA152: 9.3 | BB152: SEERexist | BC152: IL TRM v7 vol3 | BD152: 79 | BE152: 13 | BF152: SEERbase | BG152: IL TRM v7 vol3 | BH152: 79 | BI152: 15 | BJ152: SEERee | BK152: Program Tracking Data | BM152: 7.5 | BN152: EERexist | BO152: IL TRM v7 vol3 | BP152: 81 | BQ152: 10.5 | BR152: EERbase | BS152: IL TRM v7 vol3 | BT152: 81 | BU152: 12 | BV152: EERee | BW152: IL TRM v7 vol3 | BX152: 81 | BY152: 0.68 | BZ152: CF | CA152: IL TRM v7 vol3 | CB152: 81 | CC152: 0.1 | CD152: DeratingCoolEff | CE152: IL TRM v7 vol3 | CF152: 80 | CG152: 0.959 | CH152: SEERadj | CI152: IL TRM v7 vol3 | CJ152: 80 | CW152: 0.03 | CX152: Societal Discount Rate | CY152: Evergy Standard | DA152: 952 | DB152: First Cost $/ton | DC152: IL TRM v7 vol3 | DD152: 77 | DE152: 108 | DF152: One-time per-system labor cost | DG152: IL TRM v7 vol3 | DH152: 77 | DI152: 3140 | DJ152: Deferred cost savings, per UNIT | DK152: IL TRM v7 vol3 | DL152: 78 | DM152: 3.5 | DN152: Assumed average system tons | DO152: Tracking Data
A153: Income-Eligible Multi-Family | B153: CAC SEER 15 - Early Replacement: MF (future) | C153: 444 | D153: Multi-Family | E153: HVAC | G153: per ton | H153: 0 | I153: IL TRM v7 vol3 | J153: 77 | K153: =ROUND(((U153*AW153*(1/BA153-1/BI153))/1000),4) -> 295.2 | L153: Calculated Value | N153: 0.07147058824 | O153: 0.68 | P153: IL TRM v6 vol3 | Q153: 73 | R153: =ROUND(((AW153*(1/BQ153-1/BU153))/1000*BY153),4) -> 0.0486 | S153: Calculated Value | U153: 738 | V153: EFLHcool, from 2017 MO TRM | W153: 122 | X153: 12 | Y153: IL TRM v6 vol3 | Z153: 72 | AA153: SEER | AB153: 15 | AC153: As Installed | AE153: SEER | AF153: 13 | AG153: IL TRM v6 vol3 | AH153: 74 | AI153: =ROUND(((U153*AW153*(1/BA153-1/BI153))/1000),4) | AJ153: =ROUND(((AW153*(1/BQ153-1/BU153))/1000*BY153),4) | AK153: IL TRM v6 vol3 | AL153: Energy Page 73, Demand Page 75 | AM153: 2020-01-01 | AN153: 2020-03-31 | AW153: 12000 | AX153: Capacity (Btu/hr) | AY153: IL TRM v6 vol3 | AZ153: 74 | BA153: 10 | BB153: SEERexist | BC153: IL TRM v6 vol3 | BD153: 74 | BE153: 13 | BF153: SEERbase | BG153: IL TRM v6 vol3 | BH153: 74 | BI153: 15 | BJ153: SEERee | BK153: Program Tracking Data | BM153: 9.2 | BN153: EERexist | BO153: IL TRM v6 vol3 | BP153: 75 | BQ153: 11.2 | BR153: EERbase | BS153: IL TRM v6 vol3 | BT153: 75 | BU153: 12 | BV153: EERee | BW153: IL TRM v6 vol3 | BX153: 75 | BY153: 0.68 | BZ153: CF | CA153: IL TRM v6 vol3 | CB153: 75 | CW153: 0.03 | CX153: Societal Discount Rate | CY153: Evergy Standard | DA153: 952 | DB153: First Cost $/ton | DC153: IL TRM v7 vol3 | DD153: 77 | DE153: 108 | DF153: One-time per-system labor cost | DG153: IL TRM v7 vol3 | DH153: 77 | DI153: 3140 | DJ153: Deferred cost savings, per UNIT | DK153: IL TRM v7 vol3 | DL153: 78 | DM153: 3.5 | DN153: Assumed average system tons | DO153: Tracking Data
A154: Income-Eligible Multi-Family | B154: CAC SEER 15 - Early Replacement: MF (future) | C154: 444.1 | D154: Multi-Family | E154: HVAC | G154: per ton | H154: 0 | I154: IL TRM v7 vol3 | J154: 77 | K154: =ROUND(((U154*AW154*(1/((1-AS154)*BA154)-1/((1-CC154)*CG154*BI154))/1000)),4) -> 374.0186 | L154: Calculated Value | N154: 0.6666176471 | O154: 0.68 | P154: IL TRM v7 vol3 | Q154: 78 | R154: =ROUND(((AW154*(1/((1-AS154)*BM154)-1/((1-CC154)*BU154)))/1000*BY154),4) -> 0.4533 | S154: Calculated Value | U154: 738 | V154: EFLHcool, from 2017 MO TRM | W154: 122 | X154: 12 | Y154: IL TRM v6 vol3 | Z154: 77 | AA154: SEER | AB154: 15 | AC154: As Installed | AE154: SEERbase | AF154: 13 | AG154: IL TRM v7 vol3 | AH154: 79 | AI154: =ROUND(((U154*AW154*(1/((1-AS154)*BA154)-1/((1-CC154)*CG154*BI154))/1000)),4) | AJ154: =ROUND(((AW154*(1/((1-AS154)*BM154)-1/((1-CC154)*BU154)))/1000*BY154),4) | AK154: IL TRM v7 vol3 | AL154: 78, 80 | AM154: 2020-04-01 | AS154: 0.1 | AT154: DeratingCoolBase | AU154: IL TRM v7 vol3 | AV154: 80 | AW154: 12000 | AX154: Capacity (Btu/hr) | AY154: Variable definition | BA154: 9.3 | BB154: SEERexist | BC154: IL TRM v7 vol3 | BD154: 79 | BE154: 13 | BF154: SEERbase | BG154: IL TRM v7 vol3 | BH154: 79 | BI154: 15 | BJ154: SEERee | BK154: Program Tracking Data | BM154: 7.5 | BN154: EERexist | BO154: IL TRM v7 vol3 | BP154: 81 | BQ154: 10.5 | BR154: EERbase | BS154: IL TRM v7 vol3 | BT154: 81 | BU154: 12 | BV154: EERee | BW154: IL TRM v7 vol3 | BX154: 81 | BY154: 0.68 | BZ154: CF | CA154: IL TRM v7 vol3 | CB154: 81 | CC154: 0.1 | CD154: DeratingCoolEff | CE154: IL TRM v7 vol3 | CF154: 80 | CG154: 0.959 | CH154: SEERadj | CI154: IL TRM v7 vol3 | CJ154: 80 | CW154: 0.03 | CX154: Societal Discount Rate | CY154: Evergy Standard | DA154: 952 | DB154: First Cost $/ton | DC154: IL TRM v7 vol3 | DD154: 77 | DE154: 108 | DF154: One-time per-system labor cost | DG154: IL TRM v7 vol3 | DH154: 77 | DI154: 3140 | DJ154: Deferred cost savings, per UNIT | DK154: IL TRM v7 vol3 | DL154: 78 | DM154: 3.5 | DN154: Assumed average system tons | DO154: Tracking Data
A155: Income-Eligible Multi-Family | B155: CAC SEER 15 - Replace at Fail: MF | C155: 445 | D155: Multi-Family | E155: HVAC | G155: per ton | H155: 108 | I155: IL TRM v7 vol3 | J155: 77 | K155: =ROUND(((U155*AW155*(1/BA155-1/BI155))/1000),4) -> 295.2 | L155: Calculated Value | N155: 0.07147058824 | O155: 0.68 | P155: IL TRM v6 vol3 | Q155: 73 | R155: =ROUND(((AW155*(1/BQ155-1/BU155))/1000*BY155),4) -> 0.0486 | S155: Calculated Value | U155: 738 | V155: EFLHcool, from 2017 MO TRM | W155: 122 | X155: 18 | Y155: IL TRM v6 vol3 | Z155: 72 | AA155: SEER | AB155: 15 | AC155: As Installed | AE155: SEER | AF155: 13 | AG155: IL TRM v6 vol3 | AH155: 74 | AI155: =ROUND(((U155*AW155*(1/BA155-1/BI155))/1000),4) | AJ155: =ROUND(((AW155*(1/BQ155-1/BU155))/1000*BY155),4) | AK155: IL TRM v6 vol3 | AL155: Energy Page 73, Demand Page 75 | AM155: 2020-01-01 | AN155: 2020-03-31 | AW155: 12000 | AX155: Capacity (Btu/hr) | AY155: IL TRM v6 vol3 | AZ155: 74 | BA155: 10 | BB155: SEERexist | BC155: IL TRM v6 vol3 | BD155: 74 | BE155: 13 | BF155: SEERbase | BG155: IL TRM v6 vol3 | BH155: 74 | BI155: 15 | BJ155: SEERee | BK155: Program Tracking Data | BM155: 9.2 | BN155: EERexist | BO155: IL TRM v6 vol3 | BP155: 75 | BQ155: 11.2 | BR155: EERbase | BS155: IL TRM v6 vol3 | BT155: 75 | BU155: 12 | BV155: EERee | BW155: IL TRM v6 vol3 | BX155: 75 | BY155: 0.68 | BZ155: CF | CA155: IL TRM v6 vol3 | CB155: 75
A156: Income-Eligible Multi-Family | B156: CAC SEER 15 - Replace at Fail: MF | C156: 445.1 | D156: Multi-Family | E156: HVAC | G156: per ton | H156: =108/3.5 -> 30.85714286 | I156: IL TRM v7 vol3 | J156: 77 | K156: =ROUND(((U156*AW156*(1/((1-AS156)*BA156)-1/((1-CC156)*CG156*BI156))/1000)),4) -> 374.0186 | L156: Calculated Value | N156: 0.6666176471 | O156: 0.68 | P156: IL TRM v7 vol3 | Q156: 78 | R156: =ROUND(((AW156*(1/((1-AS156)*BM156)-1/((1-CC156)*BU156)))/1000*BY156),4) -> 0.4533 | S156: Calculated Value | U156: 738 | V156: EFLHcool, from 2017 MO TRM | W156: 122 | X156: 18 | Y156: IL TRM v6 vol3 | Z156: 77 | AA156: SEER | AB156: 15 | AC156: As Installed | AE156: SEERbase | AF156: 13 | AG156: IL TRM v7 vol3 | AH156: 79 | AI156: =ROUND(((U156*AW156*(1/((1-AS156)*BA156)-1/((1-CC156)*CG156*BI156))/1000)),4) | AJ156: =ROUND(((AW156*(1/((1-AS156)*BM156)-1/((1-CC156)*BU156)))/1000*BY156),4) | AK156: IL TRM v7 vol3 | AL156: 78, 80 | AM156: 2020-04-01 | AS156: 0.1 | AT156: DeratingCoolBase | AU156: IL TRM v7 vol3 | AV156: 80 | AW156: 12000 | AX156: Capacity (Btu/hr) | AY156: Variable definition | BA156: 9.3 | BB156: SEERexist | BC156: IL TRM v7 vol3 | BD156: 79 | BE156: 13 | BF156: SEERbase | BG156: IL TRM v7 vol3 | BH156: 79 | BI156: 15 | BJ156: SEERee | BK156: Program Tracking Data | BM156: 7.5 | BN156: EERexist | BO156: IL TRM v7 vol3 | BP156: 81 | BQ156: 10.5 | BR156: EERbase | BS156: IL TRM v7 vol3 | BT156: 81 | BU156: 12 | BV156: EERee | BW156: IL TRM v7 vol3 | BX156: 81 | BY156: 0.68 | BZ156: CF | CA156: IL TRM v7 vol3 | CB156: 81 | CC156: 0.1 | CD156: DeratingCoolEff | CE156: IL TRM v7 vol3 | CF156: 80 | CG156: 0.959 | CH156: SEERadj | CI156: IL TRM v7 vol3 | CJ156: 80
A157: Income-Eligible Multi-Family | B157: CAC SEER 16 - Early Replacement: MF | C157: 446 | D157: Multi-Family | E157: HVAC | G157: per ton | H157: =DA157+DE157/DM157-DI157/DM157*(1+CW157)^(-X157) -> 263.7998383 | I157: IL TRM v7 vol3 | J157: 77 | K157: =ROUND(((U157*AW157*(1/BA157-1/BI157))/1000),4) -> 332.1 | L157: Calculated Value | N157: 0.3044117647 | O157: 0.68 | P157: IL TRM v6 vol3 | Q157: 73 | R157: =ROUND(((AW157*(1/BM157-1/BU157))/1000*BY157),4) -> 0.207 | S157: Calculated Value | U157: 738 | V157: EFLHcool, from 2017 MO TRM | W157: 122 | X157: 6 | Y157: IL TRM v6 vol3 | Z157: 72 | AA157: SEER | AB157: 16 | AC157: As Installed | AE157: SEER | AF157: 10 | AG157: IL TRM v6 vol3 | AH157: 74 | AI157: =ROUND(((U157*AW157*(1/BA157-1/BI157))/1000),4) | AJ157: =ROUND(((AW157*(1/BM157-1/BU157))/1000*BY157),4) | AK157: IL TRM v6 vol3 | AL157: Energy Page 73, Demand Page 75 | AM157: 2020-01-01 | AN157: 2020-03-31 | AW157: 12000 | AX157: Capacity (Btu/hr) | AY157: IL TRM v6 vol3 | AZ157: 74 | BA157: 10 | BB157: SEERexist | BC157: IL TRM v6 vol3 | BD157: 74 | BE157: 13 | BF157: SEERbase | BG157: IL TRM v6 vol3 | BH157: 74 | BI157: 16 | BJ157: SEERee | BK157: Program Tracking Data | BM157: 9.2 | BN157: EERexist | BO157: IL TRM v6 vol3 | BP157: 75 | BQ157: 11.2 | BR157: EERbase | BS157: IL TRM v6 vol3 | BT157: 75 | BU157: 12 | BV157: EERee | BW157: IL TRM v6 vol3 | BX157: 75 | BY157: 0.68 | BZ157: CF | CA157: IL TRM v6 vol3 | CB157: 75 | CW157: 0.03 | CX157: Societal Discount Rate | CY157: Evergy Standard | DA157: 952 | DB157: First Cost $/ton | DC157: IL TRM v7 vol3 | DD157: 77 | DE157: 221 | DF157: One-time per-system labor cost | DG157: IL TRM v7 vol3 | DH157: 77 | DI157: 3140 | DJ157: Deferred cost savings, per UNIT | DK157: IL TRM v7 vol3 | DL157: 78 | DM157: 3.5 | DN157: Assumed average system tons | DO157: Tracking Data
A158: Income-Eligible Multi-Family | B158: CAC SEER 16 - Early Replacement: MF | C158: 446.1 | D158: Multi-Family | E158: HVAC | G158: per ton | H158: =DA158+DE158/DM158-DI158/DM158*(1+CW158)^(-X158) -> 263.7998383 | I158: IL TRM v7 vol3 | J158: 77 | K158: =ROUND(((U158*AW158*(1/((1-AS158)*BA158)-1/((1-CC158)*CG158*BI158))/1000)),4) -> 416.7715 | L158: Calculated Value | N158: 0.6666176471 | O158: 0.68 | P158: IL TRM v7 vol3 | Q158: 78 | R158: =ROUND(((AW158*(1/((1-AS158)*BM158)-1/((1-CC158)*BU158)))/1000*BY158),4) -> 0.4533 | S158: Calculated Value | U158: 738 | V158: EFLHcool, from 2017 MO TRM | W158: 122 | X158: 6 | Y158: IL TRM v6 vol3 | Z158: 77 | AA158: SEER | AB158: 16 | AC158: As Installed | AE158: SEERexist | AF158: 9.3 | AG158: IL TRM v7 vol3 | AH158: 79 | AI158: =ROUND(((U158*AW158*(1/((1-AS158)*BA158)-1/((1-CC158)*CG158*BI158))/1000)),4) | AJ158: =ROUND(((AW158*(1/((1-AS158)*BM158)-1/((1-CC158)*BU158)))/1000*BY158),4) | AK158: IL TRM v7 vol3 | AL158: 78, 80 | AM158: 2020-04-01 | AS158: 0.1 | AT158: DeratingCoolBase | AU158: IL TRM v7 vol3 | AV158: 80 | AW158: 12000 | AX158: Capacity (Btu/hr) | AY158: Variable definition | BA158: 9.3 | BB158: SEERexist | BC158: IL TRM v7 vol3 | BD158: 79 | BE158: 13 | BF158: SEERbase | BG158: IL TRM v7 vol3 | BH158: 79 | BI158: 16 | BJ158: SEERee | BK158: Program Tracking Data | BM158: 7.5 | BN158: EERexist | BO158: IL TRM v7 vol3 | BP158: 81 | BQ158: 10.5 | BR158: EERbase | BS158: IL TRM v7 vol3 | BT158: 81 | BU158: 12 | BV158: EERee | BW158: IL TRM v7 vol3 | BX158: 81 | BY158: 0.68 | BZ158: CF | CA158: IL TRM v7 vol3 | CB158: 81 | CC158: 0.1 | CD158: DeratingCoolEff | CE158: IL TRM v7 vol3 | CF158: 80 | CG158: 0.959 | CH158: SEERadj | CI158: IL TRM v7 vol3 | CJ158: 80 | CW158: 0.03 | CX158: Societal Discount Rate | CY158: Evergy Standard | DA158: 952 | DB158: First Cost $/ton | DC158: IL TRM v7 vol3 | DD158: 77 | DE158: 221 | DF158: One-time per-system labor cost | DG158: IL TRM v7 vol3 | DH158: 77 | DI158: 3140 | DJ158: Deferred cost savings, per UNIT | DK158: IL TRM v7 vol3 | DL158: 78 | DM158: 3.5 | DN158: Assumed average system tons | DO158: Tracking Data
A159: Income-Eligible Multi-Family | B159: CAC SEER 16 - Early Replacement: MF (future) | C159: 447 | D159: Multi-Family | E159: HVAC | G159: per ton | H159: 0 | I159: IL TRM v7 vol3 | J159: 77 | K159: =ROUND(((U159*AW159*(1/BA159-1/BI159))/1000),4) -> 332.1 | L159: Calculated Value | N159: 0.07147058824 | O159: 0.68 | P159: IL TRM v6 vol3 | Q159: 73 | R159: =ROUND(((AW159*(1/BQ159-1/BU159))/1000*BY159),4) -> 0.0486 | S159: Calculated Value | U159: 738 | V159: EFLHcool, from 2017 MO TRM | W159: 122 | X159: 12 | Y159: IL TRM v6 vol3 | Z159: 72 | AA159: SEER | AB159: 16 | AC159: As Installed | AE159: SEER | AF159: 13 | AG159: IL TRM v6 vol3 | AH159: 74 | AI159: =ROUND(((U159*AW159*(1/BA159-1/BI159))/1000),4) | AJ159: =ROUND(((AW159*(1/BQ159-1/BU159))/1000*BY159),4) | AK159: IL TRM v6 vol3 | AL159: Energy Page 73, Demand Page 75 | AM159: 2020-01-01 | AN159: 2020-03-31 | AW159: 12000 | AX159: Capacity (Btu/hr) | AY159: IL TRM v6 vol3 | AZ159: 74 | BA159: 10 | BB159: SEERexist | BC159: IL TRM v6 vol3 | BD159: 74 | BE159: 13 | BF159: SEERbase | BG159: IL TRM v6 vol3 | BH159: 74 | BI159: 16 | BJ159: SEERee | BK159: Program Tracking Data | BM159: 9.2 | BN159: EERexist | BO159: IL TRM v6 vol3 | BP159: 75 | BQ159: 11.2 | BR159: EERbase | BS159: IL TRM v6 vol3 | BT159: 75 | BU159: 12 | BV159: EERee | BW159: IL TRM v6 vol3 | BX159: 75 | BY159: 0.68 | BZ159: CF | CA159: IL TRM v6 vol3 | CB159: 75 | CW159: 0.03 | CX159: Societal Discount Rate | CY159: Evergy Standard | DA159: 952 | DB159: First Cost $/ton | DC159: IL TRM v7 vol3 | DD159: 77 | DE159: 221 | DF159: One-time per-system labor cost | DG159: IL TRM v7 vol3 | DH159: 77 | DI159: 3140 | DJ159: Deferred cost savings, per UNIT | DK159: IL TRM v7 vol3 | DL159: 78 | DM159: 3.5 | DN159: Assumed average system tons | DO159: Tracking Data
A160: Income-Eligible Multi-Family | B160: CAC SEER 16 - Early Replacement: MF (future) | C160: 447.1 | D160: Multi-Family | E160: HVAC | G160: per ton | H160: 0 | I160: IL TRM v7 vol3 | J160: 77 | K160: =ROUND(((U160*AW160*(1/((1-AS160)*BA160)-1/((1-CC160)*CG160*BI160))/1000)),4) -> 416.7715 | L160: Calculated Value | N160: 0.6666176471 | O160: 0.68 | P160: IL TRM v7 vol3 | Q160: 78 | R160: =ROUND(((AW160*(1/((1-AS160)*BM160)-1/((1-CC160)*BU160)))/1000*BY160),4) -> 0.4533 | S160: Calculated Value | U160: 738 | V160: EFLHcool, from 2017 MO TRM | W160: 122 | X160: 12 | Y160: IL TRM v6 vol3 | Z160: 77 | AA160: SEER | AB160: 16 | AC160: As Installed | AE160: SEERbase | AF160: 13 | AG160: IL TRM v7 vol3 | AH160: 79 | AI160: =ROUND(((U160*AW160*(1/((1-AS160)*BA160)-1/((1-CC160)*CG160*BI160))/1000)),4) | AJ160: =ROUND(((AW160*(1/((1-AS160)*BM160)-1/((1-CC160)*BU160)))/1000*BY160),4) | AK160: IL TRM v7 vol3 | AL160: 78, 80 | AM160: 2020-04-01 | AS160: 0.1 | AT160: DeratingCoolBase | AU160: IL TRM v7 vol3 | AV160: 80 | AW160: 12000 | AX160: Capacity (Btu/hr) | AY160: Variable definition | BA160: 9.3 | BB160: SEERexist | BC160: IL TRM v7 vol3 | BD160: 79 | BE160: 13 | BF160: SEERbase | BG160: IL TRM v7 vol3 | BH160: 79 | BI160: 16 | BJ160: SEERee | BK160: Program Tracking Data | BM160: 7.5 | BN160: EERexist | BO160: IL TRM v7 vol3 | BP160: 81 | BQ160: 10.5 | BR160: EERbase | BS160: IL TRM v7 vol3 | BT160: 81 | BU160: 12 | BV160: EERee | BW160: IL TRM v7 vol3 | BX160: 81 | BY160: 0.68 | BZ160: CF | CA160: IL TRM v7 vol3 | CB160: 81 | CC160: 0.1 | CD160: DeratingCoolEff | CE160: IL TRM v7 vol3 | CF160: 80 | CG160: 0.959 | CH160: SEERadj | CI160: IL TRM v7 vol3 | CJ160: 80 | CW160: 0.03 | CX160: Societal Discount Rate | CY160: Evergy Standard | DA160: 952 | DB160: First Cost $/ton | DC160: IL TRM v7 vol3 | DD160: 77 | DE160: 221 | DF160: One-time per-system labor cost | DG160: IL TRM v7 vol3 | DH160: 77 | DI160: 3140 | DJ160: Deferred cost savings, per UNIT | DK160: IL TRM v7 vol3 | DL160: 78 | DM160: 3.5 | DN160: Assumed average system tons | DO160: Tracking Data
A161: Income-Eligible Multi-Family | B161: CAC SEER 16 - Replace at Fail: MF | C161: 448 | D161: Multi-Family | E161: HVAC | G161: per ton | H161: 221 | I161: IL TRM v7 vol3 | J161: 77 | K161: =ROUND(((U161*AW161*(1/BA161-1/BI161))/1000),4) -> 332.1 | L161: Calculated Value | N161: 0.07147058824 | O161: 0.68 | P161: IL TRM v6 vol3 | Q161: 73 | R161: =ROUND(((AW161*(1/BQ161-1/BU161))/1000*BY161),4) -> 0.0486 | S161: Calculated Value | U161: 738 | V161: EFLHcool, from 2017 MO TRM | W161: 122 | X161: 18 | Y161: IL TRM v6 vol3 | Z161: 72 | AA161: SEER | AB161: 16 | AC161: As Installed | AE161: SEER | AF161: 13 | AG161: IL TRM v6 vol3 | AH161: 74 | AI161: =ROUND(((U161*AW161*(1/BA161-1/BI161))/1000),4) | AJ161: =ROUND(((AW161*(1/BQ161-1/BU161))/1000*BY161),4) | AK161: IL TRM v6 vol3 | AL161: Energy Page 73, Demand Page 75 | AM161: 2020-01-01 | AN161: 2020-03-31 | AW161: 12000 | AX161: Capacity (Btu/hr) | AY161: IL TRM v6 vol3 | AZ161: 74 | BA161: 10 | BB161: SEERexist | BC161: IL TRM v6 vol3 | BD161: 74 | BE161: 13 | BF161: SEERbase | BG161: IL TRM v6 vol3 | BH161: 74 | BI161: 16 | BJ161: SEERee | BK161: Program Tracking Data | BM161: 9.2 | BN161: EERexist | BO161: IL TRM v6 vol3 | BP161: 75 | BQ161: 11.2 | BR161: EERbase | BS161: IL TRM v6 vol3 | BT161: 75 | BU161: 12 | BV161: EERee | BW161: IL TRM v6 vol3 | BX161: 75 | BY161: 0.68 | BZ161: CF | CA161: IL TRM v6 vol3 | CB161: 75
A162: Income-Eligible Multi-Family | B162: CAC SEER 16 - Replace at Fail: MF | C162: 448.1 | D162: Multi-Family | E162: HVAC | G162: per ton | H162: =221/3.5 -> 63.14285714 | I162: IL TRM v7 vol3 | J162: 77 | K162: =ROUND(((U162*AW162*(1/((1-AS162)*BA162)-1/((1-CC162)*CG162*BI162))/1000)),4) -> 416.7715 | L162: Calculated Value | N162: 0.6666176471 | O162: 0.68 | P162: IL TRM v7 vol3 | Q162: 78 | R162: =ROUND(((AW162*(1/((1-AS162)*BM162)-1/((1-CC162)*BU162)))/1000*BY162),4) -> 0.4533 | S162: Calculated Value | U162: 738 | V162: EFLHcool, from 2017 MO TRM | W162: 122 | X162: 18 | Y162: IL TRM v6 vol3 | Z162: 77 | AA162: SEER | AB162: 16 | AC162: As Installed | AE162: SEERbase | AF162: 13 | AG162: IL TRM v7 vol3 | AH162: 79 | AI162: =ROUND(((U162*AW162*(1/((1-AS162)*BA162)-1/((1-CC162)*CG162*BI162))/1000)),4) | AJ162: =ROUND(((AW162*(1/((1-AS162)*BM162)-1/((1-CC162)*BU162)))/1000*BY162),4) | AK162: IL TRM v7 vol3 | AL162: 78, 80 | AM162: 2020-04-01 | AS162: 0.1 | AT162: DeratingCoolBase | AU162: IL TRM v7 vol3 | AV162: 80 | AW162: 12000 | AX162: Capacity (Btu/hr) | AY162: Variable definition | BA162: 9.3 | BB162: SEERexist | BC162: IL TRM v7 vol3 | BD162: 79 | BE162: 13 | BF162: SEERbase | BG162: IL TRM v7 vol3 | BH162: 79 | BI162: 16 | BJ162: SEERee | BK162: Program Tracking Data | BM162: 7.5 | BN162: EERexist | BO162: IL TRM v7 vol3 | BP162: 81 | BQ162: 10.5 | BR162: EERbase | BS162: IL TRM v7 vol3 | BT162: 81 | BU162: 12 | BV162: EERee | BW162: IL TRM v7 vol3 | BX162: 81 | BY162: 0.68 | BZ162: CF | CA162: IL TRM v7 vol3 | CB162: 81 | CC162: 0.1 | CD162: DeratingCoolEff | CE162: IL TRM v7 vol3 | CF162: 80 | CG162: 0.959 | CH162: SEERadj | CI162: IL TRM v7 vol3 | CJ162: 80
A163: Income-Eligible Multi-Family | B163: CAC SEER 17+ - Early Replacement: MF | C163: 449 | D163: Multi-Family | E163: HVAC | G163: per ton | H163: =DA163+DE163/DM163-DI163/DM163*(1+CW163)^(-X163) -> 377.7998383 | I163: IL TRM v7 vol3 | J163: 77 | K163: =ROUND(((U163*AW163*(1/BA163-1/BI163))/1000),4) -> 364.6588 | L163: Calculated Value | N163: 0.3044117647 | O163: 0.68 | P163: IL TRM v6 vol3 | Q163: 73 | R163: =ROUND(((AW163*(1/BM163-1/BU163))/1000*BY163),4) -> 0.207 | S163: Calculated Value | U163: 738 | V163: EFLHcool, from 2017 MO TRM | W163: 122 | X163: 6 | Y163: IL TRM v6 vol3 | Z163: 72 | AA163: SEER | AB163: 17 | AC163: As Installed | AE163: SEER | AF163: 10 | AG163: IL TRM v6 vol3 | AH163: 74 | AI163: =ROUND(((U163*AW163*(1/BA163-1/BI163))/1000),4) | AJ163: =ROUND(((AW163*(1/BM163-1/BU163))/1000*BY163),4) | AK163: IL TRM v6 vol3 | AL163: Energy Page 73, Demand Page 75 | AM163: 2020-01-01 | AN163: 2020-03-31 | AW163: 12000 | AX163: Capacity (Btu/hr) | AY163: IL TRM v6 vol3 | AZ163: 74 | BA163: 10 | BB163: SEERexist | BC163: IL TRM v6 vol3 | BD163: 74 | BE163: 13 | BF163: SEERbase | BG163: IL TRM v6 vol3 | BH163: 74 | BI163: 17 | BJ163: SEERee | BK163: Program Tracking Data | BM163: 9.2 | BN163: EERexist | BO163: IL TRM v6 vol3 | BP163: 75 | BQ163: 11.2 | BR163: EERbase | BS163: IL TRM v6 vol3 | BT163: 75 | BU163: 12 | BV163: EERee | BW163: IL TRM v6 vol3 | BX163: 75 | BY163: 0.68 | BZ163: CF | CA163: IL TRM v6 vol3 | CB163: 75 | CW163: 0.03 | CX163: Societal Discount Rate | CY163: Evergy Standard | DA163: 952 | DB163: First Cost $/ton | DC163: IL TRM v7 vol3 | DD163: 77 | DE163: 620 | DF163: One-time per-system labor cost | DG163: IL TRM v7 vol3 | DH163: 77 | DI163: 3140 | DJ163: Deferred cost savings, per UNIT | DK163: IL TRM v7 vol3 | DL163: 78 | DM163: 3.5 | DN163: Assumed average system tons | DO163: Tracking Data
A164: Income-Eligible Multi-Family | B164: CAC SEER 17+ - Early Replacement: MF | C164: 449.1 | D164: Multi-Family | E164: HVAC | G164: per ton | H164: =DA164+DE164/DM164-DI164/DM164*(1+CW164)^(-X164) -> 377.7998383 | I164: IL TRM v7 vol3 | J164: 77 | K164: =ROUND(((U164*AW164*(1/((1-AS164)*BA164)-1/((1-CC164)*CG164*BI164))/1000)),4) -> 454.4946 | L164: Calculated Value | N164: 0.6666176471 | O164: 0.68 | P164: IL TRM v7 vol3 | Q164: 78 | R164: =ROUND(((AW164*(1/((1-AS164)*BM164)-1/((1-CC164)*BU164)))/1000*BY164),4) -> 0.4533 | S164: Calculated Value | U164: 738 | V164: EFLHcool, from 2017 MO TRM | W164: 122 | X164: 6 | Y164: IL TRM v6 vol3 | Z164: 77 | AA164: SEER | AB164: 17 | AC164: As Installed | AE164: SEERexist | AF164: 9.3 | AG164: IL TRM v7 vol3 | AH164: 79 | AI164: =ROUND(((U164*AW164*(1/((1-AS164)*BA164)-1/((1-CC164)*CG164*BI164))/1000)),4) | AJ164: =ROUND(((AW164*(1/((1-AS164)*BM164)-1/((1-CC164)*BU164)))/1000*BY164),4) | AK164: IL TRM v7 vol3 | AL164: 78, 80 | AM164: 2020-04-01 | AS164: 0.1 | AT164: DeratingCoolBase | AU164: IL TRM v7 vol3 | AV164: 80 | AW164: 12000 | AX164: Capacity (Btu/hr) | AY164: Variable definition | BA164: 9.3 | BB164: SEERexist | BC164: IL TRM v7 vol3 | BD164: 79 | BE164: 13 | BF164: SEERbase | BG164: IL TRM v7 vol3 | BH164: 79 | BI164: 17 | BJ164: SEERee | BK164: Program Tracking Data | BM164: 7.5 | BN164: EERexist | BO164: IL TRM v7 vol3 | BP164: 81 | BQ164: 10.5 | BR164: EERbase | BS164: IL TRM v7 vol3 | BT164: 81 | BU164: 12 | BV164: EERee | BW164: IL TRM v7 vol3 | BX164: 81 | BY164: 0.68 | BZ164: CF | CA164: IL TRM v7 vol3 | CB164: 81 | CC164: 0.1 | CD164: DeratingCoolEff | CE164: IL TRM v7 vol3 | CF164: 80 | CG164: 0.959 | CH164: SEERadj | CI164: IL TRM v7 vol3 | CJ164: 80 | CW164: 0.03 | CX164: Societal Discount Rate | CY164: Evergy Standard | DA164: 952 | DB164: First Cost $/ton | DC164: IL TRM v7 vol3 | DD164: 77 | DE164: 620 | DF164: One-time per-system labor cost | DG164: IL TRM v7 vol3 | DH164: 77 | DI164: 3140 | DJ164: Deferred cost savings, per UNIT | DK164: IL TRM v7 vol3 | DL164: 78 | DM164: 3.5 | DN164: Assumed average system tons | DO164: Tracking Data
A165: Income-Eligible Multi-Family | B165: CAC SEER 17+ - Early Replacement: MF (future) | C165: 450 | D165: Multi-Family | E165: HVAC | G165: per ton | H165: 0 | I165: IL TRM v7 vol3 | J165: 77 | K165: =ROUND(((U165*AW165*(1/BA165-1/BI165))/1000),4) -> 364.6588 | L165: Calculated Value | N165: 0.07147058824 | O165: 0.68 | P165: IL TRM v6 vol3 | Q165: 73 | R165: =ROUND(((AW165*(1/BQ165-1/BU165))/1000*BY165),4) -> 0.0486 | S165: Calculated Value | U165: 738 | V165: EFLHcool, from 2017 MO TRM | W165: 122 | X165: 12 | Y165: IL TRM v6 vol3 | Z165: 72 | AA165: SEER | AB165: 17 | AC165: As Installed | AE165: SEER | AF165: 13 | AG165: IL TRM v6 vol3 | AH165: 74 | AI165: =ROUND(((U165*AW165*(1/BA165-1/BI165))/1000),4) | AJ165: =ROUND(((AW165*(1/BQ165-1/BU165))/1000*BY165),4) | AK165: IL TRM v6 vol3 | AL165: Energy Page 73, Demand Page 75 | AM165: 2020-01-01 | AN165: 2020-03-31 | AW165: 12000 | AX165: Capacity (Btu/hr) | AY165: IL TRM v6 vol3 | AZ165: 74 | BA165: 10 | BB165: SEERexist | BC165: IL TRM v6 vol3 | BD165: 74 | BE165: 13 | BF165: SEERbase | BG165: IL TRM v6 vol3 | BH165: 74 | BI165: 17 | BJ165: SEERee | BK165: Program Tracking Data | BM165: 9.2 | BN165: EERexist | BO165: IL TRM v6 vol3 | BP165: 75 | BQ165: 11.2 | BR165: EERbase | BS165: IL TRM v6 vol3 | BT165: 75 | BU165: 12 | BV165: EERee | BW165: IL TRM v6 vol3 | BX165: 75 | BY165: 0.68 | BZ165: CF | CA165: IL TRM v6 vol3 | CB165: 75 | CW165: 0.03 | CX165: Societal Discount Rate | CY165: Evergy Standard | DA165: 952 | DB165: First Cost $/ton | DC165: IL TRM v7 vol3 | DD165: 77 | DE165: 620 | DF165: One-time per-system labor cost | DG165: IL TRM v7 vol3 | DH165: 77 | DI165: 3140 | DJ165: Deferred cost savings, per UNIT | DK165: IL TRM v7 vol3 | DL165: 78 | DM165: 3.5 | DN165: Assumed average system tons | DO165: Tracking Data
A166: Income-Eligible Multi-Family | B166: CAC SEER 17+ - Early Replacement: MF (future) | C166: 450.1 | D166: Multi-Family | E166: HVAC | G166: per ton | H166: 0 | I166: IL TRM v7 vol3 | J166: 77 | K166: =ROUND(((U166*AW166*(1/((1-AS166)*BA166)-1/((1-CC166)*CG166*BI166))/1000)),4) -> 454.4946 | L166: Calculated Value | N166: 0.6666176471 | O166: 0.68 | P166: IL TRM v7 vol3 | Q166: 78 | R166: =ROUND(((AW166*(1/((1-AS166)*BM166)-1/((1-CC166)*BU166)))/1000*BY166),4) -> 0.4533 | S166: Calculated Value | U166: 738 | V166: EFLHcool, from 2017 MO TRM | W166: 122 | X166: 12 | Y166: IL TRM v6 vol3 | Z166: 77 | AA166: SEER | AB166: 17 | AC166: As Installed | AE166: SEERbase | AF166: 13 | AG166: IL TRM v7 vol3 | AH166: 79 | AI166: =ROUND(((U166*AW166*(1/((1-AS166)*BA166)-1/((1-CC166)*CG166*BI166))/1000)),4) | AJ166: =ROUND(((AW166*(1/((1-AS166)*BM166)-1/((1-CC166)*BU166)))/1000*BY166),4) | AK166: IL TRM v7 vol3 | AL166: 78, 80 | AM166: 2020-04-01 | AS166: 0.1 | AT166: DeratingCoolBase | AU166: IL TRM v7 vol3 | AV166: 80 | AW166: 12000 | AX166: Capacity (Btu/hr) | AY166: Variable definition | BA166: 9.3 | BB166: SEERexist | BC166: IL TRM v7 vol3 | BD166: 79 | BE166: 13 | BF166: SEERbase | BG166: IL TRM v7 vol3 | BH166: 79 | BI166: 17 | BJ166: SEERee | BK166: Program Tracking Data | BM166: 7.5 | BN166: EERexist | BO166: IL TRM v7 vol3 | BP166: 81 | BQ166: 10.5 | BR166: EERbase | BS166: IL TRM v7 vol3 | BT166: 81 | BU166: 12 | BV166: EERee | BW166: IL TRM v7 vol3 | BX166: 81 | BY166: 0.68 | BZ166: CF | CA166: IL TRM v7 vol3 | CB166: 81 | CC166: 0.1 | CD166: DeratingCoolEff | CE166: IL TRM v7 vol3 | CF166: 80 | CG166: 0.959 | CH166: SEERadj | CI166: IL TRM v7 vol3 | CJ166: 80 | CW166: 0.03 | CX166: Societal Discount Rate | CY166: Evergy Standard | DA166: 952 | DB166: First Cost $/ton | DC166: IL TRM v7 vol3 | DD166: 77 | DE166: 620 | DF166: One-time per-system labor cost | DG166: IL TRM v7 vol3 | DH166: 77 | DI166: 3140 | DJ166: Deferred cost savings, per UNIT | DK166: IL TRM v7 vol3 | DL166: 78 | DM166: 3.5 | DN166: Assumed average system tons | DO166: Tracking Data
A167: Income-Eligible Multi-Family | B167: CAC SEER 17+ - Replace at Fail: MF | C167: 451 | D167: Multi-Family | E167: HVAC | G167: per ton | H167: 620 | I167: IL TRM v7 vol3 | J167: 77 | K167: =ROUND(((U167*AW167*(1/BA167-1/BI167))/1000),4) -> 364.6588 | L167: Calculated Value | N167: 0.07147058824 | O167: 0.68 | P167: IL TRM v6 vol3 | Q167: 73 | R167: =ROUND(((AW167*(1/BQ167-1/BU167))/1000*BY167),4) -> 0.0486 | S167: Calculated Value | U167: 738 | V167: EFLHcool, from 2017 MO TRM | W167: 122 | X167: 18 | Y167: IL TRM v6 vol3 | Z167: 72 | AA167: SEER | AB167: 17 | AC167: As Installed | AE167: SEER | AF167: 13 | AG167: IL TRM v6 vol3 | AH167: 74 | AI167: =ROUND(((U167*AW167*(1/BA167-1/BI167))/1000),4) | AJ167: =ROUND(((AW167*(1/BQ167-1/BU167))/1000*BY167),4) | AK167: IL TRM v6 vol3 | AL167: Energy Page 73, Demand Page 75 | AM167: 2020-01-01 | AN167: 2020-03-31 | AW167: 12000 | AX167: Capacity (Btu/hr) | AY167: IL TRM v6 vol3 | AZ167: 74 | BA167: 10 | BB167: SEERexist | BC167: IL TRM v6 vol3 | BD167: 74 | BE167: 13 | BF167: SEERbase | BG167: IL TRM v6 vol3 | BH167: 74 | BI167: 17 | BJ167: SEERee | BK167: Program Tracking Data | BM167: 9.2 | BN167: EERexist | BO167: IL TRM v6 vol3 | BP167: 75 | BQ167: 11.2 | BR167: EERbase | BS167: IL TRM v6 vol3 | BT167: 75 | BU167: 12 | BV167: EERee | BW167: IL TRM v6 vol3 | BX167: 75 | BY167: 0.68 | BZ167: CF | CA167: IL TRM v6 vol3 | CB167: 75
A168: Income-Eligible Multi-Family | B168: CAC SEER 17+ - Replace at Fail: MF | C168: 451.1 | D168: Multi-Family | E168: HVAC | G168: per ton | H168: =620/3.5 -> 177.1428571 | I168: IL TRM v7 vol3 | J168: 77 | K168: =ROUND(((U168*AW168*(1/((1-AS168)*BA168)-1/((1-CC168)*CG168*BI168))/1000)),4) -> 454.4946 | L168: Calculated Value | N168: 0.6666176471 | O168: 0.68 | P168: IL TRM v7 vol3 | Q168: 78 | R168: =ROUND(((AW168*(1/((1-AS168)*BM168)-1/((1-CC168)*BU168)))/1000*BY168),4) -> 0.4533 | S168: Calculated Value | U168: 738 | V168: EFLHcool, from 2017 MO TRM | W168: 122 | X168: 18 | Y168: IL TRM v6 vol3 | Z168: 77 | AA168: SEER | AB168: 17 | AC168: As Installed | AE168: SEERbase | AF168: 13 | AG168: IL TRM v7 vol3 | AH168: 79 | AI168: =ROUND(((U168*AW168*(1/((1-AS168)*BA168)-1/((1-CC168)*CG168*BI168))/1000)),4) | AJ168: =ROUND(((AW168*(1/((1-AS168)*BM168)-1/((1-CC168)*BU168)))/1000*BY168),4) | AK168: IL TRM v7 vol3 | AL168: 78, 80 | AM168: 2020-04-01 | AS168: 0.1 | AT168: DeratingCoolBase | AU168: IL TRM v7 vol3 | AV168: 80 | AW168: 12000 | AX168: Capacity (Btu/hr) | AY168: Variable definition | BA168: 9.3 | BB168: SEERexist | BC168: IL TRM v7 vol3 | BD168: 79 | BE168: 13 | BF168: SEERbase | BG168: IL TRM v7 vol3 | BH168: 79 | BI168: 17 | BJ168: SEERee | BK168: Program Tracking Data | BM168: 7.5 | BN168: EERexist | BO168: IL TRM v7 vol3 | BP168: 81 | BQ168: 10.5 | BR168: EERbase | BS168: IL TRM v7 vol3 | BT168: 81 | BU168: 12 | BV168: EERee | BW168: IL TRM v7 vol3 | BX168: 81 | BY168: 0.68 | BZ168: CF | CA168: IL TRM v7 vol3 | CB168: 81 | CC168: 0.1 | CD168: DeratingCoolEff | CE168: IL TRM v7 vol3 | CF168: 80 | CG168: 0.959 | CH168: SEERadj | CI168: IL TRM v7 vol3 | CJ168: 80
A169: Income-Eligible Multi-Family | B169: Ductless ASHP Replace Electric Resistance - Early Replacement: MF | C169: 453 | D169: Multi-Family | E169: HVAC | G169: per ton | H169: 3000 | I169: IL TRM v6 vol3 | J169: 137 | K169: =ROUND(2539.3656,4) -> 2539.3656 | L169: Calculated Value | N169: 0.5348611111 | O169: 0.72 | P169: IL TRM v6 vol3 | Q169: 138 | R169: =ROUND(0.3851,4) -> 0.3851 | S169: Calculated Value | X169: 6 | Y169: IL TRM v6 vol3 | Z169: 137 | AI169: =ROUND(2539.3656,4) | AJ169: =ROUND(0.3851,4) | AK169: IL TRM v6 vol3 | AL169: 139142 | AM169: 2020-01-01
A170: Income-Eligible Multi-Family | B170: Ductless ASHP Replace Electric Resistance - Early Replacement: MF (future) | C170: 454 | D170: Multi-Family | E170: HVAC | G170: per ton | H170: 0 | I170: IL TRM v6 vol3 | J170: 137 | K170: =ROUND(194.4823,4) -> 194.4823 | L170: Calculated Value | N170: 0.07944444444 | O170: 0.72 | P170: IL TRM v6 vol3 | Q170: 138 | R170: =ROUND(0.0572,4) -> 0.0572 | S170: Calculated Value | X170: 12 | Y170: IL TRM v6 vol3 | Z170: 137 | AI170: =ROUND(194.4823,4) | AJ170: =ROUND(0.0572,4) | AK170: IL TRM v6 vol3 | AL170: 139142 | AM170: 2020-01-01
A171: Income-Eligible Multi-Family | B171: ASHP SEER 16 - replace electric furnace / CAC - Early Replacement: MF | C171: 462 | D171: Multi-Family | E171: HVAC | G171: per ton | H171: =DA171+DE171/DM171-DI171*(1+CW171)^(-X171) -> 234.8417555 | I171: IL TRM v7 vol3 | J171: 64 | K171: =ROUND(((U171*AS171*(1/(AF171*(1-BY171))-1/(AB171*CC171*(1-CG171))))/1000)+((BQ171*AS171*(1/(BA171*(1-CK171))-1/(AW171*CO171*(1-CS171))))/1000),4) -> 3791.6941 | L171: Calculated Value | N171: =R171 -> 0.4953 | O171: 0.67 | P171: IL TRM v7 vol3 | Q171: 65 | R171: =ROUND((AS171*(1/(BI171*(1-BY171))-1/(BE171*(1-CG171))))/1000*O171,4) -> 0.4953 | S171: Calculated Value | U171: 738 | V171: EFLHcool, from 2017 MO TRM | W171: 85 | X171: 6 | Y171: IL TRM v7 vol3 | Z171: 64 | AA171: SEERee | AB171: 16.08 | AC171: per PY2018 Metadata WHE | AE171: SEERexist | AF171: 9.3 | AG171: IL TRM v7 vol3 | AH171: 66 | AI171: =ROUND(((U171*AS171*(1/(AF171*(1-BY171))-1/(AB171*CC171*(1-CG171))))/1000)+((BQ171*AS171*(1/(BA171*(1-CK171))-1/(AW171*CO171*(1-CS171))))/1000),4) | AJ171: =ROUND((AS171*(1/(BI171*(1-BY171))-1/(BE171*(1-CG171))))/1000*O171,4) | AK171: IL TRM v7 vol3 | AL171: 65, 69 | AM171: 2020-01-01 | AS171: 12000 | AT171: Allows for Capacity input in Tons; converts tons to BTUs | AW171: 8.978571429 | AX171: HSPFee | AY171: per PY2018 Metadata WHE | BA171: 3.41 | BB171: HSPFbase | BC171: IL TRM v7 vol3 | BD171: 68 | BE171: 12.838272 | BF171: EERee | BG171: Calculated per PY2018 Metadata WHE | BI171: 7.5 | BJ171: EERexist | BK171: IL TRM v7 vol3 | BL171: 70 | BM171: 738 | BN171: EFLHcool | BO171: EFLHcool, from 2017 MO TRM | BP171: 85 | BQ171: 1376 | BR171: EFLHheat | BS171: The EFLH Cooling and Heating hours are based on a EnergyStar study that was normalized (based on HDD and CDD) to Kansas City. This was for both AC and HP units. | BU171: 3.41 | BV171: HSPFexist | BW171: IL TRM v7 vol3 | BX171: 68 | BY171: 0.1 | BZ171: Derating_Cool_Base | CA171: IL TRM v7 vol3 | CB171: 67 | CC171: 1.011 | CD171: SEERadj | CE171: IL TRM v7 vol3 | CF171: 69 (example) | CG171: 0.1 | CH171: Derating_Cool_Eff | CI171: IL TRM v7 vol3 | CJ171: 67 | CK171: 0.1 | CL171: Derating_Heat_Base | CM171: IL TRM v7 vol3 | CN171: 68 | CO171: 1.001 | CP171: HSPFadj | CQ171: IL TRM v7 vol3 | CR171: 69 (example) | CS171: 0.1 | CT171: Derating_Heat_Eff | CU171: IL TRM v7 vol3 | CV171: 68 | CW171: 0.03 | CX171: Societal Discount Rate | CY171: Evergy Standard | DA171: 1381 | DB171: First Cost $/ton | DC171: IL TRM v7 vol3 | DD171: 64 | DE171: 438 | DF171: One-time per-system labor cost | DG171: IL TRM v7 vol3 | DH171: 64 | DI171: 1518 | DJ171: Deferred cost savings | DK171: IL TRM v7 vol3 | DL171: 65 | DM171: 3.5 | DN171: Assumed average system tons | DO171: Tracking Data
A172: Income-Eligible Multi-Family | B172: ASHP SEER 16 - replace electric furnace / CAC - Early Replacement: MF (future) | C172: 463 | D172: Multi-Family | E172: HVAC | G172: per ton | H172: 0 | I172: IL TRM v7 vol3 | J172: 65 | K172: 293.6309 | L172: Calculated Value | N172: 0.1163 | O172: 0.67 | P172: IL TRM v7 vol3 | Q172: 65 | R172: 0.1163 | S172: Calculated Value | U172: 738 | V172: EFLHcool, from 2017 MO TRM | W172: 85 | X172: 10 | Y172: IL TRM v7 vol3 | Z172: 64 | AA172: SEERee | AB172: 16.08 | AC172: per PY2018 Metadata WHE | AE172: SEERbase | AF172: 14 | AG172: IL TRM v7 vol3 | AH172: 67 | AI172: =ROUND(((U172*AS172*(1/(AF172*(1-BY172))-1/(AB172*CC172*(1-CG172))))/1000)+((BQ172*AS172*(1/(BA172*(1-CK172))-1/(AW172*CO172*(1-CS172))))/1000),4) | AJ172: =ROUND((AS172*(1/(BI172*(1-BY172))-1/(BE172*(1-CG172))))/1000*O172,4) | AK172: IL TRM v7 vol3 | AL172: 65, 69 | AM172: 2020-01-01 | AS172: 12000 | AT172: Allows for Capacity input in Tons; converts tons to BTUs | AW172: 8.978571429 | AX172: HSPFee | AY172: per PY2018 Metadata WHE | BA172: 8.2 | BB172: HSPFexist | BC172: IL TRM v7 vol3 | BD172: 68 | BE172: 12.838272 | BF172: EERee | BG172: Calculated per PY2018 Metadata WHE | BI172: 11 | BJ172: EERbase | BK172: IL TRM v7 vol3 | BL172: 70 | BM172: 738 | BN172: EFLHcool | BO172: EFLHcool, from 2017 MO TRM | BP172: 85 | BQ172: 1376 | BR172: EFLHheat | BS172: The EFLH Cooling and Heating hours are based on a EnergyStar study that was normalized (based on HDD and CDD) to Kansas City. This was for both AC and HP units. | BU172: 8.2 | BV172: HSPFbase | BW172: IL TRM v7 vol3 | BX172: 68 | BY172: 0.1 | BZ172: Derating_Cool_Base | CA172: IL TRM v7 vol3 | CB172: 67 | CC172: 1.011 | CD172: SEERadj | CE172: IL TRM v7 vol3 | CF172: 69 (example) | CG172: 0.1 | CH172: Derating_Cool_Eff | CI172: IL TRM v7 vol3 | CJ172: 67 | CK172: 0.1 | CL172: Derating_Heat_Base | CM172: IL TRM v7 vol3 | CN172: 68 | CO172: 1.001 | CP172: HSPFadj | CQ172: IL TRM v7 vol3 | CR172: 69 (example) | CS172: 0.1 | CT172: Derating_Heat_Eff | CU172: IL TRM v7 vol3 | CV172: 68 | CW172: 0.03 | CX172: Societal Discount Rate | CY172: Evergy Standard | DA172: 1381 | DB172: First Cost $/ton | DC172: IL TRM v7 vol3 | DD172: 64 | DE172: 438 | DF172: One-time per-system labor cost | DG172: IL TRM v7 vol3 | DH172: 64 | DI172: 1518 | DJ172: Deferred cost savings | DK172: IL TRM v7 vol3 | DL172: 65 | DM172: 3.5 | DN172: Assumed average system tons | DO172: Tracking Data
A173: Income-Eligible Multi-Family | B173: ASHP SEER 16 - replace electric furnace / CAC: MF | C173: 455 | D173: Multi-Family | E173: HVAC | G173: per ton | H173: =438/3.5 -> 125.1428571 | I173: IL TRM v7 vol3 | J173: 64 | K173: 312.3281 | L173: Calculated Value | N173: 0.1045 | O173: 0.67 | P173: IL TRM v7 vol3 | Q173: 65 | R173: 0.1045 | S173: Calculated Value | U173: 738 | V173: EFLHcool, from 2017 MO TRM | W173: 85 | X173: 16 | Y173: IL TRM v7 vol3 | Z173: 64 | AA173: SEERee | AB173: 16.11 | AC173: per PY2018 Metadata WHE | AE173: SEERbase | AF173: 14 | AG173: IL TRM v7 vol3 | AH173: 66 | AI173: =ROUND(((U173*AS173*(1/(AF173*(1-BY173))-1/(AB173*CC173*(1-CG173))))/1000)+((BQ173*AS173*(1/(BA173*(1-CK173))-1/(AW173*CO173*(1-CS173))))/1000),4) | AJ173: =ROUND((AS173*(1/(BI173*(1-BY173))-1/(BE173*(1-CG173))))/1000*O173,4) | AK173: IL TRM v7 vol3 | AL173: 65, 69 | AM173: 2020-01-01 | AS173: 12000 | AT173: Allows for Capacity input in Tons; converts tons to BTUs | AW173: 9.056521739 | AX173: HSPFee | AY173: per PY2018 Metadata WHE | BA173: 8.2 | BB173: HSPFbase | BC173: IL TRM v7 vol3 | BD173: 68 | BE173: 12.625 | BF173: EERee | BG173: Calculated per PY2018 Metadata WHE | BI173: 11 | BJ173: EERbase | BK173: IL TRM v7 vol3 | BL173: 70 | BM173: 738 | BN173: EFLHcool | BO173: EFLHcool, from 2017 MO TRM | BP173: 85 | BQ173: 1376 | BR173: EFLHheat | BS173: The EFLH Cooling and Heating hours are based on a EnergyStar study that was normalized (based on HDD and CDD) to Kansas City. This was for both AC and HP units. | BU173: 8.2 | BV173: HSPFbase | BW173: IL TRM v7 vol3 | BX173: 68 | BY173: 0.1 | BZ173: Derating_Cool_Base | CA173: IL TRM v7 vol3 | CB173: 67 | CC173: 1.011 | CD173: SEERadj | CE173: IL TRM v7 vol3 | CF173: 69 (example) | CG173: 0.1 | CH173: Derating_Cool_Eff | CI173: IL TRM v7 vol3 | CJ173: 67 | CK173: 0.1 | CL173: Derating_Heat_Base | CM173: IL TRM v7 vol3 | CN173: 68 | CO173: 1.001 | CP173: HSPFadj | CQ173: IL TRM v7 vol3 | CR173: 69 (example) | CS173: 0.1 | CT173: Derating_Heat_Eff | CU173: IL TRM v7 vol3 | CV173: 68
A174: Income-Eligible Multi-Family | B174: ASHP SEER 17 - replace electric furnace / CAC: MF | C174: 456 | D174: Multi-Family | E174: HVAC | G174: per ton | H174: =724/3.5 -> 206.8571429 | I174: IL TRM v7 vol3 | J174: 64 | K174: 503.9911 | L174: Calculated Value | N174: 0.2431 | O174: 0.67 | P174: IL TRM v7 vol3 | Q174: 65 | R174: 0.2431 | S174: Calculated Value | U174: 738 | V174: EFLHcool, from 2017 MO TRM | W174: 85 | X174: 16 | Y174: IL TRM v7 vol3 | Z174: 64 | AA174: SEERee | AB174: 18.27 | AC174: per PY2018 Metadata WHE | AE174: SEERbase | AF174: 14 | AG174: IL TRM v7 vol3 | AH174: 66 | AI174: =ROUND(((U174*AS174*(1/(AF174*(1-BY174))-1/(AB174*CC174*(1-CG174))))/1000)+((BQ174*AS174*(1/(BA174*(1-CK174))-1/(AW174*CO174*(1-CS174))))/1000),4) | AJ174: =ROUND((AS174*(1/(BI174*(1-BY174))-1/(BE174*(1-CG174))))/1000*O174,4) | AK174: IL TRM v7 vol3 | AL174: 65, 69 | AM174: 2020-01-01 | AS174: 12000 | AT174: Allows for Capacity input in Tons; converts tons to BTUs | AW174: 9.628571429 | AX174: HSPFee | AY174: per PY2018 Metadata WHE | BA174: 8.2 | BB174: HSPFbase | BC174: IL TRM v7 vol3 | BD174: 68 | BE174: 15.7 | BF174: EERee | BG174: Calculated per PY2018 Metadata WHE | BI174: 11 | BJ174: EERbase | BK174: IL TRM v7 vol3 | BL174: 70 | BM174: 738 | BN174: EFLHcool | BO174: EFLHcool, from 2017 MO TRM | BP174: 85 | BQ174: 1376 | BR174: EFLHheat | BS174: The EFLH Cooling and Heating hours are based on a EnergyStar study that was normalized (based on HDD and CDD) to Kansas City. This was for both AC and HP units. | BU174: 8.2 | BV174: HSPFbase | BW174: IL TRM v7 vol3 | BX174: 68 | BY174: 0.1 | BZ174: Derating_Cool_Base | CA174: IL TRM v7 vol3 | CB174: 67 | CC174: 1.011 | CD174: SEERadj | CE174: IL TRM v7 vol3 | CF174: 69 (example) | CG174: 0.1 | CH174: Derating_Cool_Eff | CI174: IL TRM v7 vol3 | CJ174: 67 | CK174: 0.1 | CL174: Derating_Heat_Base | CM174: IL TRM v7 vol3 | CN174: 68 | CO174: 1.001 | CP174: HSPFadj | CQ174: IL TRM v7 vol3 | CR174: 69 (example) | CS174: 0.1 | CT174: Derating_Heat_Eff | CU174: IL TRM v7 vol3 | CV174: 68
A175: Income-Eligible Multi-Family | B175: ASHP SEER 18 - replace electric furnace / CAC: MF | C175: 457 | D175: Multi-Family | E175: HVAC | G175: per ton | H175: =724/3.5 -> 206.8571429 | I175: IL TRM v7 vol3 | J175: 64 | K175: 496.0001 | L175: Calculated Value | N175: 0.2431 | O175: 0.67 | P175: IL TRM v7 vol3 | Q175: 65 | R175: 0.2431 | S175: Calculated Value | U175: 738 | V175: EFLHcool, from 2017 MO TRM | W175: 85 | X175: 16 | Y175: IL TRM v7 vol3 | Z175: 64 | AA175: SEERee | AB175: 18 | AC175: Measure Definition | AE175: SEERbase | AF175: 14 | AG175: IL TRM v7 vol3 | AH175: 66 | AI175: =ROUND(((U175*AS175*(1/(AF175*(1-BY175))-1/(AB175*CC175*(1-CG175))))/1000)+((BQ175*AS175*(1/(BA175*(1-CK175))-1/(AW175*CO175*(1-CS175))))/1000),4) | AJ175: =ROUND((AS175*(1/(BI175*(1-BY175))-1/(BE175*(1-CG175))))/1000*O175,4) | AK175: IL TRM v7 vol3 | AL175: 65, 69 | AM175: 2020-01-01 | AS175: 12000 | AT175: Allows for Capacity input in Tons; converts tons to BTUs | AW175: 9.628571429 | AX175: HSPFee | AY175: per PY2018 Metadata WHE (borrowed from SEER 17 measure) | BA175: 8.2 | BB175: HSPFbase | BC175: IL TRM v7 vol3 | BD175: 68 | BE175: 15.7 | BF175: EERee | BG175: Calculated per PY2018 Metadata WHE (borrowed from SEER 17 measure) | BI175: 11 | BJ175: EERbase | BK175: IL TRM v7 vol3 | BL175: 70 | BM175: 738 | BN175: EFLHcool | BO175: EFLHcool, from 2017 MO TRM | BP175: 85 | BQ175: 1376 | BR175: EFLHheat | BS175: The EFLH Cooling and Heating hours are based on a EnergyStar study that was normalized (based on HDD and CDD) to Kansas City. This was for both AC and HP units. | BU175: 8.2 | BV175: HSPFbase | BW175: IL TRM v7 vol3 | BX175: 68 | BY175: 0.1 | BZ175: Derating_Cool_Base | CA175: IL TRM v7 vol3 | CB175: 67 | CC175: 1.011 | CD175: SEERadj | CE175: IL TRM v7 vol3 | CF175: 69 (example) | CG175: 0.1 | CH175: Derating_Cool_Eff | CI175: IL TRM v7 vol3 | CJ175: 67 | CK175: 0.1 | CL175: Derating_Heat_Base | CM175: IL TRM v7 vol3 | CN175: 68 | CO175: 1.001 | CP175: HSPFadj | CQ175: IL TRM v7 vol3 | CR175: 69 (example) | CS175: 0.1 | CT175: Derating_Heat_Eff | CU175: IL TRM v7 vol3 | CV175: 68
